Workbook

Sheet INTRO
B2: PC Joint Reporting Form v.3
B4: The purpose of this template Joint Reporting Form (JRF) - available as an Excel file - is to provide national health authorities and data managers with a standardized tool to address these reporting challenges, facilitate integration and thereby further contribute to improving overall programme management. This template aims to standardize national reporting of programme implementation outcomes, improve availability and coordination of preventive chemotherapy data across the World Health Organization regions. National authorities are requested to complete this form for submission to the World Health Organization any time before 15 August of the current year for reporting data on PC interventions implemented during the previous year.
B6: Structure of the application (worksheets):
B8: INTRO | C8: This worksheet includes guides on how to complete the joint reporting form and information about status of PC for endemic diseases in the country
B9: COUNTRY_INFO | C9: This worksheet includes information about administrative structure of the country, population by age group, status of endemicity for each disease, population requiring PC, planned interventions and interventions implemented
B10: MDA1, MDA2, MDA3, T1, T2 and T3 | C10: These worksheets include information about endemic districts targeted for treatment with specified PC medicines, treatment plan, and number of people who received treatment by age group
B11: DISTRICT | C11: This worksheet includes summary of people treated by disease at the level of implementation. If data by gender is available, it requires to enter.
B12: SUMMARY | C12: This worksheet includes summary of people treated by disease and by PC intervention. Before generating the report (run macros) please select the disease for which you need the report. Follow the same rule to generate various reports. This worksheet should be printed and submitted as a Joint Report (see the instruction for submission in the SUMMARY worksheet).
B14: Instruction for data entry
B16: Most of the cells in the above-mentioned worksheets include formula that are calculated automatically according to the treatment policy recommended by WHO for each disease. See the link http://www.who.int/neglected_diseases/preventive_chemotherapy/pct_manual/en/index.html
B18: Please enter your data into the cells according to their colour code:
C20: White - cell is not protected. Please enter the value of the requested indicator.
C22: Yellow - cell is protected and includes name of indicator. No data entry required.
C24: Orange - cell is not protected and includes a drop-down menu. Please select the value from the drop-down list.
C27: Green - cell is not protected and includes formula. Please change the value only if your data are different from those that are calculated automatically.
C30: Blue - cell is protected and includes formula. No data entry required.
B32: Country data
B34: COUNTRY | E34: Ethiopia
B36: Year of reporting data | E36: 2017
B38: Is country endemic for lymphatic filariasis (LF)? | E38: Endemic
B40: Is country endemic for onchocerciasis (ONCHO)? | E40: Endemic
B42: Is country endemic for soil-transmitted helminthiases (STH)? | E42: Endemic
B44: Is country endemic for schistosomiasis (SCH)? | E44: Endemic
B46: How many administrative units in the country? | E46: 898
B47: If demographical data at the second administrative level are not available by age group, please enter the proportion (%) of population by age group in the country. If data are available, please leave these cells blank.
B48: 1-4 years age | C48: Preschool-age children (PreSAC)
B49: 5-14 years age | C49: School-age children (SAC)
B50: 15 years + | C50: Adults

Sheet COUNTRY_INFO
A1: COUNTRY INFORMATION
A2: Administrative structure, population by age group, endemicity status, planned interventions and interventions implemented
A4: TOTAL | D4: =SUM(D$9:D$1000) -> 95508410 | E4: =SUM(E$9:E$1000) -> 13988595 | F4: =SUM(F$9:F$1000) -> 29050222 | G4: =SUM(G$9:G$1000) -> 52469583 | L4: =SUM(L$9:L$1000) -> 5633511 | M4: =SUM(M$9:M$1000) -> 17506842 | N4: =SUM(N$9:N$1000) -> 26017530 | O4: =SUM(O$9:O$1000) -> 13106945.76
A6: Country administrative structure | D6: Population | H6: Endemicity | L6: Population requiring PC | P6: Number of treatment rounds planned for the year | T6: PC implemented | V6: Click to see the recommended strategy
A7: Country | B7: Province/State | C7: District | D7: Total | E7: PreSAC | F7: SAC | G7: Adults | H7: LF | I7: Oncho | J7: STH | K7: SCH | L7: LF | M7: Oncho | N7: STH | O7: SCH | P7: LF | Q7: Oncho | R7: STH | S7: SCH | T7: ROUND 1 | U7: ROUND2
A9: =IF(INTRO!$E$34<>0,INTRO!$E$34,"") -> Ethiopia | B9: Addis AbabaAddis Ababa | C9: Addis Ketema Subcity | D9: 319757 | E9: 22894 | F9: 53142 | G9: 243721 | H9: 0 | I9: 0 | J9: 1 | K9: 0 | L9: =IF(INTRO!$E$38="Endemic", IF($H9>0, IF($H9=4,"Unknown", IF($H9=99,"Stopped", $D9)), 0),"Not required") -> 0 | M9: =IF(INTRO!$E$40="Endemic", IF($I9>0, IF($I9=4,"Unknown",IF($I9=99,"Stopped", $D9)), 0),"Not required") -> 0 | N9: =IF(INTRO!$E$42="Endemic", IF(AND($J9>1,$J9<5), IF($J9=4, "Unknown", E9+F9), 0),"Not required") -> 0 | O9: =IF(INTRO!$E$44="Endemic", IF(AND($K9>0,$K9<5), IF($K9=4,"Unknown", IF($K9=1, $F9*0.33, IF($K9=2, $F9*0.5+$G9*0.2, SUM(F9:G9)))), 0),"Not required") -> 0 | P9: 0 | Q9: 0 | R9: 0 | S9: 0
A10: =IF(INTRO!$E$34<>0,INTRO!$E$34,"") -> Ethiopia | B10: Addis AbabaAddis Ababa | C10: Akaki Kaliti Subcity | D10: 229859 | E10: 16457 | F10: 38201 | G10: 175200 | H10: 0 | I10: 0 | J10: 1 | K10: 0 | L10: =IF(INTRO!$E$38="Endemic", IF($H10>0, IF($H10=4,"Unknown", IF($H10=99,"Stopped", $D10)), 0),"Not required") -> 0 | M10: =IF(INTRO!$E$40="Endemic", IF($I10>0, IF($I10=4,"Unknown",IF($I10=99,"Stopped", $D10)), 0),"Not required") -> 0 | N10: =IF(INTRO!$E$42="Endemic", IF(AND($J10>1,$J10<5), IF($J10=4, "Unknown", E10+F10), 0),"Not required") -> 0 | O10: =IF(INTRO!$E$44="Endemic", IF(AND($K10>0,$K10<5), IF($K10=4,"Unknown", IF($K10=1, $F10*0.33, IF($K10=2, $F10*0.5+$G10*0.2, SUM(F10:G10)))), 0),"Not required") -> 0 | P10: 0 | Q10: 0 | R10: 0 | S10: 0
A11: =IF(INTRO!$E$34<>0,INTRO!$E$34,"") -> Ethiopia | B11: Addis AbabaAddis Ababa | C11: Arada Subcity | D11: 266028 | E11: 19047 | F11: 44212 | G11: 202769 | H11: 0 | I11: 0 | J11: 1 | K11: 0 | L11: =IF(INTRO!$E$38="Endemic", IF($H11>0, IF($H11=4,"Unknown", IF($H11=99,"Stopped", $D11)), 0),"Not required") -> 0 | M11: =IF(INTRO!$E$40="Endemic", IF($I11>0, IF($I11=4,"Unknown",IF($I11=99,"Stopped", $D11)), 0),"Not required") -> 0 | N11: =IF(INTRO!$E$42="Endemic", IF(AND($J11>1,$J11<5), IF($J11=4, "Unknown", E11+F11), 0),"Not required") -> 0 | O11: =IF(INTRO!$E$44="Endemic", IF(AND($K11>0,$K11<5), IF($K11=4,"Unknown", IF($K11=1, $F11*0.33, IF($K11=2, $F11*0.5+$G11*0.2, SUM(F11:G11)))), 0),"Not required") -> 0 | P11: 0 | Q11: 0 | R11: 0 | S11: 0
A12: =IF(INTRO!$E$34<>0,INTRO!$E$34,"") -> Ethiopia | B12: Addis AbabaAddis Ababa | C12: Bolle Subcity | D12: 387153 | E12: 27719 | F12: 64342 | G12: 295091 | H12: 0 | I12: 0 | J12: 1 | K12: 0 | L12: =IF(INTRO!$E$38="Endemic", IF($H12>0, IF($H12=4,"Unknown", IF($H12=99,"Stopped", $D12)), 0),"Not required") -> 0 | M12: =IF(INTRO!$E$40="Endemic", IF($I12>0, IF($I12=4,"Unknown",IF($I12=99,"Stopped", $D12)), 0),"Not required") -> 0 | N12: =IF(INTRO!$E$42="Endemic", IF(AND($J12>1,$J12<5), IF($J12=4, "Unknown", E12+F12), 0),"Not required") -> 0 | O12: =IF(INTRO!$E$44="Endemic", IF(AND($K12>0,$K12<5), IF($K12=4,"Unknown", IF($K12=1, $F12*0.33, IF($K12=2, $F12*0.5+$G12*0.2, SUM(F12:G12)))), 0),"Not required") -> 0 | P12: 0 | Q12: 0 | R12: 0 | S12: 0
A13: =IF(INTRO!$E$34<>0,INTRO!$E$34,"") -> Ethiopia | B13: Addis AbabaAddis Ababa | C13: Gulelie Subcity | D13: 335319 | E13: 24008 | F13: 55728 | G13: 255583 | H13: 0 | I13: 0 | J13: 1 | K13: 0 | L13: =IF(INTRO!$E$38="Endemic", IF($H13>0, IF($H13=4,"Unknown", IF($H13=99,"Stopped", $D13)), 0),"Not required") -> 0 | M13: =IF(INTRO!$E$40="Endemic", IF($I13>0, IF($I13=4,"Unknown",IF($I13=99,"Stopped", $D13)), 0),"Not required") -> 0 | N13: =IF(INTRO!$E$42="Endemic", IF(AND($J13>1,$J13<5), IF($J13=4, "Unknown", E13+F13), 0),"Not required") -> 0 | O13: =IF(INTRO!$E$44="Endemic", IF(AND($K13>0,$K13<5), IF($K13=4,"Unknown", IF($K13=1, $F13*0.33, IF($K13=2, $F13*0.5+$G13*0.2, SUM(F13:G13)))), 0),"Not required") -> 0 | P13: 0 | Q13: 0 | R13: 0 | S13: 0
A14: =IF(INTRO!$E$34<>0,INTRO!$E$34,"") -> Ethiopia | B14: Addis AbabaAddis Ababa | C14: Kirkose Subcity | D14: 277142 | E14: 19843 | F14: 46059 | G14: 211240 | H14: 0 | I14: 0 | J14: 1 | K14: 0 | L14: =IF(INTRO!$E$38="Endemic", IF($H14>0, IF($H14=4,"Unknown", IF($H14=99,"Stopped", $D14)), 0),"Not required") -> 0 | M14: =IF(INTRO!$E$40="Endemic", IF($I14>0, IF($I14=4,"Unknown",IF($I14=99,"Stopped", $D14)), 0),"Not required") -> 0 | N14: =IF(INTRO!$E$42="Endemic", IF(AND($J14>1,$J14<5), IF($J14=4, "Unknown", E14+F14), 0),"Not required") -> 0 | O14: =IF(INTRO!$E$44="Endemic", IF(AND($K14>0,$K14<5), IF($K14=4,"Unknown", IF($K14=1, $F14*0.33, IF($K14=2, $F14*0.5+$G14*0.2, SUM(F14:G14)))), 0),"Not required") -> 0 | P14: 0 | Q14: 0 | R14: 0 | S14: 0
A15: =IF(INTRO!$E$34<>0,INTRO!$E$34,"") -> Ethiopia | B15: Addis AbabaAddis Ababa | C15: Kolfie Keranio Subcity | D15: 537023 | E15: 38450 | F15: 89250 | G15: 409324 | H15: 0 | I15: 0 | J15: 1 | K15: 0 | L15: =IF(INTRO!$E$38="Endemic", IF($H15>0, IF($H15=4,"Unknown", IF($H15=99,"Stopped", $D15)), 0),"Not required") -> 0 | M15: =IF(INTRO!$E$40="Endemic", IF($I15>0, IF($I15=4,"Unknown",IF($I15=99,"Stopped", $D15)), 0),"Not required") -> 0 | N15: =IF(INTRO!$E$42="Endemic", IF(AND($J15>1,$J15<5), IF($J15=4, "Unknown", E15+F15), 0),"Not required") -> 0 | O15: =IF(INTRO!$E$44="Endemic", IF(AND($K15>0,$K15<5), IF($K15=4,"Unknown", IF($K15=1, $F15*0.33, IF($K15=2, $F15*0.5+$G15*0.2, SUM(F15:G15)))), 0),"Not required") -> 0 | P15: 0 | Q15: 0 | R15: 0 | S15: 0
A16: =IF(INTRO!$E$34<>0,INTRO!$E$34,"") -> Ethiopia | B16: Addis AbabaAddis Ababa | C16: Lideta Subcity | D16: 252840 | E16: 18103 | F16: 42020 | G16: 192717 | H16: 0 | I16: 0 | J16: 1 | K16: 0 | L16: =IF(INTRO!$E$38="Endemic", IF($H16>0, IF($H16=4,"Unknown", IF($H16=99,"Stopped", $D16)), 0),"Not required") -> 0 | M16: =IF(INTRO!$E$40="Endemic", IF($I16>0, IF($I16=4,"Unknown",IF($I16=99,"Stopped", $D16)), 0),"Not required") -> 0 | N16: =IF(INTRO!$E$42="Endemic", IF(AND($J16>1,$J16<5), IF($J16=4, "Unknown", E16+F16), 0),"Not required") -> 0 | O16: =IF(INTRO!$E$44="Endemic", IF(AND($K16>0,$K16<5), IF($K16=4,"Unknown", IF($K16=1, $F16*0.33, IF($K16=2, $F16*0.5+$G16*0.2, SUM(F16:G16)))), 0),"Not required") -> 0 | P16: 0 | Q16: 0 | R16: 0 | S16: 0
A17: =IF(INTRO!$E$34<>0,INTRO!$E$34,"") -> Ethiopia | B17: Addis AbabaAddis Ababa | C17: Nifase Silk Lafto Subcity | D17: 395206 | E17: 28296 | F17: 65681 | G17: 301229 | H17: 0 | I17: 0 | J17: 1 | K17: 0 | L17: =IF(INTRO!$E$38="Endemic", IF($H17>0, IF($H17=4,"Unknown", IF($H17=99,"Stopped", $D17)), 0),"Not required") -> 0 | M17: =IF(INTRO!$E$40="Endemic", IF($I17>0, IF($I17=4,"Unknown",IF($I17=99,"Stopped", $D17)), 0),"Not required") -> 0 | N17: =IF(INTRO!$E$42="Endemic", IF(AND($J17>1,$J17<5), IF($J17=4, "Unknown", E17+F17), 0),"Not required") -> 0 | O17: =IF(INTRO!$E$44="Endemic", IF(AND($K17>0,$K17<5), IF($K17=4,"Unknown", IF($K17=1, $F17*0.33, IF($K17=2, $F17*0.5+$G17*0.2, SUM(F17:G17)))), 0),"Not required") -> 0 | P17: 0 | Q17: 0 | R17: 0 | S17: 0
A18: =IF(INTRO!$E$34<>0,INTRO!$E$34,"") -> Ethiopia | B18: Addis AbabaAddis Ababa | C18: Yeka Subcity | D18: 433672 | E18: 31050 | F18: 72074 | G18: 330548 | H18: 0 | I18: 0 | J18: 1 | K18: 0 | L18: =IF(INTRO!$E$38="Endemic", IF($H18>0, IF($H18=4,"Unknown", IF($H18=99,"Stopped", $D18)), 0),"Not required") -> 0 | M18: =IF(INTRO!$E$40="Endemic", IF($I18>0, IF($I18=4,"Unknown",IF($I18=99,"Stopped", $D18)), 0),"Not required") -> 0 | N18: =IF(INTRO!$E$42="Endemic", IF(AND($J18>1,$J18<5), IF($J18=4, "Unknown", E18+F18), 0),"Not required") -> 0 | O18: =IF(INTRO!$E$44="Endemic", IF(AND($K18>0,$K18<5), IF($K18=4,"Unknown", IF($K18=1, $F18*0.33, IF($K18=2, $F18*0.5+$G18*0.2, SUM(F18:G18)))), 0),"Not required") -> 0 | P18: 0 | Q18: 0 | R18: 0 | S18: 0
A19: =IF(INTRO!$E$34<>0,INTRO!$E$34,"") -> Ethiopia | B19: AfarAwsa | C19: Abala | D19: 43383 | E19: 4443 | F19: 14601 | G19: 24339 | H19: 0 | I19: 4 | J19: 4 | K19: 4 | L19: =IF(INTRO!$E$38="Endemic", IF($H19>0, IF($H19=4,"Unknown", IF($H19=99,"Stopped", $D19)), 0),"Not required") -> 0 | M19: =IF(INTRO!$E$40="Endemic", IF($I19>0, IF($I19=4,"Unknown",IF($I19=99,"Stopped", $D19)), 0),"Not required") -> Unknown | N19: =IF(INTRO!$E$42="Endemic", IF(AND($J19>1,$J19<5), IF($J19=4, "Unknown", E19+F19), 0),"Not required") -> Unknown | O19: =IF(INTRO!$E$44="Endemic", IF(AND($K19>0,$K19<5), IF($K19=4,"Unknown", IF($K19=1, $F19*0.33, IF($K19=2, $F19*0.5+$G19*0.2, SUM(F19:G19)))), 0),"Not required") -> Unknown | P19: 0 | Q19: 0 | R19: 0 | S19: 0
A20: =IF(INTRO!$E$34<>0,INTRO!$E$34,"") -> Ethiopia | B20: AfarAwsa | C20: Adar | D20: 61513 | E20: 6300 | F20: 20702 | G20: 34511 | H20: 0 | I20: 4 | J20: 4 | K20: 4 | L20: =IF(INTRO!$E$38="Endemic", IF($H20>0, IF($H20=4,"Unknown", IF($H20=99,"Stopped", $D20)), 0),"Not required") -> 0 | M20: =IF(INTRO!$E$40="Endemic", IF($I20>0, IF($I20=4,"Unknown",IF($I20=99,"Stopped", $D20)), 0),"Not required") -> Unknown | N20: =IF(INTRO!$E$42="Endemic", IF(AND($J20>1,$J20<5), IF($J20=4, "Unknown", E20+F20), 0),"Not required") -> Unknown | O20: =IF(INTRO!$E$44="Endemic", IF(AND($K20>0,$K20<5), IF($K20=4,"Unknown", IF($K20=1, $F20*0.33, IF($K20=2, $F20*0.5+$G20*0.2, SUM(F20:G20)))), 0),"Not required") -> Unknown | P20: 0 | Q20: 0 | R20: 0 | S20: 0
A21: =IF(INTRO!$E$34<>0,INTRO!$E$34,"") -> Ethiopia | B21: AfarAwsa | C21: Afambo | D21: 27588 | E21: 2825 | F21: 9285 | G21: 15478 | H21: 0 | I21: 4 | J21: 1 | K21: 0 | L21: =IF(INTRO!$E$38="Endemic", IF($H21>0, IF($H21=4,"Unknown", IF($H21=99,"Stopped", $D21)), 0),"Not required") -> 0 | M21: =IF(INTRO!$E$40="Endemic", IF($I21>0, IF($I21=4,"Unknown",IF($I21=99,"Stopped", $D21)), 0),"Not required") -> Unknown | N21: =IF(INTRO!$E$42="Endemic", IF(AND($J21>1,$J21<5), IF($J21=4, "Unknown", E21+F21), 0),"Not required") -> 0 | O21: =IF(INTRO!$E$44="Endemic", IF(AND($K21>0,$K21<5), IF($K21=4,"Unknown", IF($K21=1, $F21*0.33, IF($K21=2, $F21*0.5+$G21*0.2, SUM(F21:G21)))), 0),"Not required") -> 0 | P21: 0 | Q21: 0 | R21: 0 | S21: 0
A22: =IF(INTRO!$E$34<>0,INTRO!$E$34,"") -> Ethiopia | B22: AfarAwsa | C22: Afdera | D22: 36832 | E22: 3772 | F22: 12396 | G22: 20664 | H22: 0 | I22: 4 | J22: 4 | K22: 4 | L22: =IF(INTRO!$E$38="Endemic", IF($H22>0, IF($H22=4,"Unknown", IF($H22=99,"Stopped", $D22)), 0),"Not required") -> 0 | M22: =IF(INTRO!$E$40="Endemic", IF($I22>0, IF($I22=4,"Unknown",IF($I22=99,"Stopped", $D22)), 0),"Not required") -> Unknown | N22: =IF(INTRO!$E$42="Endemic", IF(AND($J22>1,$J22<5), IF($J22=4, "Unknown", E22+F22), 0),"Not required") -> Unknown | O22: =IF(INTRO!$E$44="Endemic", IF(AND($K22>0,$K22<5), IF($K22=4,"Unknown", IF($K22=1, $F22*0.33, IF($K22=2, $F22*0.5+$G22*0.2, SUM(F22:G22)))), 0),"Not required") -> Unknown | P22: 0 | Q22: 0 | R22: 0 | S22: 0
A23: =IF(INTRO!$E$34<>0,INTRO!$E$34,"") -> Ethiopia | B23: AfarAwsa | C23: Amibara | D23: 72564 | E23: 7431 | F23: 24422 | G23: 40711 | H23: 0 | I23: 4 | J23: 1 | K23: 1 | L23: =IF(INTRO!$E$38="Endemic", IF($H23>0, IF($H23=4,"Unknown", IF($H23=99,"Stopped", $D23)), 0),"Not required") -> 0 | M23: =IF(INTRO!$E$40="Endemic", IF($I23>0, IF($I23=4,"Unknown",IF($I23=99,"Stopped", $D23)), 0),"Not required") -> Unknown | N23: =IF(INTRO!$E$42="Endemic", IF(AND($J23>1,$J23<5), IF($J23=4, "Unknown", E23+F23), 0),"Not required") -> 0 | O23: =IF(INTRO!$E$44="Endemic", IF(AND($K23>0,$K23<5), IF($K23=4,"Unknown", IF($K23=1, $F23*0.33, IF($K23=2, $F23*0.5+$G23*0.2, SUM(F23:G23)))), 0),"Not required") -> 8059.26 | P23: 0 | Q23: 0 | R23: 0 | S23: 0
A24: =IF(INTRO!$E$34<>0,INTRO!$E$34,"") -> Ethiopia | B24: AfarAwsa | C24: Aregoba | D24: 24988 | E24: 2559 | F24: 8410 | G24: 14019 | H24: 0 | I24: 4 | J24: 4 | K24: 4 | L24: =IF(INTRO!$E$38="Endemic", IF($H24>0, IF($H24=4,"Unknown", IF($H24=99,"Stopped", $D24)), 0),"Not required") -> 0 | M24: =IF(INTRO!$E$40="Endemic", IF($I24>0, IF($I24=4,"Unknown",IF($I24=99,"Stopped", $D24)), 0),"Not required") -> Unknown | N24: =IF(INTRO!$E$42="Endemic", IF(AND($J24>1,$J24<5), IF($J24=4, "Unknown", E24+F24), 0),"Not required") -> Unknown | O24: =IF(INTRO!$E$44="Endemic", IF(AND($K24>0,$K24<5), IF($K24=4,"Unknown", IF($K24=1, $F24*0.33, IF($K24=2, $F24*0.5+$G24*0.2, SUM(F24:G24)))), 0),"Not required") -> Unknown | P24: 0 | Q24: 0 | R24: 0 | S24: 0
A25: =IF(INTRO!$E$34<>0,INTRO!$E$34,"") -> Ethiopia | B25: AfarAwsa | C25: Awash fentale | D25: 16734 | E25: 1714 | F25: 5632 | G25: 9388 | H25: 0 | I25: 4 | J25: 1 | K25: 0 | L25: =IF(INTRO!$E$38="Endemic", IF($H25>0, IF($H25=4,"Unknown", IF($H25=99,"Stopped", $D25)), 0),"Not required") -> 0 | M25: =IF(INTRO!$E$40="Endemic", IF($I25>0, IF($I25=4,"Unknown",IF($I25=99,"Stopped", $D25)), 0),"Not required") -> Unknown | N25: =IF(INTRO!$E$42="Endemic", IF(AND($J25>1,$J25<5), IF($J25=4, "Unknown", E25+F25), 0),"Not required") -> 0 | O25: =IF(INTRO!$E$44="Endemic", IF(AND($K25>0,$K25<5), IF($K25=4,"Unknown", IF($K25=1, $F25*0.33, IF($K25=2, $F25*0.5+$G25*0.2, SUM(F25:G25)))), 0),"Not required") -> 0 | P25: 0 | Q25: 0 | R25: 0 | S25: 0
A26: =IF(INTRO!$E$34<>0,INTRO!$E$34,"") -> Ethiopia | B26: AfarAwsa | C26: Awash Town | D26: 16925 | E26: 1733 | F26: 5696 | G26: 9496 | H26: 0 | I26: 4 | J26: 4 | K26: 4 | L26: =IF(INTRO!$E$38="Endemic", IF($H26>0, IF($H26=4,"Unknown", IF($H26=99,"Stopped", $D26)), 0),"Not required") -> 0 | M26: =IF(INTRO!$E$40="Endemic", IF($I26>0, IF($I26=4,"Unknown",IF($I26=99,"Stopped", $D26)), 0),"Not required") -> Unknown | N26: =IF(INTRO!$E$42="Endemic", IF(AND($J26>1,$J26<5), IF($J26=4, "Unknown", E26+F26), 0),"Not required") -> Unknown | O26: =IF(INTRO!$E$44="Endemic", IF(AND($K26>0,$K26<5), IF($K26=4,"Unknown", IF($K26=1, $F26*0.33, IF($K26=2, $F26*0.5+$G26*0.2, SUM(F26:G26)))), 0),"Not required") -> Unknown | P26: 0 | Q26: 0 | R26: 0 | S26: 0
A27: =IF(INTRO!$E$34<>0,INTRO!$E$34,"") -> Ethiopia | B27: AfarAwsa | C27: Awra | D27: 40882 | E27: 4187 | F27: 13759 | G27: 22936 | H27: 0 | I27: 4 | J27: 4 | K27: 4 | L27: =IF(INTRO!$E$38="Endemic", IF($H27>0, IF($H27=4,"Unknown", IF($H27=99,"Stopped", $D27)), 0),"Not required") -> 0 | M27: =IF(INTRO!$E$40="Endemic", IF($I27>0, IF($I27=4,"Unknown",IF($I27=99,"Stopped", $D27)), 0),"Not required") -> Unknown | N27: =IF(INTRO!$E$42="Endemic", IF(AND($J27>1,$J27<5), IF($J27=4, "Unknown", E27+F27), 0),"Not required") -> Unknown | O27: =IF(INTRO!$E$44="Endemic", IF(AND($K27>0,$K27<5), IF($K27=4,"Unknown", IF($K27=1, $F27*0.33, IF($K27=2, $F27*0.5+$G27*0.2, SUM(F27:G27)))), 0),"Not required") -> Unknown | P27: 0 | Q27: 0 | R27: 0 | S27: 0
A28: =IF(INTRO!$E$34<>0,INTRO!$E$34,"") -> Ethiopia | B28: AfarAwsa | C28: Aysaeta | D28: 53979 | E28: 5528 | F28: 18167 | G28: 30284 | H28: 0 | I28: 4 | J28: 0 | K28: 1 | L28: =IF(INTRO!$E$38="Endemic", IF($H28>0, IF($H28=4,"Unknown", IF($H28=99,"Stopped", $D28)), 0),"Not required") -> 0 | M28: =IF(INTRO!$E$40="Endemic", IF($I28>0, IF($I28=4,"Unknown",IF($I28=99,"Stopped", $D28)), 0),"Not required") -> Unknown | N28: =IF(INTRO!$E$42="Endemic", IF(AND($J28>1,$J28<5), IF($J28=4, "Unknown", E28+F28), 0),"Not required") -> 0 | O28: =IF(INTRO!$E$44="Endemic", IF(AND($K28>0,$K28<5), IF($K28=4,"Unknown", IF($K28=1, $F28*0.33, IF($K28=2, $F28*0.5+$G28*0.2, SUM(F28:G28)))), 0),"Not required") -> 5995.11 | P28: 0 | Q28: 0 | R28: 0 | S28: 0
A29: =IF(INTRO!$E$34<>0,INTRO!$E$34,"") -> Ethiopia | B29: AfarAwsa | C29: Chifra | D29: 72565 | E29: 7431 | F29: 24422 | G29: 40712 | H29: 0 | I29: 4 | J29: 0 | K29: 0 | L29: =IF(INTRO!$E$38="Endemic", IF($H29>0, IF($H29=4,"Unknown", IF($H29=99,"Stopped", $D29)), 0),"Not required") -> 0 | M29: =IF(INTRO!$E$40="Endemic", IF($I29>0, IF($I29=4,"Unknown",IF($I29=99,"Stopped", $D29)), 0),"Not required") -> Unknown | N29: =IF(INTRO!$E$42="Endemic", IF(AND($J29>1,$J29<5), IF($J29=4, "Unknown", E29+F29), 0),"Not required") -> 0 | O29: =IF(INTRO!$E$44="Endemic", IF(AND($K29>0,$K29<5), IF($K29=4,"Unknown", IF($K29=1, $F29*0.33, IF($K29=2, $F29*0.5+$G29*0.2, SUM(F29:G29)))), 0),"Not required") -> 0 | P29: 0 | Q29: 0 | R29: 0 | S29: 0
A30: =IF(INTRO!$E$34<>0,INTRO!$E$34,"") -> Ethiopia | B30: AfarAwsa | C30: Dubti | D30: 90745 | E30: 9293 | F30: 30541 | G30: 50911 | H30: 0 | I30: 4 | J30: 1 | K30: 0 | L30: =IF(INTRO!$E$38="Endemic", IF($H30>0, IF($H30=4,"Unknown", IF($H30=99,"Stopped", $D30)), 0),"Not required") -> 0 | M30: =IF(INTRO!$E$40="Endemic", IF($I30>0, IF($I30=4,"Unknown",IF($I30=99,"Stopped", $D30)), 0),"Not required") -> Unknown | N30: =IF(INTRO!$E$42="Endemic", IF(AND($J30>1,$J30<5), IF($J30=4, "Unknown", E30+F30), 0),"Not required") -> 0 | O30: =IF(INTRO!$E$44="Endemic", IF(AND($K30>0,$K30<5), IF($K30=4,"Unknown", IF($K30=1, $F30*0.33, IF($K30=2, $F30*0.5+$G30*0.2, SUM(F30:G30)))), 0),"Not required") -> 0 | P30: 0 | Q30: 0 | R30: 0 | S30: 0
A31: =IF(INTRO!$E$34<>0,INTRO!$E$34,"") -> Ethiopia | B31: AfarAwsa | C31: Elidar | D31: 36450 | E31: 3733 | F31: 12267 | G31: 20450 | H31: 0 | I31: 4 | J31: 3 | K31: 0 | L31: =IF(INTRO!$E$38="Endemic", IF($H31>0, IF($H31=4,"Unknown", IF($H31=99,"Stopped", $D31)), 0),"Not required") -> 0 | M31: =IF(INTRO!$E$40="Endemic", IF($I31>0, IF($I31=4,"Unknown",IF($I31=99,"Stopped", $D31)), 0),"Not required") -> Unknown | N31: =IF(INTRO!$E$42="Endemic", IF(AND($J31>1,$J31<5), IF($J31=4, "Unknown", E31+F31), 0),"Not required") -> 16000 | O31: =IF(INTRO!$E$44="Endemic", IF(AND($K31>0,$K31<5), IF($K31=4,"Unknown", IF($K31=1, $F31*0.33, IF($K31=2, $F31*0.5+$G31*0.2, SUM(F31:G31)))), 0),"Not required") -> 0 | P31: 0 | Q31: 0 | R31: 2 | S31: 0 | U31: T3 (ALB/MBD)
A32: =IF(INTRO!$E$34<>0,INTRO!$E$34,"") -> Ethiopia | B32: AfarAwsa | C32: Kori | D32: 104136 | E32: 10665 | F32: 35047 | G32: 58424 | H32: 0 | I32: 4 | J32: 4 | K32: 4 | L32: =IF(INTRO!$E$38="Endemic", IF($H32>0, IF($H32=4,"Unknown", IF($H32=99,"Stopped", $D32)), 0),"Not required") -> 0 | M32: =IF(INTRO!$E$40="Endemic", IF($I32>0, IF($I32=4,"Unknown",IF($I32=99,"Stopped", $D32)), 0),"Not required") -> Unknown | N32: =IF(INTRO!$E$42="Endemic", IF(AND($J32>1,$J32<5), IF($J32=4, "Unknown", E32+F32), 0),"Not required") -> Unknown | O32: =IF(INTRO!$E$44="Endemic", IF(AND($K32>0,$K32<5), IF($K32=4,"Unknown", IF($K32=1, $F32*0.33, IF($K32=2, $F32*0.5+$G32*0.2, SUM(F32:G32)))), 0),"Not required") -> Unknown | P32: 0 | Q32: 0 | R32: 0 | S32: 0
A33: =IF(INTRO!$E$34<>0,INTRO!$E$34,"") -> Ethiopia | B33: AfarAwsa | C33: Mile | D33: 41334 | E33: 4233 | F33: 13911 | G33: 23190 | H33: 0 | I33: 4 | J33: 1 | K33: 0 | L33: =IF(INTRO!$E$38="Endemic", IF($H33>0, IF($H33=4,"Unknown", IF($H33=99,"Stopped", $D33)), 0),"Not required") -> 0 | M33: =IF(INTRO!$E$40="Endemic", IF($I33>0, IF($I33=4,"Unknown",IF($I33=99,"Stopped", $D33)), 0),"Not required") -> Unknown | N33: =IF(INTRO!$E$42="Endemic", IF(AND($J33>1,$J33<5), IF($J33=4, "Unknown", E33+F33), 0),"Not required") -> 0 | O33: =IF(INTRO!$E$44="Endemic", IF(AND($K33>0,$K33<5), IF($K33=4,"Unknown", IF($K33=1, $F33*0.33, IF($K33=2, $F33*0.5+$G33*0.2, SUM(F33:G33)))), 0),"Not required") -> 0 | P33: 0 | Q33: 0 | R33: 0 | S33: 0
A34: =IF(INTRO!$E$34<>0,INTRO!$E$34,"") -> Ethiopia | B34: AfarAwsa | C34: Semra Logya Town | D34: 95950 | E34: 9826 | F34: 32292 | G34: 53831 | H34: 0 | I34: 4 | J34: 4 | K34: 4 | L34: =IF(INTRO!$E$38="Endemic", IF($H34>0, IF($H34=4,"Unknown", IF($H34=99,"Stopped", $D34)), 0),"Not required") -> 0 | M34: =IF(INTRO!$E$40="Endemic", IF($I34>0, IF($I34=4,"Unknown",IF($I34=99,"Stopped", $D34)), 0),"Not required") -> Unknown | N34: =IF(INTRO!$E$42="Endemic", IF(AND($J34>1,$J34<5), IF($J34=4, "Unknown", E34+F34), 0),"Not required") -> Unknown | O34: =IF(INTRO!$E$44="Endemic", IF(AND($K34>0,$K34<5), IF($K34=4,"Unknown", IF($K34=1, $F34*0.33, IF($K34=2, $F34*0.5+$G34*0.2, SUM(F34:G34)))), 0),"Not required") -> Unknown | P34: 0 | Q34: 0 | R34: 0 | S34: 0
A35: =IF(INTRO!$E$34<>0,INTRO!$E$34,"") -> Ethiopia | B35: AfarFanti | C35: Bedu | D35: 48217 | E35: 4938 | F35: 16228 | G35: 27051 | H35: 0 | I35: 4 | J35: 4 | K35: 4 | L35: =IF(INTRO!$E$38="Endemic", IF($H35>0, IF($H35=4,"Unknown", IF($H35=99,"Stopped", $D35)), 0),"Not required") -> 0 | M35: =IF(INTRO!$E$40="Endemic", IF($I35>0, IF($I35=4,"Unknown",IF($I35=99,"Stopped", $D35)), 0),"Not required") -> Unknown | N35: =IF(INTRO!$E$42="Endemic", IF(AND($J35>1,$J35<5), IF($J35=4, "Unknown", E35+F35), 0),"Not required") -> Unknown | O35: =IF(INTRO!$E$44="Endemic", IF(AND($K35>0,$K35<5), IF($K35=4,"Unknown", IF($K35=1, $F35*0.33, IF($K35=2, $F35*0.5+$G35*0.2, SUM(F35:G35)))), 0),"Not required") -> Unknown | P35: 0 | Q35: 0 | R35: 0 | S35: 0
A36: =IF(INTRO!$E$34<>0,INTRO!$E$34,"") -> Ethiopia | B36: AfarFanti | C36: Berahle | D36: 74678 | E36: 7648 | F36: 25133 | G36: 41897 | H36: 0 | I36: 4 | J36: 4 | K36: 4 | L36: =IF(INTRO!$E$38="Endemic", IF($H36>0, IF($H36=4,"Unknown", IF($H36=99,"Stopped", $D36)), 0),"Not required") -> 0 | M36: =IF(INTRO!$E$40="Endemic", IF($I36>0, IF($I36=4,"Unknown",IF($I36=99,"Stopped", $D36)), 0),"Not required") -> Unknown | N36: =IF(INTRO!$E$42="Endemic", IF(AND($J36>1,$J36<5), IF($J36=4, "Unknown", E36+F36), 0),"Not required") -> Unknown | O36: =IF(INTRO!$E$44="Endemic", IF(AND($K36>0,$K36<5), IF($K36=4,"Unknown", IF($K36=1, $F36*0.33, IF($K36=2, $F36*0.5+$G36*0.2, SUM(F36:G36)))), 0),"Not required") -> Unknown | P36: 0 | Q36: 0 | R36: 0 | S36: 0
A37: =IF(INTRO!$E$34<>0,INTRO!$E$34,"") -> Ethiopia | B37: AfarFanti | C37: Buremodaytu | D37: 23698 | E37: 2427 | F37: 7976 | G37: 13295 | H37: 0 | I37: 4 | J37: 3 | K37: 0 | L37: =IF(INTRO!$E$38="Endemic", IF($H37>0, IF($H37=4,"Unknown", IF($H37=99,"Stopped", $D37)), 0),"Not required") -> 0 | M37: =IF(INTRO!$E$40="Endemic", IF($I37>0, IF($I37=4,"Unknown",IF($I37=99,"Stopped", $D37)), 0),"Not required") -> Unknown | N37: =IF(INTRO!$E$42="Endemic", IF(AND($J37>1,$J37<5), IF($J37=4, "Unknown", E37+F37), 0),"Not required") -> 10403 | O37: =IF(INTRO!$E$44="Endemic", IF(AND($K37>0,$K37<5), IF($K37=4,"Unknown", IF($K37=1, $F37*0.33, IF($K37=2, $F37*0.5+$G37*0.2, SUM(F37:G37)))), 0),"Not required") -> 0 | P37: 0 | Q37: 0 | R37: 2 | S37: 0
A38: =IF(INTRO!$E$34<>0,INTRO!$E$34,"") -> Ethiopia | B38: AfarGabi | C38: Dalifage | D38: 91690 | E38: 9390 | F38: 30859 | G38: 51441 | H38: 0 | I38: 4 | J38: 0 | K38: 0 | L38: =IF(INTRO!$E$38="Endemic", IF($H38>0, IF($H38=4,"Unknown", IF($H38=99,"Stopped", $D38)), 0),"Not required") -> 0 | M38: =IF(INTRO!$E$40="Endemic", IF($I38>0, IF($I38=4,"Unknown",IF($I38=99,"Stopped", $D38)), 0),"Not required") -> Unknown | N38: =IF(INTRO!$E$42="Endemic", IF(AND($J38>1,$J38<5), IF($J38=4, "Unknown", E38+F38), 0),"Not required") -> 0 | O38: =IF(INTRO!$E$44="Endemic", IF(AND($K38>0,$K38<5), IF($K38=4,"Unknown", IF($K38=1, $F38*0.33, IF($K38=2, $F38*0.5+$G38*0.2, SUM(F38:G38)))), 0),"Not required") -> 0 | P38: 0 | Q38: 0 | R38: 0 | S38: 0
A39: =IF(INTRO!$E$34<>0,INTRO!$E$34,"") -> Ethiopia | B39: AfarGabi | C39: Dalul | D39: 66172 | E39: 6777 | F39: 22271 | G39: 37125 | H39: 0 | I39: 4 | J39: 4 | K39: 4 | L39: =IF(INTRO!$E$38="Endemic", IF($H39>0, IF($H39=4,"Unknown", IF($H39=99,"Stopped", $D39)), 0),"Not required") -> 0 | M39: =IF(INTRO!$E$40="Endemic", IF($I39>0, IF($I39=4,"Unknown",IF($I39=99,"Stopped", $D39)), 0),"Not required") -> Unknown | N39: =IF(INTRO!$E$42="Endemic", IF(AND($J39>1,$J39<5), IF($J39=4, "Unknown", E39+F39), 0),"Not required") -> Unknown | O39: =IF(INTRO!$E$44="Endemic", IF(AND($K39>0,$K39<5), IF($K39=4,"Unknown", IF($K39=1, $F39*0.33, IF($K39=2, $F39*0.5+$G39*0.2, SUM(F39:G39)))), 0),"Not required") -> Unknown | P39: 0 | Q39: 0 | R39: 0 | S39: 0
A40: =IF(INTRO!$E$34<>0,INTRO!$E$34,"") -> Ethiopia | B40: AfarGabi | C40: Dewe | D40: 54490 | E40: 5580 | F40: 18339 | G40: 30571 | H40: 0 | I40: 4 | J40: 0 | K40: 3 | L40: =IF(INTRO!$E$38="Endemic", IF($H40>0, IF($H40=4,"Unknown", IF($H40=99,"Stopped", $D40)), 0),"Not required") -> 0 | M40: =IF(INTRO!$E$40="Endemic", IF($I40>0, IF($I40=4,"Unknown",IF($I40=99,"Stopped", $D40)), 0),"Not required") -> Unknown | N40: =IF(INTRO!$E$42="Endemic", IF(AND($J40>1,$J40<5), IF($J40=4, "Unknown", E40+F40), 0),"Not required") -> 0 | O40: =IF(INTRO!$E$44="Endemic", IF(AND($K40>0,$K40<5), IF($K40=4,"Unknown", IF($K40=1, $F40*0.33, IF($K40=2, $F40*0.5+$G40*0.2, SUM(F40:G40)))), 0),"Not required") -> 48910 | P40: 0 | Q40: 0 | R40: 0 | S40: 1 | U40: T2 (PZQ)
A41: =IF(INTRO!$E$34<>0,INTRO!$E$34,"") -> Ethiopia | B41: AfarGabi | C41: Dulech | D41: 36118 | E41: 3699 | F41: 12156 | G41: 20263 | H41: 0 | I41: 4 | J41: 0 | K41: 1 | L41: =IF(INTRO!$E$38="Endemic", IF($H41>0, IF($H41=4,"Unknown", IF($H41=99,"Stopped", $D41)), 0),"Not required") -> 0 | M41: =IF(INTRO!$E$40="Endemic", IF($I41>0, IF($I41=4,"Unknown",IF($I41=99,"Stopped", $D41)), 0),"Not required") -> Unknown | N41: =IF(INTRO!$E$42="Endemic", IF(AND($J41>1,$J41<5), IF($J41=4, "Unknown", E41+F41), 0),"Not required") -> 0 | O41: =IF(INTRO!$E$44="Endemic", IF(AND($K41>0,$K41<5), IF($K41=4,"Unknown", IF($K41=1, $F41*0.33, IF($K41=2, $F41*0.5+$G41*0.2, SUM(F41:G41)))), 0),"Not required") -> 4011.48 | P41: 0 | Q41: 0 | R41: 0 | S41: 0
A42: =IF(INTRO!$E$34<>0,INTRO!$E$34,"") -> Ethiopia | B42: AfarHarri | C42: Erebti | D42: 56929 | E42: 5830 | F42: 19160 | G42: 31939 | H42: 0 | I42: 4 | J42: 4 | K42: 4 | L42: =IF(INTRO!$E$38="Endemic", IF($H42>0, IF($H42=4,"Unknown", IF($H42=99,"Stopped", $D42)), 0),"Not required") -> 0 | M42: =IF(INTRO!$E$40="Endemic", IF($I42>0, IF($I42=4,"Unknown",IF($I42=99,"Stopped", $D42)), 0),"Not required") -> Unknown | N42: =IF(INTRO!$E$42="Endemic", IF(AND($J42>1,$J42<5), IF($J42=4, "Unknown", E42+F42), 0),"Not required") -> Unknown | O42: =IF(INTRO!$E$44="Endemic", IF(AND($K42>0,$K42<5), IF($K42=4,"Unknown", IF($K42=1, $F42*0.33, IF($K42=2, $F42*0.5+$G42*0.2, SUM(F42:G42)))), 0),"Not required") -> Unknown | P42: 0 | Q42: 0 | R42: 0 | S42: 0
A43: =IF(INTRO!$E$34<>0,INTRO!$E$34,"") -> Ethiopia | B43: AfarHarri | C43: Ewa | D43: 40308 | E43: 4128 | F43: 13566 | G43: 22614 | H43: 0 | I43: 4 | J43: 4 | K43: 4 | L43: =IF(INTRO!$E$38="Endemic", IF($H43>0, IF($H43=4,"Unknown", IF($H43=99,"Stopped", $D43)), 0),"Not required") -> 0 | M43: =IF(INTRO!$E$40="Endemic", IF($I43>0, IF($I43=4,"Unknown",IF($I43=99,"Stopped", $D43)), 0),"Not required") -> Unknown | N43: =IF(INTRO!$E$42="Endemic", IF(AND($J43>1,$J43<5), IF($J43=4, "Unknown", E43+F43), 0),"Not required") -> Unknown | O43: =IF(INTRO!$E$44="Endemic", IF(AND($K43>0,$K43<5), IF($K43=4,"Unknown", IF($K43=1, $F43*0.33, IF($K43=2, $F43*0.5+$G43*0.2, SUM(F43:G43)))), 0),"Not required") -> Unknown | P43: 0 | Q43: 0 | R43: 0 | S43: 0
A44: =IF(INTRO!$E$34<>0,INTRO!$E$34,"") -> Ethiopia | B44: AfarHarri | C44: Gewane | D44: 61932 | E44: 6342 | F44: 20844 | G44: 34746 | H44: 0 | I44: 4 | J44: 1 | K44: 0 | L44: =IF(INTRO!$E$38="Endemic", IF($H44>0, IF($H44=4,"Unknown", IF($H44=99,"Stopped", $D44)), 0),"Not required") -> 0 | M44: =IF(INTRO!$E$40="Endemic", IF($I44>0, IF($I44=4,"Unknown",IF($I44=99,"Stopped", $D44)), 0),"Not required") -> Unknown | N44: =IF(INTRO!$E$42="Endemic", IF(AND($J44>1,$J44<5), IF($J44=4, "Unknown", E44+F44), 0),"Not required") -> 0 | O44: =IF(INTRO!$E$44="Endemic", IF(AND($K44>0,$K44<5), IF($K44=4,"Unknown", IF($K44=1, $F44*0.33, IF($K44=2, $F44*0.5+$G44*0.2, SUM(F44:G44)))), 0),"Not required") -> 0 | P44: 0 | Q44: 0 | R44: 0 | S44: 0
A45: =IF(INTRO!$E$34<>0,INTRO!$E$34,"") -> Ethiopia | B45: AfarHarri | C45: Gulina | D45: 55485 | E45: 5682 | F45: 18674 | G45: 31129 | H45: 0 | I45: 4 | J45: 4 | K45: 4 | L45: =IF(INTRO!$E$38="Endemic", IF($H45>0, IF($H45=4,"Unknown", IF($H45=99,"Stopped", $D45)), 0),"Not required") -> 0 | M45: =IF(INTRO!$E$40="Endemic", IF($I45>0, IF($I45=4,"Unknown",IF($I45=99,"Stopped", $D45)), 0),"Not required") -> Unknown | N45: =IF(INTRO!$E$42="Endemic", IF(AND($J45>1,$J45<5), IF($J45=4, "Unknown", E45+F45), 0),"Not required") -> Unknown | O45: =IF(INTRO!$E$44="Endemic", IF(AND($K45>0,$K45<5), IF($K45=4,"Unknown", IF($K45=1, $F45*0.33, IF($K45=2, $F45*0.5+$G45*0.2, SUM(F45:G45)))), 0),"Not required") -> Unknown | P45: 0 | Q45: 0 | R45: 0 | S45: 0
A46: =IF(INTRO!$E$34<>0,INTRO!$E$34,"") -> Ethiopia | B46: AfarHarri | C46: Hadaleelila | D46: 32136 | E46: 3291 | F46: 10816 | G46: 18029 | H46: 0 | I46: 4 | J46: 3 | K46: 0 | L46: =IF(INTRO!$E$38="Endemic", IF($H46>0, IF($H46=4,"Unknown", IF($H46=99,"Stopped", $D46)), 0),"Not required") -> 0 | M46: =IF(INTRO!$E$40="Endemic", IF($I46>0, IF($I46=4,"Unknown",IF($I46=99,"Stopped", $D46)), 0),"Not required") -> Unknown | N46: =IF(INTRO!$E$42="Endemic", IF(AND($J46>1,$J46<5), IF($J46=4, "Unknown", E46+F46), 0),"Not required") -> 14107 | O46: =IF(INTRO!$E$44="Endemic", IF(AND($K46>0,$K46<5), IF($K46=4,"Unknown", IF($K46=1, $F46*0.33, IF($K46=2, $F46*0.5+$G46*0.2, SUM(F46:G46)))), 0),"Not required") -> 0 | P46: 0 | Q46: 0 | R46: 2 | S46: 0 | U46: T3 (ALB/MBD)
A47: =IF(INTRO!$E$34<>0,INTRO!$E$34,"") -> Ethiopia | B47: AfarHarri | C47: Koneba | D47: 106079 | E47: 10863 | F47: 35701 | G47: 59514 | H47: 0 | I47: 4 | J47: 4 | K47: 4 | L47: =IF(INTRO!$E$38="Endemic", IF($H47>0, IF($H47=4,"Unknown", IF($H47=99,"Stopped", $D47)), 0),"Not required") -> 0 | M47: =IF(INTRO!$E$40="Endemic", IF($I47>0, IF($I47=4,"Unknown",IF($I47=99,"Stopped", $D47)), 0),"Not required") -> Unknown | N47: =IF(INTRO!$E$42="Endemic", IF(AND($J47>1,$J47<5), IF($J47=4, "Unknown", E47+F47), 0),"Not required") -> Unknown | O47: =IF(INTRO!$E$44="Endemic", IF(AND($K47>0,$K47<5), IF($K47=4,"Unknown", IF($K47=1, $F47*0.33, IF($K47=2, $F47*0.5+$G47*0.2, SUM(F47:G47)))), 0),"Not required") -> Unknown | P47: 0 | Q47: 0 | R47: 0 | S47: 0
A48: =IF(INTRO!$E$34<>0,INTRO!$E$34,"") -> Ethiopia | B48: AfarKilbat | C48: Megalle | D48: 36603 | E48: 3748 | F48: 12319 | G48: 20536 | H48: 0 | I48: 4 | J48: 4 | K48: 4 | L48: =IF(INTRO!$E$38="Endemic", IF($H48>0, IF($H48=4,"Unknown", IF($H48=99,"Stopped", $D48)), 0),"Not required") -> 0 | M48: =IF(INTRO!$E$40="Endemic", IF($I48>0, IF($I48=4,"Unknown",IF($I48=99,"Stopped", $D48)), 0),"Not required") -> Unknown | N48: =IF(INTRO!$E$42="Endemic", IF(AND($J48>1,$J48<5), IF($J48=4, "Unknown", E48+F48), 0),"Not required") -> Unknown | O48: =IF(INTRO!$E$44="Endemic", IF(AND($K48>0,$K48<5), IF($K48=4,"Unknown", IF($K48=1, $F48*0.33, IF($K48=2, $F48*0.5+$G48*0.2, SUM(F48:G48)))), 0),"Not required") -> Unknown | P48: 0 | Q48: 0 | R48: 0 | S48: 0
A49: =IF(INTRO!$E$34<>0,INTRO!$E$34,"") -> Ethiopia | B49: AfarKilbat | C49: Samorobigelalu | D49: 38796 | E49: 3973 | F49: 13057 | G49: 21766 | H49: 0 | I49: 4 | J49: 1 | K49: 0 | L49: =IF(INTRO!$E$38="Endemic", IF($H49>0, IF($H49=4,"Unknown", IF($H49=99,"Stopped", $D49)), 0),"Not required") -> 0 | M49: =IF(INTRO!$E$40="Endemic", IF($I49>0, IF($I49=4,"Unknown",IF($I49=99,"Stopped", $D49)), 0),"Not required") -> Unknown | N49: =IF(INTRO!$E$42="Endemic", IF(AND($J49>1,$J49<5), IF($J49=4, "Unknown", E49+F49), 0),"Not required") -> 0 | O49: =IF(INTRO!$E$44="Endemic", IF(AND($K49>0,$K49<5), IF($K49=4,"Unknown", IF($K49=1, $F49*0.33, IF($K49=2, $F49*0.5+$G49*0.2, SUM(F49:G49)))), 0),"Not required") -> 0 | P49: 0 | Q49: 0 | R49: 0 | S49: 0
A50: =IF(INTRO!$E$34<>0,INTRO!$E$34,"") -> Ethiopia | B50: AfarKilbat | C50: Telalak | D50: 50277 | E50: 5149 | F50: 16921 | G50: 28207 | H50: 0 | I50: 4 | J50: 0 | K50: 0 | L50: =IF(INTRO!$E$38="Endemic", IF($H50>0, IF($H50=4,"Unknown", IF($H50=99,"Stopped", $D50)), 0),"Not required") -> 0 | M50: =IF(INTRO!$E$40="Endemic", IF($I50>0, IF($I50=4,"Unknown",IF($I50=99,"Stopped", $D50)), 0),"Not required") -> Unknown | N50: =IF(INTRO!$E$42="Endemic", IF(AND($J50>1,$J50<5), IF($J50=4, "Unknown", E50+F50), 0),"Not required") -> 0 | O50: =IF(INTRO!$E$44="Endemic", IF(AND($K50>0,$K50<5), IF($K50=4,"Unknown", IF($K50=1, $F50*0.33, IF($K50=2, $F50*0.5+$G50*0.2, SUM(F50:G50)))), 0),"Not required") -> 0 | P50: 0 | Q50: 0 | R50: 0 | S50: 0
A51: =IF(INTRO!$E$34<>0,INTRO!$E$34,"") -> Ethiopia | B51: AfarKilbat | C51: Teru | D51: 54263 | E51: 5557 | F51: 18262 | G51: 30443 | H51: 0 | I51: 4 | J51: 4 | K51: 4 | L51: =IF(INTRO!$E$38="Endemic", IF($H51>0, IF($H51=4,"Unknown", IF($H51=99,"Stopped", $D51)), 0),"Not required") -> 0 | M51: =IF(INTRO!$E$40="Endemic", IF($I51>0, IF($I51=4,"Unknown",IF($I51=99,"Stopped", $D51)), 0),"Not required") -> Unknown | N51: =IF(INTRO!$E$42="Endemic", IF(AND($J51>1,$J51<5), IF($J51=4, "Unknown", E51+F51), 0),"Not required") -> Unknown | O51: =IF(INTRO!$E$44="Endemic", IF(AND($K51>0,$K51<5), IF($K51=4,"Unknown", IF($K51=1, $F51*0.33, IF($K51=2, $F51*0.5+$G51*0.2, SUM(F51:G51)))), 0),"Not required") -> Unknown | P51: 0 | Q51: 0 | R51: 0 | S51: 0
A52: =IF(INTRO!$E$34<>0,INTRO!$E$34,"") -> Ethiopia | B52: AfarKilbat | C52: Yalo | D52: 54263 | E52: 5557 | F52: 18262 | G52: 30443 | H52: 0 | I52: 4 | J52: 4 | K52: 4 | L52: =IF(INTRO!$E$38="Endemic", IF($H52>0, IF($H52=4,"Unknown", IF($H52=99,"Stopped", $D52)), 0),"Not required") -> 0 | M52: =IF(INTRO!$E$40="Endemic", IF($I52>0, IF($I52=4,"Unknown",IF($I52=99,"Stopped", $D52)), 0),"Not required") -> Unknown | N52: =IF(INTRO!$E$42="Endemic", IF(AND($J52>1,$J52<5), IF($J52=4, "Unknown", E52+F52), 0),"Not required") -> Unknown | O52: =IF(INTRO!$E$44="Endemic", IF(AND($K52>0,$K52<5), IF($K52=4,"Unknown", IF($K52=1, $F52*0.33, IF($K52=2, $F52*0.5+$G52*0.2, SUM(F52:G52)))), 0),"Not required") -> Unknown | P52: 0 | Q52: 0 | R52: 0 | S52: 0
A53: =IF(INTRO!$E$34<>0,INTRO!$E$34,"") -> Ethiopia | B53: AmharaAwi | C53: Ankesha | D53: 104240 | E53: 14151 | F53: 30301 | G53: 59788 | H53: 0 | I53: 1 | J53: 3 | K53: 0 | L53: =IF(INTRO!$E$38="Endemic", IF($H53>0, IF($H53=4,"Unknown", IF($H53=99,"Stopped", $D53)), 0),"Not required") -> 0 | M53: =IF(INTRO!$E$40="Endemic", IF($I53>0, IF($I53=4,"Unknown",IF($I53=99,"Stopped", $D53)), 0),"Not required") -> 104240 | N53: =IF(INTRO!$E$42="Endemic", IF(AND($J53>1,$J53<5), IF($J53=4, "Unknown", E53+F53), 0),"Not required") -> 44452 | O53: =IF(INTRO!$E$44="Endemic", IF(AND($K53>0,$K53<5), IF($K53=4,"Unknown", IF($K53=1, $F53*0.33, IF($K53=2, $F53*0.5+$G53*0.2, SUM(F53:G53)))), 0),"Not required") -> 0 | P53: 0 | Q53: 1 | R53: 2 | S53: 0 | T53: MDA3 (IVM) | U53: T3 (ALB/MBD)
A54: =IF(INTRO!$E$34<>0,INTRO!$E$34,"") -> Ethiopia | B54: AmharaAwi | C54: Ayehu | D54: 133641 | E54: 18142 | F54: 38848 | G54: 76651 | H54: 0 | I54: 0 | J54: 0 | K54: 0 | L54: =IF(INTRO!$E$38="Endemic", IF($H54>0, IF($H54=4,"Unknown", IF($H54=99,"Stopped", $D54)), 0),"Not required") -> 0 | M54: =IF(INTRO!$E$40="Endemic", IF($I54>0, IF($I54=4,"Unknown",IF($I54=99,"Stopped", $D54)), 0),"Not required") -> 0 | N54: =IF(INTRO!$E$42="Endemic", IF(AND($J54>1,$J54<5), IF($J54=4, "Unknown", E54+F54), 0),"Not required") -> 0 | O54: =IF(INTRO!$E$44="Endemic", IF(AND($K54>0,$K54<5), IF($K54=4,"Unknown", IF($K54=1, $F54*0.33, IF($K54=2, $F54*0.5+$G54*0.2, SUM(F54:G54)))), 0),"Not required") -> 0 | P54: 0 | Q54: 0 | R54: 0 | S54: 0
A55: =IF(INTRO!$E$34<>0,INTRO!$E$34,"") -> Ethiopia | B55: AmharaAwi | C55: Banja Shikudad | D55: 100111 | E55: 13590 | F55: 29101 | G55: 57420 | H55: 0 | I55: 1 | J55: 2 | K55: 0 | L55: =IF(INTRO!$E$38="Endemic", IF($H55>0, IF($H55=4,"Unknown", IF($H55=99,"Stopped", $D55)), 0),"Not required") -> 0 | M55: =IF(INTRO!$E$40="Endemic", IF($I55>0, IF($I55=4,"Unknown",IF($I55=99,"Stopped", $D55)), 0),"Not required") -> 100111 | N55: =IF(INTRO!$E$42="Endemic", IF(AND($J55>1,$J55<5), IF($J55=4, "Unknown", E55+F55), 0),"Not required") -> 42691 | O55: =IF(INTRO!$E$44="Endemic", IF(AND($K55>0,$K55<5), IF($K55=4,"Unknown", IF($K55=1, $F55*0.33, IF($K55=2, $F55*0.5+$G55*0.2, SUM(F55:G55)))), 0),"Not required") -> 0 | P55: 0 | Q55: 1 | R55: 0 | S55: 0 | T55: MDA3 (IVM)
A56: =IF(INTRO!$E$34<>0,INTRO!$E$34,"") -> Ethiopia | B56: AmharaAwi | C56: Chagni Town | D56: 39892 | E56: 5415 | F56: 11596 | G56: 22880 | H56: 1 | I56: 1 | J56: 2 | K56: 2 | L56: =IF(INTRO!$E$38="Endemic", IF($H56>0, IF($H56=4,"Unknown", IF($H56=99,"Stopped", $D56)), 0),"Not required") -> 39892 | M56: =IF(INTRO!$E$40="Endemic", IF($I56>0, IF($I56=4,"Unknown",IF($I56=99,"Stopped", $D56)), 0),"Not required") -> 39892 | N56: =IF(INTRO!$E$42="Endemic", IF(AND($J56>1,$J56<5), IF($J56=4, "Unknown", E56+F56), 0),"Not required") -> 17011 | O56: =IF(INTRO!$E$44="Endemic", IF(AND($K56>0,$K56<5), IF($K56=4,"Unknown", IF($K56=1, $F56*0.33, IF($K56=2, $F56*0.5+$G56*0.2, SUM(F56:G56)))), 0),"Not required") -> 10374 | P56: 1 | Q56: 1 | R56: 0 | S56: 0 | T56: MDA1 (IVM+ALB)
A57: =IF(INTRO!$E$34<>0,INTRO!$E$34,"") -> Ethiopia | B57: AmharaAwi | C57: Dangila | D57: 155435 | E57: 21101 | F57: 45183 | G57: 89151 | H57: 0 | I57: 1 | J57: 3 | K57: 0 | L57: =IF(INTRO!$E$38="Endemic", IF($H57>0, IF($H57=4,"Unknown", IF($H57=99,"Stopped", $D57)), 0),"Not required") -> 0 | M57: =IF(INTRO!$E$40="Endemic", IF($I57>0, IF($I57=4,"Unknown",IF($I57=99,"Stopped", $D57)), 0),"Not required") -> 155435 | N57: =IF(INTRO!$E$42="Endemic", IF(AND($J57>1,$J57<5), IF($J57=4, "Unknown", E57+F57), 0),"Not required") -> 66284 | O57: =IF(INTRO!$E$44="Endemic", IF(AND($K57>0,$K57<5), IF($K57=4,"Unknown", IF($K57=1, $F57*0.33, IF($K57=2, $F57*0.5+$G57*0.2, SUM(F57:G57)))), 0),"Not required") -> 0 | P57: 0 | Q57: 1 | R57: 2 | S57: 0 | T57: MDA3 (IVM) | U57: T3 (ALB/MBD)
A58: =IF(INTRO!$E$34<>0,INTRO!$E$34,"") -> Ethiopia | B58: AmharaAwi | C58: Dangla Town | D58: 35493 | E58: 4818 | F58: 10317 | G58: 20357 | H58: 0 | I58: 1 | J58: 3 | K58: 0 | L58: =IF(INTRO!$E$38="Endemic", IF($H58>0, IF($H58=4,"Unknown", IF($H58=99,"Stopped", $D58)), 0),"Not required") -> 0 | M58: =IF(INTRO!$E$40="Endemic", IF($I58>0, IF($I58=4,"Unknown",IF($I58=99,"Stopped", $D58)), 0),"Not required") -> 35493 | N58: =IF(INTRO!$E$42="Endemic", IF(AND($J58>1,$J58<5), IF($J58=4, "Unknown", E58+F58), 0),"Not required") -> 15135 | O58: =IF(INTRO!$E$44="Endemic", IF(AND($K58>0,$K58<5), IF($K58=4,"Unknown", IF($K58=1, $F58*0.33, IF($K58=2, $F58*0.5+$G58*0.2, SUM(F58:G58)))), 0),"Not required") -> 0 | P58: 0 | Q58: 1 | R58: 2 | S58: 0 | T58: MDA3 (IVM) | U58: T3 (ALB/MBD)
A59: =IF(INTRO!$E$34<>0,INTRO!$E$34,"") -> Ethiopia | B59: AmharaAwi | C59: Fagita Lekoma | D59: 162790 | E59: 22099 | F59: 47321 | G59: 93370 | H59: 0 | I59: 1 | J59: 3 | K59: 0 | L59: =IF(INTRO!$E$38="Endemic", IF($H59>0, IF($H59=4,"Unknown", IF($H59=99,"Stopped", $D59)), 0),"Not required") -> 0 | M59: =IF(INTRO!$E$40="Endemic", IF($I59>0, IF($I59=4,"Unknown",IF($I59=99,"Stopped", $D59)), 0),"Not required") -> 162790 | N59: =IF(INTRO!$E$42="Endemic", IF(AND($J59>1,$J59<5), IF($J59=4, "Unknown", E59+F59), 0),"Not required") -> 69420 | O59: =IF(INTRO!$E$44="Endemic", IF(AND($K59>0,$K59<5), IF($K59=4,"Unknown", IF($K59=1, $F59*0.33, IF($K59=2, $F59*0.5+$G59*0.2, SUM(F59:G59)))), 0),"Not required") -> 0 | P59: 0 | Q59: 1 | R59: 2 | S59: 0 | T59: MDA3 (IVM) | U59: T3 (ALB/MBD)
A60: =IF(INTRO!$E$34<>0,INTRO!$E$34,"") -> Ethiopia | B60: AmharaAwi | C60: Guagusa Shikudad | D60: 140983 | E60: 19139 | F60: 40982 | G60: 80862 | H60: 0 | I60: 1 | J60: 3 | K60: 1 | L60: =IF(INTRO!$E$38="Endemic", IF($H60>0, IF($H60=4,"Unknown", IF($H60=99,"Stopped", $D60)), 0),"Not required") -> 0 | M60: =IF(INTRO!$E$40="Endemic", IF($I60>0, IF($I60=4,"Unknown",IF($I60=99,"Stopped", $D60)), 0),"Not required") -> 140983 | N60: =IF(INTRO!$E$42="Endemic", IF(AND($J60>1,$J60<5), IF($J60=4, "Unknown", E60+F60), 0),"Not required") -> 60121 | O60: =IF(INTRO!$E$44="Endemic", IF(AND($K60>0,$K60<5), IF($K60=4,"Unknown", IF($K60=1, $F60*0.33, IF($K60=2, $F60*0.5+$G60*0.2, SUM(F60:G60)))), 0),"Not required") -> 13524.06 | P60: 0 | Q60: 1 | R60: 2 | S60: 0 | T60: MDA3 (IVM) | U60: T3 (ALB/MBD)
A61: =IF(INTRO!$E$34<>0,INTRO!$E$34,"") -> Ethiopia | B61: AmharaAwi | C61: Guangua | D61: 104552 | E61: 14193 | F61: 30392 | G61: 59967 | H61: 0 | I61: 1 | J61: 2 | K61: 0 | L61: =IF(INTRO!$E$38="Endemic", IF($H61>0, IF($H61=4,"Unknown", IF($H61=99,"Stopped", $D61)), 0),"Not required") -> 0 | M61: =IF(INTRO!$E$40="Endemic", IF($I61>0, IF($I61=4,"Unknown",IF($I61=99,"Stopped", $D61)), 0),"Not required") -> 104552 | N61: =IF(INTRO!$E$42="Endemic", IF(AND($J61>1,$J61<5), IF($J61=4, "Unknown", E61+F61), 0),"Not required") -> 44585 | O61: =IF(INTRO!$E$44="Endemic", IF(AND($K61>0,$K61<5), IF($K61=4,"Unknown", IF($K61=1, $F61*0.33, IF($K61=2, $F61*0.5+$G61*0.2, SUM(F61:G61)))), 0),"Not required") -> 0 | P61: 0 | Q61: 1 | R61: 0 | S61: 0 | T61: MDA3 (IVM)
A62: =IF(INTRO!$E$34<>0,INTRO!$E$34,"") -> Ethiopia | B62: AmharaAwi | C62: Injibara Town | D62: 37803 | E62: 5132 | F62: 10989 | G62: 21682 | H62: 0 | I62: 1 | J62: 2 | K62: 0 | L62: =IF(INTRO!$E$38="Endemic", IF($H62>0, IF($H62=4,"Unknown", IF($H62=99,"Stopped", $D62)), 0),"Not required") -> 0 | M62: =IF(INTRO!$E$40="Endemic", IF($I62>0, IF($I62=4,"Unknown",IF($I62=99,"Stopped", $D62)), 0),"Not required") -> 37803 | N62: =IF(INTRO!$E$42="Endemic", IF(AND($J62>1,$J62<5), IF($J62=4, "Unknown", E62+F62), 0),"Not required") -> 16121 | O62: =IF(INTRO!$E$44="Endemic", IF(AND($K62>0,$K62<5), IF($K62=4,"Unknown", IF($K62=1, $F62*0.33, IF($K62=2, $F62*0.5+$G62*0.2, SUM(F62:G62)))), 0),"Not required") -> 0 | P62: 0 | Q62: 1 | R62: 0 | S62: 0 | T62: MDA3 (IVM)
A63: =IF(INTRO!$E$34<>0,INTRO!$E$34,"") -> Ethiopia | B63: AmharaAwi | C63: Jawi | D63: 141351 | E63: 19189 | F63: 41089 | G63: 81073 | H63: 1 | I63: 1 | J63: 3 | K63: 3 | L63: =IF(INTRO!$E$38="Endemic", IF($H63>0, IF($H63=4,"Unknown", IF($H63=99,"Stopped", $D63)), 0),"Not required") -> 141351 | M63: =IF(INTRO!$E$40="Endemic", IF($I63>0, IF($I63=4,"Unknown",IF($I63=99,"Stopped", $D63)), 0),"Not required") -> 141351 | N63: =IF(INTRO!$E$42="Endemic", IF(AND($J63>1,$J63<5), IF($J63=4, "Unknown", E63+F63), 0),"Not required") -> 60278 | O63: =IF(INTRO!$E$44="Endemic", IF(AND($K63>0,$K63<5), IF($K63=4,"Unknown", IF($K63=1, $F63*0.33, IF($K63=2, $F63*0.5+$G63*0.2, SUM(F63:G63)))), 0),"Not required") -> 122162 | P63: 1 | Q63: 1 | R63: 2 | S63: 1 | T63: MDA1 (IVM+ALB) | U63: T1 (PZQ+ALB/MBD)
A64: =IF(INTRO!$E$34<>0,INTRO!$E$34,"") -> Ethiopia | B64: AmharaAwi | C64: Zigem | D64: 108512 | E64: 14731 | F64: 31543 | G64: 62238 | H64: 1 | I64: 1 | J64: 2 | K64: 0 | L64: =IF(INTRO!$E$38="Endemic", IF($H64>0, IF($H64=4,"Unknown", IF($H64=99,"Stopped", $D64)), 0),"Not required") -> 108512 | M64: =IF(INTRO!$E$40="Endemic", IF($I64>0, IF($I64=4,"Unknown",IF($I64=99,"Stopped", $D64)), 0),"Not required") -> 108512 | N64: =IF(INTRO!$E$42="Endemic", IF(AND($J64>1,$J64<5), IF($J64=4, "Unknown", E64+F64), 0),"Not required") -> 46274 | O64: =IF(INTRO!$E$44="Endemic", IF(AND($K64>0,$K64<5), IF($K64=4,"Unknown", IF($K64=1, $F64*0.33, IF($K64=2, $F64*0.5+$G64*0.2, SUM(F64:G64)))), 0),"Not required") -> 0 | P64: 1 | Q64: 1 | R64: 0 | S64: 0 | T64: MDA1 (IVM+ALB)
A65: =IF(INTRO!$E$34<>0,INTRO!$E$34,"") -> Ethiopia | B65: AmharaEast Gojam | C65: Aneded | D65: 108315 | E65: 14704 | F65: 31486 | G65: 62125 | H65: 0 | I65: 0 | J65: 2 | K65: 0 | L65: =IF(INTRO!$E$38="Endemic", IF($H65>0, IF($H65=4,"Unknown", IF($H65=99,"Stopped", $D65)), 0),"Not required") -> 0 | M65: =IF(INTRO!$E$40="Endemic", IF($I65>0, IF($I65=4,"Unknown",IF($I65=99,"Stopped", $D65)), 0),"Not required") -> 0 | N65: =IF(INTRO!$E$42="Endemic", IF(AND($J65>1,$J65<5), IF($J65=4, "Unknown", E65+F65), 0),"Not required") -> 46190 | O65: =IF(INTRO!$E$44="Endemic", IF(AND($K65>0,$K65<5), IF($K65=4,"Unknown", IF($K65=1, $F65*0.33, IF($K65=2, $F65*0.5+$G65*0.2, SUM(F65:G65)))), 0),"Not required") -> 0 | P65: 0 | Q65: 0 | R65: 0 | S65: 0
A66: =IF(INTRO!$E$34<>0,INTRO!$E$34,"") -> Ethiopia | B66: AmharaEast Gojam | C66: Awabel | D66: 146260 | E66: 19855 | F66: 42516 | G66: 83889 | H66: 0 | I66: 0 | J66: 3 | K66: 1 | L66: =IF(INTRO!$E$38="Endemic", IF($H66>0, IF($H66=4,"Unknown", IF($H66=99,"Stopped", $D66)), 0),"Not required") -> 0 | M66: =IF(INTRO!$E$40="Endemic", IF($I66>0, IF($I66=4,"Unknown",IF($I66=99,"Stopped", $D66)), 0),"Not required") -> 0 | N66: =IF(INTRO!$E$42="Endemic", IF(AND($J66>1,$J66<5), IF($J66=4, "Unknown", E66+F66), 0),"Not required") -> 62371 | O66: =IF(INTRO!$E$44="Endemic", IF(AND($K66>0,$K66<5), IF($K66=4,"Unknown", IF($K66=1, $F66*0.33, IF($K66=2, $F66*0.5+$G66*0.2, SUM(F66:G66)))), 0),"Not required") -> 14030.28 | P66: 0 | Q66: 0 | R66: 2 | S66: 0 | T66: T3 (ALB/MBD) | U66: T3 (ALB/MBD)
A67: =IF(INTRO!$E$34<>0,INTRO!$E$34,"") -> Ethiopia | B67: AmharaEast Gojam | C67: Basoliben | D67: 169089 | E67: 22954 | F67: 49152 | G67: 96983 | H67: 0 | I67: 0 | J67: 3 | K67: 1 | L67: =IF(INTRO!$E$38="Endemic", IF($H67>0, IF($H67=4,"Unknown", IF($H67=99,"Stopped", $D67)), 0),"Not required") -> 0 | M67: =IF(INTRO!$E$40="Endemic", IF($I67>0, IF($I67=4,"Unknown",IF($I67=99,"Stopped", $D67)), 0),"Not required") -> 0 | N67: =IF(INTRO!$E$42="Endemic", IF(AND($J67>1,$J67<5), IF($J67=4, "Unknown", E67+F67), 0),"Not required") -> 72106 | O67: =IF(INTRO!$E$44="Endemic", IF(AND($K67>0,$K67<5), IF($K67=4,"Unknown", IF($K67=1, $F67*0.33, IF($K67=2, $F67*0.5+$G67*0.2, SUM(F67:G67)))), 0),"Not required") -> 16220.16 | P67: 0 | Q67: 0 | R67: 2 | S67: 0 | T67: T3 (ALB/MBD) | U67: T3 (ALB/MBD)
A68: =IF(INTRO!$E$34<>0,INTRO!$E$34,"") -> Ethiopia | B68: AmharaEast Gojam | C68: Bibugn | D68: 96137 | E68: 13051 | F68: 27946 | G68: 55140 | H68: 0 | I68: 0 | J68: 2 | K68: 2 | L68: =IF(INTRO!$E$38="Endemic", IF($H68>0, IF($H68=4,"Unknown", IF($H68=99,"Stopped", $D68)), 0),"Not required") -> 0 | M68: =IF(INTRO!$E$40="Endemic", IF($I68>0, IF($I68=4,"Unknown",IF($I68=99,"Stopped", $D68)), 0),"Not required") -> 0 | N68: =IF(INTRO!$E$42="Endemic", IF(AND($J68>1,$J68<5), IF($J68=4, "Unknown", E68+F68), 0),"Not required") -> 40997 | O68: =IF(INTRO!$E$44="Endemic", IF(AND($K68>0,$K68<5), IF($K68=4,"Unknown", IF($K68=1, $F68*0.33, IF($K68=2, $F68*0.5+$G68*0.2, SUM(F68:G68)))), 0),"Not required") -> 25001 | P68: 0 | Q68: 0 | R68: 1 | S68: 1 | U68: T1 (PZQ+ALB/MBD)
A69: =IF(INTRO!$E$34<>0,INTRO!$E$34,"") -> Ethiopia | B69: AmharaEast Gojam | C69: Debay Tilatgen | D69: 148381 | E69: 20143 | F69: 43133 | G69: 85105 | H69: 0 | I69: 0 | J69: 1 | K69: 1 | L69: =IF(INTRO!$E$38="Endemic", IF($H69>0, IF($H69=4,"Unknown", IF($H69=99,"Stopped", $D69)), 0),"Not required") -> 0 | M69: =IF(INTRO!$E$40="Endemic", IF($I69>0, IF($I69=4,"Unknown",IF($I69=99,"Stopped", $D69)), 0),"Not required") -> 0 | N69: =IF(INTRO!$E$42="Endemic", IF(AND($J69>1,$J69<5), IF($J69=4, "Unknown", E69+F69), 0),"Not required") -> 0 | O69: =IF(INTRO!$E$44="Endemic", IF(AND($K69>0,$K69<5), IF($K69=4,"Unknown", IF($K69=1, $F69*0.33, IF($K69=2, $F69*0.5+$G69*0.2, SUM(F69:G69)))), 0),"Not required") -> 14233.89 | P69: 0 | Q69: 0 | R69: 0 | S69: 0 | U69: T2 (PZQ)
A70: =IF(INTRO!$E$34<>0,INTRO!$E$34,"") -> Ethiopia | B70: AmharaEast Gojam | C70: Debre Elias | D70: 102798 | E70: 13955 | F70: 29882 | G70: 58961 | H70: 0 | I70: 0 | J70: 3 | K70: 0 | L70: =IF(INTRO!$E$38="Endemic", IF($H70>0, IF($H70=4,"Unknown", IF($H70=99,"Stopped", $D70)), 0),"Not required") -> 0 | M70: =IF(INTRO!$E$40="Endemic", IF($I70>0, IF($I70=4,"Unknown",IF($I70=99,"Stopped", $D70)), 0),"Not required") -> 0 | N70: =IF(INTRO!$E$42="Endemic", IF(AND($J70>1,$J70<5), IF($J70=4, "Unknown", E70+F70), 0),"Not required") -> 43837 | O70: =IF(INTRO!$E$44="Endemic", IF(AND($K70>0,$K70<5), IF($K70=4,"Unknown", IF($K70=1, $F70*0.33, IF($K70=2, $F70*0.5+$G70*0.2, SUM(F70:G70)))), 0),"Not required") -> 0 | P70: 0 | Q70: 0 | R70: 2 | S70: 0 | T70: T3 (ALB/MBD) | U70: T3 (ALB/MBD)
A71: =IF(INTRO!$E$34<>0,INTRO!$E$34,"") -> Ethiopia | B71: AmharaEast Gojam | C71: Debre Markos Town | D71: 107129 | E71: 14543 | F71: 31141 | G71: 61445 | H71: 0 | I71: 0 | J71: 1 | K71: 0 | L71: =IF(INTRO!$E$38="Endemic", IF($H71>0, IF($H71=4,"Unknown", IF($H71=99,"Stopped", $D71)), 0),"Not required") -> 0 | M71: =IF(INTRO!$E$40="Endemic", IF($I71>0, IF($I71=4,"Unknown",IF($I71=99,"Stopped", $D71)), 0),"Not required") -> 0 | N71: =IF(INTRO!$E$42="Endemic", IF(AND($J71>1,$J71<5), IF($J71=4, "Unknown", E71+F71), 0),"Not required") -> 0 | O71: =IF(INTRO!$E$44="Endemic", IF(AND($K71>0,$K71<5), IF($K71=4,"Unknown", IF($K71=1, $F71*0.33, IF($K71=2, $F71*0.5+$G71*0.2, SUM(F71:G71)))), 0),"Not required") -> 0 | P71: 0 | Q71: 0 | R71: 0 | S71: 0
A72: =IF(INTRO!$E$34<>0,INTRO!$E$34,"") -> Ethiopia | B72: AmharaEast Gojam | C72: Dejen | D72: 123867 | E72: 16815 | F72: 36007 | G72: 71045 | H72: 0 | I72: 0 | J72: 2 | K72: 3 | L72: =IF(INTRO!$E$38="Endemic", IF($H72>0, IF($H72=4,"Unknown", IF($H72=99,"Stopped", $D72)), 0),"Not required") -> 0 | M72: =IF(INTRO!$E$40="Endemic", IF($I72>0, IF($I72=4,"Unknown",IF($I72=99,"Stopped", $D72)), 0),"Not required") -> 0 | N72: =IF(INTRO!$E$42="Endemic", IF(AND($J72>1,$J72<5), IF($J72=4, "Unknown", E72+F72), 0),"Not required") -> 52822 | O72: =IF(INTRO!$E$44="Endemic", IF(AND($K72>0,$K72<5), IF($K72=4,"Unknown", IF($K72=1, $F72*0.33, IF($K72=2, $F72*0.5+$G72*0.2, SUM(F72:G72)))), 0),"Not required") -> 107052 | P72: 0 | Q72: 0 | R72: 1 | S72: 1 | U72: T1 (PZQ+ALB/MBD)
A73: =IF(INTRO!$E$34<>0,INTRO!$E$34,"") -> Ethiopia | B73: AmharaEast Gojam | C73: Enarje Enawuga | D73: 208166 | E73: 28259 | F73: 60511 | G73: 119396 | H73: 0 | I73: 0 | J73: 1 | K73: 0 | L73: =IF(INTRO!$E$38="Endemic", IF($H73>0, IF($H73=4,"Unknown", IF($H73=99,"Stopped", $D73)), 0),"Not required") -> 0 | M73: =IF(INTRO!$E$40="Endemic", IF($I73>0, IF($I73=4,"Unknown",IF($I73=99,"Stopped", $D73)), 0),"Not required") -> 0 | N73: =IF(INTRO!$E$42="Endemic", IF(AND($J73>1,$J73<5), IF($J73=4, "Unknown", E73+F73), 0),"Not required") -> 0 | O73: =IF(INTRO!$E$44="Endemic", IF(AND($K73>0,$K73<5), IF($K73=4,"Unknown", IF($K73=1, $F73*0.33, IF($K73=2, $F73*0.5+$G73*0.2, SUM(F73:G73)))), 0),"Not required") -> 0 | P73: 0 | Q73: 0 | R73: 0 | S73: 0
A74: =IF(INTRO!$E$34<>0,INTRO!$E$34,"") -> Ethiopia | B74: AmharaEast Gojam | C74: Enebsie Sarmeder | D74: 162369 | E74: 22042 | F74: 47199 | G74: 93128 | H74: 0 | I74: 0 | J74: 2 | K74: 1 | L74: =IF(INTRO!$E$38="Endemic", IF($H74>0, IF($H74=4,"Unknown", IF($H74=99,"Stopped", $D74)), 0),"Not required") -> 0 | M74: =IF(INTRO!$E$40="Endemic", IF($I74>0, IF($I74=4,"Unknown",IF($I74=99,"Stopped", $D74)), 0),"Not required") -> 0 | N74: =IF(INTRO!$E$42="Endemic", IF(AND($J74>1,$J74<5), IF($J74=4, "Unknown", E74+F74), 0),"Not required") -> 69241 | O74: =IF(INTRO!$E$44="Endemic", IF(AND($K74>0,$K74<5), IF($K74=4,"Unknown", IF($K74=1, $F74*0.33, IF($K74=2, $F74*0.5+$G74*0.2, SUM(F74:G74)))), 0),"Not required") -> 15575.67 | P74: 0 | Q74: 0 | R74: 0 | S74: 0
A75: =IF(INTRO!$E$34<>0,INTRO!$E$34,"") -> Ethiopia | B75: AmharaEast Gojam | C75: Enemay | D75: 198241 | E75: 26912 | F75: 57626 | G75: 113703 | H75: 0 | I75: 0 | J75: 1 | K75: 0 | L75: =IF(INTRO!$E$38="Endemic", IF($H75>0, IF($H75=4,"Unknown", IF($H75=99,"Stopped", $D75)), 0),"Not required") -> 0 | M75: =IF(INTRO!$E$40="Endemic", IF($I75>0, IF($I75=4,"Unknown",IF($I75=99,"Stopped", $D75)), 0),"Not required") -> 0 | N75: =IF(INTRO!$E$42="Endemic", IF(AND($J75>1,$J75<5), IF($J75=4, "Unknown", E75+F75), 0),"Not required") -> 0 | O75: =IF(INTRO!$E$44="Endemic", IF(AND($K75>0,$K75<5), IF($K75=4,"Unknown", IF($K75=1, $F75*0.33, IF($K75=2, $F75*0.5+$G75*0.2, SUM(F75:G75)))), 0),"Not required") -> 0 | P75: 0 | Q75: 0 | R75: 0 | S75: 0
A76: =IF(INTRO!$E$34<>0,INTRO!$E$34,"") -> Ethiopia | B76: AmharaEast Gojam | C76: Gonchasieso enesie | D76: 200504 | E76: 27219 | F76: 58284 | G76: 115001 | H76: 0 | I76: 0 | J76: 3 | K76: 0 | L76: =IF(INTRO!$E$38="Endemic", IF($H76>0, IF($H76=4,"Unknown", IF($H76=99,"Stopped", $D76)), 0),"Not required") -> 0 | M76: =IF(INTRO!$E$40="Endemic", IF($I76>0, IF($I76=4,"Unknown",IF($I76=99,"Stopped", $D76)), 0),"Not required") -> 0 | N76: =IF(INTRO!$E$42="Endemic", IF(AND($J76>1,$J76<5), IF($J76=4, "Unknown", E76+F76), 0),"Not required") -> 85503 | O76: =IF(INTRO!$E$44="Endemic", IF(AND($K76>0,$K76<5), IF($K76=4,"Unknown", IF($K76=1, $F76*0.33, IF($K76=2, $F76*0.5+$G76*0.2, SUM(F76:G76)))), 0),"Not required") -> 0 | P76: 0 | Q76: 0 | R76: 2 | S76: 0 | T76: T3 (ALB/MBD) | U76: T3 (ALB/MBD)
A77: =IF(INTRO!$E$34<>0,INTRO!$E$34,"") -> Ethiopia | B77: AmharaEast Gojam | C77: Gozamen | D77: 159574 | E77: 21663 | F77: 46386 | G77: 91525 | H77: 0 | I77: 4 | J77: 2 | K77: 0 | L77: =IF(INTRO!$E$38="Endemic", IF($H77>0, IF($H77=4,"Unknown", IF($H77=99,"Stopped", $D77)), 0),"Not required") -> 0 | M77: =IF(INTRO!$E$40="Endemic", IF($I77>0, IF($I77=4,"Unknown",IF($I77=99,"Stopped", $D77)), 0),"Not required") -> Unknown | N77: =IF(INTRO!$E$42="Endemic", IF(AND($J77>1,$J77<5), IF($J77=4, "Unknown", E77+F77), 0),"Not required") -> 68049 | O77: =IF(INTRO!$E$44="Endemic", IF(AND($K77>0,$K77<5), IF($K77=4,"Unknown", IF($K77=1, $F77*0.33, IF($K77=2, $F77*0.5+$G77*0.2, SUM(F77:G77)))), 0),"Not required") -> 0 | P77: 0 | Q77: 0 | R77: 0 | S77: 0
A78: =IF(INTRO!$E$34<>0,INTRO!$E$34,"") -> Ethiopia | B78: AmharaEast Gojam | C78: Hult Eju | D78: 157937 | E78: 21440 | F78: 45910 | G78: 90586 | H78: 0 | I78: 0 | J78: 3 | K78: 2 | L78: =IF(INTRO!$E$38="Endemic", IF($H78>0, IF($H78=4,"Unknown", IF($H78=99,"Stopped", $D78)), 0),"Not required") -> 0 | M78: =IF(INTRO!$E$40="Endemic", IF($I78>0, IF($I78=4,"Unknown",IF($I78=99,"Stopped", $D78)), 0),"Not required") -> 0 | N78: =IF(INTRO!$E$42="Endemic", IF(AND($J78>1,$J78<5), IF($J78=4, "Unknown", E78+F78), 0),"Not required") -> 67350 | O78: =IF(INTRO!$E$44="Endemic", IF(AND($K78>0,$K78<5), IF($K78=4,"Unknown", IF($K78=1, $F78*0.33, IF($K78=2, $F78*0.5+$G78*0.2, SUM(F78:G78)))), 0),"Not required") -> 41072.2 | P78: 0 | Q78: 0 | R78: 2 | S78: 1 | T78: T3 (ALB/MBD) | U78: T1 (PZQ+ALB/MBD)
A79: =IF(INTRO!$E$34<>0,INTRO!$E$34,"") -> Ethiopia | B79: AmharaEast Gojam | C79: Machakel | D79: 141167 | E79: 19164 | F79: 41036 | G79: 80968 | H79: 0 | I79: 4 | J79: 2 | K79: 0 | L79: =IF(INTRO!$E$38="Endemic", IF($H79>0, IF($H79=4,"Unknown", IF($H79=99,"Stopped", $D79)), 0),"Not required") -> 0 | M79: =IF(INTRO!$E$40="Endemic", IF($I79>0, IF($I79=4,"Unknown",IF($I79=99,"Stopped", $D79)), 0),"Not required") -> Unknown | N79: =IF(INTRO!$E$42="Endemic", IF(AND($J79>1,$J79<5), IF($J79=4, "Unknown", E79+F79), 0),"Not required") -> 60200 | O79: =IF(INTRO!$E$44="Endemic", IF(AND($K79>0,$K79<5), IF($K79=4,"Unknown", IF($K79=1, $F79*0.33, IF($K79=2, $F79*0.5+$G79*0.2, SUM(F79:G79)))), 0),"Not required") -> 0 | P79: 0 | Q79: 0 | R79: 0 | S79: 0
A80: =IF(INTRO!$E$34<>0,INTRO!$E$34,"") -> Ethiopia | B80: AmharaEast Gojam | C80: Motta town | D80: 40286 | E80: 5469 | F80: 11711 | G80: 23106 | H80: 0 | I80: 0 | J80: 2 | K80: 2 | L80: =IF(INTRO!$E$38="Endemic", IF($H80>0, IF($H80=4,"Unknown", IF($H80=99,"Stopped", $D80)), 0),"Not required") -> 0 | M80: =IF(INTRO!$E$40="Endemic", IF($I80>0, IF($I80=4,"Unknown",IF($I80=99,"Stopped", $D80)), 0),"Not required") -> 0 | N80: =IF(INTRO!$E$42="Endemic", IF(AND($J80>1,$J80<5), IF($J80=4, "Unknown", E80+F80), 0),"Not required") -> 17180 | O80: =IF(INTRO!$E$44="Endemic", IF(AND($K80>0,$K80<5), IF($K80=4,"Unknown", IF($K80=1, $F80*0.33, IF($K80=2, $F80*0.5+$G80*0.2, SUM(F80:G80)))), 0),"Not required") -> 10476.7 | P80: 0 | Q80: 0 | R80: 1 | S80: 1 | U80: T1 (PZQ+ALB/MBD)
A81: =IF(INTRO!$E$34<>0,INTRO!$E$34,"") -> Ethiopia | B81: AmharaEast Gojam | C81: Sedie | D81: 111059 | E81: 15077 | F81: 32284 | G81: 63699 | H81: 0 | I81: 0 | J81: 0 | K81: 0 | L81: =IF(INTRO!$E$38="Endemic", IF($H81>0, IF($H81=4,"Unknown", IF($H81=99,"Stopped", $D81)), 0),"Not required") -> 0 | M81: =IF(INTRO!$E$40="Endemic", IF($I81>0, IF($I81=4,"Unknown",IF($I81=99,"Stopped", $D81)), 0),"Not required") -> 0 | N81: =IF(INTRO!$E$42="Endemic", IF(AND($J81>1,$J81<5), IF($J81=4, "Unknown", E81+F81), 0),"Not required") -> 0 | O81: =IF(INTRO!$E$44="Endemic", IF(AND($K81>0,$K81<5), IF($K81=4,"Unknown", IF($K81=1, $F81*0.33, IF($K81=2, $F81*0.5+$G81*0.2, SUM(F81:G81)))), 0),"Not required") -> 0 | P81: 0 | Q81: 0 | R81: 0 | S81: 0
A82: =IF(INTRO!$E$34<>0,INTRO!$E$34,"") -> Ethiopia | B82: AmharaEast Gojam | C82: Shebel berenta | D82: 132429 | E82: 17978 | F82: 38496 | G82: 75956 | H82: 0 | I82: 0 | J82: 2 | K82: 2 | L82: =IF(INTRO!$E$38="Endemic", IF($H82>0, IF($H82=4,"Unknown", IF($H82=99,"Stopped", $D82)), 0),"Not required") -> 0 | M82: =IF(INTRO!$E$40="Endemic", IF($I82>0, IF($I82=4,"Unknown",IF($I82=99,"Stopped", $D82)), 0),"Not required") -> 0 | N82: =IF(INTRO!$E$42="Endemic", IF(AND($J82>1,$J82<5), IF($J82=4, "Unknown", E82+F82), 0),"Not required") -> 56474 | O82: =IF(INTRO!$E$44="Endemic", IF(AND($K82>0,$K82<5), IF($K82=4,"Unknown", IF($K82=1, $F82*0.33, IF($K82=2, $F82*0.5+$G82*0.2, SUM(F82:G82)))), 0),"Not required") -> 34439.2 | P82: 0 | Q82: 0 | R82: 1 | S82: 1 | U82: T1 (PZQ+ALB/MBD)
A83: =IF(INTRO!$E$34<>0,INTRO!$E$34,"") -> Ethiopia | B83: AmharaEast Gojam | C83: Sinan | D83: 118925 | E83: 16144 | F83: 34570 | G83: 68211 | H83: 0 | I83: 0 | J83: 2 | K83: 0 | L83: =IF(INTRO!$E$38="Endemic", IF($H83>0, IF($H83=4,"Unknown", IF($H83=99,"Stopped", $D83)), 0),"Not required") -> 0 | M83: =IF(INTRO!$E$40="Endemic", IF($I83>0, IF($I83=4,"Unknown",IF($I83=99,"Stopped", $D83)), 0),"Not required") -> 0 | N83: =IF(INTRO!$E$42="Endemic", IF(AND($J83>1,$J83<5), IF($J83=4, "Unknown", E83+F83), 0),"Not required") -> 50714 | O83: =IF(INTRO!$E$44="Endemic", IF(AND($K83>0,$K83<5), IF($K83=4,"Unknown", IF($K83=1, $F83*0.33, IF($K83=2, $F83*0.5+$G83*0.2, SUM(F83:G83)))), 0),"Not required") -> 0 | P83: 0 | Q83: 0 | R83: 0 | S83: 0
A84: =IF(INTRO!$E$34<>0,INTRO!$E$34,"") -> Ethiopia | B84: AmharaNorth Gondar | C84: Adi Arkay | D84: 116599 | E84: 15829 | F84: 33894 | G84: 66876 | H84: 0 | I84: 0 | J84: 3 | K84: 1 | L84: =IF(INTRO!$E$38="Endemic", IF($H84>0, IF($H84=4,"Unknown", IF($H84=99,"Stopped", $D84)), 0),"Not required") -> 0 | M84: =IF(INTRO!$E$40="Endemic", IF($I84>0, IF($I84=4,"Unknown",IF($I84=99,"Stopped", $D84)), 0),"Not required") -> 0 | N84: =IF(INTRO!$E$42="Endemic", IF(AND($J84>1,$J84<5), IF($J84=4, "Unknown", E84+F84), 0),"Not required") -> 49723 | O84: =IF(INTRO!$E$44="Endemic", IF(AND($K84>0,$K84<5), IF($K84=4,"Unknown", IF($K84=1, $F84*0.33, IF($K84=2, $F84*0.5+$G84*0.2, SUM(F84:G84)))), 0),"Not required") -> 11185.02 | P84: 0 | Q84: 0 | R84: 2 | S84: 0 | T84: T3 (ALB/MBD) | U84: T3 (ALB/MBD)
A85: =IF(INTRO!$E$34<>0,INTRO!$E$34,"") -> Ethiopia | B85: AmharaNorth Gondar | C85: Alefa | D85: 227004 | E85: 30816 | F85: 65987 | G85: 130200 | H85: 0 | I85: 1 | J85: 2 | K85: 1 | L85: =IF(INTRO!$E$38="Endemic", IF($H85>0, IF($H85=4,"Unknown", IF($H85=99,"Stopped", $D85)), 0),"Not required") -> 0 | M85: =IF(INTRO!$E$40="Endemic", IF($I85>0, IF($I85=4,"Unknown",IF($I85=99,"Stopped", $D85)), 0),"Not required") -> 227004 | N85: =IF(INTRO!$E$42="Endemic", IF(AND($J85>1,$J85<5), IF($J85=4, "Unknown", E85+F85), 0),"Not required") -> 96803 | O85: =IF(INTRO!$E$44="Endemic", IF(AND($K85>0,$K85<5), IF($K85=4,"Unknown", IF($K85=1, $F85*0.33, IF($K85=2, $F85*0.5+$G85*0.2, SUM(F85:G85)))), 0),"Not required") -> 21775.71 | P85: 0 | Q85: 1 | R85: 0 | S85: 0 | T85: MDA3 (IVM)
A86: =IF(INTRO!$E$34<>0,INTRO!$E$34,"") -> Ethiopia | B86: AmharaNorth Gondar | C86: Beyeda | D86: 90851 | E86: 12333 | F86: 26409 | G86: 52108 | H86: 0 | I86: 0 | J86: 3 | K86: 3 | L86: =IF(INTRO!$E$38="Endemic", IF($H86>0, IF($H86=4,"Unknown", IF($H86=99,"Stopped", $D86)), 0),"Not required") -> 0 | M86: =IF(INTRO!$E$40="Endemic", IF($I86>0, IF($I86=4,"Unknown",IF($I86=99,"Stopped", $D86)), 0),"Not required") -> 0 | N86: =IF(INTRO!$E$42="Endemic", IF(AND($J86>1,$J86<5), IF($J86=4, "Unknown", E86+F86), 0),"Not required") -> 38742 | O86: =IF(INTRO!$E$44="Endemic", IF(AND($K86>0,$K86<5), IF($K86=4,"Unknown", IF($K86=1, $F86*0.33, IF($K86=2, $F86*0.5+$G86*0.2, SUM(F86:G86)))), 0),"Not required") -> 78517 | P86: 0 | Q86: 0 | R86: 2 | S86: 1 | U86: T1 (PZQ+ALB/MBD)
A87: =IF(INTRO!$E$34<>0,INTRO!$E$34,"") -> Ethiopia | B87: AmharaNorth Gondar | C87: Chilga | D87: 261443 | E87: 35491 | F87: 75998 | G87: 149953 | H87: 0 | I87: 1 | J87: 3 | K87: 2 | L87: =IF(INTRO!$E$38="Endemic", IF($H87>0, IF($H87=4,"Unknown", IF($H87=99,"Stopped", $D87)), 0),"Not required") -> 0 | M87: =IF(INTRO!$E$40="Endemic", IF($I87>0, IF($I87=4,"Unknown",IF($I87=99,"Stopped", $D87)), 0),"Not required") -> 261443 | N87: =IF(INTRO!$E$42="Endemic", IF(AND($J87>1,$J87<5), IF($J87=4, "Unknown", E87+F87), 0),"Not required") -> 111489 | O87: =IF(INTRO!$E$44="Endemic", IF(AND($K87>0,$K87<5), IF($K87=4,"Unknown", IF($K87=1, $F87*0.33, IF($K87=2, $F87*0.5+$G87*0.2, SUM(F87:G87)))), 0),"Not required") -> 67989.6 | P87: 0 | Q87: 1 | R87: 2 | S87: 1 | T87: MDA3 (IVM) | U87: T1 (PZQ+ALB/MBD)
A88: =IF(INTRO!$E$34<>0,INTRO!$E$34,"") -> Ethiopia | B88: AmharaNorth Gondar | C88: Dabat | D88: 182273 | E88: 24744 | F88: 52985 | G88: 104544 | H88: 0 | I88: 0 | J88: 3 | K88: 1 | L88: =IF(INTRO!$E$38="Endemic", IF($H88>0, IF($H88=4,"Unknown", IF($H88=99,"Stopped", $D88)), 0),"Not required") -> 0 | M88: =IF(INTRO!$E$40="Endemic", IF($I88>0, IF($I88=4,"Unknown",IF($I88=99,"Stopped", $D88)), 0),"Not required") -> 0 | N88: =IF(INTRO!$E$42="Endemic", IF(AND($J88>1,$J88<5), IF($J88=4, "Unknown", E88+F88), 0),"Not required") -> 77729 | O88: =IF(INTRO!$E$44="Endemic", IF(AND($K88>0,$K88<5), IF($K88=4,"Unknown", IF($K88=1, $F88*0.33, IF($K88=2, $F88*0.5+$G88*0.2, SUM(F88:G88)))), 0),"Not required") -> 17485.05 | P88: 0 | Q88: 0 | R88: 2 | S88: 0 | T88: T3 (ALB/MBD) | U88: T3 (ALB/MBD)
A89: =IF(INTRO!$E$34<>0,INTRO!$E$34,"") -> Ethiopia | B89: AmharaNorth Gondar | C89: Debark | D89: 164087 | E89: 22275 | F89: 47698 | G89: 94114 | H89: 0 | I89: 0 | J89: 3 | K89: 0 | L89: =IF(INTRO!$E$38="Endemic", IF($H89>0, IF($H89=4,"Unknown", IF($H89=99,"Stopped", $D89)), 0),"Not required") -> 0 | M89: =IF(INTRO!$E$40="Endemic", IF($I89>0, IF($I89=4,"Unknown",IF($I89=99,"Stopped", $D89)), 0),"Not required") -> 0 | N89: =IF(INTRO!$E$42="Endemic", IF(AND($J89>1,$J89<5), IF($J89=4, "Unknown", E89+F89), 0),"Not required") -> 69973 | O89: =IF(INTRO!$E$44="Endemic", IF(AND($K89>0,$K89<5), IF($K89=4,"Unknown", IF($K89=1, $F89*0.33, IF($K89=2, $F89*0.5+$G89*0.2, SUM(F89:G89)))), 0),"Not required") -> 0 | P89: 0 | Q89: 0 | R89: 2 | S89: 0 | T89: T3 (ALB/MBD) | U89: T3 (ALB/MBD)
A90: =IF(INTRO!$E$34<>0,INTRO!$E$34,"") -> Ethiopia | B90: AmharaNorth Gondar | C90: Debark town | D90: 24509 | E90: 3327 | F90: 7124 | G90: 14057 | H90: 0 | I90: 0 | J90: 3 | K90: 1 | L90: =IF(INTRO!$E$38="Endemic", IF($H90>0, IF($H90=4,"Unknown", IF($H90=99,"Stopped", $D90)), 0),"Not required") -> 0 | M90: =IF(INTRO!$E$40="Endemic", IF($I90>0, IF($I90=4,"Unknown",IF($I90=99,"Stopped", $D90)), 0),"Not required") -> 0 | N90: =IF(INTRO!$E$42="Endemic", IF(AND($J90>1,$J90<5), IF($J90=4, "Unknown", E90+F90), 0),"Not required") -> 10451 | O90: =IF(INTRO!$E$44="Endemic", IF(AND($K90>0,$K90<5), IF($K90=4,"Unknown", IF($K90=1, $F90*0.33, IF($K90=2, $F90*0.5+$G90*0.2, SUM(F90:G90)))), 0),"Not required") -> 2350.92 | P90: 0 | Q90: 0 | R90: 2 | S90: 0 | T90: T3 (ALB/MBD) | U90: T3 (ALB/MBD)
A91: =IF(INTRO!$E$34<>0,INTRO!$E$34,"") -> Ethiopia | B91: AmharaNorth Gondar | C91: East Belesa | D91: 202534 | E91: 27494 | F91: 58874 | G91: 116165 | H91: 0 | I91: 0 | J91: 1 | K91: 2 | L91: =IF(INTRO!$E$38="Endemic", IF($H91>0, IF($H91=4,"Unknown", IF($H91=99,"Stopped", $D91)), 0),"Not required") -> 0 | M91: =IF(INTRO!$E$40="Endemic", IF($I91>0, IF($I91=4,"Unknown",IF($I91=99,"Stopped", $D91)), 0),"Not required") -> 0 | N91: =IF(INTRO!$E$42="Endemic", IF(AND($J91>1,$J91<5), IF($J91=4, "Unknown", E91+F91), 0),"Not required") -> 0 | O91: =IF(INTRO!$E$44="Endemic", IF(AND($K91>0,$K91<5), IF($K91=4,"Unknown", IF($K91=1, $F91*0.33, IF($K91=2, $F91*0.5+$G91*0.2, SUM(F91:G91)))), 0),"Not required") -> 52670 | P91: 0 | Q91: 0 | R91: 0 | S91: 0
A92: =IF(INTRO!$E$34<>0,INTRO!$E$34,"") -> Ethiopia | B92: AmharaNorth Gondar | C92: East Dembia | D92: 140209 | E92: 19034 | F92: 40757 | G92: 80418 | H92: 0 | I92: 4 | J92: 3 | K92: 2 | L92: =IF(INTRO!$E$38="Endemic", IF($H92>0, IF($H92=4,"Unknown", IF($H92=99,"Stopped", $D92)), 0),"Not required") -> 0 | M92: =IF(INTRO!$E$40="Endemic", IF($I92>0, IF($I92=4,"Unknown",IF($I92=99,"Stopped", $D92)), 0),"Not required") -> Unknown | N92: =IF(INTRO!$E$42="Endemic", IF(AND($J92>1,$J92<5), IF($J92=4, "Unknown", E92+F92), 0),"Not required") -> 59791 | O92: =IF(INTRO!$E$44="Endemic", IF(AND($K92>0,$K92<5), IF($K92=4,"Unknown", IF($K92=1, $F92*0.33, IF($K92=2, $F92*0.5+$G92*0.2, SUM(F92:G92)))), 0),"Not required") -> 36462.1 | P92: 0 | Q92: 0 | R92: 2 | S92: 0
A93: =IF(INTRO!$E$34<>0,INTRO!$E$34,"") -> Ethiopia | B93: AmharaNorth Gondar | C93: Gendawuha | D93: 23700 | E93: 3217 | F93: 6889 | G93: 13593 | H93: 1 | I93: 1 | J93: 1 | K93: 2 | L93: =IF(INTRO!$E$38="Endemic", IF($H93>0, IF($H93=4,"Unknown", IF($H93=99,"Stopped", $D93)), 0),"Not required") -> 23700 | M93: =IF(INTRO!$E$40="Endemic", IF($I93>0, IF($I93=4,"Unknown",IF($I93=99,"Stopped", $D93)), 0),"Not required") -> 23700 | N93: =IF(INTRO!$E$42="Endemic", IF(AND($J93>1,$J93<5), IF($J93=4, "Unknown", E93+F93), 0),"Not required") -> 0 | O93: =IF(INTRO!$E$44="Endemic", IF(AND($K93>0,$K93<5), IF($K93=4,"Unknown", IF($K93=1, $F93*0.33, IF($K93=2, $F93*0.5+$G93*0.2, SUM(F93:G93)))), 0),"Not required") -> 6163.1 | P93: 1 | Q93: 1 | R93: 0 | S93: 0 | T93: MDA1 (IVM+ALB)
A94: =IF(INTRO!$E$34<>0,INTRO!$E$34,"") -> Ethiopia | B94: AmharaNorth Gondar | C94: Gondar town | D94: 333103 | E94: 45219 | F94: 96829 | G94: 191054 | H94: 0 | I94: 0 | J94: 3 | K94: 2 | L94: =IF(INTRO!$E$38="Endemic", IF($H94>0, IF($H94=4,"Unknown", IF($H94=99,"Stopped", $D94)), 0),"Not required") -> 0 | M94: =IF(INTRO!$E$40="Endemic", IF($I94>0, IF($I94=4,"Unknown",IF($I94=99,"Stopped", $D94)), 0),"Not required") -> 0 | N94: =IF(INTRO!$E$42="Endemic", IF(AND($J94>1,$J94<5), IF($J94=4, "Unknown", E94+F94), 0),"Not required") -> 142048 | O94: =IF(INTRO!$E$44="Endemic", IF(AND($K94>0,$K94<5), IF($K94=4,"Unknown", IF($K94=1, $F94*0.33, IF($K94=2, $F94*0.5+$G94*0.2, SUM(F94:G94)))), 0),"Not required") -> 86625.3 | P94: 0 | Q94: 0 | R94: 2 | S94: 1 | T94: T3 (ALB/MBD) | U94: T1 (PZQ+ALB/MBD)
A95: =IF(INTRO!$E$34<>0,INTRO!$E$34,"") -> Ethiopia | B95: AmharaNorth Gondar | C95: Gondar Zuriya | D95: 235166 | E95: 31924 | F95: 68360 | G95: 134882 | H95: 0 | I95: 4 | J95: 3 | K95: 1 | L95: =IF(INTRO!$E$38="Endemic", IF($H95>0, IF($H95=4,"Unknown", IF($H95=99,"Stopped", $D95)), 0),"Not required") -> 0 | M95: =IF(INTRO!$E$40="Endemic", IF($I95>0, IF($I95=4,"Unknown",IF($I95=99,"Stopped", $D95)), 0),"Not required") -> Unknown | N95: =IF(INTRO!$E$42="Endemic", IF(AND($J95>1,$J95<5), IF($J95=4, "Unknown", E95+F95), 0),"Not required") -> 100284 | O95: =IF(INTRO!$E$44="Endemic", IF(AND($K95>0,$K95<5), IF($K95=4,"Unknown", IF($K95=1, $F95*0.33, IF($K95=2, $F95*0.5+$G95*0.2, SUM(F95:G95)))), 0),"Not required") -> 22558.8 | P95: 0 | Q95: 0 | R95: 2 | S95: 0 | T95: T3 (ALB/MBD) | U95: T3 (ALB/MBD)
A96: =IF(INTRO!$E$34<>0,INTRO!$E$34,"") -> Ethiopia | B96: AmharaNorth Gondar | C96: Janamora | D96: 212186 | E96: 28805 | F96: 61680 | G96: 121701 | H96: 0 | I96: 0 | J96: 3 | K96: 0 | L96: =IF(INTRO!$E$38="Endemic", IF($H96>0, IF($H96=4,"Unknown", IF($H96=99,"Stopped", $D96)), 0),"Not required") -> 0 | M96: =IF(INTRO!$E$40="Endemic", IF($I96>0, IF($I96=4,"Unknown",IF($I96=99,"Stopped", $D96)), 0),"Not required") -> 0 | N96: =IF(INTRO!$E$42="Endemic", IF(AND($J96>1,$J96<5), IF($J96=4, "Unknown", E96+F96), 0),"Not required") -> 90485 | O96: =IF(INTRO!$E$44="Endemic", IF(AND($K96>0,$K96<5), IF($K96=4,"Unknown", IF($K96=1, $F96*0.33, IF($K96=2, $F96*0.5+$G96*0.2, SUM(F96:G96)))), 0),"Not required") -> 0 | P96: 0 | Q96: 0 | R96: 2 | S96: 0 | T96: T3 (ALB/MBD) | U96: T3 (ALB/MBD)
A97: =IF(INTRO!$E$34<>0,INTRO!$E$34,"") -> Ethiopia | B97: AmharaNorth Gondar | C97: Kinfazbegela | D97: 80418 | E97: 10917 | F97: 23377 | G97: 46124 | H97: 0 | I97: 0 | J97: 0 | K97: 0 | L97: =IF(INTRO!$E$38="Endemic", IF($H97>0, IF($H97=4,"Unknown", IF($H97=99,"Stopped", $D97)), 0),"Not required") -> 0 | M97: =IF(INTRO!$E$40="Endemic", IF($I97>0, IF($I97=4,"Unknown",IF($I97=99,"Stopped", $D97)), 0),"Not required") -> 0 | N97: =IF(INTRO!$E$42="Endemic", IF(AND($J97>1,$J97<5), IF($J97=4, "Unknown", E97+F97), 0),"Not required") -> 0 | O97: =IF(INTRO!$E$44="Endemic", IF(AND($K97>0,$K97<5), IF($K97=4,"Unknown", IF($K97=1, $F97*0.33, IF($K97=2, $F97*0.5+$G97*0.2, SUM(F97:G97)))), 0),"Not required") -> 0 | P97: 0 | Q97: 0 | R97: 0 | S97: 0
A98: =IF(INTRO!$E$34<>0,INTRO!$E$34,"") -> Ethiopia | B98: AmharaNorth Gondar | C98: Lay Armachiho | D98: 143436 | E98: 19472 | F98: 41695 | G98: 82269 | H98: 0 | I98: 0 | J98: 3 | K98: 3 | L98: =IF(INTRO!$E$38="Endemic", IF($H98>0, IF($H98=4,"Unknown", IF($H98=99,"Stopped", $D98)), 0),"Not required") -> 0 | M98: =IF(INTRO!$E$40="Endemic", IF($I98>0, IF($I98=4,"Unknown",IF($I98=99,"Stopped", $D98)), 0),"Not required") -> 0 | N98: =IF(INTRO!$E$42="Endemic", IF(AND($J98>1,$J98<5), IF($J98=4, "Unknown", E98+F98), 0),"Not required") -> 61167 | O98: =IF(INTRO!$E$44="Endemic", IF(AND($K98>0,$K98<5), IF($K98=4,"Unknown", IF($K98=1, $F98*0.33, IF($K98=2, $F98*0.5+$G98*0.2, SUM(F98:G98)))), 0),"Not required") -> 123964 | P98: 0 | Q98: 0 | R98: 2 | S98: 0 | T98: T3 (ALB/MBD)
A99: =IF(INTRO!$E$34<>0,INTRO!$E$34,"") -> Ethiopia | B99: AmharaNorth Gondar | C99: Metema | D99: 149700 | E99: 20322 | F99: 43516 | G99: 85862 | H99: 1 | I99: 1 | J99: 3 | K99: 3 | L99: =IF(INTRO!$E$38="Endemic", IF($H99>0, IF($H99=4,"Unknown", IF($H99=99,"Stopped", $D99)), 0),"Not required") -> 149700 | M99: =IF(INTRO!$E$40="Endemic", IF($I99>0, IF($I99=4,"Unknown",IF($I99=99,"Stopped", $D99)), 0),"Not required") -> 149700 | N99: =IF(INTRO!$E$42="Endemic", IF(AND($J99>1,$J99<5), IF($J99=4, "Unknown", E99+F99), 0),"Not required") -> 63838 | O99: =IF(INTRO!$E$44="Endemic", IF(AND($K99>0,$K99<5), IF($K99=4,"Unknown", IF($K99=1, $F99*0.33, IF($K99=2, $F99*0.5+$G99*0.2, SUM(F99:G99)))), 0),"Not required") -> 129378 | P99: 1 | Q99: 1 | R99: 2 | S99: 1 | T99: MDA1 (IVM+ALB) | U99: T1 (PZQ+ALB/MBD)
A100: =IF(INTRO!$E$34<>0,INTRO!$E$34,"") -> Ethiopia | B100: AmharaNorth Gondar | C100: Mirab Belesa | D100: 198967 | E100: 27010 | F100: 57837 | G100: 114119 | H100: 0 | I100: 0 | J100: 3 | K100: 2 | L100: =IF(INTRO!$E$38="Endemic", IF($H100>0, IF($H100=4,"Unknown", IF($H100=99,"Stopped", $D100)), 0),"Not required") -> 0 | M100: =IF(INTRO!$E$40="Endemic", IF($I100>0, IF($I100=4,"Unknown",IF($I100=99,"Stopped", $D100)), 0),"Not required") -> 0 | N100: =IF(INTRO!$E$42="Endemic", IF(AND($J100>1,$J100<5), IF($J100=4, "Unknown", E100+F100), 0),"Not required") -> 84847 | O100: =IF(INTRO!$E$44="Endemic", IF(AND($K100>0,$K100<5), IF($K100=4,"Unknown", IF($K100=1, $F100*0.33, IF($K100=2, $F100*0.5+$G100*0.2, SUM(F100:G100)))), 0),"Not required") -> 51742.3 | P100: 0 | Q100: 0 | R100: 2 | S100: 1 | T100: T3 (ALB/MBD) | U100: T1 (PZQ+ALB/MBD)
A101: =IF(INTRO!$E$34<>0,INTRO!$E$34,"") -> Ethiopia | B101: AmharaNorth Gondar | C101: Quara | D101: 139564 | E101: 18946 | F101: 40570 | G101: 80048 | H101: 1 | I101: 1 | J101: 3 | K101: 2 | L101: =IF(INTRO!$E$38="Endemic", IF($H101>0, IF($H101=4,"Unknown", IF($H101=99,"Stopped", $D101)), 0),"Not required") -> 139564 | M101: =IF(INTRO!$E$40="Endemic", IF($I101>0, IF($I101=4,"Unknown",IF($I101=99,"Stopped", $D101)), 0),"Not required") -> 139564 | N101: =IF(INTRO!$E$42="Endemic", IF(AND($J101>1,$J101<5), IF($J101=4, "Unknown", E101+F101), 0),"Not required") -> 59516 | O101: =IF(INTRO!$E$44="Endemic", IF(AND($K101>0,$K101<5), IF($K101=4,"Unknown", IF($K101=1, $F101*0.33, IF($K101=2, $F101*0.5+$G101*0.2, SUM(F101:G101)))), 0),"Not required") -> 36294.6 | P101: 1 | Q101: 1 | R101: 2 | S101: 1 | T101: MDA1 (IVM+ALB) | U101: T1 (PZQ+ALB/MBD)
A102: =IF(INTRO!$E$34<>0,INTRO!$E$34,"") -> Ethiopia | B102: AmharaNorth Gondar | C102: Tach Armachiho | D102: 159669 | E102: 21675 | F102: 46414 | G102: 91580 | H102: 0 | I102: 1 | J102: 3 | K102: 3 | L102: =IF(INTRO!$E$38="Endemic", IF($H102>0, IF($H102=4,"Unknown", IF($H102=99,"Stopped", $D102)), 0),"Not required") -> 0 | M102: =IF(INTRO!$E$40="Endemic", IF($I102>0, IF($I102=4,"Unknown",IF($I102=99,"Stopped", $D102)), 0),"Not required") -> 159669 | N102: =IF(INTRO!$E$42="Endemic", IF(AND($J102>1,$J102<5), IF($J102=4, "Unknown", E102+F102), 0),"Not required") -> 68089 | O102: =IF(INTRO!$E$44="Endemic", IF(AND($K102>0,$K102<5), IF($K102=4,"Unknown", IF($K102=1, $F102*0.33, IF($K102=2, $F102*0.5+$G102*0.2, SUM(F102:G102)))), 0),"Not required") -> 137994 | P102: 0 | Q102: 1 | R102: 2 | S102: 1 | T102: MDA3 (IVM) | U102: T1 (PZQ+ALB/MBD)
A103: =IF(INTRO!$E$34<>0,INTRO!$E$34,"") -> Ethiopia | B103: AmharaNorth Gondar | C103: Takusa | D103: 175623 | E103: 23841 | F103: 51052 | G103: 100730 | H103: 0 | I103: 4 | J103: 3 | K103: 3 | L103: =IF(INTRO!$E$38="Endemic", IF($H103>0, IF($H103=4,"Unknown", IF($H103=99,"Stopped", $D103)), 0),"Not required") -> 0 | M103: =IF(INTRO!$E$40="Endemic", IF($I103>0, IF($I103=4,"Unknown",IF($I103=99,"Stopped", $D103)), 0),"Not required") -> Unknown | N103: =IF(INTRO!$E$42="Endemic", IF(AND($J103>1,$J103<5), IF($J103=4, "Unknown", E103+F103), 0),"Not required") -> 74893 | O103: =IF(INTRO!$E$44="Endemic", IF(AND($K103>0,$K103<5), IF($K103=4,"Unknown", IF($K103=1, $F103*0.33, IF($K103=2, $F103*0.5+$G103*0.2, SUM(F103:G103)))), 0),"Not required") -> 151782 | P103: 0 | Q103: 0 | R103: 2 | S103: 1 | T103: MDA3 (IVM) | U103: T1 (PZQ+ALB/MBD)
A104: =IF(INTRO!$E$34<>0,INTRO!$E$34,"") -> Ethiopia | B104: AmharaNorth Gondar | C104: Tegedie | D104: 93737 | E104: 12725 | F104: 27248 | G104: 53764 | H104: 0 | I104: 1 | J104: 3 | K104: 3 | L104: =IF(INTRO!$E$38="Endemic", IF($H104>0, IF($H104=4,"Unknown", IF($H104=99,"Stopped", $D104)), 0),"Not required") -> 0 | M104: =IF(INTRO!$E$40="Endemic", IF($I104>0, IF($I104=4,"Unknown",IF($I104=99,"Stopped", $D104)), 0),"Not required") -> 93737 | N104: =IF(INTRO!$E$42="Endemic", IF(AND($J104>1,$J104<5), IF($J104=4, "Unknown", E104+F104), 0),"Not required") -> 39973 | O104: =IF(INTRO!$E$44="Endemic", IF(AND($K104>0,$K104<5), IF($K104=4,"Unknown", IF($K104=1, $F104*0.33, IF($K104=2, $F104*0.5+$G104*0.2, SUM(F104:G104)))), 0),"Not required") -> 81012 | P104: 0 | Q104: 1 | R104: 2 | S104: 1 | T104: MDA3 (IVM) | U104: T1 (PZQ+ALB/MBD)
A105: =IF(INTRO!$E$34<>0,INTRO!$E$34,"") -> Ethiopia | B105: AmharaNorth Gondar | C105: Telemt | D105: 96551 | E105: 13107 | F105: 28066 | G105: 55378 | H105: 0 | I105: 0 | J105: 3 | K105: 3 | L105: =IF(INTRO!$E$38="Endemic", IF($H105>0, IF($H105=4,"Unknown", IF($H105=99,"Stopped", $D105)), 0),"Not required") -> 0 | M105: =IF(INTRO!$E$40="Endemic", IF($I105>0, IF($I105=4,"Unknown",IF($I105=99,"Stopped", $D105)), 0),"Not required") -> 0 | N105: =IF(INTRO!$E$42="Endemic", IF(AND($J105>1,$J105<5), IF($J105=4, "Unknown", E105+F105), 0),"Not required") -> 41173 | O105: =IF(INTRO!$E$44="Endemic", IF(AND($K105>0,$K105<5), IF($K105=4,"Unknown", IF($K105=1, $F105*0.33, IF($K105=2, $F105*0.5+$G105*0.2, SUM(F105:G105)))), 0),"Not required") -> 83444 | P105: 0 | Q105: 0 | R105: 2 | S105: 1 | U105: T1 (PZQ+ALB/MBD)
A106: =IF(INTRO!$E$34<>0,INTRO!$E$34,"") -> Ethiopia | B106: AmharaNorth Gondar | C106: West Armachoho | D106: 52067 | E106: 7068 | F106: 15135 | G106: 29864 | H106: 0 | I106: 1 | J106: 2 | K106: 3 | L106: =IF(INTRO!$E$38="Endemic", IF($H106>0, IF($H106=4,"Unknown", IF($H106=99,"Stopped", $D106)), 0),"Not required") -> 0 | M106: =IF(INTRO!$E$40="Endemic", IF($I106>0, IF($I106=4,"Unknown",IF($I106=99,"Stopped", $D106)), 0),"Not required") -> 52067 | N106: =IF(INTRO!$E$42="Endemic", IF(AND($J106>1,$J106<5), IF($J106=4, "Unknown", E106+F106), 0),"Not required") -> 22203 | O106: =IF(INTRO!$E$44="Endemic", IF(AND($K106>0,$K106<5), IF($K106=4,"Unknown", IF($K106=1, $F106*0.33, IF($K106=2, $F106*0.5+$G106*0.2, SUM(F106:G106)))), 0),"Not required") -> 44999 | P106: 0 | Q106: 1 | R106: 1 | S106: 1 | T106: MDA3 (IVM) | U106: T1 (PZQ+ALB/MBD)
A107: =IF(INTRO!$E$34<>0,INTRO!$E$34,"") -> Ethiopia | B107: AmharaNorth Gondar | C107: West Dembia | D107: 131480 | E107: 17849 | F107: 38220 | G107: 75412 | H107: 0 | I107: 4 | J107: 3 | K107: 2 | L107: =IF(INTRO!$E$38="Endemic", IF($H107>0, IF($H107=4,"Unknown", IF($H107=99,"Stopped", $D107)), 0),"Not required") -> 0 | M107: =IF(INTRO!$E$40="Endemic", IF($I107>0, IF($I107=4,"Unknown",IF($I107=99,"Stopped", $D107)), 0),"Not required") -> Unknown | N107: =IF(INTRO!$E$42="Endemic", IF(AND($J107>1,$J107<5), IF($J107=4, "Unknown", E107+F107), 0),"Not required") -> 56069 | O107: =IF(INTRO!$E$44="Endemic", IF(AND($K107>0,$K107<5), IF($K107=4,"Unknown", IF($K107=1, $F107*0.33, IF($K107=2, $F107*0.5+$G107*0.2, SUM(F107:G107)))), 0),"Not required") -> 34192.4 | P107: 0 | Q107: 0 | R107: 2 | S107: 0
A108: =IF(INTRO!$E$34<>0,INTRO!$E$34,"") -> Ethiopia | B108: AmharaNorth Gondar | C108: Wogera | D108: 235946 | E108: 32030 | F108: 68587 | G108: 135329 | H108: 0 | I108: 0 | J108: 3 | K108: 2 | L108: =IF(INTRO!$E$38="Endemic", IF($H108>0, IF($H108=4,"Unknown", IF($H108=99,"Stopped", $D108)), 0),"Not required") -> 0 | M108: =IF(INTRO!$E$40="Endemic", IF($I108>0, IF($I108=4,"Unknown",IF($I108=99,"Stopped", $D108)), 0),"Not required") -> 0 | N108: =IF(INTRO!$E$42="Endemic", IF(AND($J108>1,$J108<5), IF($J108=4, "Unknown", E108+F108), 0),"Not required") -> 100617 | O108: =IF(INTRO!$E$44="Endemic", IF(AND($K108>0,$K108<5), IF($K108=4,"Unknown", IF($K108=1, $F108*0.33, IF($K108=2, $F108*0.5+$G108*0.2, SUM(F108:G108)))), 0),"Not required") -> 61359.3 | P108: 0 | Q108: 0 | R108: 2 | S108: 1 | T108: T3 (ALB/MBD) | U108: T1 (PZQ+ALB/MBD)
A109: =IF(INTRO!$E$34<>0,INTRO!$E$34,"") -> Ethiopia | B109: AmharaNorth Shoa | C109: Angolelna tera | D109: 97067 | E109: 13177 | F109: 28216 | G109: 55674 | H109: 0 | I109: 0 | J109: 1 | K109: 0 | L109: =IF(INTRO!$E$38="Endemic", IF($H109>0, IF($H109=4,"Unknown", IF($H109=99,"Stopped", $D109)), 0),"Not required") -> 0 | M109: =IF(INTRO!$E$40="Endemic", IF($I109>0, IF($I109=4,"Unknown",IF($I109=99,"Stopped", $D109)), 0),"Not required") -> 0 | N109: =IF(INTRO!$E$42="Endemic", IF(AND($J109>1,$J109<5), IF($J109=4, "Unknown", E109+F109), 0),"Not required") -> 0 | O109: =IF(INTRO!$E$44="Endemic", IF(AND($K109>0,$K109<5), IF($K109=4,"Unknown", IF($K109=1, $F109*0.33, IF($K109=2, $F109*0.5+$G109*0.2, SUM(F109:G109)))), 0),"Not required") -> 0 | P109: 0 | Q109: 0 | R109: 0 | S109: 0
A110: =IF(INTRO!$E$34<>0,INTRO!$E$34,"") -> Ethiopia | B110: AmharaNorth Shoa | C110: Ankober | D110: 90918 | E110: 12342 | F110: 26429 | G110: 52147 | H110: 0 | I110: 0 | J110: 1 | K110: 2 | L110: =IF(INTRO!$E$38="Endemic", IF($H110>0, IF($H110=4,"Unknown", IF($H110=99,"Stopped", $D110)), 0),"Not required") -> 0 | M110: =IF(INTRO!$E$40="Endemic", IF($I110>0, IF($I110=4,"Unknown",IF($I110=99,"Stopped", $D110)), 0),"Not required") -> 0 | N110: =IF(INTRO!$E$42="Endemic", IF(AND($J110>1,$J110<5), IF($J110=4, "Unknown", E110+F110), 0),"Not required") -> 0 | O110: =IF(INTRO!$E$44="Endemic", IF(AND($K110>0,$K110<5), IF($K110=4,"Unknown", IF($K110=1, $F110*0.33, IF($K110=2, $F110*0.5+$G110*0.2, SUM(F110:G110)))), 0),"Not required") -> 23643.9 | P110: 0 | Q110: 0 | R110: 0 | S110: 0
A111: =IF(INTRO!$E$34<>0,INTRO!$E$34,"") -> Ethiopia | B111: AmharaNorth Shoa | C111: Antsokiagemza | D111: 63299 | E111: 8593 | F111: 18400 | G111: 36306 | H111: 0 | I111: 0 | J111: 2 | K111: 1 | L111: =IF(INTRO!$E$38="Endemic", IF($H111>0, IF($H111=4,"Unknown", IF($H111=99,"Stopped", $D111)), 0),"Not required") -> 0 | M111: =IF(INTRO!$E$40="Endemic", IF($I111>0, IF($I111=4,"Unknown",IF($I111=99,"Stopped", $D111)), 0),"Not required") -> 0 | N111: =IF(INTRO!$E$42="Endemic", IF(AND($J111>1,$J111<5), IF($J111=4, "Unknown", E111+F111), 0),"Not required") -> 26993 | O111: =IF(INTRO!$E$44="Endemic", IF(AND($K111>0,$K111<5), IF($K111=4,"Unknown", IF($K111=1, $F111*0.33, IF($K111=2, $F111*0.5+$G111*0.2, SUM(F111:G111)))), 0),"Not required") -> 6072 | P111: 0 | Q111: 0 | R111: 0 | S111: 0
A112: =IF(INTRO!$E$34<>0,INTRO!$E$34,"") -> Ethiopia | B112: AmharaNorth Shoa | C112: Assagirt | D112: 55674 | E112: 7558 | F112: 16184 | G112: 31932 | H112: 0 | I112: 0 | J112: 1 | K112: 0 | L112: =IF(INTRO!$E$38="Endemic", IF($H112>0, IF($H112=4,"Unknown", IF($H112=99,"Stopped", $D112)), 0),"Not required") -> 0 | M112: =IF(INTRO!$E$40="Endemic", IF($I112>0, IF($I112=4,"Unknown",IF($I112=99,"Stopped", $D112)), 0),"Not required") -> 0 | N112: =IF(INTRO!$E$42="Endemic", IF(AND($J112>1,$J112<5), IF($J112=4, "Unknown", E112+F112), 0),"Not required") -> 0 | O112: =IF(INTRO!$E$44="Endemic", IF(AND($K112>0,$K112<5), IF($K112=4,"Unknown", IF($K112=1, $F112*0.33, IF($K112=2, $F112*0.5+$G112*0.2, SUM(F112:G112)))), 0),"Not required") -> 0 | P112: 0 | Q112: 0 | R112: 0 | S112: 0
A113: =IF(INTRO!$E$34<>0,INTRO!$E$34,"") -> Ethiopia | B113: AmharaNorth Shoa | C113: Baso Naworana | D113: 137365 | E113: 18648 | F113: 39930 | G113: 78787 | H113: 0 | I113: 0 | J113: 1 | K113: 0 | L113: =IF(INTRO!$E$38="Endemic", IF($H113>0, IF($H113=4,"Unknown", IF($H113=99,"Stopped", $D113)), 0),"Not required") -> 0 | M113: =IF(INTRO!$E$40="Endemic", IF($I113>0, IF($I113=4,"Unknown",IF($I113=99,"Stopped", $D113)), 0),"Not required") -> 0 | N113: =IF(INTRO!$E$42="Endemic", IF(AND($J113>1,$J113<5), IF($J113=4, "Unknown", E113+F113), 0),"Not required") -> 0 | O113: =IF(INTRO!$E$44="Endemic", IF(AND($K113>0,$K113<5), IF($K113=4,"Unknown", IF($K113=1, $F113*0.33, IF($K113=2, $F113*0.5+$G113*0.2, SUM(F113:G113)))), 0),"Not required") -> 0 | P113: 0 | Q113: 0 | R113: 0 | S113: 0
A114: =IF(INTRO!$E$34<>0,INTRO!$E$34,"") -> Ethiopia | B114: AmharaNorth Shoa | C114: Berehet | D114: 42561 | E114: 5778 | F114: 12372 | G114: 24411 | H114: 0 | I114: 0 | J114: 0 | K114: 2 | L114: =IF(INTRO!$E$38="Endemic", IF($H114>0, IF($H114=4,"Unknown", IF($H114=99,"Stopped", $D114)), 0),"Not required") -> 0 | M114: =IF(INTRO!$E$40="Endemic", IF($I114>0, IF($I114=4,"Unknown",IF($I114=99,"Stopped", $D114)), 0),"Not required") -> 0 | N114: =IF(INTRO!$E$42="Endemic", IF(AND($J114>1,$J114<5), IF($J114=4, "Unknown", E114+F114), 0),"Not required") -> 0 | O114: =IF(INTRO!$E$44="Endemic", IF(AND($K114>0,$K114<5), IF($K114=4,"Unknown", IF($K114=1, $F114*0.33, IF($K114=2, $F114*0.5+$G114*0.2, SUM(F114:G114)))), 0),"Not required") -> 11068.2 | P114: 0 | Q114: 0 | R114: 0 | S114: 1 | U114: T2 (PZQ)
A115: =IF(INTRO!$E$34<>0,INTRO!$E$34,"") -> Ethiopia | B115: AmharaNorth Shoa | C115: Debirebirhan Town | D115: 103450 | E115: 14044 | F115: 30072 | G115: 59335 | H115: 0 | I115: 0 | J115: 0 | K115: 0 | L115: =IF(INTRO!$E$38="Endemic", IF($H115>0, IF($H115=4,"Unknown", IF($H115=99,"Stopped", $D115)), 0),"Not required") -> 0 | M115: =IF(INTRO!$E$40="Endemic", IF($I115>0, IF($I115=4,"Unknown",IF($I115=99,"Stopped", $D115)), 0),"Not required") -> 0 | N115: =IF(INTRO!$E$42="Endemic", IF(AND($J115>1,$J115<5), IF($J115=4, "Unknown", E115+F115), 0),"Not required") -> 0 | O115: =IF(INTRO!$E$44="Endemic", IF(AND($K115>0,$K115<5), IF($K115=4,"Unknown", IF($K115=1, $F115*0.33, IF($K115=2, $F115*0.5+$G115*0.2, SUM(F115:G115)))), 0),"Not required") -> 0 | P115: 0 | Q115: 0 | R115: 0 | S115: 0
A116: =IF(INTRO!$E$34<>0,INTRO!$E$34,"") -> Ethiopia | B116: AmharaNorth Shoa | C116: Efratanagidem | D116: 170450 | E116: 23139 | F116: 49548 | G116: 97763 | H116: 0 | I116: 0 | J116: 2 | K116: 2 | L116: =IF(INTRO!$E$38="Endemic", IF($H116>0, IF($H116=4,"Unknown", IF($H116=99,"Stopped", $D116)), 0),"Not required") -> 0 | M116: =IF(INTRO!$E$40="Endemic", IF($I116>0, IF($I116=4,"Unknown",IF($I116=99,"Stopped", $D116)), 0),"Not required") -> 0 | N116: =IF(INTRO!$E$42="Endemic", IF(AND($J116>1,$J116<5), IF($J116=4, "Unknown", E116+F116), 0),"Not required") -> 72687 | O116: =IF(INTRO!$E$44="Endemic", IF(AND($K116>0,$K116<5), IF($K116=4,"Unknown", IF($K116=1, $F116*0.33, IF($K116=2, $F116*0.5+$G116*0.2, SUM(F116:G116)))), 0),"Not required") -> 44326.6 | P116: 0 | Q116: 0 | R116: 0 | S116: 0
A117: =IF(INTRO!$E$34<>0,INTRO!$E$34,"") -> Ethiopia | B117: AmharaNorth Shoa | C117: Ensaro | D117: 72804 | E117: 9883 | F117: 21163 | G117: 41757 | H117: 0 | I117: 0 | J117: 3 | K117: 0 | L117: =IF(INTRO!$E$38="Endemic", IF($H117>0, IF($H117=4,"Unknown", IF($H117=99,"Stopped", $D117)), 0),"Not required") -> 0 | M117: =IF(INTRO!$E$40="Endemic", IF($I117>0, IF($I117=4,"Unknown",IF($I117=99,"Stopped", $D117)), 0),"Not required") -> 0 | N117: =IF(INTRO!$E$42="Endemic", IF(AND($J117>1,$J117<5), IF($J117=4, "Unknown", E117+F117), 0),"Not required") -> 31046 | O117: =IF(INTRO!$E$44="Endemic", IF(AND($K117>0,$K117<5), IF($K117=4,"Unknown", IF($K117=1, $F117*0.33, IF($K117=2, $F117*0.5+$G117*0.2, SUM(F117:G117)))), 0),"Not required") -> 0 | P117: 0 | Q117: 0 | R117: 2 | S117: 0 | T117: T3 (ALB/MBD) | U117: T3 (ALB/MBD)
A118: =IF(INTRO!$E$34<>0,INTRO!$E$34,"") -> Ethiopia | B118: AmharaNorth Shoa | C118: Geshe | D118: 72122 | E118: 9791 | F118: 20965 | G118: 41366 | H118: 0 | I118: 0 | J118: 1 | K118: 0 | L118: =IF(INTRO!$E$38="Endemic", IF($H118>0, IF($H118=4,"Unknown", IF($H118=99,"Stopped", $D118)), 0),"Not required") -> 0 | M118: =IF(INTRO!$E$40="Endemic", IF($I118>0, IF($I118=4,"Unknown",IF($I118=99,"Stopped", $D118)), 0),"Not required") -> 0 | N118: =IF(INTRO!$E$42="Endemic", IF(AND($J118>1,$J118<5), IF($J118=4, "Unknown", E118+F118), 0),"Not required") -> 0 | O118: =IF(INTRO!$E$44="Endemic", IF(AND($K118>0,$K118<5), IF($K118=4,"Unknown", IF($K118=1, $F118*0.33, IF($K118=2, $F118*0.5+$G118*0.2, SUM(F118:G118)))), 0),"Not required") -> 0 | P118: 0 | Q118: 0 | R118: 0 | S118: 0
A119: =IF(INTRO!$E$34<>0,INTRO!$E$34,"") -> Ethiopia | B119: AmharaNorth Shoa | C119: Hageremariam | D119: 64999 | E119: 8824 | F119: 18894 | G119: 37281 | H119: 0 | I119: 0 | J119: 2 | K119: 0 | L119: =IF(INTRO!$E$38="Endemic", IF($H119>0, IF($H119=4,"Unknown", IF($H119=99,"Stopped", $D119)), 0),"Not required") -> 0 | M119: =IF(INTRO!$E$40="Endemic", IF($I119>0, IF($I119=4,"Unknown",IF($I119=99,"Stopped", $D119)), 0),"Not required") -> 0 | N119: =IF(INTRO!$E$42="Endemic", IF(AND($J119>1,$J119<5), IF($J119=4, "Unknown", E119+F119), 0),"Not required") -> 27718 | O119: =IF(INTRO!$E$44="Endemic", IF(AND($K119>0,$K119<5), IF($K119=4,"Unknown", IF($K119=1, $F119*0.33, IF($K119=2, $F119*0.5+$G119*0.2, SUM(F119:G119)))), 0),"Not required") -> 0 | P119: 0 | Q119: 0 | R119: 0 | S119: 0
A120: =IF(INTRO!$E$34<>0,INTRO!$E$34,"") -> Ethiopia | B120: AmharaNorth Shoa | C120: Kewot | D120: 90671 | E120: 12309 | F120: 26357 | G120: 52005 | H120: 0 | I120: 0 | J120: 1 | K120: 3 | L120: =IF(INTRO!$E$38="Endemic", IF($H120>0, IF($H120=4,"Unknown", IF($H120=99,"Stopped", $D120)), 0),"Not required") -> 0 | M120: =IF(INTRO!$E$40="Endemic", IF($I120>0, IF($I120=4,"Unknown",IF($I120=99,"Stopped", $D120)), 0),"Not required") -> 0 | N120: =IF(INTRO!$E$42="Endemic", IF(AND($J120>1,$J120<5), IF($J120=4, "Unknown", E120+F120), 0),"Not required") -> 0 | O120: =IF(INTRO!$E$44="Endemic", IF(AND($K120>0,$K120<5), IF($K120=4,"Unknown", IF($K120=1, $F120*0.33, IF($K120=2, $F120*0.5+$G120*0.2, SUM(F120:G120)))), 0),"Not required") -> 78362 | P120: 0 | Q120: 0 | R120: 0 | S120: 1 | U120: T2 (PZQ)
A121: =IF(INTRO!$E$34<>0,INTRO!$E$34,"") -> Ethiopia | B121: AmharaNorth Shoa | C121: Menzgera | D121: 121782 | E121: 16532 | F121: 35401 | G121: 69849 | H121: 0 | I121: 0 | J121: 1 | K121: 1 | L121: =IF(INTRO!$E$38="Endemic", IF($H121>0, IF($H121=4,"Unknown", IF($H121=99,"Stopped", $D121)), 0),"Not required") -> 0 | M121: =IF(INTRO!$E$40="Endemic", IF($I121>0, IF($I121=4,"Unknown",IF($I121=99,"Stopped", $D121)), 0),"Not required") -> 0 | N121: =IF(INTRO!$E$42="Endemic", IF(AND($J121>1,$J121<5), IF($J121=4, "Unknown", E121+F121), 0),"Not required") -> 0 | O121: =IF(INTRO!$E$44="Endemic", IF(AND($K121>0,$K121<5), IF($K121=4,"Unknown", IF($K121=1, $F121*0.33, IF($K121=2, $F121*0.5+$G121*0.2, SUM(F121:G121)))), 0),"Not required") -> 11682.33 | P121: 0 | Q121: 0 | R121: 0 | S121: 0 | U121: T2 (PZQ)
A122: =IF(INTRO!$E$34<>0,INTRO!$E$34,"") -> Ethiopia | B122: AmharaNorth Shoa | C122: Menzkeya | D122: 57011 | E122: 7739 | F122: 16572 | G122: 32699 | H122: 0 | I122: 0 | J122: 1 | K122: 1 | L122: =IF(INTRO!$E$38="Endemic", IF($H122>0, IF($H122=4,"Unknown", IF($H122=99,"Stopped", $D122)), 0),"Not required") -> 0 | M122: =IF(INTRO!$E$40="Endemic", IF($I122>0, IF($I122=4,"Unknown",IF($I122=99,"Stopped", $D122)), 0),"Not required") -> 0 | N122: =IF(INTRO!$E$42="Endemic", IF(AND($J122>1,$J122<5), IF($J122=4, "Unknown", E122+F122), 0),"Not required") -> 0 | O122: =IF(INTRO!$E$44="Endemic", IF(AND($K122>0,$K122<5), IF($K122=4,"Unknown", IF($K122=1, $F122*0.33, IF($K122=2, $F122*0.5+$G122*0.2, SUM(F122:G122)))), 0),"Not required") -> 5468.76 | P122: 0 | Q122: 0 | R122: 0 | S122: 0 | U122: T2 (PZQ)
A123: =IF(INTRO!$E$34<>0,INTRO!$E$34,"") -> Ethiopia | B123: AmharaNorth Shoa | C123: Menzlallo | D123: 40781 | E123: 5536 | F123: 11855 | G123: 23390 | H123: 0 | I123: 0 | J123: 2 | K123: 0 | L123: =IF(INTRO!$E$38="Endemic", IF($H123>0, IF($H123=4,"Unknown", IF($H123=99,"Stopped", $D123)), 0),"Not required") -> 0 | M123: =IF(INTRO!$E$40="Endemic", IF($I123>0, IF($I123=4,"Unknown",IF($I123=99,"Stopped", $D123)), 0),"Not required") -> 0 | N123: =IF(INTRO!$E$42="Endemic", IF(AND($J123>1,$J123<5), IF($J123=4, "Unknown", E123+F123), 0),"Not required") -> 17391 | O123: =IF(INTRO!$E$44="Endemic", IF(AND($K123>0,$K123<5), IF($K123=4,"Unknown", IF($K123=1, $F123*0.33, IF($K123=2, $F123*0.5+$G123*0.2, SUM(F123:G123)))), 0),"Not required") -> 0 | P123: 0 | Q123: 0 | R123: 0 | S123: 0
A124: =IF(INTRO!$E$34<>0,INTRO!$E$34,"") -> Ethiopia | B124: AmharaNorth Shoa | C124: Menzmamma | D124: 101355 | E124: 13759 | F124: 29463 | G124: 58133 | H124: 0 | I124: 0 | J124: 2 | K124: 0 | L124: =IF(INTRO!$E$38="Endemic", IF($H124>0, IF($H124=4,"Unknown", IF($H124=99,"Stopped", $D124)), 0),"Not required") -> 0 | M124: =IF(INTRO!$E$40="Endemic", IF($I124>0, IF($I124=4,"Unknown",IF($I124=99,"Stopped", $D124)), 0),"Not required") -> 0 | N124: =IF(INTRO!$E$42="Endemic", IF(AND($J124>1,$J124<5), IF($J124=4, "Unknown", E124+F124), 0),"Not required") -> 43222 | O124: =IF(INTRO!$E$44="Endemic", IF(AND($K124>0,$K124<5), IF($K124=4,"Unknown", IF($K124=1, $F124*0.33, IF($K124=2, $F124*0.5+$G124*0.2, SUM(F124:G124)))), 0),"Not required") -> 0 | P124: 0 | Q124: 0 | R124: 0 | S124: 0
A125: =IF(INTRO!$E$34<>0,INTRO!$E$34,"") -> Ethiopia | B125: AmharaNorth Shoa | C125: Merhabete | D125: 144716 | E125: 19646 | F125: 42067 | G125: 83003 | H125: 0 | I125: 0 | J125: 2 | K125: 0 | L125: =IF(INTRO!$E$38="Endemic", IF($H125>0, IF($H125=4,"Unknown", IF($H125=99,"Stopped", $D125)), 0),"Not required") -> 0 | M125: =IF(INTRO!$E$40="Endemic", IF($I125>0, IF($I125=4,"Unknown",IF($I125=99,"Stopped", $D125)), 0),"Not required") -> 0 | N125: =IF(INTRO!$E$42="Endemic", IF(AND($J125>1,$J125<5), IF($J125=4, "Unknown", E125+F125), 0),"Not required") -> 61713 | O125: =IF(INTRO!$E$44="Endemic", IF(AND($K125>0,$K125<5), IF($K125=4,"Unknown", IF($K125=1, $F125*0.33, IF($K125=2, $F125*0.5+$G125*0.2, SUM(F125:G125)))), 0),"Not required") -> 0 | P125: 0 | Q125: 0 | R125: 0 | S125: 0
A126: =IF(INTRO!$E$34<>0,INTRO!$E$34,"") -> Ethiopia | B126: AmharaNorth Shoa | C126: Midana Worem | D126: 111988 | E126: 15203 | F126: 32554 | G126: 64232 | H126: 0 | I126: 0 | J126: 1 | K126: 0 | L126: =IF(INTRO!$E$38="Endemic", IF($H126>0, IF($H126=4,"Unknown", IF($H126=99,"Stopped", $D126)), 0),"Not required") -> 0 | M126: =IF(INTRO!$E$40="Endemic", IF($I126>0, IF($I126=4,"Unknown",IF($I126=99,"Stopped", $D126)), 0),"Not required") -> 0 | N126: =IF(INTRO!$E$42="Endemic", IF(AND($J126>1,$J126<5), IF($J126=4, "Unknown", E126+F126), 0),"Not required") -> 0 | O126: =IF(INTRO!$E$44="Endemic", IF(AND($K126>0,$K126<5), IF($K126=4,"Unknown", IF($K126=1, $F126*0.33, IF($K126=2, $F126*0.5+$G126*0.2, SUM(F126:G126)))), 0),"Not required") -> 0 | P126: 0 | Q126: 0 | R126: 0 | S126: 0
A127: =IF(INTRO!$E$34<>0,INTRO!$E$34,"") -> Ethiopia | B127: AmharaNorth Shoa | C127: Minjarshenkora | D127: 161352 | E127: 21904 | F127: 46903 | G127: 92545 | H127: 0 | I127: 0 | J127: 1 | K127: 0 | L127: =IF(INTRO!$E$38="Endemic", IF($H127>0, IF($H127=4,"Unknown", IF($H127=99,"Stopped", $D127)), 0),"Not required") -> 0 | M127: =IF(INTRO!$E$40="Endemic", IF($I127>0, IF($I127=4,"Unknown",IF($I127=99,"Stopped", $D127)), 0),"Not required") -> 0 | N127: =IF(INTRO!$E$42="Endemic", IF(AND($J127>1,$J127<5), IF($J127=4, "Unknown", E127+F127), 0),"Not required") -> 0 | O127: =IF(INTRO!$E$44="Endemic", IF(AND($K127>0,$K127<5), IF($K127=4,"Unknown", IF($K127=1, $F127*0.33, IF($K127=2, $F127*0.5+$G127*0.2, SUM(F127:G127)))), 0),"Not required") -> 0 | P127: 0 | Q127: 0 | R127: 0 | S127: 0
A128: =IF(INTRO!$E$34<>0,INTRO!$E$34,"") -> Ethiopia | B128: AmharaNorth Shoa | C128: Mojanawodera | D128: 81815 | E128: 11107 | F128: 23783 | G128: 46926 | H128: 0 | I128: 0 | J128: 2 | K128: 0 | L128: =IF(INTRO!$E$38="Endemic", IF($H128>0, IF($H128=4,"Unknown", IF($H128=99,"Stopped", $D128)), 0),"Not required") -> 0 | M128: =IF(INTRO!$E$40="Endemic", IF($I128>0, IF($I128=4,"Unknown",IF($I128=99,"Stopped", $D128)), 0),"Not required") -> 0 | N128: =IF(INTRO!$E$42="Endemic", IF(AND($J128>1,$J128<5), IF($J128=4, "Unknown", E128+F128), 0),"Not required") -> 34890 | O128: =IF(INTRO!$E$44="Endemic", IF(AND($K128>0,$K128<5), IF($K128=4,"Unknown", IF($K128=1, $F128*0.33, IF($K128=2, $F128*0.5+$G128*0.2, SUM(F128:G128)))), 0),"Not required") -> 0 | P128: 0 | Q128: 0 | R128: 0 | S128: 0
A129: =IF(INTRO!$E$34<>0,INTRO!$E$34,"") -> Ethiopia | B129: AmharaNorth Shoa | C129: Moretnajiru | D129: 110927 | E129: 15059 | F129: 32245 | G129: 63623 | H129: 0 | I129: 0 | J129: 1 | K129: 0 | L129: =IF(INTRO!$E$38="Endemic", IF($H129>0, IF($H129=4,"Unknown", IF($H129=99,"Stopped", $D129)), 0),"Not required") -> 0 | M129: =IF(INTRO!$E$40="Endemic", IF($I129>0, IF($I129=4,"Unknown",IF($I129=99,"Stopped", $D129)), 0),"Not required") -> 0 | N129: =IF(INTRO!$E$42="Endemic", IF(AND($J129>1,$J129<5), IF($J129=4, "Unknown", E129+F129), 0),"Not required") -> 0 | O129: =IF(INTRO!$E$44="Endemic", IF(AND($K129>0,$K129<5), IF($K129=4,"Unknown", IF($K129=1, $F129*0.33, IF($K129=2, $F129*0.5+$G129*0.2, SUM(F129:G129)))), 0),"Not required") -> 0 | P129: 0 | Q129: 0 | R129: 0 | S129: 0
A130: =IF(INTRO!$E$34<>0,INTRO!$E$34,"") -> Ethiopia | B130: AmharaNorth Shoa | C130: Shewarobit Town | D130: 54306 | E130: 7372 | F130: 15786 | G130: 31148 | H130: 0 | I130: 0 | J130: 1 | K130: 3 | L130: =IF(INTRO!$E$38="Endemic", IF($H130>0, IF($H130=4,"Unknown", IF($H130=99,"Stopped", $D130)), 0),"Not required") -> 0 | M130: =IF(INTRO!$E$40="Endemic", IF($I130>0, IF($I130=4,"Unknown",IF($I130=99,"Stopped", $D130)), 0),"Not required") -> 0 | N130: =IF(INTRO!$E$42="Endemic", IF(AND($J130>1,$J130<5), IF($J130=4, "Unknown", E130+F130), 0),"Not required") -> 0 | O130: =IF(INTRO!$E$44="Endemic", IF(AND($K130>0,$K130<5), IF($K130=4,"Unknown", IF($K130=1, $F130*0.33, IF($K130=2, $F130*0.5+$G130*0.2, SUM(F130:G130)))), 0),"Not required") -> 46934 | P130: 0 | Q130: 0 | R130: 0 | S130: 1 | U130: T2 (PZQ)
A131: =IF(INTRO!$E$34<>0,INTRO!$E$34,"") -> Ethiopia | B131: AmharaNorth Shoa | C131: Siyadebirnawayu | D131: 72540 | E131: 9847 | F131: 21087 | G131: 41606 | H131: 0 | I131: 0 | J131: 1 | K131: 2 | L131: =IF(INTRO!$E$38="Endemic", IF($H131>0, IF($H131=4,"Unknown", IF($H131=99,"Stopped", $D131)), 0),"Not required") -> 0 | M131: =IF(INTRO!$E$40="Endemic", IF($I131>0, IF($I131=4,"Unknown",IF($I131=99,"Stopped", $D131)), 0),"Not required") -> 0 | N131: =IF(INTRO!$E$42="Endemic", IF(AND($J131>1,$J131<5), IF($J131=4, "Unknown", E131+F131), 0),"Not required") -> 0 | O131: =IF(INTRO!$E$44="Endemic", IF(AND($K131>0,$K131<5), IF($K131=4,"Unknown", IF($K131=1, $F131*0.33, IF($K131=2, $F131*0.5+$G131*0.2, SUM(F131:G131)))), 0),"Not required") -> 18864.7 | P131: 0 | Q131: 0 | R131: 0 | S131: 1 | U131: T2 (PZQ)
A132: =IF(INTRO!$E$34<>0,INTRO!$E$34,"") -> Ethiopia | B132: AmharaNorth Shoa | C132: Tarmaber | D132: 106731 | E132: 14489 | F132: 31025 | G132: 61217 | H132: 0 | I132: 0 | J132: 3 | K132: 1 | L132: =IF(INTRO!$E$38="Endemic", IF($H132>0, IF($H132=4,"Unknown", IF($H132=99,"Stopped", $D132)), 0),"Not required") -> 0 | M132: =IF(INTRO!$E$40="Endemic", IF($I132>0, IF($I132=4,"Unknown",IF($I132=99,"Stopped", $D132)), 0),"Not required") -> 0 | N132: =IF(INTRO!$E$42="Endemic", IF(AND($J132>1,$J132<5), IF($J132=4, "Unknown", E132+F132), 0),"Not required") -> 45514 | O132: =IF(INTRO!$E$44="Endemic", IF(AND($K132>0,$K132<5), IF($K132=4,"Unknown", IF($K132=1, $F132*0.33, IF($K132=2, $F132*0.5+$G132*0.2, SUM(F132:G132)))), 0),"Not required") -> 10238.25 | P132: 0 | Q132: 0 | R132: 2 | S132: 0 | T132: T3 (ALB/MBD) | U132: T3 (ALB/MBD)
A133: =IF(INTRO!$E$34<>0,INTRO!$E$34,"") -> Ethiopia | B133: AmharaNorth Wello | C133: Angot | D133: 74496 | E133: 10113 | F133: 21655 | G133: 42728 | H133: 0 | I133: 0 | J133: 0 | K133: 0 | L133: =IF(INTRO!$E$38="Endemic", IF($H133>0, IF($H133=4,"Unknown", IF($H133=99,"Stopped", $D133)), 0),"Not required") -> 0 | M133: =IF(INTRO!$E$40="Endemic", IF($I133>0, IF($I133=4,"Unknown",IF($I133=99,"Stopped", $D133)), 0),"Not required") -> 0 | N133: =IF(INTRO!$E$42="Endemic", IF(AND($J133>1,$J133<5), IF($J133=4, "Unknown", E133+F133), 0),"Not required") -> 0 | O133: =IF(INTRO!$E$44="Endemic", IF(AND($K133>0,$K133<5), IF($K133=4,"Unknown", IF($K133=1, $F133*0.33, IF($K133=2, $F133*0.5+$G133*0.2, SUM(F133:G133)))), 0),"Not required") -> 0 | P133: 0 | Q133: 0 | R133: 0 | S133: 0
A134: =IF(INTRO!$E$34<>0,INTRO!$E$34,"") -> Ethiopia | B134: AmharaNorth Wello | C134: Bugna | D134: 95680 | E134: 12989 | F134: 27813 | G134: 54878 | H134: 0 | I134: 0 | J134: 1 | K134: 1 | L134: =IF(INTRO!$E$38="Endemic", IF($H134>0, IF($H134=4,"Unknown", IF($H134=99,"Stopped", $D134)), 0),"Not required") -> 0 | M134: =IF(INTRO!$E$40="Endemic", IF($I134>0, IF($I134=4,"Unknown",IF($I134=99,"Stopped", $D134)), 0),"Not required") -> 0 | N134: =IF(INTRO!$E$42="Endemic", IF(AND($J134>1,$J134<5), IF($J134=4, "Unknown", E134+F134), 0),"Not required") -> 0 | O134: =IF(INTRO!$E$44="Endemic", IF(AND($K134>0,$K134<5), IF($K134=4,"Unknown", IF($K134=1, $F134*0.33, IF($K134=2, $F134*0.5+$G134*0.2, SUM(F134:G134)))), 0),"Not required") -> 9178.29 | P134: 0 | Q134: 0 | R134: 0 | S134: 0
A135: =IF(INTRO!$E$34<>0,INTRO!$E$34,"") -> Ethiopia | B135: AmharaNorth Wello | C135: Dawunt | D135: 80830 | E135: 10973 | F135: 23496 | G135: 46361 | H135: 0 | I135: 0 | J135: 3 | K135: 1 | L135: =IF(INTRO!$E$38="Endemic", IF($H135>0, IF($H135=4,"Unknown", IF($H135=99,"Stopped", $D135)), 0),"Not required") -> 0 | M135: =IF(INTRO!$E$40="Endemic", IF($I135>0, IF($I135=4,"Unknown",IF($I135=99,"Stopped", $D135)), 0),"Not required") -> 0 | N135: =IF(INTRO!$E$42="Endemic", IF(AND($J135>1,$J135<5), IF($J135=4, "Unknown", E135+F135), 0),"Not required") -> 34469 | O135: =IF(INTRO!$E$44="Endemic", IF(AND($K135>0,$K135<5), IF($K135=4,"Unknown", IF($K135=1, $F135*0.33, IF($K135=2, $F135*0.5+$G135*0.2, SUM(F135:G135)))), 0),"Not required") -> 7753.68 | P135: 0 | Q135: 0 | R135: 2 | S135: 0 | T135: T3 (ALB/MBD) | U135: T3 (ALB/MBD)
A136: =IF(INTRO!$E$34<>0,INTRO!$E$34,"") -> Ethiopia | B136: AmharaNorth Wello | C136: Gazo | D136: 83851 | E136: 11383 | F136: 24374 | G136: 48093 | H136: 0 | I136: 0 | J136: 0 | K136: 0 | L136: =IF(INTRO!$E$38="Endemic", IF($H136>0, IF($H136=4,"Unknown", IF($H136=99,"Stopped", $D136)), 0),"Not required") -> 0 | M136: =IF(INTRO!$E$40="Endemic", IF($I136>0, IF($I136=4,"Unknown",IF($I136=99,"Stopped", $D136)), 0),"Not required") -> 0 | N136: =IF(INTRO!$E$42="Endemic", IF(AND($J136>1,$J136<5), IF($J136=4, "Unknown", E136+F136), 0),"Not required") -> 0 | O136: =IF(INTRO!$E$44="Endemic", IF(AND($K136>0,$K136<5), IF($K136=4,"Unknown", IF($K136=1, $F136*0.33, IF($K136=2, $F136*0.5+$G136*0.2, SUM(F136:G136)))), 0),"Not required") -> 0 | P136: 0 | Q136: 0 | R136: 0 | S136: 0
A137: =IF(INTRO!$E$34<>0,INTRO!$E$34,"") -> Ethiopia | B137: AmharaNorth Wello | C137: Gidan | D137: 136887 | E137: 18583 | F137: 39792 | G137: 78513 | H137: 0 | I137: 0 | J137: 1 | K137: 0 | L137: =IF(INTRO!$E$38="Endemic", IF($H137>0, IF($H137=4,"Unknown", IF($H137=99,"Stopped", $D137)), 0),"Not required") -> 0 | M137: =IF(INTRO!$E$40="Endemic", IF($I137>0, IF($I137=4,"Unknown",IF($I137=99,"Stopped", $D137)), 0),"Not required") -> 0 | N137: =IF(INTRO!$E$42="Endemic", IF(AND($J137>1,$J137<5), IF($J137=4, "Unknown", E137+F137), 0),"Not required") -> 0 | O137: =IF(INTRO!$E$44="Endemic", IF(AND($K137>0,$K137<5), IF($K137=4,"Unknown", IF($K137=1, $F137*0.33, IF($K137=2, $F137*0.5+$G137*0.2, SUM(F137:G137)))), 0),"Not required") -> 0 | P137: 0 | Q137: 0 | R137: 0 | S137: 0
A138: =IF(INTRO!$E$34<>0,INTRO!$E$34,"") -> Ethiopia | B138: AmharaNorth Wello | C138: Gubalafto | D138: 171905 | E138: 23337 | F138: 49971 | G138: 98598 | H138: 0 | I138: 0 | J138: 3 | K138: 0 | L138: =IF(INTRO!$E$38="Endemic", IF($H138>0, IF($H138=4,"Unknown", IF($H138=99,"Stopped", $D138)), 0),"Not required") -> 0 | M138: =IF(INTRO!$E$40="Endemic", IF($I138>0, IF($I138=4,"Unknown",IF($I138=99,"Stopped", $D138)), 0),"Not required") -> 0 | N138: =IF(INTRO!$E$42="Endemic", IF(AND($J138>1,$J138<5), IF($J138=4, "Unknown", E138+F138), 0),"Not required") -> 73308 | O138: =IF(INTRO!$E$44="Endemic", IF(AND($K138>0,$K138<5), IF($K138=4,"Unknown", IF($K138=1, $F138*0.33, IF($K138=2, $F138*0.5+$G138*0.2, SUM(F138:G138)))), 0),"Not required") -> 0 | P138: 0 | Q138: 0 | R138: 2 | S138: 0 | T138: T3 (ALB/MBD) | U138: T3 (ALB/MBD)
A139: =IF(INTRO!$E$34<>0,INTRO!$E$34,"") -> Ethiopia | B139: AmharaNorth Wello | C139: Habru | D139: 224848 | E139: 30524 | F139: 65361 | G139: 128964 | H139: 0 | I139: 0 | J139: 0 | K139: 0 | L139: =IF(INTRO!$E$38="Endemic", IF($H139>0, IF($H139=4,"Unknown", IF($H139=99,"Stopped", $D139)), 0),"Not required") -> 0 | M139: =IF(INTRO!$E$40="Endemic", IF($I139>0, IF($I139=4,"Unknown",IF($I139=99,"Stopped", $D139)), 0),"Not required") -> 0 | N139: =IF(INTRO!$E$42="Endemic", IF(AND($J139>1,$J139<5), IF($J139=4, "Unknown", E139+F139), 0),"Not required") -> 0 | O139: =IF(INTRO!$E$44="Endemic", IF(AND($K139>0,$K139<5), IF($K139=4,"Unknown", IF($K139=1, $F139*0.33, IF($K139=2, $F139*0.5+$G139*0.2, SUM(F139:G139)))), 0),"Not required") -> 0 | P139: 0 | Q139: 0 | R139: 0 | S139: 0
A140: =IF(INTRO!$E$34<>0,INTRO!$E$34,"") -> Ethiopia | B140: AmharaNorth Wello | C140: Kobo Town | D140: 42800 | E140: 5810 | F140: 12441 | G140: 24548 | H140: 0 | I140: 0 | J140: 2 | K140: 0 | L140: =IF(INTRO!$E$38="Endemic", IF($H140>0, IF($H140=4,"Unknown", IF($H140=99,"Stopped", $D140)), 0),"Not required") -> 0 | M140: =IF(INTRO!$E$40="Endemic", IF($I140>0, IF($I140=4,"Unknown",IF($I140=99,"Stopped", $D140)), 0),"Not required") -> 0 | N140: =IF(INTRO!$E$42="Endemic", IF(AND($J140>1,$J140<5), IF($J140=4, "Unknown", E140+F140), 0),"Not required") -> 18251 | O140: =IF(INTRO!$E$44="Endemic", IF(AND($K140>0,$K140<5), IF($K140=4,"Unknown", IF($K140=1, $F140*0.33, IF($K140=2, $F140*0.5+$G140*0.2, SUM(F140:G140)))), 0),"Not required") -> 0 | P140: 0 | Q140: 0 | R140: 0 | S140: 0 | U140: T1 (PZQ+ALB/MBD)
A141: =IF(INTRO!$E$34<>0,INTRO!$E$34,"") -> Ethiopia | B141: AmharaNorth Wello | C141: Lalibella Town | D141: 33182 | E141: 4505 | F141: 9646 | G141: 19032 | H141: 0 | I141: 0 | J141: 3 | K141: 1 | L141: =IF(INTRO!$E$38="Endemic", IF($H141>0, IF($H141=4,"Unknown", IF($H141=99,"Stopped", $D141)), 0),"Not required") -> 0 | M141: =IF(INTRO!$E$40="Endemic", IF($I141>0, IF($I141=4,"Unknown",IF($I141=99,"Stopped", $D141)), 0),"Not required") -> 0 | N141: =IF(INTRO!$E$42="Endemic", IF(AND($J141>1,$J141<5), IF($J141=4, "Unknown", E141+F141), 0),"Not required") -> 14151 | O141: =IF(INTRO!$E$44="Endemic", IF(AND($K141>0,$K141<5), IF($K141=4,"Unknown", IF($K141=1, $F141*0.33, IF($K141=2, $F141*0.5+$G141*0.2, SUM(F141:G141)))), 0),"Not required") -> 3183.18 | P141: 0 | Q141: 0 | R141: 2 | S141: 0 | T141: T3 (ALB/MBD) | U141: T3 (ALB/MBD)
A142: =IF(INTRO!$E$34<>0,INTRO!$E$34,"") -> Ethiopia | B142: AmharaNorth Wello | C142: Lasta | D142: 135903 | E142: 18449 | F142: 39505 | G142: 77948 | H142: 0 | I142: 0 | J142: 3 | K142: 0 | L142: =IF(INTRO!$E$38="Endemic", IF($H142>0, IF($H142=4,"Unknown", IF($H142=99,"Stopped", $D142)), 0),"Not required") -> 0 | M142: =IF(INTRO!$E$40="Endemic", IF($I142>0, IF($I142=4,"Unknown",IF($I142=99,"Stopped", $D142)), 0),"Not required") -> 0 | N142: =IF(INTRO!$E$42="Endemic", IF(AND($J142>1,$J142<5), IF($J142=4, "Unknown", E142+F142), 0),"Not required") -> 57954 | O142: =IF(INTRO!$E$44="Endemic", IF(AND($K142>0,$K142<5), IF($K142=4,"Unknown", IF($K142=1, $F142*0.33, IF($K142=2, $F142*0.5+$G142*0.2, SUM(F142:G142)))), 0),"Not required") -> 0 | P142: 0 | Q142: 0 | R142: 2 | S142: 0 | T142: T3 (ALB/MBD) | U142: T3 (ALB/MBD)
A143: =IF(INTRO!$E$34<>0,INTRO!$E$34,"") -> Ethiopia | B143: AmharaNorth Wello | C143: Meket | D143: 205893 | E143: 27950 | F143: 59851 | G143: 118092 | H143: 0 | I143: 0 | J143: 1 | K143: 0 | L143: =IF(INTRO!$E$38="Endemic", IF($H143>0, IF($H143=4,"Unknown", IF($H143=99,"Stopped", $D143)), 0),"Not required") -> 0 | M143: =IF(INTRO!$E$40="Endemic", IF($I143>0, IF($I143=4,"Unknown",IF($I143=99,"Stopped", $D143)), 0),"Not required") -> 0 | N143: =IF(INTRO!$E$42="Endemic", IF(AND($J143>1,$J143<5), IF($J143=4, "Unknown", E143+F143), 0),"Not required") -> 0 | O143: =IF(INTRO!$E$44="Endemic", IF(AND($K143>0,$K143<5), IF($K143=4,"Unknown", IF($K143=1, $F143*0.33, IF($K143=2, $F143*0.5+$G143*0.2, SUM(F143:G143)))), 0),"Not required") -> 0 | P143: 0 | Q143: 0 | R143: 0 | S143: 0
A144: =IF(INTRO!$E$34<>0,INTRO!$E$34,"") -> Ethiopia | B144: AmharaNorth Wello | C144: Raya Kobo | D144: 241324 | E144: 32760 | F144: 70150 | G144: 138414 | H144: 0 | I144: 0 | J144: 2 | K144: 0 | L144: =IF(INTRO!$E$38="Endemic", IF($H144>0, IF($H144=4,"Unknown", IF($H144=99,"Stopped", $D144)), 0),"Not required") -> 0 | M144: =IF(INTRO!$E$40="Endemic", IF($I144>0, IF($I144=4,"Unknown",IF($I144=99,"Stopped", $D144)), 0),"Not required") -> 0 | N144: =IF(INTRO!$E$42="Endemic", IF(AND($J144>1,$J144<5), IF($J144=4, "Unknown", E144+F144), 0),"Not required") -> 102910 | O144: =IF(INTRO!$E$44="Endemic", IF(AND($K144>0,$K144<5), IF($K144=4,"Unknown", IF($K144=1, $F144*0.33, IF($K144=2, $F144*0.5+$G144*0.2, SUM(F144:G144)))), 0),"Not required") -> 0 | P144: 0 | Q144: 0 | R144: 0 | S144: 0
A145: =IF(INTRO!$E$34<>0,INTRO!$E$34,"") -> Ethiopia | B145: AmharaNorth Wello | C145: Wadlla | D145: 135457 | E145: 18389 | F145: 39376 | G145: 77693 | H145: 0 | I145: 0 | J145: 1 | K145: 0 | L145: =IF(INTRO!$E$38="Endemic", IF($H145>0, IF($H145=4,"Unknown", IF($H145=99,"Stopped", $D145)), 0),"Not required") -> 0 | M145: =IF(INTRO!$E$40="Endemic", IF($I145>0, IF($I145=4,"Unknown",IF($I145=99,"Stopped", $D145)), 0),"Not required") -> 0 | N145: =IF(INTRO!$E$42="Endemic", IF(AND($J145>1,$J145<5), IF($J145=4, "Unknown", E145+F145), 0),"Not required") -> 0 | O145: =IF(INTRO!$E$44="Endemic", IF(AND($K145>0,$K145<5), IF($K145=4,"Unknown", IF($K145=1, $F145*0.33, IF($K145=2, $F145*0.5+$G145*0.2, SUM(F145:G145)))), 0),"Not required") -> 0 | P145: 0 | Q145: 0 | R145: 0 | S145: 0
A146: =IF(INTRO!$E$34<>0,INTRO!$E$34,"") -> Ethiopia | B146: AmharaNorth Wello | C146: Woldia Town | D146: 71446 | E146: 9699 | F146: 20769 | G146: 40979 | H146: 0 | I146: 0 | J146: 1 | K146: 1 | L146: =IF(INTRO!$E$38="Endemic", IF($H146>0, IF($H146=4,"Unknown", IF($H146=99,"Stopped", $D146)), 0),"Not required") -> 0 | M146: =IF(INTRO!$E$40="Endemic", IF($I146>0, IF($I146=4,"Unknown",IF($I146=99,"Stopped", $D146)), 0),"Not required") -> 0 | N146: =IF(INTRO!$E$42="Endemic", IF(AND($J146>1,$J146<5), IF($J146=4, "Unknown", E146+F146), 0),"Not required") -> 0 | O146: =IF(INTRO!$E$44="Endemic", IF(AND($K146>0,$K146<5), IF($K146=4,"Unknown", IF($K146=1, $F146*0.33, IF($K146=2, $F146*0.5+$G146*0.2, SUM(F146:G146)))), 0),"Not required") -> 6853.77 | P146: 0 | Q146: 0 | R146: 0 | S146: 0 | U146: T2 (PZQ)
A147: =IF(INTRO!$E$34<>0,INTRO!$E$34,"") -> Ethiopia | B147: AmharaOromiya | C147: Artuma Fursi | D147: 101884 | E147: 13831 | F147: 29617 | G147: 58437 | H147: 0 | I147: 0 | J147: 2 | K147: 3 | L147: =IF(INTRO!$E$38="Endemic", IF($H147>0, IF($H147=4,"Unknown", IF($H147=99,"Stopped", $D147)), 0),"Not required") -> 0 | M147: =IF(INTRO!$E$40="Endemic", IF($I147>0, IF($I147=4,"Unknown",IF($I147=99,"Stopped", $D147)), 0),"Not required") -> 0 | N147: =IF(INTRO!$E$42="Endemic", IF(AND($J147>1,$J147<5), IF($J147=4, "Unknown", E147+F147), 0),"Not required") -> 43448 | O147: =IF(INTRO!$E$44="Endemic", IF(AND($K147>0,$K147<5), IF($K147=4,"Unknown", IF($K147=1, $F147*0.33, IF($K147=2, $F147*0.5+$G147*0.2, SUM(F147:G147)))), 0),"Not required") -> 88054 | P147: 0 | Q147: 0 | R147: 1 | S147: 1 | U147: T1 (PZQ+ALB/MBD)
A148: =IF(INTRO!$E$34<>0,INTRO!$E$34,"") -> Ethiopia | B148: AmharaOromiya | C148: Bati | D148: 97129 | E148: 13185 | F148: 28234 | G148: 55709 | H148: 0 | I148: 0 | J148: 1 | K148: 2 | L148: =IF(INTRO!$E$38="Endemic", IF($H148>0, IF($H148=4,"Unknown", IF($H148=99,"Stopped", $D148)), 0),"Not required") -> 0 | M148: =IF(INTRO!$E$40="Endemic", IF($I148>0, IF($I148=4,"Unknown",IF($I148=99,"Stopped", $D148)), 0),"Not required") -> 0 | N148: =IF(INTRO!$E$42="Endemic", IF(AND($J148>1,$J148<5), IF($J148=4, "Unknown", E148+F148), 0),"Not required") -> 0 | O148: =IF(INTRO!$E$44="Endemic", IF(AND($K148>0,$K148<5), IF($K148=4,"Unknown", IF($K148=1, $F148*0.33, IF($K148=2, $F148*0.5+$G148*0.2, SUM(F148:G148)))), 0),"Not required") -> 25258.8 | P148: 0 | Q148: 0 | R148: 0 | S148: 0 | U148: T2 (PZQ)
A149: =IF(INTRO!$E$34<>0,INTRO!$E$34,"") -> Ethiopia | B149: AmharaOromiya | C149: Bati Town | D149: 36350 | E149: 4935 | F149: 10567 | G149: 20849 | H149: 0 | I149: 0 | J149: 1 | K149: 2 | L149: =IF(INTRO!$E$38="Endemic", IF($H149>0, IF($H149=4,"Unknown", IF($H149=99,"Stopped", $D149)), 0),"Not required") -> 0 | M149: =IF(INTRO!$E$40="Endemic", IF($I149>0, IF($I149=4,"Unknown",IF($I149=99,"Stopped", $D149)), 0),"Not required") -> 0 | N149: =IF(INTRO!$E$42="Endemic", IF(AND($J149>1,$J149<5), IF($J149=4, "Unknown", E149+F149), 0),"Not required") -> 0 | O149: =IF(INTRO!$E$44="Endemic", IF(AND($K149>0,$K149<5), IF($K149=4,"Unknown", IF($K149=1, $F149*0.33, IF($K149=2, $F149*0.5+$G149*0.2, SUM(F149:G149)))), 0),"Not required") -> 9453.3 | P149: 0 | Q149: 0 | R149: 0 | S149: 1 | U149: T2 (PZQ)
A150: =IF(INTRO!$E$34<>0,INTRO!$E$34,"") -> Ethiopia | B150: AmharaOromiya | C150: Dawa chefa | D150: 151665 | E150: 20589 | F150: 44087 | G150: 86989 | H150: 0 | I150: 0 | J150: 3 | K150: 3 | L150: =IF(INTRO!$E$38="Endemic", IF($H150>0, IF($H150=4,"Unknown", IF($H150=99,"Stopped", $D150)), 0),"Not required") -> 0 | M150: =IF(INTRO!$E$40="Endemic", IF($I150>0, IF($I150=4,"Unknown",IF($I150=99,"Stopped", $D150)), 0),"Not required") -> 0 | N150: =IF(INTRO!$E$42="Endemic", IF(AND($J150>1,$J150<5), IF($J150=4, "Unknown", E150+F150), 0),"Not required") -> 64676 | O150: =IF(INTRO!$E$44="Endemic", IF(AND($K150>0,$K150<5), IF($K150=4,"Unknown", IF($K150=1, $F150*0.33, IF($K150=2, $F150*0.5+$G150*0.2, SUM(F150:G150)))), 0),"Not required") -> 131076 | P150: 0 | Q150: 0 | R150: 2 | S150: 1 | T150: T3 (ALB/MBD) | U150: T1 (PZQ+ALB/MBD)
A151: =IF(INTRO!$E$34<>0,INTRO!$E$34,"") -> Ethiopia | B151: AmharaOromiya | C151: Dawe Harwa | D151: 49536 | E151: 6725 | F151: 14399 | G151: 28412 | H151: 0 | I151: 0 | J151: 1 | K151: 3 | L151: =IF(INTRO!$E$38="Endemic", IF($H151>0, IF($H151=4,"Unknown", IF($H151=99,"Stopped", $D151)), 0),"Not required") -> 0 | M151: =IF(INTRO!$E$40="Endemic", IF($I151>0, IF($I151=4,"Unknown",IF($I151=99,"Stopped", $D151)), 0),"Not required") -> 0 | N151: =IF(INTRO!$E$42="Endemic", IF(AND($J151>1,$J151<5), IF($J151=4, "Unknown", E151+F151), 0),"Not required") -> 0 | O151: =IF(INTRO!$E$44="Endemic", IF(AND($K151>0,$K151<5), IF($K151=4,"Unknown", IF($K151=1, $F151*0.33, IF($K151=2, $F151*0.5+$G151*0.2, SUM(F151:G151)))), 0),"Not required") -> 42811 | P151: 0 | Q151: 0 | R151: 0 | S151: 1 | U151: T2 (PZQ)
A152: =IF(INTRO!$E$34<>0,INTRO!$E$34,"") -> Ethiopia | B152: AmharaOromiya | C152: Jille Timuga | D152: 86316 | E152: 11718 | F152: 25091 | G152: 49507 | H152: 0 | I152: 0 | J152: 1 | K152: 3 | L152: =IF(INTRO!$E$38="Endemic", IF($H152>0, IF($H152=4,"Unknown", IF($H152=99,"Stopped", $D152)), 0),"Not required") -> 0 | M152: =IF(INTRO!$E$40="Endemic", IF($I152>0, IF($I152=4,"Unknown",IF($I152=99,"Stopped", $D152)), 0),"Not required") -> 0 | N152: =IF(INTRO!$E$42="Endemic", IF(AND($J152>1,$J152<5), IF($J152=4, "Unknown", E152+F152), 0),"Not required") -> 0 | O152: =IF(INTRO!$E$44="Endemic", IF(AND($K152>0,$K152<5), IF($K152=4,"Unknown", IF($K152=1, $F152*0.33, IF($K152=2, $F152*0.5+$G152*0.2, SUM(F152:G152)))), 0),"Not required") -> 74598 | P152: 0 | Q152: 0 | R152: 0 | S152: 1 | U152: T2 (PZQ)
A153: =IF(INTRO!$E$34<>0,INTRO!$E$34,"") -> Ethiopia | B153: AmharaOromiya | C153: Kemissie | D153: 39188 | E153: 5320 | F153: 11392 | G153: 22477 | H153: 0 | I153: 0 | J153: 1 | K153: 3 | L153: =IF(INTRO!$E$38="Endemic", IF($H153>0, IF($H153=4,"Unknown", IF($H153=99,"Stopped", $D153)), 0),"Not required") -> 0 | M153: =IF(INTRO!$E$40="Endemic", IF($I153>0, IF($I153=4,"Unknown",IF($I153=99,"Stopped", $D153)), 0),"Not required") -> 0 | N153: =IF(INTRO!$E$42="Endemic", IF(AND($J153>1,$J153<5), IF($J153=4, "Unknown", E153+F153), 0),"Not required") -> 0 | O153: =IF(INTRO!$E$44="Endemic", IF(AND($K153>0,$K153<5), IF($K153=4,"Unknown", IF($K153=1, $F153*0.33, IF($K153=2, $F153*0.5+$G153*0.2, SUM(F153:G153)))), 0),"Not required") -> 33869 | P153: 0 | Q153: 0 | R153: 0 | S153: 1 | U153: T2 (PZQ)
A154: =IF(INTRO!$E$34<>0,INTRO!$E$34,"") -> Ethiopia | B154: AmharaSouth Gondar | C154: Andabet (West Estie) | D154: 155956 | E154: 21171 | F154: 45335 | G154: 89450 | H154: 0 | I154: 0 | J154: 3 | K154: 2 | L154: =IF(INTRO!$E$38="Endemic", IF($H154>0, IF($H154=4,"Unknown", IF($H154=99,"Stopped", $D154)), 0),"Not required") -> 0 | M154: =IF(INTRO!$E$40="Endemic", IF($I154>0, IF($I154=4,"Unknown",IF($I154=99,"Stopped", $D154)), 0),"Not required") -> 0 | N154: =IF(INTRO!$E$42="Endemic", IF(AND($J154>1,$J154<5), IF($J154=4, "Unknown", E154+F154), 0),"Not required") -> 66506 | O154: =IF(INTRO!$E$44="Endemic", IF(AND($K154>0,$K154<5), IF($K154=4,"Unknown", IF($K154=1, $F154*0.33, IF($K154=2, $F154*0.5+$G154*0.2, SUM(F154:G154)))), 0),"Not required") -> 40557.5 | P154: 0 | Q154: 0 | R154: 2 | S154: 1 | U154: T1 (PZQ+ALB/MBD)
A155: =IF(INTRO!$E$34<>0,INTRO!$E$34,"") -> Ethiopia | B155: AmharaSouth Gondar | C155: Debre Tabor Town | D155: 82980 | E155: 11265 | F155: 24121 | G155: 47594 | H155: 0 | I155: 0 | J155: 1 | K155: 1 | L155: =IF(INTRO!$E$38="Endemic", IF($H155>0, IF($H155=4,"Unknown", IF($H155=99,"Stopped", $D155)), 0),"Not required") -> 0 | M155: =IF(INTRO!$E$40="Endemic", IF($I155>0, IF($I155=4,"Unknown",IF($I155=99,"Stopped", $D155)), 0),"Not required") -> 0 | N155: =IF(INTRO!$E$42="Endemic", IF(AND($J155>1,$J155<5), IF($J155=4, "Unknown", E155+F155), 0),"Not required") -> 0 | O155: =IF(INTRO!$E$44="Endemic", IF(AND($K155>0,$K155<5), IF($K155=4,"Unknown", IF($K155=1, $F155*0.33, IF($K155=2, $F155*0.5+$G155*0.2, SUM(F155:G155)))), 0),"Not required") -> 7959.93 | P155: 0 | Q155: 0 | R155: 0 | S155: 0
A156: =IF(INTRO!$E$34<>0,INTRO!$E$34,"") -> Ethiopia | B156: AmharaSouth Gondar | C156: Dera | D156: 292707 | E156: 39736 | F156: 85086 | G156: 167885 | H156: 0 | I156: 4 | J156: 2 | K156: 2 | L156: =IF(INTRO!$E$38="Endemic", IF($H156>0, IF($H156=4,"Unknown", IF($H156=99,"Stopped", $D156)), 0),"Not required") -> 0 | M156: =IF(INTRO!$E$40="Endemic", IF($I156>0, IF($I156=4,"Unknown",IF($I156=99,"Stopped", $D156)), 0),"Not required") -> Unknown | N156: =IF(INTRO!$E$42="Endemic", IF(AND($J156>1,$J156<5), IF($J156=4, "Unknown", E156+F156), 0),"Not required") -> 124822 | O156: =IF(INTRO!$E$44="Endemic", IF(AND($K156>0,$K156<5), IF($K156=4,"Unknown", IF($K156=1, $F156*0.33, IF($K156=2, $F156*0.5+$G156*0.2, SUM(F156:G156)))), 0),"Not required") -> 76120 | P156: 0 | Q156: 0 | R156: 1 | S156: 1 | U156: T1 (PZQ+ALB/MBD)
A157: =IF(INTRO!$E$34<>0,INTRO!$E$34,"") -> Ethiopia | B157: AmharaSouth Gondar | C157: Ebinat | D157: 196306 | E157: 26649 | F157: 57064 | G157: 112593 | H157: 0 | I157: 0 | J157: 3 | K157: 1 | L157: =IF(INTRO!$E$38="Endemic", IF($H157>0, IF($H157=4,"Unknown", IF($H157=99,"Stopped", $D157)), 0),"Not required") -> 0 | M157: =IF(INTRO!$E$40="Endemic", IF($I157>0, IF($I157=4,"Unknown",IF($I157=99,"Stopped", $D157)), 0),"Not required") -> 0 | N157: =IF(INTRO!$E$42="Endemic", IF(AND($J157>1,$J157<5), IF($J157=4, "Unknown", E157+F157), 0),"Not required") -> 83713 | O157: =IF(INTRO!$E$44="Endemic", IF(AND($K157>0,$K157<5), IF($K157=4,"Unknown", IF($K157=1, $F157*0.33, IF($K157=2, $F157*0.5+$G157*0.2, SUM(F157:G157)))), 0),"Not required") -> 18831.12 | P157: 0 | Q157: 0 | R157: 2 | S157: 0 | T157: T3 (ALB/MBD) | U157: T3 (ALB/MBD)
A158: =IF(INTRO!$E$34<>0,INTRO!$E$34,"") -> Ethiopia | B158: AmharaSouth Gondar | C158: Estie (East Estie) | D158: 253760 | E158: 34449 | F158: 73765 | G158: 145547 | H158: 0 | I158: 0 | J158: 2 | K158: 1 | L158: =IF(INTRO!$E$38="Endemic", IF($H158>0, IF($H158=4,"Unknown", IF($H158=99,"Stopped", $D158)), 0),"Not required") -> 0 | M158: =IF(INTRO!$E$40="Endemic", IF($I158>0, IF($I158=4,"Unknown",IF($I158=99,"Stopped", $D158)), 0),"Not required") -> 0 | N158: =IF(INTRO!$E$42="Endemic", IF(AND($J158>1,$J158<5), IF($J158=4, "Unknown", E158+F158), 0),"Not required") -> 108214 | O158: =IF(INTRO!$E$44="Endemic", IF(AND($K158>0,$K158<5), IF($K158=4,"Unknown", IF($K158=1, $F158*0.33, IF($K158=2, $F158*0.5+$G158*0.2, SUM(F158:G158)))), 0),"Not required") -> 24342.45 | P158: 0 | Q158: 0 | R158: 0 | S158: 0 | T158: T3 (ALB/MBD)
A159: =IF(INTRO!$E$34<>0,INTRO!$E$34,"") -> Ethiopia | B159: AmharaSouth Gondar | C159: Farta | D159: 199351 | E159: 27062 | F159: 57949 | G159: 114340 | H159: 0 | I159: 0 | J159: 2 | K159: 0 | L159: =IF(INTRO!$E$38="Endemic", IF($H159>0, IF($H159=4,"Unknown", IF($H159=99,"Stopped", $D159)), 0),"Not required") -> 0 | M159: =IF(INTRO!$E$40="Endemic", IF($I159>0, IF($I159=4,"Unknown",IF($I159=99,"Stopped", $D159)), 0),"Not required") -> 0 | N159: =IF(INTRO!$E$42="Endemic", IF(AND($J159>1,$J159<5), IF($J159=4, "Unknown", E159+F159), 0),"Not required") -> 85011 | O159: =IF(INTRO!$E$44="Endemic", IF(AND($K159>0,$K159<5), IF($K159=4,"Unknown", IF($K159=1, $F159*0.33, IF($K159=2, $F159*0.5+$G159*0.2, SUM(F159:G159)))), 0),"Not required") -> 0 | P159: 0 | Q159: 0 | R159: 0 | S159: 0
A160: =IF(INTRO!$E$34<>0,INTRO!$E$34,"") -> Ethiopia | B160: AmharaSouth Gondar | C160: Fogera | D160: 261463 | E160: 35494 | F160: 76004 | G160: 149965 | H160: 0 | I160: 0 | J160: 3 | K160: 0 | L160: =IF(INTRO!$E$38="Endemic", IF($H160>0, IF($H160=4,"Unknown", IF($H160=99,"Stopped", $D160)), 0),"Not required") -> 0 | M160: =IF(INTRO!$E$40="Endemic", IF($I160>0, IF($I160=4,"Unknown",IF($I160=99,"Stopped", $D160)), 0),"Not required") -> 0 | N160: =IF(INTRO!$E$42="Endemic", IF(AND($J160>1,$J160<5), IF($J160=4, "Unknown", E160+F160), 0),"Not required") -> 111498 | O160: =IF(INTRO!$E$44="Endemic", IF(AND($K160>0,$K160<5), IF($K160=4,"Unknown", IF($K160=1, $F160*0.33, IF($K160=2, $F160*0.5+$G160*0.2, SUM(F160:G160)))), 0),"Not required") -> 0 | P160: 0 | Q160: 0 | R160: 2 | S160: 0 | T160: T3 (ALB/MBD) | U160: T1 (PZQ+ALB/MBD)
A161: =IF(INTRO!$E$34<>0,INTRO!$E$34,"") -> Ethiopia | B161: AmharaSouth Gondar | C161: Gunabegemidir | D161: 100563 | E161: 13652 | F161: 29233 | G161: 57679 | H161: 0 | I161: 0 | J161: 0 | K161: 0 | L161: =IF(INTRO!$E$38="Endemic", IF($H161>0, IF($H161=4,"Unknown", IF($H161=99,"Stopped", $D161)), 0),"Not required") -> 0 | M161: =IF(INTRO!$E$40="Endemic", IF($I161>0, IF($I161=4,"Unknown",IF($I161=99,"Stopped", $D161)), 0),"Not required") -> 0 | N161: =IF(INTRO!$E$42="Endemic", IF(AND($J161>1,$J161<5), IF($J161=4, "Unknown", E161+F161), 0),"Not required") -> 0 | O161: =IF(INTRO!$E$44="Endemic", IF(AND($K161>0,$K161<5), IF($K161=4,"Unknown", IF($K161=1, $F161*0.33, IF($K161=2, $F161*0.5+$G161*0.2, SUM(F161:G161)))), 0),"Not required") -> 0 | P161: 0 | Q161: 0 | R161: 0 | S161: 0
A162: =IF(INTRO!$E$34<>0,INTRO!$E$34,"") -> Ethiopia | B162: AmharaSouth Gondar | C162: Lay Gaint | D162: 238198 | E162: 32336 | F162: 69242 | G162: 136621 | H162: 0 | I162: 0 | J162: 1 | K162: 0 | L162: =IF(INTRO!$E$38="Endemic", IF($H162>0, IF($H162=4,"Unknown", IF($H162=99,"Stopped", $D162)), 0),"Not required") -> 0 | M162: =IF(INTRO!$E$40="Endemic", IF($I162>0, IF($I162=4,"Unknown",IF($I162=99,"Stopped", $D162)), 0),"Not required") -> 0 | N162: =IF(INTRO!$E$42="Endemic", IF(AND($J162>1,$J162<5), IF($J162=4, "Unknown", E162+F162), 0),"Not required") -> 0 | O162: =IF(INTRO!$E$44="Endemic", IF(AND($K162>0,$K162<5), IF($K162=4,"Unknown", IF($K162=1, $F162*0.33, IF($K162=2, $F162*0.5+$G162*0.2, SUM(F162:G162)))), 0),"Not required") -> 0 | P162: 0 | Q162: 0 | R162: 0 | S162: 0
A163: =IF(INTRO!$E$34<>0,INTRO!$E$34,"") -> Ethiopia | B163: AmharaSouth Gondar | C163: Libo Kemkem | D163: 264731 | E163: 35938 | F163: 76954 | G163: 151839 | H163: 0 | I163: 0 | J163: 3 | K163: 1 | L163: =IF(INTRO!$E$38="Endemic", IF($H163>0, IF($H163=4,"Unknown", IF($H163=99,"Stopped", $D163)), 0),"Not required") -> 0 | M163: =IF(INTRO!$E$40="Endemic", IF($I163>0, IF($I163=4,"Unknown",IF($I163=99,"Stopped", $D163)), 0),"Not required") -> 0 | N163: =IF(INTRO!$E$42="Endemic", IF(AND($J163>1,$J163<5), IF($J163=4, "Unknown", E163+F163), 0),"Not required") -> 112892 | O163: =IF(INTRO!$E$44="Endemic", IF(AND($K163>0,$K163<5), IF($K163=4,"Unknown", IF($K163=1, $F163*0.33, IF($K163=2, $F163*0.5+$G163*0.2, SUM(F163:G163)))), 0),"Not required") -> 25394.82 | P163: 0 | Q163: 0 | R163: 2 | S163: 0 | T163: T3 (ALB/MBD) | U163: T3 (ALB/MBD)
A164: =IF(INTRO!$E$34<>0,INTRO!$E$34,"") -> Ethiopia | B164: AmharaSouth Gondar | C164: Meketewa | D164: 56748 | E164: 7704 | F164: 16496 | G164: 32548 | H164: 0 | I164: 0 | J164: 0 | K164: 0 | L164: =IF(INTRO!$E$38="Endemic", IF($H164>0, IF($H164=4,"Unknown", IF($H164=99,"Stopped", $D164)), 0),"Not required") -> 0 | M164: =IF(INTRO!$E$40="Endemic", IF($I164>0, IF($I164=4,"Unknown",IF($I164=99,"Stopped", $D164)), 0),"Not required") -> 0 | N164: =IF(INTRO!$E$42="Endemic", IF(AND($J164>1,$J164<5), IF($J164=4, "Unknown", E164+F164), 0),"Not required") -> 0 | O164: =IF(INTRO!$E$44="Endemic", IF(AND($K164>0,$K164<5), IF($K164=4,"Unknown", IF($K164=1, $F164*0.33, IF($K164=2, $F164*0.5+$G164*0.2, SUM(F164:G164)))), 0),"Not required") -> 0 | P164: 0 | Q164: 0 | R164: 0 | S164: 0
A165: =IF(INTRO!$E$34<>0,INTRO!$E$34,"") -> Ethiopia | B165: AmharaSouth Gondar | C165: Sediemuja | D165: 89068 | E165: 12091 | F165: 25891 | G165: 51086 | H165: 0 | I165: 0 | J165: 0 | K165: 0 | L165: =IF(INTRO!$E$38="Endemic", IF($H165>0, IF($H165=4,"Unknown", IF($H165=99,"Stopped", $D165)), 0),"Not required") -> 0 | M165: =IF(INTRO!$E$40="Endemic", IF($I165>0, IF($I165=4,"Unknown",IF($I165=99,"Stopped", $D165)), 0),"Not required") -> 0 | N165: =IF(INTRO!$E$42="Endemic", IF(AND($J165>1,$J165<5), IF($J165=4, "Unknown", E165+F165), 0),"Not required") -> 0 | O165: =IF(INTRO!$E$44="Endemic", IF(AND($K165>0,$K165<5), IF($K165=4,"Unknown", IF($K165=1, $F165*0.33, IF($K165=2, $F165*0.5+$G165*0.2, SUM(F165:G165)))), 0),"Not required") -> 0 | P165: 0 | Q165: 0 | R165: 0 | S165: 0
A166: =IF(INTRO!$E$34<>0,INTRO!$E$34,"") -> Ethiopia | B166: AmharaSouth Gondar | C166: Simada | D166: 177535 | E166: 24101 | F166: 51607 | G166: 101827 | H166: 1 | I166: 0 | J166: 2 | K166: 0 | L166: =IF(INTRO!$E$38="Endemic", IF($H166>0, IF($H166=4,"Unknown", IF($H166=99,"Stopped", $D166)), 0),"Not required") -> 177535 | M166: =IF(INTRO!$E$40="Endemic", IF($I166>0, IF($I166=4,"Unknown",IF($I166=99,"Stopped", $D166)), 0),"Not required") -> 0 | N166: =IF(INTRO!$E$42="Endemic", IF(AND($J166>1,$J166<5), IF($J166=4, "Unknown", E166+F166), 0),"Not required") -> 75708 | O166: =IF(INTRO!$E$44="Endemic", IF(AND($K166>0,$K166<5), IF($K166=4,"Unknown", IF($K166=1, $F166*0.33, IF($K166=2, $F166*0.5+$G166*0.2, SUM(F166:G166)))), 0),"Not required") -> 0 | P166: 1 | Q166: 0 | R166: 0 | S166: 0 | T166: MDA1 (IVM+ALB)
A167: =IF(INTRO!$E$34<>0,INTRO!$E$34,"") -> Ethiopia | B167: AmharaSouth Gondar | C167: Tach Gaint | D167: 117932 | E167: 16010 | F167: 34282 | G167: 67641 | H167: 1 | I167: 0 | J167: 1 | K167: 0 | L167: =IF(INTRO!$E$38="Endemic", IF($H167>0, IF($H167=4,"Unknown", IF($H167=99,"Stopped", $D167)), 0),"Not required") -> 117932 | M167: =IF(INTRO!$E$40="Endemic", IF($I167>0, IF($I167=4,"Unknown",IF($I167=99,"Stopped", $D167)), 0),"Not required") -> 0 | N167: =IF(INTRO!$E$42="Endemic", IF(AND($J167>1,$J167<5), IF($J167=4, "Unknown", E167+F167), 0),"Not required") -> 0 | O167: =IF(INTRO!$E$44="Endemic", IF(AND($K167>0,$K167<5), IF($K167=4,"Unknown", IF($K167=1, $F167*0.33, IF($K167=2, $F167*0.5+$G167*0.2, SUM(F167:G167)))), 0),"Not required") -> 0 | P167: 1 | Q167: 0 | R167: 0 | S167: 0 | T167: MDA1 (IVM+ALB)
A168: =IF(INTRO!$E$34<>0,INTRO!$E$34,"") -> Ethiopia | B168: AmharaSouth Gondar | C168: Woreta Town | D168: 39487 | E168: 5360 | F168: 11478 | G168: 22648 | H168: 0 | I168: 0 | J168: 2 | K168: 0 | L168: =IF(INTRO!$E$38="Endemic", IF($H168>0, IF($H168=4,"Unknown", IF($H168=99,"Stopped", $D168)), 0),"Not required") -> 0 | M168: =IF(INTRO!$E$40="Endemic", IF($I168>0, IF($I168=4,"Unknown",IF($I168=99,"Stopped", $D168)), 0),"Not required") -> 0 | N168: =IF(INTRO!$E$42="Endemic", IF(AND($J168>1,$J168<5), IF($J168=4, "Unknown", E168+F168), 0),"Not required") -> 16838 | O168: =IF(INTRO!$E$44="Endemic", IF(AND($K168>0,$K168<5), IF($K168=4,"Unknown", IF($K168=1, $F168*0.33, IF($K168=2, $F168*0.5+$G168*0.2, SUM(F168:G168)))), 0),"Not required") -> 0 | P168: 0 | Q168: 0 | R168: 0 | S168: 0
A169: =IF(INTRO!$E$34<>0,INTRO!$E$34,"") -> Ethiopia | B169: AmharaSouth Wello | C169: Albuko | D169: 90439 | E169: 12277 | F169: 26290 | G169: 51872 | H169: 0 | I169: 0 | J169: 1 | K169: 0 | L169: =IF(INTRO!$E$38="Endemic", IF($H169>0, IF($H169=4,"Unknown", IF($H169=99,"Stopped", $D169)), 0),"Not required") -> 0 | M169: =IF(INTRO!$E$40="Endemic", IF($I169>0, IF($I169=4,"Unknown",IF($I169=99,"Stopped", $D169)), 0),"Not required") -> 0 | N169: =IF(INTRO!$E$42="Endemic", IF(AND($J169>1,$J169<5), IF($J169=4, "Unknown", E169+F169), 0),"Not required") -> 0 | O169: =IF(INTRO!$E$44="Endemic", IF(AND($K169>0,$K169<5), IF($K169=4,"Unknown", IF($K169=1, $F169*0.33, IF($K169=2, $F169*0.5+$G169*0.2, SUM(F169:G169)))), 0),"Not required") -> 0 | P169: 0 | Q169: 0 | R169: 0 | S169: 0
A170: =IF(INTRO!$E$34<>0,INTRO!$E$34,"") -> Ethiopia | B170: AmharaSouth Wello | C170: Ambasel | D170: 141699 | E170: 19236 | F170: 41190 | G170: 81273 | H170: 0 | I170: 0 | J170: 1 | K170: 2 | L170: =IF(INTRO!$E$38="Endemic", IF($H170>0, IF($H170=4,"Unknown", IF($H170=99,"Stopped", $D170)), 0),"Not required") -> 0 | M170: =IF(INTRO!$E$40="Endemic", IF($I170>0, IF($I170=4,"Unknown",IF($I170=99,"Stopped", $D170)), 0),"Not required") -> 0 | N170: =IF(INTRO!$E$42="Endemic", IF(AND($J170>1,$J170<5), IF($J170=4, "Unknown", E170+F170), 0),"Not required") -> 0 | O170: =IF(INTRO!$E$44="Endemic", IF(AND($K170>0,$K170<5), IF($K170=4,"Unknown", IF($K170=1, $F170*0.33, IF($K170=2, $F170*0.5+$G170*0.2, SUM(F170:G170)))), 0),"Not required") -> 36849.6 | P170: 0 | Q170: 0 | R170: 0 | S170: 1 | U170: T2 (PZQ)
A171: =IF(INTRO!$E$34<>0,INTRO!$E$34,"") -> Ethiopia | B171: AmharaSouth Wello | C171: Argoba | D171: 41233 | E171: 5597 | F171: 11986 | G171: 23650 | H171: 0 | I171: 0 | J171: 1 | K171: 1 | L171: =IF(INTRO!$E$38="Endemic", IF($H171>0, IF($H171=4,"Unknown", IF($H171=99,"Stopped", $D171)), 0),"Not required") -> 0 | M171: =IF(INTRO!$E$40="Endemic", IF($I171>0, IF($I171=4,"Unknown",IF($I171=99,"Stopped", $D171)), 0),"Not required") -> 0 | N171: =IF(INTRO!$E$42="Endemic", IF(AND($J171>1,$J171<5), IF($J171=4, "Unknown", E171+F171), 0),"Not required") -> 0 | O171: =IF(INTRO!$E$44="Endemic", IF(AND($K171>0,$K171<5), IF($K171=4,"Unknown", IF($K171=1, $F171*0.33, IF($K171=2, $F171*0.5+$G171*0.2, SUM(F171:G171)))), 0),"Not required") -> 3955.38 | P171: 0 | Q171: 0 | R171: 0 | S171: 0
A172: =IF(INTRO!$E$34<>0,INTRO!$E$34,"") -> Ethiopia | B172: AmharaSouth Wello | C172: Borena | D172: 184578 | E172: 25057 | F172: 53655 | G172: 105866 | H172: 0 | I172: 0 | J172: 1 | K172: 2 | L172: =IF(INTRO!$E$38="Endemic", IF($H172>0, IF($H172=4,"Unknown", IF($H172=99,"Stopped", $D172)), 0),"Not required") -> 0 | M172: =IF(INTRO!$E$40="Endemic", IF($I172>0, IF($I172=4,"Unknown",IF($I172=99,"Stopped", $D172)), 0),"Not required") -> 0 | N172: =IF(INTRO!$E$42="Endemic", IF(AND($J172>1,$J172<5), IF($J172=4, "Unknown", E172+F172), 0),"Not required") -> 0 | O172: =IF(INTRO!$E$44="Endemic", IF(AND($K172>0,$K172<5), IF($K172=4,"Unknown", IF($K172=1, $F172*0.33, IF($K172=2, $F172*0.5+$G172*0.2, SUM(F172:G172)))), 0),"Not required") -> 48000.7 | P172: 0 | Q172: 0 | R172: 0 | S172: 0
A173: =IF(INTRO!$E$34<>0,INTRO!$E$34,"") -> Ethiopia | B173: AmharaSouth Wello | C173: Dalanta | D173: 145597 | E173: 19765 | F173: 42323 | G173: 83509 | H173: 0 | I173: 0 | J173: 1 | K173: 1 | L173: =IF(INTRO!$E$38="Endemic", IF($H173>0, IF($H173=4,"Unknown", IF($H173=99,"Stopped", $D173)), 0),"Not required") -> 0 | M173: =IF(INTRO!$E$40="Endemic", IF($I173>0, IF($I173=4,"Unknown",IF($I173=99,"Stopped", $D173)), 0),"Not required") -> 0 | N173: =IF(INTRO!$E$42="Endemic", IF(AND($J173>1,$J173<5), IF($J173=4, "Unknown", E173+F173), 0),"Not required") -> 0 | O173: =IF(INTRO!$E$44="Endemic", IF(AND($K173>0,$K173<5), IF($K173=4,"Unknown", IF($K173=1, $F173*0.33, IF($K173=2, $F173*0.5+$G173*0.2, SUM(F173:G173)))), 0),"Not required") -> 13966.59 | P173: 0 | Q173: 0 | R173: 0 | S173: 0
A174: =IF(INTRO!$E$34<>0,INTRO!$E$34,"") -> Ethiopia | B174: AmharaSouth Wello | C174: Dessie Town | D174: 39143 | E174: 5314 | F174: 11378 | G174: 22451 | H174: 0 | I174: 0 | J174: 1 | K174: 0 | L174: =IF(INTRO!$E$38="Endemic", IF($H174>0, IF($H174=4,"Unknown", IF($H174=99,"Stopped", $D174)), 0),"Not required") -> 0 | M174: =IF(INTRO!$E$40="Endemic", IF($I174>0, IF($I174=4,"Unknown",IF($I174=99,"Stopped", $D174)), 0),"Not required") -> 0 | N174: =IF(INTRO!$E$42="Endemic", IF(AND($J174>1,$J174<5), IF($J174=4, "Unknown", E174+F174), 0),"Not required") -> 0 | O174: =IF(INTRO!$E$44="Endemic", IF(AND($K174>0,$K174<5), IF($K174=4,"Unknown", IF($K174=1, $F174*0.33, IF($K174=2, $F174*0.5+$G174*0.2, SUM(F174:G174)))), 0),"Not required") -> 0 | P174: 0 | Q174: 0 | R174: 0 | S174: 0
A175: =IF(INTRO!$E$34<>0,INTRO!$E$34,"") -> Ethiopia | B175: AmharaSouth Wello | C175: Dessie zuria | D175: 182665 | E175: 24797 | F175: 53098 | G175: 104769 | H175: 0 | I175: 0 | J175: 3 | K175: 0 | L175: =IF(INTRO!$E$38="Endemic", IF($H175>0, IF($H175=4,"Unknown", IF($H175=99,"Stopped", $D175)), 0),"Not required") -> 0 | M175: =IF(INTRO!$E$40="Endemic", IF($I175>0, IF($I175=4,"Unknown",IF($I175=99,"Stopped", $D175)), 0),"Not required") -> 0 | N175: =IF(INTRO!$E$42="Endemic", IF(AND($J175>1,$J175<5), IF($J175=4, "Unknown", E175+F175), 0),"Not required") -> 77895 | O175: =IF(INTRO!$E$44="Endemic", IF(AND($K175>0,$K175<5), IF($K175=4,"Unknown", IF($K175=1, $F175*0.33, IF($K175=2, $F175*0.5+$G175*0.2, SUM(F175:G175)))), 0),"Not required") -> 0 | P175: 0 | Q175: 0 | R175: 2 | S175: 0 | T175: T3 (ALB/MBD) | U175: T3 (ALB/MBD)
A176: =IF(INTRO!$E$34<>0,INTRO!$E$34,"") -> Ethiopia | B176: AmharaSouth Wello | C176: Jama | D176: 147989 | E176: 20090 | F176: 43019 | G176: 84880 | H176: 0 | I176: 0 | J176: 1 | K176: 1 | L176: =IF(INTRO!$E$38="Endemic", IF($H176>0, IF($H176=4,"Unknown", IF($H176=99,"Stopped", $D176)), 0),"Not required") -> 0 | M176: =IF(INTRO!$E$40="Endemic", IF($I176>0, IF($I176=4,"Unknown",IF($I176=99,"Stopped", $D176)), 0),"Not required") -> 0 | N176: =IF(INTRO!$E$42="Endemic", IF(AND($J176>1,$J176<5), IF($J176=4, "Unknown", E176+F176), 0),"Not required") -> 0 | O176: =IF(INTRO!$E$44="Endemic", IF(AND($K176>0,$K176<5), IF($K176=4,"Unknown", IF($K176=1, $F176*0.33, IF($K176=2, $F176*0.5+$G176*0.2, SUM(F176:G176)))), 0),"Not required") -> 14196.27 | P176: 0 | Q176: 0 | R176: 0 | S176: 0
A177: =IF(INTRO!$E$34<>0,INTRO!$E$34,"") -> Ethiopia | B177: AmharaSouth Wello | C177: Kallu | D177: 228090 | E177: 30964 | F177: 66303 | G177: 130823 | H177: 0 | I177: 0 | J177: 1 | K177: 1 | L177: =IF(INTRO!$E$38="Endemic", IF($H177>0, IF($H177=4,"Unknown", IF($H177=99,"Stopped", $D177)), 0),"Not required") -> 0 | M177: =IF(INTRO!$E$40="Endemic", IF($I177>0, IF($I177=4,"Unknown",IF($I177=99,"Stopped", $D177)), 0),"Not required") -> 0 | N177: =IF(INTRO!$E$42="Endemic", IF(AND($J177>1,$J177<5), IF($J177=4, "Unknown", E177+F177), 0),"Not required") -> 0 | O177: =IF(INTRO!$E$44="Endemic", IF(AND($K177>0,$K177<5), IF($K177=4,"Unknown", IF($K177=1, $F177*0.33, IF($K177=2, $F177*0.5+$G177*0.2, SUM(F177:G177)))), 0),"Not required") -> 21879.99 | P177: 0 | Q177: 0 | R177: 0 | S177: 0
A178: =IF(INTRO!$E$34<>0,INTRO!$E$34,"") -> Ethiopia | B178: AmharaSouth Wello | C178: Kelala | D178: 162172 | E178: 22015 | F178: 47141 | G178: 93015 | H178: 0 | I178: 0 | J178: 1 | K178: 2 | L178: =IF(INTRO!$E$38="Endemic", IF($H178>0, IF($H178=4,"Unknown", IF($H178=99,"Stopped", $D178)), 0),"Not required") -> 0 | M178: =IF(INTRO!$E$40="Endemic", IF($I178>0, IF($I178=4,"Unknown",IF($I178=99,"Stopped", $D178)), 0),"Not required") -> 0 | N178: =IF(INTRO!$E$42="Endemic", IF(AND($J178>1,$J178<5), IF($J178=4, "Unknown", E178+F178), 0),"Not required") -> 0 | O178: =IF(INTRO!$E$44="Endemic", IF(AND($K178>0,$K178<5), IF($K178=4,"Unknown", IF($K178=1, $F178*0.33, IF($K178=2, $F178*0.5+$G178*0.2, SUM(F178:G178)))), 0),"Not required") -> 42173.5 | P178: 0 | Q178: 0 | R178: 0 | S178: 1 | U178: T2 (PZQ)
A179: =IF(INTRO!$E$34<>0,INTRO!$E$34,"") -> Ethiopia | B179: AmharaSouth Wello | C179: Kombolcha | D179: 143638 | E179: 19499 | F179: 41754 | G179: 82385 | H179: 0 | I179: 0 | J179: 1 | K179: 1 | L179: =IF(INTRO!$E$38="Endemic", IF($H179>0, IF($H179=4,"Unknown", IF($H179=99,"Stopped", $D179)), 0),"Not required") -> 0 | M179: =IF(INTRO!$E$40="Endemic", IF($I179>0, IF($I179=4,"Unknown",IF($I179=99,"Stopped", $D179)), 0),"Not required") -> 0 | N179: =IF(INTRO!$E$42="Endemic", IF(AND($J179>1,$J179<5), IF($J179=4, "Unknown", E179+F179), 0),"Not required") -> 0 | O179: =IF(INTRO!$E$44="Endemic", IF(AND($K179>0,$K179<5), IF($K179=4,"Unknown", IF($K179=1, $F179*0.33, IF($K179=2, $F179*0.5+$G179*0.2, SUM(F179:G179)))), 0),"Not required") -> 13778.82 | P179: 0 | Q179: 0 | R179: 0 | S179: 0
A180: =IF(INTRO!$E$34<>0,INTRO!$E$34,"") -> Ethiopia | B180: AmharaSouth Wello | C180: Kutaber | D180: 108609 | E180: 14744 | F180: 31571 | G180: 62294 | H180: 0 | I180: 0 | J180: 2 | K180: 0 | L180: =IF(INTRO!$E$38="Endemic", IF($H180>0, IF($H180=4,"Unknown", IF($H180=99,"Stopped", $D180)), 0),"Not required") -> 0 | M180: =IF(INTRO!$E$40="Endemic", IF($I180>0, IF($I180=4,"Unknown",IF($I180=99,"Stopped", $D180)), 0),"Not required") -> 0 | N180: =IF(INTRO!$E$42="Endemic", IF(AND($J180>1,$J180<5), IF($J180=4, "Unknown", E180+F180), 0),"Not required") -> 46315 | O180: =IF(INTRO!$E$44="Endemic", IF(AND($K180>0,$K180<5), IF($K180=4,"Unknown", IF($K180=1, $F180*0.33, IF($K180=2, $F180*0.5+$G180*0.2, SUM(F180:G180)))), 0),"Not required") -> 0 | P180: 0 | Q180: 0 | R180: 0 | S180: 0
A181: =IF(INTRO!$E$34<>0,INTRO!$E$34,"") -> Ethiopia | B181: AmharaSouth Wello | C181: Lagambo | D181: 200348 | E181: 27198 | F181: 58239 | G181: 114911 | H181: 0 | I181: 0 | J181: 1 | K181: 1 | L181: =IF(INTRO!$E$38="Endemic", IF($H181>0, IF($H181=4,"Unknown", IF($H181=99,"Stopped", $D181)), 0),"Not required") -> 0 | M181: =IF(INTRO!$E$40="Endemic", IF($I181>0, IF($I181=4,"Unknown",IF($I181=99,"Stopped", $D181)), 0),"Not required") -> 0 | N181: =IF(INTRO!$E$42="Endemic", IF(AND($J181>1,$J181<5), IF($J181=4, "Unknown", E181+F181), 0),"Not required") -> 0 | O181: =IF(INTRO!$E$44="Endemic", IF(AND($K181>0,$K181<5), IF($K181=4,"Unknown", IF($K181=1, $F181*0.33, IF($K181=2, $F181*0.5+$G181*0.2, SUM(F181:G181)))), 0),"Not required") -> 19218.87 | P181: 0 | Q181: 0 | R181: 0 | S181: 0
A182: =IF(INTRO!$E$34<>0,INTRO!$E$34,"") -> Ethiopia | B182: AmharaSouth Wello | C182: Lege hida | D182: 78411 | E182: 10645 | F182: 22793 | G182: 44974 | H182: 0 | I182: 0 | J182: 2 | K182: 1 | L182: =IF(INTRO!$E$38="Endemic", IF($H182>0, IF($H182=4,"Unknown", IF($H182=99,"Stopped", $D182)), 0),"Not required") -> 0 | M182: =IF(INTRO!$E$40="Endemic", IF($I182>0, IF($I182=4,"Unknown",IF($I182=99,"Stopped", $D182)), 0),"Not required") -> 0 | N182: =IF(INTRO!$E$42="Endemic", IF(AND($J182>1,$J182<5), IF($J182=4, "Unknown", E182+F182), 0),"Not required") -> 33438 | O182: =IF(INTRO!$E$44="Endemic", IF(AND($K182>0,$K182<5), IF($K182=4,"Unknown", IF($K182=1, $F182*0.33, IF($K182=2, $F182*0.5+$G182*0.2, SUM(F182:G182)))), 0),"Not required") -> 7521.69 | P182: 0 | Q182: 0 | R182: 0 | S182: 0
A183: =IF(INTRO!$E$34<>0,INTRO!$E$34,"") -> Ethiopia | B183: AmharaSouth Wello | C183: Mehal Sainet | D183: 85748 | E183: 11640 | F183: 24926 | G183: 49181 | H183: 0 | I183: 0 | J183: 3 | K183: 0 | L183: =IF(INTRO!$E$38="Endemic", IF($H183>0, IF($H183=4,"Unknown", IF($H183=99,"Stopped", $D183)), 0),"Not required") -> 0 | M183: =IF(INTRO!$E$40="Endemic", IF($I183>0, IF($I183=4,"Unknown",IF($I183=99,"Stopped", $D183)), 0),"Not required") -> 0 | N183: =IF(INTRO!$E$42="Endemic", IF(AND($J183>1,$J183<5), IF($J183=4, "Unknown", E183+F183), 0),"Not required") -> 36566 | O183: =IF(INTRO!$E$44="Endemic", IF(AND($K183>0,$K183<5), IF($K183=4,"Unknown", IF($K183=1, $F183*0.33, IF($K183=2, $F183*0.5+$G183*0.2, SUM(F183:G183)))), 0),"Not required") -> 0 | P183: 0 | Q183: 0 | R183: 2 | S183: 0 | T183: T3 (ALB/MBD) | U183: T3 (ALB/MBD)
A184: =IF(INTRO!$E$34<>0,INTRO!$E$34,"") -> Ethiopia | B184: AmharaSouth Wello | C184: Mekdela | D184: 172949 | E184: 23478 | F184: 50274 | G184: 99196 | H184: 0 | I184: 0 | J184: 2 | K184: 1 | L184: =IF(INTRO!$E$38="Endemic", IF($H184>0, IF($H184=4,"Unknown", IF($H184=99,"Stopped", $D184)), 0),"Not required") -> 0 | M184: =IF(INTRO!$E$40="Endemic", IF($I184>0, IF($I184=4,"Unknown",IF($I184=99,"Stopped", $D184)), 0),"Not required") -> 0 | N184: =IF(INTRO!$E$42="Endemic", IF(AND($J184>1,$J184<5), IF($J184=4, "Unknown", E184+F184), 0),"Not required") -> 73752 | O184: =IF(INTRO!$E$44="Endemic", IF(AND($K184>0,$K184<5), IF($K184=4,"Unknown", IF($K184=1, $F184*0.33, IF($K184=2, $F184*0.5+$G184*0.2, SUM(F184:G184)))), 0),"Not required") -> 16590.42 | P184: 0 | Q184: 0 | R184: 0 | S184: 0
A185: =IF(INTRO!$E$34<>0,INTRO!$E$34,"") -> Ethiopia | B185: AmharaSouth Wello | C185: Sainet | D185: 172831 | E185: 23462 | F185: 50240 | G185: 99129 | H185: 0 | I185: 0 | J185: 1 | K185: 0 | L185: =IF(INTRO!$E$38="Endemic", IF($H185>0, IF($H185=4,"Unknown", IF($H185=99,"Stopped", $D185)), 0),"Not required") -> 0 | M185: =IF(INTRO!$E$40="Endemic", IF($I185>0, IF($I185=4,"Unknown",IF($I185=99,"Stopped", $D185)), 0),"Not required") -> 0 | N185: =IF(INTRO!$E$42="Endemic", IF(AND($J185>1,$J185<5), IF($J185=4, "Unknown", E185+F185), 0),"Not required") -> 0 | O185: =IF(INTRO!$E$44="Endemic", IF(AND($K185>0,$K185<5), IF($K185=4,"Unknown", IF($K185=1, $F185*0.33, IF($K185=2, $F185*0.5+$G185*0.2, SUM(F185:G185)))), 0),"Not required") -> 0 | P185: 0 | Q185: 0 | R185: 0 | S185: 0
A186: =IF(INTRO!$E$34<>0,INTRO!$E$34,"") -> Ethiopia | B186: AmharaSouth Wello | C186: Tehuledere | D186: 141633 | E186: 19227 | F186: 41171 | G186: 81235 | H186: 0 | I186: 0 | J186: 1 | K186: 2 | L186: =IF(INTRO!$E$38="Endemic", IF($H186>0, IF($H186=4,"Unknown", IF($H186=99,"Stopped", $D186)), 0),"Not required") -> 0 | M186: =IF(INTRO!$E$40="Endemic", IF($I186>0, IF($I186=4,"Unknown",IF($I186=99,"Stopped", $D186)), 0),"Not required") -> 0 | N186: =IF(INTRO!$E$42="Endemic", IF(AND($J186>1,$J186<5), IF($J186=4, "Unknown", E186+F186), 0),"Not required") -> 0 | O186: =IF(INTRO!$E$44="Endemic", IF(AND($K186>0,$K186<5), IF($K186=4,"Unknown", IF($K186=1, $F186*0.33, IF($K186=2, $F186*0.5+$G186*0.2, SUM(F186:G186)))), 0),"Not required") -> 36832.5 | P186: 0 | Q186: 0 | R186: 0 | S186: 1 | U186: T2 (PZQ)
A187: =IF(INTRO!$E$34<>0,INTRO!$E$34,"") -> Ethiopia | B187: AmharaSouth Wello | C187: Tenta | D187: 192360 | E187: 26113 | F187: 55917 | G187: 110330 | H187: 0 | I187: 0 | J187: 1 | K187: 0 | L187: =IF(INTRO!$E$38="Endemic", IF($H187>0, IF($H187=4,"Unknown", IF($H187=99,"Stopped", $D187)), 0),"Not required") -> 0 | M187: =IF(INTRO!$E$40="Endemic", IF($I187>0, IF($I187=4,"Unknown",IF($I187=99,"Stopped", $D187)), 0),"Not required") -> 0 | N187: =IF(INTRO!$E$42="Endemic", IF(AND($J187>1,$J187<5), IF($J187=4, "Unknown", E187+F187), 0),"Not required") -> 0 | O187: =IF(INTRO!$E$44="Endemic", IF(AND($K187>0,$K187<5), IF($K187=4,"Unknown", IF($K187=1, $F187*0.33, IF($K187=2, $F187*0.5+$G187*0.2, SUM(F187:G187)))), 0),"Not required") -> 0 | P187: 0 | Q187: 0 | R187: 0 | S187: 0
A188: =IF(INTRO!$E$34<>0,INTRO!$E$34,"") -> Ethiopia | B188: AmharaSouth Wello | C188: Wegdy | D188: 157163 | E188: 21335 | F188: 45686 | G188: 90142 | H188: 0 | I188: 0 | J188: 1 | K188: 1 | L188: =IF(INTRO!$E$38="Endemic", IF($H188>0, IF($H188=4,"Unknown", IF($H188=99,"Stopped", $D188)), 0),"Not required") -> 0 | M188: =IF(INTRO!$E$40="Endemic", IF($I188>0, IF($I188=4,"Unknown",IF($I188=99,"Stopped", $D188)), 0),"Not required") -> 0 | N188: =IF(INTRO!$E$42="Endemic", IF(AND($J188>1,$J188<5), IF($J188=4, "Unknown", E188+F188), 0),"Not required") -> 0 | O188: =IF(INTRO!$E$44="Endemic", IF(AND($K188>0,$K188<5), IF($K188=4,"Unknown", IF($K188=1, $F188*0.33, IF($K188=2, $F188*0.5+$G188*0.2, SUM(F188:G188)))), 0),"Not required") -> 15076.38 | P188: 0 | Q188: 0 | R188: 0 | S188: 0
A189: =IF(INTRO!$E$34<>0,INTRO!$E$34,"") -> Ethiopia | B189: AmharaSouth Wello | C189: Wereilu | D189: 128114 | E189: 17392 | F189: 37241 | G189: 73481 | H189: 0 | I189: 0 | J189: 1 | K189: 1 | L189: =IF(INTRO!$E$38="Endemic", IF($H189>0, IF($H189=4,"Unknown", IF($H189=99,"Stopped", $D189)), 0),"Not required") -> 0 | M189: =IF(INTRO!$E$40="Endemic", IF($I189>0, IF($I189=4,"Unknown",IF($I189=99,"Stopped", $D189)), 0),"Not required") -> 0 | N189: =IF(INTRO!$E$42="Endemic", IF(AND($J189>1,$J189<5), IF($J189=4, "Unknown", E189+F189), 0),"Not required") -> 0 | O189: =IF(INTRO!$E$44="Endemic", IF(AND($K189>0,$K189<5), IF($K189=4,"Unknown", IF($K189=1, $F189*0.33, IF($K189=2, $F189*0.5+$G189*0.2, SUM(F189:G189)))), 0),"Not required") -> 12289.53 | P189: 0 | Q189: 0 | R189: 0 | S189: 0
A190: =IF(INTRO!$E$34<>0,INTRO!$E$34,"") -> Ethiopia | B190: AmharaSouth Wello | C190: Worebabo | D190: 119108 | E190: 16169 | F190: 34623 | G190: 68315 | H190: 0 | I190: 0 | J190: 1 | K190: 1 | L190: =IF(INTRO!$E$38="Endemic", IF($H190>0, IF($H190=4,"Unknown", IF($H190=99,"Stopped", $D190)), 0),"Not required") -> 0 | M190: =IF(INTRO!$E$40="Endemic", IF($I190>0, IF($I190=4,"Unknown",IF($I190=99,"Stopped", $D190)), 0),"Not required") -> 0 | N190: =IF(INTRO!$E$42="Endemic", IF(AND($J190>1,$J190<5), IF($J190=4, "Unknown", E190+F190), 0),"Not required") -> 0 | O190: =IF(INTRO!$E$44="Endemic", IF(AND($K190>0,$K190<5), IF($K190=4,"Unknown", IF($K190=1, $F190*0.33, IF($K190=2, $F190*0.5+$G190*0.2, SUM(F190:G190)))), 0),"Not required") -> 11425.59 | P190: 0 | Q190: 0 | R190: 0 | S190: 0
A191: =IF(INTRO!$E$34<>0,INTRO!$E$34,"") -> Ethiopia | B191: AmharaWag Hemra | C191: Abergele | D191: 55365 | E191: 7516 | F191: 16094 | G191: 31755 | H191: 0 | I191: 0 | J191: 1 | K191: 2 | L191: =IF(INTRO!$E$38="Endemic", IF($H191>0, IF($H191=4,"Unknown", IF($H191=99,"Stopped", $D191)), 0),"Not required") -> 0 | M191: =IF(INTRO!$E$40="Endemic", IF($I191>0, IF($I191=4,"Unknown",IF($I191=99,"Stopped", $D191)), 0),"Not required") -> 0 | N191: =IF(INTRO!$E$42="Endemic", IF(AND($J191>1,$J191<5), IF($J191=4, "Unknown", E191+F191), 0),"Not required") -> 0 | O191: =IF(INTRO!$E$44="Endemic", IF(AND($K191>0,$K191<5), IF($K191=4,"Unknown", IF($K191=1, $F191*0.33, IF($K191=2, $F191*0.5+$G191*0.2, SUM(F191:G191)))), 0),"Not required") -> 14398 | P191: 0 | Q191: 0 | R191: 0 | S191: 1 | U191: T2 (PZQ)
A192: =IF(INTRO!$E$34<>0,INTRO!$E$34,"") -> Ethiopia | B192: AmharaWag Hemra | C192: Dehana | D192: 138949 | E192: 18863 | F192: 40391 | G192: 79696 | H192: 0 | I192: 0 | J192: 3 | K192: 0 | L192: =IF(INTRO!$E$38="Endemic", IF($H192>0, IF($H192=4,"Unknown", IF($H192=99,"Stopped", $D192)), 0),"Not required") -> 0 | M192: =IF(INTRO!$E$40="Endemic", IF($I192>0, IF($I192=4,"Unknown",IF($I192=99,"Stopped", $D192)), 0),"Not required") -> 0 | N192: =IF(INTRO!$E$42="Endemic", IF(AND($J192>1,$J192<5), IF($J192=4, "Unknown", E192+F192), 0),"Not required") -> 59254 | O192: =IF(INTRO!$E$44="Endemic", IF(AND($K192>0,$K192<5), IF($K192=4,"Unknown", IF($K192=1, $F192*0.33, IF($K192=2, $F192*0.5+$G192*0.2, SUM(F192:G192)))), 0),"Not required") -> 0 | P192: 0 | Q192: 0 | R192: 2 | S192: 0 | T192: T3 (ALB/MBD) | U192: T3 (ALB/MBD)
A193: =IF(INTRO!$E$34<>0,INTRO!$E$34,"") -> Ethiopia | B193: AmharaWag Hemra | C193: Gazgibla | D193: 97256 | E193: 13203 | F193: 28271 | G193: 55782 | H193: 0 | I193: 0 | J193: 3 | K193: 0 | L193: =IF(INTRO!$E$38="Endemic", IF($H193>0, IF($H193=4,"Unknown", IF($H193=99,"Stopped", $D193)), 0),"Not required") -> 0 | M193: =IF(INTRO!$E$40="Endemic", IF($I193>0, IF($I193=4,"Unknown",IF($I193=99,"Stopped", $D193)), 0),"Not required") -> 0 | N193: =IF(INTRO!$E$42="Endemic", IF(AND($J193>1,$J193<5), IF($J193=4, "Unknown", E193+F193), 0),"Not required") -> 41474 | O193: =IF(INTRO!$E$44="Endemic", IF(AND($K193>0,$K193<5), IF($K193=4,"Unknown", IF($K193=1, $F193*0.33, IF($K193=2, $F193*0.5+$G193*0.2, SUM(F193:G193)))), 0),"Not required") -> 0 | P193: 0 | Q193: 0 | R193: 2 | S193: 0 | T193: T3 (ALB/MBD) | U193: T1 (PZQ+ALB/MBD)
A194: =IF(INTRO!$E$34<>0,INTRO!$E$34,"") -> Ethiopia | B194: AmharaWag Hemra | C194: Sahala Seyemt | D194: 32654 | E194: 4433 | F194: 9492 | G194: 18729 | H194: 0 | I194: 0 | J194: 1 | K194: 0 | L194: =IF(INTRO!$E$38="Endemic", IF($H194>0, IF($H194=4,"Unknown", IF($H194=99,"Stopped", $D194)), 0),"Not required") -> 0 | M194: =IF(INTRO!$E$40="Endemic", IF($I194>0, IF($I194=4,"Unknown",IF($I194=99,"Stopped", $D194)), 0),"Not required") -> 0 | N194: =IF(INTRO!$E$42="Endemic", IF(AND($J194>1,$J194<5), IF($J194=4, "Unknown", E194+F194), 0),"Not required") -> 0 | O194: =IF(INTRO!$E$44="Endemic", IF(AND($K194>0,$K194<5), IF($K194=4,"Unknown", IF($K194=1, $F194*0.33, IF($K194=2, $F194*0.5+$G194*0.2, SUM(F194:G194)))), 0),"Not required") -> 0 | P194: 0 | Q194: 0 | R194: 0 | S194: 0
A195: =IF(INTRO!$E$34<>0,INTRO!$E$34,"") -> Ethiopia | B195: AmharaWag Hemra | C195: Sekota town | D195: 32480 | E195: 4409 | F195: 9441 | G195: 18629 | H195: 0 | I195: 0 | J195: 3 | K195: 3 | L195: =IF(INTRO!$E$38="Endemic", IF($H195>0, IF($H195=4,"Unknown", IF($H195=99,"Stopped", $D195)), 0),"Not required") -> 0 | M195: =IF(INTRO!$E$40="Endemic", IF($I195>0, IF($I195=4,"Unknown",IF($I195=99,"Stopped", $D195)), 0),"Not required") -> 0 | N195: =IF(INTRO!$E$42="Endemic", IF(AND($J195>1,$J195<5), IF($J195=4, "Unknown", E195+F195), 0),"Not required") -> 13850 | O195: =IF(INTRO!$E$44="Endemic", IF(AND($K195>0,$K195<5), IF($K195=4,"Unknown", IF($K195=1, $F195*0.33, IF($K195=2, $F195*0.5+$G195*0.2, SUM(F195:G195)))), 0),"Not required") -> 28070 | P195: 0 | Q195: 0 | R195: 2 | S195: 1 | T195: T3 (ALB/MBD) | U195: T1 (PZQ+ALB/MBD)
A196: =IF(INTRO!$E$34<>0,INTRO!$E$34,"") -> Ethiopia | B196: AmharaWag Hemra | C196: Sekota Zuria | D196: 101943 | E196: 13839 | F196: 29634 | G196: 58470 | H196: 0 | I196: 0 | J196: 3 | K196: 3 | L196: =IF(INTRO!$E$38="Endemic", IF($H196>0, IF($H196=4,"Unknown", IF($H196=99,"Stopped", $D196)), 0),"Not required") -> 0 | M196: =IF(INTRO!$E$40="Endemic", IF($I196>0, IF($I196=4,"Unknown",IF($I196=99,"Stopped", $D196)), 0),"Not required") -> 0 | N196: =IF(INTRO!$E$42="Endemic", IF(AND($J196>1,$J196<5), IF($J196=4, "Unknown", E196+F196), 0),"Not required") -> 43473 | O196: =IF(INTRO!$E$44="Endemic", IF(AND($K196>0,$K196<5), IF($K196=4,"Unknown", IF($K196=1, $F196*0.33, IF($K196=2, $F196*0.5+$G196*0.2, SUM(F196:G196)))), 0),"Not required") -> 88104 | P196: 0 | Q196: 0 | R196: 2 | S196: 1 | T196: T3 (ALB/MBD) | U196: T1 (PZQ+ALB/MBD)
A197: =IF(INTRO!$E$34<>0,INTRO!$E$34,"") -> Ethiopia | B197: AmharaWag Hemra | C197: Tsagibji | D197: 36971 | E197: 5019 | F197: 10747 | G197: 21205 | H197: 0 | I197: 0 | J197: 0 | K197: 0 | L197: =IF(INTRO!$E$38="Endemic", IF($H197>0, IF($H197=4,"Unknown", IF($H197=99,"Stopped", $D197)), 0),"Not required") -> 0 | M197: =IF(INTRO!$E$40="Endemic", IF($I197>0, IF($I197=4,"Unknown",IF($I197=99,"Stopped", $D197)), 0),"Not required") -> 0 | N197: =IF(INTRO!$E$42="Endemic", IF(AND($J197>1,$J197<5), IF($J197=4, "Unknown", E197+F197), 0),"Not required") -> 0 | O197: =IF(INTRO!$E$44="Endemic", IF(AND($K197>0,$K197<5), IF($K197=4,"Unknown", IF($K197=1, $F197*0.33, IF($K197=2, $F197*0.5+$G197*0.2, SUM(F197:G197)))), 0),"Not required") -> 0 | P197: 0 | Q197: 0 | R197: 0 | S197: 0
A198: =IF(INTRO!$E$34<>0,INTRO!$E$34,"") -> Ethiopia | B198: AmharaWag Hemra | C198: Ziquala | D198: 55587 | E198: 7546 | F198: 16158 | G198: 31882 | H198: 0 | I198: 0 | J198: 3 | K198: 0 | L198: =IF(INTRO!$E$38="Endemic", IF($H198>0, IF($H198=4,"Unknown", IF($H198=99,"Stopped", $D198)), 0),"Not required") -> 0 | M198: =IF(INTRO!$E$40="Endemic", IF($I198>0, IF($I198=4,"Unknown",IF($I198=99,"Stopped", $D198)), 0),"Not required") -> 0 | N198: =IF(INTRO!$E$42="Endemic", IF(AND($J198>1,$J198<5), IF($J198=4, "Unknown", E198+F198), 0),"Not required") -> 23704 | O198: =IF(INTRO!$E$44="Endemic", IF(AND($K198>0,$K198<5), IF($K198=4,"Unknown", IF($K198=1, $F198*0.33, IF($K198=2, $F198*0.5+$G198*0.2, SUM(F198:G198)))), 0),"Not required") -> 0 | P198: 0 | Q198: 0 | R198: 2 | S198: 0 | T198: T3 (ALB/MBD) | U198: T3 (ALB/MBD)
A199: =IF(INTRO!$E$34<>0,INTRO!$E$34,"") -> Ethiopia | B199: AmharaWest Gojam | C199: Bahidar Zuria | D199: 76443 | E199: 10377 | F199: 22221 | G199: 43844 | H199: 0 | I199: 0 | J199: 3 | K199: 2 | L199: =IF(INTRO!$E$38="Endemic", IF($H199>0, IF($H199=4,"Unknown", IF($H199=99,"Stopped", $D199)), 0),"Not required") -> 0 | M199: =IF(INTRO!$E$40="Endemic", IF($I199>0, IF($I199=4,"Unknown",IF($I199=99,"Stopped", $D199)), 0),"Not required") -> 0 | N199: =IF(INTRO!$E$42="Endemic", IF(AND($J199>1,$J199<5), IF($J199=4, "Unknown", E199+F199), 0),"Not required") -> 32598 | O199: =IF(INTRO!$E$44="Endemic", IF(AND($K199>0,$K199<5), IF($K199=4,"Unknown", IF($K199=1, $F199*0.33, IF($K199=2, $F199*0.5+$G199*0.2, SUM(F199:G199)))), 0),"Not required") -> 19879.3 | P199: 0 | Q199: 0 | R199: 2 | S199: 1 | T199: T3 (ALB/MBD) | U199: T1 (PZQ+ALB/MBD)
A200: =IF(INTRO!$E$34<>0,INTRO!$E$34,"") -> Ethiopia | B200: AmharaWest Gojam | C200: Bahirdar City | D200: 227502 | E200: 30884 | F200: 66132 | G200: 130486 | H200: 0 | I200: 0 | J200: 2 | K200: 1 | L200: =IF(INTRO!$E$38="Endemic", IF($H200>0, IF($H200=4,"Unknown", IF($H200=99,"Stopped", $D200)), 0),"Not required") -> 0 | M200: =IF(INTRO!$E$40="Endemic", IF($I200>0, IF($I200=4,"Unknown",IF($I200=99,"Stopped", $D200)), 0),"Not required") -> 0 | N200: =IF(INTRO!$E$42="Endemic", IF(AND($J200>1,$J200<5), IF($J200=4, "Unknown", E200+F200), 0),"Not required") -> 97016 | O200: =IF(INTRO!$E$44="Endemic", IF(AND($K200>0,$K200<5), IF($K200=4,"Unknown", IF($K200=1, $F200*0.33, IF($K200=2, $F200*0.5+$G200*0.2, SUM(F200:G200)))), 0),"Not required") -> 21823.56 | P200: 0 | Q200: 0 | R200: 0 | S200: 0 | T200: T3 (ALB/MBD)
A201: =IF(INTRO!$E$34<>0,INTRO!$E$34,"") -> Ethiopia | B201: AmharaWest Gojam | C201: Bure Town | D201: 54041 | E201: 7336 | F201: 15709 | G201: 30996 | H201: 0 | I201: 0 | J201: 3 | K201: 0 | L201: =IF(INTRO!$E$38="Endemic", IF($H201>0, IF($H201=4,"Unknown", IF($H201=99,"Stopped", $D201)), 0),"Not required") -> 0 | M201: =IF(INTRO!$E$40="Endemic", IF($I201>0, IF($I201=4,"Unknown",IF($I201=99,"Stopped", $D201)), 0),"Not required") -> 0 | N201: =IF(INTRO!$E$42="Endemic", IF(AND($J201>1,$J201<5), IF($J201=4, "Unknown", E201+F201), 0),"Not required") -> 23045 | O201: =IF(INTRO!$E$44="Endemic", IF(AND($K201>0,$K201<5), IF($K201=4,"Unknown", IF($K201=1, $F201*0.33, IF($K201=2, $F201*0.5+$G201*0.2, SUM(F201:G201)))), 0),"Not required") -> 0 | P201: 0 | Q201: 0 | R201: 2 | S201: 0 | U201: T3 (ALB/MBD)
A202: =IF(INTRO!$E$34<>0,INTRO!$E$34,"") -> Ethiopia | B202: AmharaWest Gojam | C202: Bure Zuria | D202: 129636 | E202: 17598 | F202: 37684 | G202: 74354 | H202: 0 | I202: 4 | J202: 3 | K202: 1 | L202: =IF(INTRO!$E$38="Endemic", IF($H202>0, IF($H202=4,"Unknown", IF($H202=99,"Stopped", $D202)), 0),"Not required") -> 0 | M202: =IF(INTRO!$E$40="Endemic", IF($I202>0, IF($I202=4,"Unknown",IF($I202=99,"Stopped", $D202)), 0),"Not required") -> Unknown | N202: =IF(INTRO!$E$42="Endemic", IF(AND($J202>1,$J202<5), IF($J202=4, "Unknown", E202+F202), 0),"Not required") -> 55282 | O202: =IF(INTRO!$E$44="Endemic", IF(AND($K202>0,$K202<5), IF($K202=4,"Unknown", IF($K202=1, $F202*0.33, IF($K202=2, $F202*0.5+$G202*0.2, SUM(F202:G202)))), 0),"Not required") -> 12435.72 | P202: 0 | Q202: 0 | R202: 2 | S202: 0 | T202: T3 (ALB/MBD) | U202: T3 (ALB/MBD)
A203: =IF(INTRO!$E$34<>0,INTRO!$E$34,"") -> Ethiopia | B203: AmharaWest Gojam | C203: Dega Damot | D203: 181071 | E203: 24581 | F203: 52635 | G203: 103855 | H203: 0 | I203: 0 | J203: 3 | K203: 0 | L203: =IF(INTRO!$E$38="Endemic", IF($H203>0, IF($H203=4,"Unknown", IF($H203=99,"Stopped", $D203)), 0),"Not required") -> 0 | M203: =IF(INTRO!$E$40="Endemic", IF($I203>0, IF($I203=4,"Unknown",IF($I203=99,"Stopped", $D203)), 0),"Not required") -> 0 | N203: =IF(INTRO!$E$42="Endemic", IF(AND($J203>1,$J203<5), IF($J203=4, "Unknown", E203+F203), 0),"Not required") -> 77216 | O203: =IF(INTRO!$E$44="Endemic", IF(AND($K203>0,$K203<5), IF($K203=4,"Unknown", IF($K203=1, $F203*0.33, IF($K203=2, $F203*0.5+$G203*0.2, SUM(F203:G203)))), 0),"Not required") -> 0 | P203: 0 | Q203: 0 | R203: 2 | S203: 0 | T203: T3 (ALB/MBD) | U203: T3 (ALB/MBD)
... 703 more rows

Sheet MDA1
A1: MDA 1 - Ivermectin (IVM) and Albendazole (ALB)
A2: Administrative structure, population requiring PC by age group, population treated by age group and coverage
A4: TOTAL | G4: =SUM(G$9:G$1000) -> 1722467 | H4: =SUM(H$9:H$1000) -> 2996671 | I4: =SUM(I$9:I$1000) -> 4719138 | K4: =SUM(K$9:K$1000) -> 1499803 | L4: =SUM(L$9:L$1000) -> 2736863 | M4: =SUM(M$9:M$1000) -> 4236666 | O4: =IF(G4<>0, IF(K4/G4*100=0, "-", K4/G4*100), " ") -> 87.07295989 | P4: =IF(H4<>0, IF(L4/H4*100=0, "-", L4/H4*100), " ") -> 91.33011265 | Q4: =IF(I4<>0, IF(M4/I4*100=0, "-", M4/I4*100), " ") -> 89.77626846
D6: PC implemented | E6: Date | F6: Population targeted for MDA 1 | J6: Population treated | N6: Programme coverage (%)
A7: Country | B7: Province/State | C7: District | F7: PreSAC | G7: SAC | H7: Adults | I7: Total | J7: PreSAC | K7: SAC | L7: Adults | M7: Total | N7: PreSAC | O7: SAC | P7: Adults | Q7: Total
A9: =IF(COUNTRY_INFO!A9=0," ",COUNTRY_INFO!A9) -> Ethiopia | B9: =IF(COUNTRY_INFO!B9=0," ",COUNTRY_INFO!B9) -> Addis AbabaAddis Ababa | C9: =IF(COUNTRY_INFO!C9=0," ",COUNTRY_INFO!C9) -> Addis Ketema Subcity | D9: =IF(COUNTRY_INFO!$T$9:$T$1000="MDA1 (IVM+ALB)", COUNTRY_INFO!$T$9:$T$1000, " ") ->  | I9: =SUM(F9:H9) -> 0 | M9: =SUM(J9:L9) -> 0 | O9: =IF(G9<>0, IF(K9/G9*100=0, "-", K9/G9*100), " ") ->  | P9: =IF(H9<>0, IF(L9/H9*100=0, "-", L9/H9*100), " ") ->  | Q9: =IF(I9<>0, IF(M9/I9*100=0, "-", M9/I9*100), " ") -> 
A10: =IF(COUNTRY_INFO!A10=0," ",COUNTRY_INFO!A10) -> Ethiopia | B10: =IF(COUNTRY_INFO!B10=0," ",COUNTRY_INFO!B10) -> Addis AbabaAddis Ababa | C10: =IF(COUNTRY_INFO!C10=0," ",COUNTRY_INFO!C10) -> Akaki Kaliti Subcity | D10: =IF(COUNTRY_INFO!$T$9:$T$1000="MDA1 (IVM+ALB)", COUNTRY_INFO!$T$9:$T$1000, " ") ->  | I10: =SUM(F10:H10) -> 0 | M10: =SUM(J10:L10) -> 0 | O10: =IF(G10<>0, IF(K10/G10*100=0, "-", K10/G10*100), " ") ->  | P10: =IF(H10<>0, IF(L10/H10*100=0, "-", L10/H10*100), " ") ->  | Q10: =IF(I10<>0, IF(M10/I10*100=0, "-", M10/I10*100), " ") -> 
A11: =IF(COUNTRY_INFO!A11=0," ",COUNTRY_INFO!A11) -> Ethiopia | B11: =IF(COUNTRY_INFO!B11=0," ",COUNTRY_INFO!B11) -> Addis AbabaAddis Ababa | C11: =IF(COUNTRY_INFO!C11=0," ",COUNTRY_INFO!C11) -> Arada Subcity | D11: =IF(COUNTRY_INFO!$T$9:$T$1000="MDA1 (IVM+ALB)", COUNTRY_INFO!$T$9:$T$1000, " ") ->  | I11: 0 | M11: 0
A12: =IF(COUNTRY_INFO!A12=0," ",COUNTRY_INFO!A12) -> Ethiopia | B12: =IF(COUNTRY_INFO!B12=0," ",COUNTRY_INFO!B12) -> Addis AbabaAddis Ababa | C12: =IF(COUNTRY_INFO!C12=0," ",COUNTRY_INFO!C12) -> Bolle Subcity | D12: =IF(COUNTRY_INFO!$T$9:$T$1000="MDA1 (IVM+ALB)", COUNTRY_INFO!$T$9:$T$1000, " ") ->  | I12: 0 | M12: 0
A13: =IF(COUNTRY_INFO!A13=0," ",COUNTRY_INFO!A13) -> Ethiopia | B13: =IF(COUNTRY_INFO!B13=0," ",COUNTRY_INFO!B13) -> Addis AbabaAddis Ababa | C13: =IF(COUNTRY_INFO!C13=0," ",COUNTRY_INFO!C13) -> Gulelie Subcity | D13: =IF(COUNTRY_INFO!$T$9:$T$1000="MDA1 (IVM+ALB)", COUNTRY_INFO!$T$9:$T$1000, " ") ->  | I13: 0 | M13: 0
A14: =IF(COUNTRY_INFO!A14=0," ",COUNTRY_INFO!A14) -> Ethiopia | B14: =IF(COUNTRY_INFO!B14=0," ",COUNTRY_INFO!B14) -> Addis AbabaAddis Ababa | C14: =IF(COUNTRY_INFO!C14=0," ",COUNTRY_INFO!C14) -> Kirkose Subcity | D14: =IF(COUNTRY_INFO!$T$9:$T$1000="MDA1 (IVM+ALB)", COUNTRY_INFO!$T$9:$T$1000, " ") ->  | I14: 0 | M14: 0
A15: =IF(COUNTRY_INFO!A15=0," ",COUNTRY_INFO!A15) -> Ethiopia | B15: =IF(COUNTRY_INFO!B15=0," ",COUNTRY_INFO!B15) -> Addis AbabaAddis Ababa | C15: =IF(COUNTRY_INFO!C15=0," ",COUNTRY_INFO!C15) -> Kolfie Keranio Subcity | D15: =IF(COUNTRY_INFO!$T$9:$T$1000="MDA1 (IVM+ALB)", COUNTRY_INFO!$T$9:$T$1000, " ") ->  | I15: 0 | M15: 0
A16: =IF(COUNTRY_INFO!A16=0," ",COUNTRY_INFO!A16) -> Ethiopia | B16: =IF(COUNTRY_INFO!B16=0," ",COUNTRY_INFO!B16) -> Addis AbabaAddis Ababa | C16: =IF(COUNTRY_INFO!C16=0," ",COUNTRY_INFO!C16) -> Lideta Subcity | D16: =IF(COUNTRY_INFO!$T$9:$T$1000="MDA1 (IVM+ALB)", COUNTRY_INFO!$T$9:$T$1000, " ") ->  | I16: 0 | M16: 0
A17: =IF(COUNTRY_INFO!A17=0," ",COUNTRY_INFO!A17) -> Ethiopia | B17: =IF(COUNTRY_INFO!B17=0," ",COUNTRY_INFO!B17) -> Addis AbabaAddis Ababa | C17: =IF(COUNTRY_INFO!C17=0," ",COUNTRY_INFO!C17) -> Nifase Silk Lafto Subcity | D17: =IF(COUNTRY_INFO!$T$9:$T$1000="MDA1 (IVM+ALB)", COUNTRY_INFO!$T$9:$T$1000, " ") ->  | I17: 0 | M17: 0
A18: =IF(COUNTRY_INFO!A18=0," ",COUNTRY_INFO!A18) -> Ethiopia | B18: =IF(COUNTRY_INFO!B18=0," ",COUNTRY_INFO!B18) -> Addis AbabaAddis Ababa | C18: =IF(COUNTRY_INFO!C18=0," ",COUNTRY_INFO!C18) -> Yeka Subcity | D18: =IF(COUNTRY_INFO!$T$9:$T$1000="MDA1 (IVM+ALB)", COUNTRY_INFO!$T$9:$T$1000, " ") ->  | I18: 0 | M18: 0
A19: =IF(COUNTRY_INFO!A19=0," ",COUNTRY_INFO!A19) -> Ethiopia | B19: =IF(COUNTRY_INFO!B19=0," ",COUNTRY_INFO!B19) -> AfarAwsa | C19: =IF(COUNTRY_INFO!C19=0," ",COUNTRY_INFO!C19) -> Abala | D19: =IF(COUNTRY_INFO!$T$9:$T$1000="MDA1 (IVM+ALB)", COUNTRY_INFO!$T$9:$T$1000, " ") ->  | I19: 0 | M19: 0
A20: =IF(COUNTRY_INFO!A20=0," ",COUNTRY_INFO!A20) -> Ethiopia | B20: =IF(COUNTRY_INFO!B20=0," ",COUNTRY_INFO!B20) -> AfarAwsa | C20: =IF(COUNTRY_INFO!C20=0," ",COUNTRY_INFO!C20) -> Adar | D20: =IF(COUNTRY_INFO!$T$9:$T$1000="MDA1 (IVM+ALB)", COUNTRY_INFO!$T$9:$T$1000, " ") ->  | I20: 0 | M20: 0
A21: =IF(COUNTRY_INFO!A21=0," ",COUNTRY_INFO!A21) -> Ethiopia | B21: =IF(COUNTRY_INFO!B21=0," ",COUNTRY_INFO!B21) -> AfarAwsa | C21: =IF(COUNTRY_INFO!C21=0," ",COUNTRY_INFO!C21) -> Afambo | D21: =IF(COUNTRY_INFO!$T$9:$T$1000="MDA1 (IVM+ALB)", COUNTRY_INFO!$T$9:$T$1000, " ") ->  | I21: 0 | M21: 0
A22: =IF(COUNTRY_INFO!A22=0," ",COUNTRY_INFO!A22) -> Ethiopia | B22: =IF(COUNTRY_INFO!B22=0," ",COUNTRY_INFO!B22) -> AfarAwsa | C22: =IF(COUNTRY_INFO!C22=0," ",COUNTRY_INFO!C22) -> Afdera | D22: =IF(COUNTRY_INFO!$T$9:$T$1000="MDA1 (IVM+ALB)", COUNTRY_INFO!$T$9:$T$1000, " ") ->  | I22: 0 | M22: 0
A23: =IF(COUNTRY_INFO!A23=0," ",COUNTRY_INFO!A23) -> Ethiopia | B23: =IF(COUNTRY_INFO!B23=0," ",COUNTRY_INFO!B23) -> AfarAwsa | C23: =IF(COUNTRY_INFO!C23=0," ",COUNTRY_INFO!C23) -> Amibara | D23: =IF(COUNTRY_INFO!$T$9:$T$1000="MDA1 (IVM+ALB)", COUNTRY_INFO!$T$9:$T$1000, " ") ->  | I23: 0 | M23: 0
A24: =IF(COUNTRY_INFO!A24=0," ",COUNTRY_INFO!A24) -> Ethiopia | B24: =IF(COUNTRY_INFO!B24=0," ",COUNTRY_INFO!B24) -> AfarAwsa | C24: =IF(COUNTRY_INFO!C24=0," ",COUNTRY_INFO!C24) -> Aregoba | D24: =IF(COUNTRY_INFO!$T$9:$T$1000="MDA1 (IVM+ALB)", COUNTRY_INFO!$T$9:$T$1000, " ") ->  | I24: 0 | M24: 0
A25: =IF(COUNTRY_INFO!A25=0," ",COUNTRY_INFO!A25) -> Ethiopia | B25: =IF(COUNTRY_INFO!B25=0," ",COUNTRY_INFO!B25) -> AfarAwsa | C25: =IF(COUNTRY_INFO!C25=0," ",COUNTRY_INFO!C25) -> Awash fentale | D25: =IF(COUNTRY_INFO!$T$9:$T$1000="MDA1 (IVM+ALB)", COUNTRY_INFO!$T$9:$T$1000, " ") ->  | I25: 0 | M25: 0
A26: =IF(COUNTRY_INFO!A26=0," ",COUNTRY_INFO!A26) -> Ethiopia | B26: =IF(COUNTRY_INFO!B26=0," ",COUNTRY_INFO!B26) -> AfarAwsa | C26: =IF(COUNTRY_INFO!C26=0," ",COUNTRY_INFO!C26) -> Awash Town | D26: =IF(COUNTRY_INFO!$T$9:$T$1000="MDA1 (IVM+ALB)", COUNTRY_INFO!$T$9:$T$1000, " ") ->  | I26: 0 | M26: 0
A27: =IF(COUNTRY_INFO!A27=0," ",COUNTRY_INFO!A27) -> Ethiopia | B27: =IF(COUNTRY_INFO!B27=0," ",COUNTRY_INFO!B27) -> AfarAwsa | C27: =IF(COUNTRY_INFO!C27=0," ",COUNTRY_INFO!C27) -> Awra | D27: =IF(COUNTRY_INFO!$T$9:$T$1000="MDA1 (IVM+ALB)", COUNTRY_INFO!$T$9:$T$1000, " ") ->  | I27: 0 | M27: 0
A28: =IF(COUNTRY_INFO!A28=0," ",COUNTRY_INFO!A28) -> Ethiopia | B28: =IF(COUNTRY_INFO!B28=0," ",COUNTRY_INFO!B28) -> AfarAwsa | C28: =IF(COUNTRY_INFO!C28=0," ",COUNTRY_INFO!C28) -> Aysaeta | D28: =IF(COUNTRY_INFO!$T$9:$T$1000="MDA1 (IVM+ALB)", COUNTRY_INFO!$T$9:$T$1000, " ") ->  | I28: 0 | M28: 0
A29: =IF(COUNTRY_INFO!A29=0," ",COUNTRY_INFO!A29) -> Ethiopia | B29: =IF(COUNTRY_INFO!B29=0," ",COUNTRY_INFO!B29) -> AfarAwsa | C29: =IF(COUNTRY_INFO!C29=0," ",COUNTRY_INFO!C29) -> Chifra | D29: =IF(COUNTRY_INFO!$T$9:$T$1000="MDA1 (IVM+ALB)", COUNTRY_INFO!$T$9:$T$1000, " ") ->  | I29: 0 | M29: 0
A30: =IF(COUNTRY_INFO!A30=0," ",COUNTRY_INFO!A30) -> Ethiopia | B30: =IF(COUNTRY_INFO!B30=0," ",COUNTRY_INFO!B30) -> AfarAwsa | C30: =IF(COUNTRY_INFO!C30=0," ",COUNTRY_INFO!C30) -> Dubti | D30: =IF(COUNTRY_INFO!$T$9:$T$1000="MDA1 (IVM+ALB)", COUNTRY_INFO!$T$9:$T$1000, " ") ->  | I30: 0 | M30: 0
A31: =IF(COUNTRY_INFO!A31=0," ",COUNTRY_INFO!A31) -> Ethiopia | B31: =IF(COUNTRY_INFO!B31=0," ",COUNTRY_INFO!B31) -> AfarAwsa | C31: =IF(COUNTRY_INFO!C31=0," ",COUNTRY_INFO!C31) -> Elidar | D31: =IF(COUNTRY_INFO!$T$9:$T$1000="MDA1 (IVM+ALB)", COUNTRY_INFO!$T$9:$T$1000, " ") ->  | I31: 0 | M31: 0
A32: =IF(COUNTRY_INFO!A32=0," ",COUNTRY_INFO!A32) -> Ethiopia | B32: =IF(COUNTRY_INFO!B32=0," ",COUNTRY_INFO!B32) -> AfarAwsa | C32: =IF(COUNTRY_INFO!C32=0," ",COUNTRY_INFO!C32) -> Kori | D32: =IF(COUNTRY_INFO!$T$9:$T$1000="MDA1 (IVM+ALB)", COUNTRY_INFO!$T$9:$T$1000, " ") ->  | I32: 0 | M32: 0
A33: =IF(COUNTRY_INFO!A33=0," ",COUNTRY_INFO!A33) -> Ethiopia | B33: =IF(COUNTRY_INFO!B33=0," ",COUNTRY_INFO!B33) -> AfarAwsa | C33: =IF(COUNTRY_INFO!C33=0," ",COUNTRY_INFO!C33) -> Mile | D33: =IF(COUNTRY_INFO!$T$9:$T$1000="MDA1 (IVM+ALB)", COUNTRY_INFO!$T$9:$T$1000, " ") ->  | I33: 0 | M33: 0
A34: =IF(COUNTRY_INFO!A34=0," ",COUNTRY_INFO!A34) -> Ethiopia | B34: =IF(COUNTRY_INFO!B34=0," ",COUNTRY_INFO!B34) -> AfarAwsa | C34: =IF(COUNTRY_INFO!C34=0," ",COUNTRY_INFO!C34) -> Semra Logya Town | D34: =IF(COUNTRY_INFO!$T$9:$T$1000="MDA1 (IVM+ALB)", COUNTRY_INFO!$T$9:$T$1000, " ") ->  | I34: 0 | M34: 0
A35: =IF(COUNTRY_INFO!A35=0," ",COUNTRY_INFO!A35) -> Ethiopia | B35: =IF(COUNTRY_INFO!B35=0," ",COUNTRY_INFO!B35) -> AfarFanti | C35: =IF(COUNTRY_INFO!C35=0," ",COUNTRY_INFO!C35) -> Bedu | D35: =IF(COUNTRY_INFO!$T$9:$T$1000="MDA1 (IVM+ALB)", COUNTRY_INFO!$T$9:$T$1000, " ") ->  | I35: 0 | M35: 0
A36: =IF(COUNTRY_INFO!A36=0," ",COUNTRY_INFO!A36) -> Ethiopia | B36: =IF(COUNTRY_INFO!B36=0," ",COUNTRY_INFO!B36) -> AfarFanti | C36: =IF(COUNTRY_INFO!C36=0," ",COUNTRY_INFO!C36) -> Berahle | D36: =IF(COUNTRY_INFO!$T$9:$T$1000="MDA1 (IVM+ALB)", COUNTRY_INFO!$T$9:$T$1000, " ") ->  | I36: 0 | M36: 0
A37: =IF(COUNTRY_INFO!A37=0," ",COUNTRY_INFO!A37) -> Ethiopia | B37: =IF(COUNTRY_INFO!B37=0," ",COUNTRY_INFO!B37) -> AfarFanti | C37: =IF(COUNTRY_INFO!C37=0," ",COUNTRY_INFO!C37) -> Buremodaytu | D37: =IF(COUNTRY_INFO!$T$9:$T$1000="MDA1 (IVM+ALB)", COUNTRY_INFO!$T$9:$T$1000, " ") ->  | I37: 0 | M37: 0
A38: =IF(COUNTRY_INFO!A38=0," ",COUNTRY_INFO!A38) -> Ethiopia | B38: =IF(COUNTRY_INFO!B38=0," ",COUNTRY_INFO!B38) -> AfarGabi | C38: =IF(COUNTRY_INFO!C38=0," ",COUNTRY_INFO!C38) -> Dalifage | D38: =IF(COUNTRY_INFO!$T$9:$T$1000="MDA1 (IVM+ALB)", COUNTRY_INFO!$T$9:$T$1000, " ") ->  | I38: 0 | M38: 0
A39: =IF(COUNTRY_INFO!A39=0," ",COUNTRY_INFO!A39) -> Ethiopia | B39: =IF(COUNTRY_INFO!B39=0," ",COUNTRY_INFO!B39) -> AfarGabi | C39: =IF(COUNTRY_INFO!C39=0," ",COUNTRY_INFO!C39) -> Dalul | D39: =IF(COUNTRY_INFO!$T$9:$T$1000="MDA1 (IVM+ALB)", COUNTRY_INFO!$T$9:$T$1000, " ") ->  | I39: 0 | M39: 0
A40: =IF(COUNTRY_INFO!A40=0," ",COUNTRY_INFO!A40) -> Ethiopia | B40: =IF(COUNTRY_INFO!B40=0," ",COUNTRY_INFO!B40) -> AfarGabi | C40: =IF(COUNTRY_INFO!C40=0," ",COUNTRY_INFO!C40) -> Dewe | D40: =IF(COUNTRY_INFO!$T$9:$T$1000="MDA1 (IVM+ALB)", COUNTRY_INFO!$T$9:$T$1000, " ") ->  | I40: 0 | M40: 0
A41: =IF(COUNTRY_INFO!A41=0," ",COUNTRY_INFO!A41) -> Ethiopia | B41: =IF(COUNTRY_INFO!B41=0," ",COUNTRY_INFO!B41) -> AfarGabi | C41: =IF(COUNTRY_INFO!C41=0," ",COUNTRY_INFO!C41) -> Dulech | D41: =IF(COUNTRY_INFO!$T$9:$T$1000="MDA1 (IVM+ALB)", COUNTRY_INFO!$T$9:$T$1000, " ") ->  | I41: 0 | M41: 0
A42: =IF(COUNTRY_INFO!A42=0," ",COUNTRY_INFO!A42) -> Ethiopia | B42: =IF(COUNTRY_INFO!B42=0," ",COUNTRY_INFO!B42) -> AfarHarri | C42: =IF(COUNTRY_INFO!C42=0," ",COUNTRY_INFO!C42) -> Erebti | D42: =IF(COUNTRY_INFO!$T$9:$T$1000="MDA1 (IVM+ALB)", COUNTRY_INFO!$T$9:$T$1000, " ") ->  | I42: 0 | M42: 0
A43: =IF(COUNTRY_INFO!A43=0," ",COUNTRY_INFO!A43) -> Ethiopia | B43: =IF(COUNTRY_INFO!B43=0," ",COUNTRY_INFO!B43) -> AfarHarri | C43: =IF(COUNTRY_INFO!C43=0," ",COUNTRY_INFO!C43) -> Ewa | D43: =IF(COUNTRY_INFO!$T$9:$T$1000="MDA1 (IVM+ALB)", COUNTRY_INFO!$T$9:$T$1000, " ") ->  | I43: 0 | M43: 0
A44: =IF(COUNTRY_INFO!A44=0," ",COUNTRY_INFO!A44) -> Ethiopia | B44: =IF(COUNTRY_INFO!B44=0," ",COUNTRY_INFO!B44) -> AfarHarri | C44: =IF(COUNTRY_INFO!C44=0," ",COUNTRY_INFO!C44) -> Gewane | D44: =IF(COUNTRY_INFO!$T$9:$T$1000="MDA1 (IVM+ALB)", COUNTRY_INFO!$T$9:$T$1000, " ") ->  | I44: 0 | M44: 0
A45: =IF(COUNTRY_INFO!A45=0," ",COUNTRY_INFO!A45) -> Ethiopia | B45: =IF(COUNTRY_INFO!B45=0," ",COUNTRY_INFO!B45) -> AfarHarri | C45: =IF(COUNTRY_INFO!C45=0," ",COUNTRY_INFO!C45) -> Gulina | D45: =IF(COUNTRY_INFO!$T$9:$T$1000="MDA1 (IVM+ALB)", COUNTRY_INFO!$T$9:$T$1000, " ") ->  | I45: 0 | M45: 0
A46: =IF(COUNTRY_INFO!A46=0," ",COUNTRY_INFO!A46) -> Ethiopia | B46: =IF(COUNTRY_INFO!B46=0," ",COUNTRY_INFO!B46) -> AfarHarri | C46: =IF(COUNTRY_INFO!C46=0," ",COUNTRY_INFO!C46) -> Hadaleelila | D46: =IF(COUNTRY_INFO!$T$9:$T$1000="MDA1 (IVM+ALB)", COUNTRY_INFO!$T$9:$T$1000, " ") ->  | I46: 0 | M46: 0
A47: =IF(COUNTRY_INFO!A47=0," ",COUNTRY_INFO!A47) -> Ethiopia | B47: =IF(COUNTRY_INFO!B47=0," ",COUNTRY_INFO!B47) -> AfarHarri | C47: =IF(COUNTRY_INFO!C47=0," ",COUNTRY_INFO!C47) -> Koneba | D47: =IF(COUNTRY_INFO!$T$9:$T$1000="MDA1 (IVM+ALB)", COUNTRY_INFO!$T$9:$T$1000, " ") ->  | I47: 0 | M47: 0
A48: =IF(COUNTRY_INFO!A48=0," ",COUNTRY_INFO!A48) -> Ethiopia | B48: =IF(COUNTRY_INFO!B48=0," ",COUNTRY_INFO!B48) -> AfarKilbat | C48: =IF(COUNTRY_INFO!C48=0," ",COUNTRY_INFO!C48) -> Megalle | D48: =IF(COUNTRY_INFO!$T$9:$T$1000="MDA1 (IVM+ALB)", COUNTRY_INFO!$T$9:$T$1000, " ") ->  | I48: 0 | M48: 0
A49: =IF(COUNTRY_INFO!A49=0," ",COUNTRY_INFO!A49) -> Ethiopia | B49: =IF(COUNTRY_INFO!B49=0," ",COUNTRY_INFO!B49) -> AfarKilbat | C49: =IF(COUNTRY_INFO!C49=0," ",COUNTRY_INFO!C49) -> Samorobigelalu | D49: =IF(COUNTRY_INFO!$T$9:$T$1000="MDA1 (IVM+ALB)", COUNTRY_INFO!$T$9:$T$1000, " ") ->  | I49: 0 | M49: 0
A50: =IF(COUNTRY_INFO!A50=0," ",COUNTRY_INFO!A50) -> Ethiopia | B50: =IF(COUNTRY_INFO!B50=0," ",COUNTRY_INFO!B50) -> AfarKilbat | C50: =IF(COUNTRY_INFO!C50=0," ",COUNTRY_INFO!C50) -> Telalak | D50: =IF(COUNTRY_INFO!$T$9:$T$1000="MDA1 (IVM+ALB)", COUNTRY_INFO!$T$9:$T$1000, " ") ->  | I50: 0 | M50: 0
A51: =IF(COUNTRY_INFO!A51=0," ",COUNTRY_INFO!A51) -> Ethiopia | B51: =IF(COUNTRY_INFO!B51=0," ",COUNTRY_INFO!B51) -> AfarKilbat | C51: =IF(COUNTRY_INFO!C51=0," ",COUNTRY_INFO!C51) -> Teru | D51: =IF(COUNTRY_INFO!$T$9:$T$1000="MDA1 (IVM+ALB)", COUNTRY_INFO!$T$9:$T$1000, " ") ->  | I51: 0 | M51: 0
A52: =IF(COUNTRY_INFO!A52=0," ",COUNTRY_INFO!A52) -> Ethiopia | B52: =IF(COUNTRY_INFO!B52=0," ",COUNTRY_INFO!B52) -> AfarKilbat | C52: =IF(COUNTRY_INFO!C52=0," ",COUNTRY_INFO!C52) -> Yalo | D52: =IF(COUNTRY_INFO!$T$9:$T$1000="MDA1 (IVM+ALB)", COUNTRY_INFO!$T$9:$T$1000, " ") ->  | I52: 0 | M52: 0
A53: =IF(COUNTRY_INFO!A53=0," ",COUNTRY_INFO!A53) -> Ethiopia | B53: =IF(COUNTRY_INFO!B53=0," ",COUNTRY_INFO!B53) -> AmharaAwi | C53: =IF(COUNTRY_INFO!C53=0," ",COUNTRY_INFO!C53) -> Ankesha | D53: =IF(COUNTRY_INFO!$T$9:$T$1000="MDA1 (IVM+ALB)", COUNTRY_INFO!$T$9:$T$1000, " ") ->  | I53: 0 | M53: 0
A54: =IF(COUNTRY_INFO!A54=0," ",COUNTRY_INFO!A54) -> Ethiopia | B54: =IF(COUNTRY_INFO!B54=0," ",COUNTRY_INFO!B54) -> AmharaAwi | C54: =IF(COUNTRY_INFO!C54=0," ",COUNTRY_INFO!C54) -> Ayehu | D54: =IF(COUNTRY_INFO!$T$9:$T$1000="MDA1 (IVM+ALB)", COUNTRY_INFO!$T$9:$T$1000, " ") ->  | I54: 0 | M54: 0
A55: =IF(COUNTRY_INFO!A55=0," ",COUNTRY_INFO!A55) -> Ethiopia | B55: =IF(COUNTRY_INFO!B55=0," ",COUNTRY_INFO!B55) -> AmharaAwi | C55: =IF(COUNTRY_INFO!C55=0," ",COUNTRY_INFO!C55) -> Banja Shikudad | D55: =IF(COUNTRY_INFO!$T$9:$T$1000="MDA1 (IVM+ALB)", COUNTRY_INFO!$T$9:$T$1000, " ") ->  | I55: 0 | M55: 0
A56: =IF(COUNTRY_INFO!A56=0," ",COUNTRY_INFO!A56) -> Ethiopia | B56: =IF(COUNTRY_INFO!B56=0," ",COUNTRY_INFO!B56) -> AmharaAwi | C56: =IF(COUNTRY_INFO!C56=0," ",COUNTRY_INFO!C56) -> Chagni Town | D56: =IF(COUNTRY_INFO!$T$9:$T$1000="MDA1 (IVM+ALB)", COUNTRY_INFO!$T$9:$T$1000, " ") -> MDA1 (IVM+ALB) | E56: 15 October | G56: 11596 | H56: 22880 | I56: 34476 | K56: 10063 | L56: 17889 | M56: 27952 | O56: 86.77992411 | P56: 78.18618881 | Q56: 81.07669103
A57: =IF(COUNTRY_INFO!A57=0," ",COUNTRY_INFO!A57) -> Ethiopia | B57: =IF(COUNTRY_INFO!B57=0," ",COUNTRY_INFO!B57) -> AmharaAwi | C57: =IF(COUNTRY_INFO!C57=0," ",COUNTRY_INFO!C57) -> Dangila | D57: =IF(COUNTRY_INFO!$T$9:$T$1000="MDA1 (IVM+ALB)", COUNTRY_INFO!$T$9:$T$1000, " ") ->  | I57: 0 | M57: 0
A58: =IF(COUNTRY_INFO!A58=0," ",COUNTRY_INFO!A58) -> Ethiopia | B58: =IF(COUNTRY_INFO!B58=0," ",COUNTRY_INFO!B58) -> AmharaAwi | C58: =IF(COUNTRY_INFO!C58=0," ",COUNTRY_INFO!C58) -> Dangla Town | D58: =IF(COUNTRY_INFO!$T$9:$T$1000="MDA1 (IVM+ALB)", COUNTRY_INFO!$T$9:$T$1000, " ") ->  | I58: 0 | M58: 0
A59: =IF(COUNTRY_INFO!A59=0," ",COUNTRY_INFO!A59) -> Ethiopia | B59: =IF(COUNTRY_INFO!B59=0," ",COUNTRY_INFO!B59) -> AmharaAwi | C59: =IF(COUNTRY_INFO!C59=0," ",COUNTRY_INFO!C59) -> Fagita Lekoma | D59: =IF(COUNTRY_INFO!$T$9:$T$1000="MDA1 (IVM+ALB)", COUNTRY_INFO!$T$9:$T$1000, " ") ->  | I59: 0 | M59: 0
A60: =IF(COUNTRY_INFO!A60=0," ",COUNTRY_INFO!A60) -> Ethiopia | B60: =IF(COUNTRY_INFO!B60=0," ",COUNTRY_INFO!B60) -> AmharaAwi | C60: =IF(COUNTRY_INFO!C60=0," ",COUNTRY_INFO!C60) -> Guagusa Shikudad | D60: =IF(COUNTRY_INFO!$T$9:$T$1000="MDA1 (IVM+ALB)", COUNTRY_INFO!$T$9:$T$1000, " ") ->  | I60: 0 | M60: 0
A61: =IF(COUNTRY_INFO!A61=0," ",COUNTRY_INFO!A61) -> Ethiopia | B61: =IF(COUNTRY_INFO!B61=0," ",COUNTRY_INFO!B61) -> AmharaAwi | C61: =IF(COUNTRY_INFO!C61=0," ",COUNTRY_INFO!C61) -> Guangua | D61: =IF(COUNTRY_INFO!$T$9:$T$1000="MDA1 (IVM+ALB)", COUNTRY_INFO!$T$9:$T$1000, " ") ->  | I61: 0 | M61: 0
A62: =IF(COUNTRY_INFO!A62=0," ",COUNTRY_INFO!A62) -> Ethiopia | B62: =IF(COUNTRY_INFO!B62=0," ",COUNTRY_INFO!B62) -> AmharaAwi | C62: =IF(COUNTRY_INFO!C62=0," ",COUNTRY_INFO!C62) -> Injibara Town | D62: =IF(COUNTRY_INFO!$T$9:$T$1000="MDA1 (IVM+ALB)", COUNTRY_INFO!$T$9:$T$1000, " ") ->  | I62: 0 | M62: 0
A63: =IF(COUNTRY_INFO!A63=0," ",COUNTRY_INFO!A63) -> Ethiopia | B63: =IF(COUNTRY_INFO!B63=0," ",COUNTRY_INFO!B63) -> AmharaAwi | C63: =IF(COUNTRY_INFO!C63=0," ",COUNTRY_INFO!C63) -> Jawi | D63: =IF(COUNTRY_INFO!$T$9:$T$1000="MDA1 (IVM+ALB)", COUNTRY_INFO!$T$9:$T$1000, " ") -> MDA1 (IVM+ALB) | E63: 15 October | G63: 41089 | H63: 81073 | I63: 122162 | K63: 39028 | L63: 69384 | M63: 108412 | O63: 94.98405899 | P63: 85.58212969 | Q63: 88.74445409
A64: =IF(COUNTRY_INFO!A64=0," ",COUNTRY_INFO!A64) -> Ethiopia | B64: =IF(COUNTRY_INFO!B64=0," ",COUNTRY_INFO!B64) -> AmharaAwi | C64: =IF(COUNTRY_INFO!C64=0," ",COUNTRY_INFO!C64) -> Zigem | D64: =IF(COUNTRY_INFO!$T$9:$T$1000="MDA1 (IVM+ALB)", COUNTRY_INFO!$T$9:$T$1000, " ") -> MDA1 (IVM+ALB) | E64: 15 October | G64: 31543 | H64: 62238 | I64: 93781 | K64: 24946 | L64: 47126 | M64: 72072 | O64: 79.08569255 | P64: 75.71901411 | Q64: 76.85138781
A65: =IF(COUNTRY_INFO!A65=0," ",COUNTRY_INFO!A65) -> Ethiopia | B65: =IF(COUNTRY_INFO!B65=0," ",COUNTRY_INFO!B65) -> AmharaEast Gojam | C65: =IF(COUNTRY_INFO!C65=0," ",COUNTRY_INFO!C65) -> Aneded | D65: =IF(COUNTRY_INFO!$T$9:$T$1000="MDA1 (IVM+ALB)", COUNTRY_INFO!$T$9:$T$1000, " ") ->  | I65: 0 | M65: 0
A66: =IF(COUNTRY_INFO!A66=0," ",COUNTRY_INFO!A66) -> Ethiopia | B66: =IF(COUNTRY_INFO!B66=0," ",COUNTRY_INFO!B66) -> AmharaEast Gojam | C66: =IF(COUNTRY_INFO!C66=0," ",COUNTRY_INFO!C66) -> Awabel | D66: =IF(COUNTRY_INFO!$T$9:$T$1000="MDA1 (IVM+ALB)", COUNTRY_INFO!$T$9:$T$1000, " ") ->  | I66: 0 | M66: 0
A67: =IF(COUNTRY_INFO!A67=0," ",COUNTRY_INFO!A67) -> Ethiopia | B67: =IF(COUNTRY_INFO!B67=0," ",COUNTRY_INFO!B67) -> AmharaEast Gojam | C67: =IF(COUNTRY_INFO!C67=0," ",COUNTRY_INFO!C67) -> Basoliben | D67: =IF(COUNTRY_INFO!$T$9:$T$1000="MDA1 (IVM+ALB)", COUNTRY_INFO!$T$9:$T$1000, " ") ->  | I67: 0 | M67: 0
A68: =IF(COUNTRY_INFO!A68=0," ",COUNTRY_INFO!A68) -> Ethiopia | B68: =IF(COUNTRY_INFO!B68=0," ",COUNTRY_INFO!B68) -> AmharaEast Gojam | C68: =IF(COUNTRY_INFO!C68=0," ",COUNTRY_INFO!C68) -> Bibugn | D68: =IF(COUNTRY_INFO!$T$9:$T$1000="MDA1 (IVM+ALB)", COUNTRY_INFO!$T$9:$T$1000, " ") ->  | I68: 0 | M68: 0
A69: =IF(COUNTRY_INFO!A69=0," ",COUNTRY_INFO!A69) -> Ethiopia | B69: =IF(COUNTRY_INFO!B69=0," ",COUNTRY_INFO!B69) -> AmharaEast Gojam | C69: =IF(COUNTRY_INFO!C69=0," ",COUNTRY_INFO!C69) -> Debay Tilatgen | D69: =IF(COUNTRY_INFO!$T$9:$T$1000="MDA1 (IVM+ALB)", COUNTRY_INFO!$T$9:$T$1000, " ") ->  | I69: 0 | M69: 0
A70: =IF(COUNTRY_INFO!A70=0," ",COUNTRY_INFO!A70) -> Ethiopia | B70: =IF(COUNTRY_INFO!B70=0," ",COUNTRY_INFO!B70) -> AmharaEast Gojam | C70: =IF(COUNTRY_INFO!C70=0," ",COUNTRY_INFO!C70) -> Debre Elias | D70: =IF(COUNTRY_INFO!$T$9:$T$1000="MDA1 (IVM+ALB)", COUNTRY_INFO!$T$9:$T$1000, " ") ->  | I70: 0 | M70: 0
A71: =IF(COUNTRY_INFO!A71=0," ",COUNTRY_INFO!A71) -> Ethiopia | B71: =IF(COUNTRY_INFO!B71=0," ",COUNTRY_INFO!B71) -> AmharaEast Gojam | C71: =IF(COUNTRY_INFO!C71=0," ",COUNTRY_INFO!C71) -> Debre Markos Town | D71: =IF(COUNTRY_INFO!$T$9:$T$1000="MDA1 (IVM+ALB)", COUNTRY_INFO!$T$9:$T$1000, " ") ->  | I71: 0 | M71: 0
A72: =IF(COUNTRY_INFO!A72=0," ",COUNTRY_INFO!A72) -> Ethiopia | B72: =IF(COUNTRY_INFO!B72=0," ",COUNTRY_INFO!B72) -> AmharaEast Gojam | C72: =IF(COUNTRY_INFO!C72=0," ",COUNTRY_INFO!C72) -> Dejen | D72: =IF(COUNTRY_INFO!$T$9:$T$1000="MDA1 (IVM+ALB)", COUNTRY_INFO!$T$9:$T$1000, " ") ->  | I72: 0 | M72: 0
A73: =IF(COUNTRY_INFO!A73=0," ",COUNTRY_INFO!A73) -> Ethiopia | B73: =IF(COUNTRY_INFO!B73=0," ",COUNTRY_INFO!B73) -> AmharaEast Gojam | C73: =IF(COUNTRY_INFO!C73=0," ",COUNTRY_INFO!C73) -> Enarje Enawuga | D73: =IF(COUNTRY_INFO!$T$9:$T$1000="MDA1 (IVM+ALB)", COUNTRY_INFO!$T$9:$T$1000, " ") ->  | I73: 0 | M73: 0
A74: =IF(COUNTRY_INFO!A74=0," ",COUNTRY_INFO!A74) -> Ethiopia | B74: =IF(COUNTRY_INFO!B74=0," ",COUNTRY_INFO!B74) -> AmharaEast Gojam | C74: =IF(COUNTRY_INFO!C74=0," ",COUNTRY_INFO!C74) -> Enebsie Sarmeder | D74: =IF(COUNTRY_INFO!$T$9:$T$1000="MDA1 (IVM+ALB)", COUNTRY_INFO!$T$9:$T$1000, " ") ->  | I74: =SUM(F74:H74) -> 0 | M74: =SUM(J74:L74) -> 0 | O74: =IF(G74<>0, IF(K74/G74*100=0, "-", K74/G74*100), " ") ->  | P74: =IF(H74<>0, IF(L74/H74*100=0, "-", L74/H74*100), " ") ->  | Q74: =IF(I74<>0, IF(M74/I74*100=0, "-", M74/I74*100), " ") -> 
A75: =IF(COUNTRY_INFO!A75=0," ",COUNTRY_INFO!A75) -> Ethiopia | B75: =IF(COUNTRY_INFO!B75=0," ",COUNTRY_INFO!B75) -> AmharaEast Gojam | C75: =IF(COUNTRY_INFO!C75=0," ",COUNTRY_INFO!C75) -> Enemay | D75: =IF(COUNTRY_INFO!$T$9:$T$1000="MDA1 (IVM+ALB)", COUNTRY_INFO!$T$9:$T$1000, " ") ->  | I75: 0 | M75: 0
A76: =IF(COUNTRY_INFO!A76=0," ",COUNTRY_INFO!A76) -> Ethiopia | B76: =IF(COUNTRY_INFO!B76=0," ",COUNTRY_INFO!B76) -> AmharaEast Gojam | C76: =IF(COUNTRY_INFO!C76=0," ",COUNTRY_INFO!C76) -> Gonchasieso enesie | D76: =IF(COUNTRY_INFO!$T$9:$T$1000="MDA1 (IVM+ALB)", COUNTRY_INFO!$T$9:$T$1000, " ") ->  | I76: 0 | M76: 0
A77: =IF(COUNTRY_INFO!A77=0," ",COUNTRY_INFO!A77) -> Ethiopia | B77: =IF(COUNTRY_INFO!B77=0," ",COUNTRY_INFO!B77) -> AmharaEast Gojam | C77: =IF(COUNTRY_INFO!C77=0," ",COUNTRY_INFO!C77) -> Gozamen | D77: =IF(COUNTRY_INFO!$T$9:$T$1000="MDA1 (IVM+ALB)", COUNTRY_INFO!$T$9:$T$1000, " ") ->  | I77: 0 | M77: 0
A78: =IF(COUNTRY_INFO!A78=0," ",COUNTRY_INFO!A78) -> Ethiopia | B78: =IF(COUNTRY_INFO!B78=0," ",COUNTRY_INFO!B78) -> AmharaEast Gojam | C78: =IF(COUNTRY_INFO!C78=0," ",COUNTRY_INFO!C78) -> Hult Eju | D78: =IF(COUNTRY_INFO!$T$9:$T$1000="MDA1 (IVM+ALB)", COUNTRY_INFO!$T$9:$T$1000, " ") ->  | I78: 0 | M78: 0
A79: =IF(COUNTRY_INFO!A79=0," ",COUNTRY_INFO!A79) -> Ethiopia | B79: =IF(COUNTRY_INFO!B79=0," ",COUNTRY_INFO!B79) -> AmharaEast Gojam | C79: =IF(COUNTRY_INFO!C79=0," ",COUNTRY_INFO!C79) -> Machakel | D79: =IF(COUNTRY_INFO!$T$9:$T$1000="MDA1 (IVM+ALB)", COUNTRY_INFO!$T$9:$T$1000, " ") ->  | I79: 0 | M79: 0
A80: =IF(COUNTRY_INFO!A80=0," ",COUNTRY_INFO!A80) -> Ethiopia | B80: =IF(COUNTRY_INFO!B80=0," ",COUNTRY_INFO!B80) -> AmharaEast Gojam | C80: =IF(COUNTRY_INFO!C80=0," ",COUNTRY_INFO!C80) -> Motta town | D80: =IF(COUNTRY_INFO!$T$9:$T$1000="MDA1 (IVM+ALB)", COUNTRY_INFO!$T$9:$T$1000, " ") ->  | I80: 0 | M80: 0
A81: =IF(COUNTRY_INFO!A81=0," ",COUNTRY_INFO!A81) -> Ethiopia | B81: =IF(COUNTRY_INFO!B81=0," ",COUNTRY_INFO!B81) -> AmharaEast Gojam | C81: =IF(COUNTRY_INFO!C81=0," ",COUNTRY_INFO!C81) -> Sedie | D81: =IF(COUNTRY_INFO!$T$9:$T$1000="MDA1 (IVM+ALB)", COUNTRY_INFO!$T$9:$T$1000, " ") ->  | I81: 0 | M81: 0
A82: =IF(COUNTRY_INFO!A82=0," ",COUNTRY_INFO!A82) -> Ethiopia | B82: =IF(COUNTRY_INFO!B82=0," ",COUNTRY_INFO!B82) -> AmharaEast Gojam | C82: =IF(COUNTRY_INFO!C82=0," ",COUNTRY_INFO!C82) -> Shebel berenta | D82: =IF(COUNTRY_INFO!$T$9:$T$1000="MDA1 (IVM+ALB)", COUNTRY_INFO!$T$9:$T$1000, " ") ->  | I82: 0 | M82: 0
A83: =IF(COUNTRY_INFO!A83=0," ",COUNTRY_INFO!A83) -> Ethiopia | B83: =IF(COUNTRY_INFO!B83=0," ",COUNTRY_INFO!B83) -> AmharaEast Gojam | C83: =IF(COUNTRY_INFO!C83=0," ",COUNTRY_INFO!C83) -> Sinan | D83: =IF(COUNTRY_INFO!$T$9:$T$1000="MDA1 (IVM+ALB)", COUNTRY_INFO!$T$9:$T$1000, " ") ->  | I83: 0 | M83: 0
A84: =IF(COUNTRY_INFO!A84=0," ",COUNTRY_INFO!A84) -> Ethiopia | B84: =IF(COUNTRY_INFO!B84=0," ",COUNTRY_INFO!B84) -> AmharaNorth Gondar | C84: =IF(COUNTRY_INFO!C84=0," ",COUNTRY_INFO!C84) -> Adi Arkay | D84: =IF(COUNTRY_INFO!$T$9:$T$1000="MDA1 (IVM+ALB)", COUNTRY_INFO!$T$9:$T$1000, " ") ->  | I84: 0 | M84: 0
A85: =IF(COUNTRY_INFO!A85=0," ",COUNTRY_INFO!A85) -> Ethiopia | B85: =IF(COUNTRY_INFO!B85=0," ",COUNTRY_INFO!B85) -> AmharaNorth Gondar | C85: =IF(COUNTRY_INFO!C85=0," ",COUNTRY_INFO!C85) -> Alefa | D85: =IF(COUNTRY_INFO!$T$9:$T$1000="MDA1 (IVM+ALB)", COUNTRY_INFO!$T$9:$T$1000, " ") ->  | I85: 0 | M85: 0
A86: =IF(COUNTRY_INFO!A86=0," ",COUNTRY_INFO!A86) -> Ethiopia | B86: =IF(COUNTRY_INFO!B86=0," ",COUNTRY_INFO!B86) -> AmharaNorth Gondar | C86: =IF(COUNTRY_INFO!C86=0," ",COUNTRY_INFO!C86) -> Beyeda | D86: =IF(COUNTRY_INFO!$T$9:$T$1000="MDA1 (IVM+ALB)", COUNTRY_INFO!$T$9:$T$1000, " ") ->  | I86: 0 | M86: 0
A87: =IF(COUNTRY_INFO!A87=0," ",COUNTRY_INFO!A87) -> Ethiopia | B87: =IF(COUNTRY_INFO!B87=0," ",COUNTRY_INFO!B87) -> AmharaNorth Gondar | C87: =IF(COUNTRY_INFO!C87=0," ",COUNTRY_INFO!C87) -> Chilga | D87: =IF(COUNTRY_INFO!$T$9:$T$1000="MDA1 (IVM+ALB)", COUNTRY_INFO!$T$9:$T$1000, " ") ->  | I87: 0 | M87: 0
A88: =IF(COUNTRY_INFO!A88=0," ",COUNTRY_INFO!A88) -> Ethiopia | B88: =IF(COUNTRY_INFO!B88=0," ",COUNTRY_INFO!B88) -> AmharaNorth Gondar | C88: =IF(COUNTRY_INFO!C88=0," ",COUNTRY_INFO!C88) -> Dabat | D88: =IF(COUNTRY_INFO!$T$9:$T$1000="MDA1 (IVM+ALB)", COUNTRY_INFO!$T$9:$T$1000, " ") ->  | I88: 0 | M88: 0
A89: =IF(COUNTRY_INFO!A89=0," ",COUNTRY_INFO!A89) -> Ethiopia | B89: =IF(COUNTRY_INFO!B89=0," ",COUNTRY_INFO!B89) -> AmharaNorth Gondar | C89: =IF(COUNTRY_INFO!C89=0," ",COUNTRY_INFO!C89) -> Debark | D89: =IF(COUNTRY_INFO!$T$9:$T$1000="MDA1 (IVM+ALB)", COUNTRY_INFO!$T$9:$T$1000, " ") ->  | I89: 0 | M89: 0
A90: =IF(COUNTRY_INFO!A90=0," ",COUNTRY_INFO!A90) -> Ethiopia | B90: =IF(COUNTRY_INFO!B90=0," ",COUNTRY_INFO!B90) -> AmharaNorth Gondar | C90: =IF(COUNTRY_INFO!C90=0," ",COUNTRY_INFO!C90) -> Debark town | D90: =IF(COUNTRY_INFO!$T$9:$T$1000="MDA1 (IVM+ALB)", COUNTRY_INFO!$T$9:$T$1000, " ") ->  | I90: 0 | M90: 0
A91: =IF(COUNTRY_INFO!A91=0," ",COUNTRY_INFO!A91) -> Ethiopia | B91: =IF(COUNTRY_INFO!B91=0," ",COUNTRY_INFO!B91) -> AmharaNorth Gondar | C91: =IF(COUNTRY_INFO!C91=0," ",COUNTRY_INFO!C91) -> East Belesa | D91: =IF(COUNTRY_INFO!$T$9:$T$1000="MDA1 (IVM+ALB)", COUNTRY_INFO!$T$9:$T$1000, " ") ->  | I91: 0 | M91: 0
A92: =IF(COUNTRY_INFO!A92=0," ",COUNTRY_INFO!A92) -> Ethiopia | B92: =IF(COUNTRY_INFO!B92=0," ",COUNTRY_INFO!B92) -> AmharaNorth Gondar | C92: =IF(COUNTRY_INFO!C92=0," ",COUNTRY_INFO!C92) -> East Dembia | D92: =IF(COUNTRY_INFO!$T$9:$T$1000="MDA1 (IVM+ALB)", COUNTRY_INFO!$T$9:$T$1000, " ") ->  | I92: 0 | M92: 0
A93: =IF(COUNTRY_INFO!A93=0," ",COUNTRY_INFO!A93) -> Ethiopia | B93: =IF(COUNTRY_INFO!B93=0," ",COUNTRY_INFO!B93) -> AmharaNorth Gondar | C93: =IF(COUNTRY_INFO!C93=0," ",COUNTRY_INFO!C93) -> Gendawuha | D93: =IF(COUNTRY_INFO!$T$9:$T$1000="MDA1 (IVM+ALB)", COUNTRY_INFO!$T$9:$T$1000, " ") -> MDA1 (IVM+ALB) | E93: 15 October | G93: 6889 | H93: 13593 | I93: 20482 | K93: 5270 | L93: 9369 | M93: 14639 | O93: 76.49876615 | P93: 68.92518208 | Q93: 71.47251245
A94: =IF(COUNTRY_INFO!A94=0," ",COUNTRY_INFO!A94) -> Ethiopia | B94: =IF(COUNTRY_INFO!B94=0," ",COUNTRY_INFO!B94) -> AmharaNorth Gondar | C94: =IF(COUNTRY_INFO!C94=0," ",COUNTRY_INFO!C94) -> Gondar town | D94: =IF(COUNTRY_INFO!$T$9:$T$1000="MDA1 (IVM+ALB)", COUNTRY_INFO!$T$9:$T$1000, " ") ->  | I94: 0 | M94: 0
A95: =IF(COUNTRY_INFO!A95=0," ",COUNTRY_INFO!A95) -> Ethiopia | B95: =IF(COUNTRY_INFO!B95=0," ",COUNTRY_INFO!B95) -> AmharaNorth Gondar | C95: =IF(COUNTRY_INFO!C95=0," ",COUNTRY_INFO!C95) -> Gondar Zuriya | D95: =IF(COUNTRY_INFO!$T$9:$T$1000="MDA1 (IVM+ALB)", COUNTRY_INFO!$T$9:$T$1000, " ") ->  | I95: 0 | M95: 0
A96: =IF(COUNTRY_INFO!A96=0," ",COUNTRY_INFO!A96) -> Ethiopia | B96: =IF(COUNTRY_INFO!B96=0," ",COUNTRY_INFO!B96) -> AmharaNorth Gondar | C96: =IF(COUNTRY_INFO!C96=0," ",COUNTRY_INFO!C96) -> Janamora | D96: =IF(COUNTRY_INFO!$T$9:$T$1000="MDA1 (IVM+ALB)", COUNTRY_INFO!$T$9:$T$1000, " ") ->  | I96: 0 | M96: 0
A97: =IF(COUNTRY_INFO!A97=0," ",COUNTRY_INFO!A97) -> Ethiopia | B97: =IF(COUNTRY_INFO!B97=0," ",COUNTRY_INFO!B97) -> AmharaNorth Gondar | C97: =IF(COUNTRY_INFO!C97=0," ",COUNTRY_INFO!C97) -> Kinfazbegela | D97: =IF(COUNTRY_INFO!$T$9:$T$1000="MDA1 (IVM+ALB)", COUNTRY_INFO!$T$9:$T$1000, " ") ->  | I97: 0 | M97: 0
A98: =IF(COUNTRY_INFO!A98=0," ",COUNTRY_INFO!A98) -> Ethiopia | B98: =IF(COUNTRY_INFO!B98=0," ",COUNTRY_INFO!B98) -> AmharaNorth Gondar | C98: =IF(COUNTRY_INFO!C98=0," ",COUNTRY_INFO!C98) -> Lay Armachiho | D98: =IF(COUNTRY_INFO!$T$9:$T$1000="MDA1 (IVM+ALB)", COUNTRY_INFO!$T$9:$T$1000, " ") ->  | I98: 0 | M98: 0
A99: =IF(COUNTRY_INFO!A99=0," ",COUNTRY_INFO!A99) -> Ethiopia | B99: =IF(COUNTRY_INFO!B99=0," ",COUNTRY_INFO!B99) -> AmharaNorth Gondar | C99: =IF(COUNTRY_INFO!C99=0," ",COUNTRY_INFO!C99) -> Metema | D99: =IF(COUNTRY_INFO!$T$9:$T$1000="MDA1 (IVM+ALB)", COUNTRY_INFO!$T$9:$T$1000, " ") -> MDA1 (IVM+ALB) | E99: 15 October | G99: 43516 | H99: 85862 | I99: 129378 | K99: 36059 | L99: 64105 | M99: 100164 | O99: 82.86377424 | P99: 74.66050174 | Q99: 77.41965404
A100: =IF(COUNTRY_INFO!A100=0," ",COUNTRY_INFO!A100) -> Ethiopia | B100: =IF(COUNTRY_INFO!B100=0," ",COUNTRY_INFO!B100) -> AmharaNorth Gondar | C100: =IF(COUNTRY_INFO!C100=0," ",COUNTRY_INFO!C100) -> Mirab Belesa | D100: =IF(COUNTRY_INFO!$T$9:$T$1000="MDA1 (IVM+ALB)", COUNTRY_INFO!$T$9:$T$1000, " ") ->  | I100: 0 | M100: 0
A101: =IF(COUNTRY_INFO!A101=0," ",COUNTRY_INFO!A101) -> Ethiopia | B101: =IF(COUNTRY_INFO!B101=0," ",COUNTRY_INFO!B101) -> AmharaNorth Gondar | C101: =IF(COUNTRY_INFO!C101=0," ",COUNTRY_INFO!C101) -> Quara | D101: =IF(COUNTRY_INFO!$T$9:$T$1000="MDA1 (IVM+ALB)", COUNTRY_INFO!$T$9:$T$1000, " ") -> MDA1 (IVM+ALB) | E101: 15 October | G101: 40570 | H101: 80048 | I101: 120618 | K101: 36059 | L101: 64105 | M101: 100164 | O101: 88.88094651 | P101: 80.08320008 | Q101: 83.04233199
A102: =IF(COUNTRY_INFO!A102=0," ",COUNTRY_INFO!A102) -> Ethiopia | B102: =IF(COUNTRY_INFO!B102=0," ",COUNTRY_INFO!B102) -> AmharaNorth Gondar | C102: =IF(COUNTRY_INFO!C102=0," ",COUNTRY_INFO!C102) -> Tach Armachiho | D102: =IF(COUNTRY_INFO!$T$9:$T$1000="MDA1 (IVM+ALB)", COUNTRY_INFO!$T$9:$T$1000, " ") ->  | I102: 0 | M102: 0
A103: =IF(COUNTRY_INFO!A103=0," ",COUNTRY_INFO!A103) -> Ethiopia | B103: =IF(COUNTRY_INFO!B103=0," ",COUNTRY_INFO!B103) -> AmharaNorth Gondar | C103: =IF(COUNTRY_INFO!C103=0," ",COUNTRY_INFO!C103) -> Takusa | D103: =IF(COUNTRY_INFO!$T$9:$T$1000="MDA1 (IVM+ALB)", COUNTRY_INFO!$T$9:$T$1000, " ") ->  | I103: 0 | M103: 0
A104: =IF(COUNTRY_INFO!A104=0," ",COUNTRY_INFO!A104) -> Ethiopia | B104: =IF(COUNTRY_INFO!B104=0," ",COUNTRY_INFO!B104) -> AmharaNorth Gondar | C104: =IF(COUNTRY_INFO!C104=0," ",COUNTRY_INFO!C104) -> Tegedie | D104: =IF(COUNTRY_INFO!$T$9:$T$1000="MDA1 (IVM+ALB)", COUNTRY_INFO!$T$9:$T$1000, " ") ->  | I104: 0 | M104: 0
A105: =IF(COUNTRY_INFO!A105=0," ",COUNTRY_INFO!A105) -> Ethiopia | B105: =IF(COUNTRY_INFO!B105=0," ",COUNTRY_INFO!B105) -> AmharaNorth Gondar | C105: =IF(COUNTRY_INFO!C105=0," ",COUNTRY_INFO!C105) -> Telemt | D105: =IF(COUNTRY_INFO!$T$9:$T$1000="MDA1 (IVM+ALB)", COUNTRY_INFO!$T$9:$T$1000, " ") ->  | I105: 0 | M105: 0
A106: =IF(COUNTRY_INFO!A106=0," ",COUNTRY_INFO!A106) -> Ethiopia | B106: =IF(COUNTRY_INFO!B106=0," ",COUNTRY_INFO!B106) -> AmharaNorth Gondar | C106: =IF(COUNTRY_INFO!C106=0," ",COUNTRY_INFO!C106) -> West Armachoho | D106: =IF(COUNTRY_INFO!$T$9:$T$1000="MDA1 (IVM+ALB)", COUNTRY_INFO!$T$9:$T$1000, " ") ->  | I106: 0 | M106: 0
A107: =IF(COUNTRY_INFO!A107=0," ",COUNTRY_INFO!A107) -> Ethiopia | B107: =IF(COUNTRY_INFO!B107=0," ",COUNTRY_INFO!B107) -> AmharaNorth Gondar | C107: =IF(COUNTRY_INFO!C107=0," ",COUNTRY_INFO!C107) -> West Dembia | D107: =IF(COUNTRY_INFO!$T$9:$T$1000="MDA1 (IVM+ALB)", COUNTRY_INFO!$T$9:$T$1000, " ") ->  | I107: 0 | M107: 0
A108: =IF(COUNTRY_INFO!A108=0," ",COUNTRY_INFO!A108) -> Ethiopia | B108: =IF(COUNTRY_INFO!B108=0," ",COUNTRY_INFO!B108) -> AmharaNorth Gondar | C108: =IF(COUNTRY_INFO!C108=0," ",COUNTRY_INFO!C108) -> Wogera | D108: =IF(COUNTRY_INFO!$T$9:$T$1000="MDA1 (IVM+ALB)", COUNTRY_INFO!$T$9:$T$1000, " ") ->  | I108: 0 | M108: 0
A109: =IF(COUNTRY_INFO!A109=0," ",COUNTRY_INFO!A109) -> Ethiopia | B109: =IF(COUNTRY_INFO!B109=0," ",COUNTRY_INFO!B109) -> AmharaNorth Shoa | C109: =IF(COUNTRY_INFO!C109=0," ",COUNTRY_INFO!C109) -> Angolelna tera | D109: =IF(COUNTRY_INFO!$T$9:$T$1000="MDA1 (IVM+ALB)", COUNTRY_INFO!$T$9:$T$1000, " ") ->  | I109: 0 | M109: 0
A110: =IF(COUNTRY_INFO!A110=0," ",COUNTRY_INFO!A110) -> Ethiopia | B110: =IF(COUNTRY_INFO!B110=0," ",COUNTRY_INFO!B110) -> AmharaNorth Shoa | C110: =IF(COUNTRY_INFO!C110=0," ",COUNTRY_INFO!C110) -> Ankober | D110: =IF(COUNTRY_INFO!$T$9:$T$1000="MDA1 (IVM+ALB)", COUNTRY_INFO!$T$9:$T$1000, " ") ->  | I110: 0 | M110: 0
A111: =IF(COUNTRY_INFO!A111=0," ",COUNTRY_INFO!A111) -> Ethiopia | B111: =IF(COUNTRY_INFO!B111=0," ",COUNTRY_INFO!B111) -> AmharaNorth Shoa | C111: =IF(COUNTRY_INFO!C111=0," ",COUNTRY_INFO!C111) -> Antsokiagemza | D111: =IF(COUNTRY_INFO!$T$9:$T$1000="MDA1 (IVM+ALB)", COUNTRY_INFO!$T$9:$T$1000, " ") ->  | I111: 0 | M111: 0
A112: =IF(COUNTRY_INFO!A112=0," ",COUNTRY_INFO!A112) -> Ethiopia | B112: =IF(COUNTRY_INFO!B112=0," ",COUNTRY_INFO!B112) -> AmharaNorth Shoa | C112: =IF(COUNTRY_INFO!C112=0," ",COUNTRY_INFO!C112) -> Assagirt | D112: =IF(COUNTRY_INFO!$T$9:$T$1000="MDA1 (IVM+ALB)", COUNTRY_INFO!$T$9:$T$1000, " ") ->  | I112: 0 | M112: 0
A113: =IF(COUNTRY_INFO!A113=0," ",COUNTRY_INFO!A113) -> Ethiopia | B113: =IF(COUNTRY_INFO!B113=0," ",COUNTRY_INFO!B113) -> AmharaNorth Shoa | C113: =IF(COUNTRY_INFO!C113=0," ",COUNTRY_INFO!C113) -> Baso Naworana | D113: =IF(COUNTRY_INFO!$T$9:$T$1000="MDA1 (IVM+ALB)", COUNTRY_INFO!$T$9:$T$1000, " ") ->  | I113: 0 | M113: 0
A114: =IF(COUNTRY_INFO!A114=0," ",COUNTRY_INFO!A114) -> Ethiopia | B114: =IF(COUNTRY_INFO!B114=0," ",COUNTRY_INFO!B114) -> AmharaNorth Shoa | C114: =IF(COUNTRY_INFO!C114=0," ",COUNTRY_INFO!C114) -> Berehet | D114: =IF(COUNTRY_INFO!$T$9:$T$1000="MDA1 (IVM+ALB)", COUNTRY_INFO!$T$9:$T$1000, " ") ->  | I114: 0 | M114: 0
A115: =IF(COUNTRY_INFO!A115=0," ",COUNTRY_INFO!A115) -> Ethiopia | B115: =IF(COUNTRY_INFO!B115=0," ",COUNTRY_INFO!B115) -> AmharaNorth Shoa | C115: =IF(COUNTRY_INFO!C115=0," ",COUNTRY_INFO!C115) -> Debirebirhan Town | D115: =IF(COUNTRY_INFO!$T$9:$T$1000="MDA1 (IVM+ALB)", COUNTRY_INFO!$T$9:$T$1000, " ") ->  | I115: 0 | M115: 0
A116: =IF(COUNTRY_INFO!A116=0," ",COUNTRY_INFO!A116) -> Ethiopia | B116: =IF(COUNTRY_INFO!B116=0," ",COUNTRY_INFO!B116) -> AmharaNorth Shoa | C116: =IF(COUNTRY_INFO!C116=0," ",COUNTRY_INFO!C116) -> Efratanagidem | D116: =IF(COUNTRY_INFO!$T$9:$T$1000="MDA1 (IVM+ALB)", COUNTRY_INFO!$T$9:$T$1000, " ") ->  | I116: 0 | M116: 0
A117: =IF(COUNTRY_INFO!A117=0," ",COUNTRY_INFO!A117) -> Ethiopia | B117: =IF(COUNTRY_INFO!B117=0," ",COUNTRY_INFO!B117) -> AmharaNorth Shoa | C117: =IF(COUNTRY_INFO!C117=0," ",COUNTRY_INFO!C117) -> Ensaro | D117: =IF(COUNTRY_INFO!$T$9:$T$1000="MDA1 (IVM+ALB)", COUNTRY_INFO!$T$9:$T$1000, " ") ->  | I117: 0 | M117: 0
A118: =IF(COUNTRY_INFO!A118=0," ",COUNTRY_INFO!A118) -> Ethiopia | B118: =IF(COUNTRY_INFO!B118=0," ",COUNTRY_INFO!B118) -> AmharaNorth Shoa | C118: =IF(COUNTRY_INFO!C118=0," ",COUNTRY_INFO!C118) -> Geshe | D118: =IF(COUNTRY_INFO!$T$9:$T$1000="MDA1 (IVM+ALB)", COUNTRY_INFO!$T$9:$T$1000, " ") ->  | I118: 0 | M118: 0
A119: =IF(COUNTRY_INFO!A119=0," ",COUNTRY_INFO!A119) -> Ethiopia | B119: =IF(COUNTRY_INFO!B119=0," ",COUNTRY_INFO!B119) -> AmharaNorth Shoa | C119: =IF(COUNTRY_INFO!C119=0," ",COUNTRY_INFO!C119) -> Hageremariam | D119: =IF(COUNTRY_INFO!$T$9:$T$1000="MDA1 (IVM+ALB)", COUNTRY_INFO!$T$9:$T$1000, " ") ->  | I119: 0 | M119: 0
A120: =IF(COUNTRY_INFO!A120=0," ",COUNTRY_INFO!A120) -> Ethiopia | B120: =IF(COUNTRY_INFO!B120=0," ",COUNTRY_INFO!B120) -> AmharaNorth Shoa | C120: =IF(COUNTRY_INFO!C120=0," ",COUNTRY_INFO!C120) -> Kewot | D120: =IF(COUNTRY_INFO!$T$9:$T$1000="MDA1 (IVM+ALB)", COUNTRY_INFO!$T$9:$T$1000, " ") ->  | I120: 0 | M120: 0
A121: =IF(COUNTRY_INFO!A121=0," ",COUNTRY_INFO!A121) -> Ethiopia | B121: =IF(COUNTRY_INFO!B121=0," ",COUNTRY_INFO!B121) -> AmharaNorth Shoa | C121: =IF(COUNTRY_INFO!C121=0," ",COUNTRY_INFO!C121) -> Menzgera | D121: =IF(COUNTRY_INFO!$T$9:$T$1000="MDA1 (IVM+ALB)", COUNTRY_INFO!$T$9:$T$1000, " ") ->  | I121: 0 | M121: 0
A122: =IF(COUNTRY_INFO!A122=0," ",COUNTRY_INFO!A122) -> Ethiopia | B122: =IF(COUNTRY_INFO!B122=0," ",COUNTRY_INFO!B122) -> AmharaNorth Shoa | C122: =IF(COUNTRY_INFO!C122=0," ",COUNTRY_INFO!C122) -> Menzkeya | D122: =IF(COUNTRY_INFO!$T$9:$T$1000="MDA1 (IVM+ALB)", COUNTRY_INFO!$T$9:$T$1000, " ") ->  | I122: 0 | M122: 0
A123: =IF(COUNTRY_INFO!A123=0," ",COUNTRY_INFO!A123) -> Ethiopia | B123: =IF(COUNTRY_INFO!B123=0," ",COUNTRY_INFO!B123) -> AmharaNorth Shoa | C123: =IF(COUNTRY_INFO!C123=0," ",COUNTRY_INFO!C123) -> Menzlallo | D123: =IF(COUNTRY_INFO!$T$9:$T$1000="MDA1 (IVM+ALB)", COUNTRY_INFO!$T$9:$T$1000, " ") ->  | I123: 0 | M123: 0
A124: =IF(COUNTRY_INFO!A124=0," ",COUNTRY_INFO!A124) -> Ethiopia | B124: =IF(COUNTRY_INFO!B124=0," ",COUNTRY_INFO!B124) -> AmharaNorth Shoa | C124: =IF(COUNTRY_INFO!C124=0," ",COUNTRY_INFO!C124) -> Menzmamma | D124: =IF(COUNTRY_INFO!$T$9:$T$1000="MDA1 (IVM+ALB)", COUNTRY_INFO!$T$9:$T$1000, " ") ->  | I124: 0 | M124: 0
A125: =IF(COUNTRY_INFO!A125=0," ",COUNTRY_INFO!A125) -> Ethiopia | B125: =IF(COUNTRY_INFO!B125=0," ",COUNTRY_INFO!B125) -> AmharaNorth Shoa | C125: =IF(COUNTRY_INFO!C125=0," ",COUNTRY_INFO!C125) -> Merhabete | D125: =IF(COUNTRY_INFO!$T$9:$T$1000="MDA1 (IVM+ALB)", COUNTRY_INFO!$T$9:$T$1000, " ") ->  | I125: 0 | M125: 0
A126: =IF(COUNTRY_INFO!A126=0," ",COUNTRY_INFO!A126) -> Ethiopia | B126: =IF(COUNTRY_INFO!B126=0," ",COUNTRY_INFO!B126) -> AmharaNorth Shoa | C126: =IF(COUNTRY_INFO!C126=0," ",COUNTRY_INFO!C126) -> Midana Worem | D126: =IF(COUNTRY_INFO!$T$9:$T$1000="MDA1 (IVM+ALB)", COUNTRY_INFO!$T$9:$T$1000, " ") ->  | I126: 0 | M126: 0
A127: =IF(COUNTRY_INFO!A127=0," ",COUNTRY_INFO!A127) -> Ethiopia | B127: =IF(COUNTRY_INFO!B127=0," ",COUNTRY_INFO!B127) -> AmharaNorth Shoa | C127: =IF(COUNTRY_INFO!C127=0," ",COUNTRY_INFO!C127) -> Minjarshenkora | D127: =IF(COUNTRY_INFO!$T$9:$T$1000="MDA1 (IVM+ALB)", COUNTRY_INFO!$T$9:$T$1000, " ") ->  | I127: 0 | M127: 0
A128: =IF(COUNTRY_INFO!A128=0," ",COUNTRY_INFO!A128) -> Ethiopia | B128: =IF(COUNTRY_INFO!B128=0," ",COUNTRY_INFO!B128) -> AmharaNorth Shoa | C128: =IF(COUNTRY_INFO!C128=0," ",COUNTRY_INFO!C128) -> Mojanawodera | D128: =IF(COUNTRY_INFO!$T$9:$T$1000="MDA1 (IVM+ALB)", COUNTRY_INFO!$T$9:$T$1000, " ") ->  | I128: 0 | M128: 0
A129: =IF(COUNTRY_INFO!A129=0," ",COUNTRY_INFO!A129) -> Ethiopia | B129: =IF(COUNTRY_INFO!B129=0," ",COUNTRY_INFO!B129) -> AmharaNorth Shoa | C129: =IF(COUNTRY_INFO!C129=0," ",COUNTRY_INFO!C129) -> Moretnajiru | D129: =IF(COUNTRY_INFO!$T$9:$T$1000="MDA1 (IVM+ALB)", COUNTRY_INFO!$T$9:$T$1000, " ") ->  | I129: 0 | M129: 0
A130: =IF(COUNTRY_INFO!A130=0," ",COUNTRY_INFO!A130) -> Ethiopia | B130: =IF(COUNTRY_INFO!B130=0," ",COUNTRY_INFO!B130) -> AmharaNorth Shoa | C130: =IF(COUNTRY_INFO!C130=0," ",COUNTRY_INFO!C130) -> Shewarobit Town | D130: =IF(COUNTRY_INFO!$T$9:$T$1000="MDA1 (IVM+ALB)", COUNTRY_INFO!$T$9:$T$1000, " ") ->  | I130: 0 | M130: 0
A131: =IF(COUNTRY_INFO!A131=0," ",COUNTRY_INFO!A131) -> Ethiopia | B131: =IF(COUNTRY_INFO!B131=0," ",COUNTRY_INFO!B131) -> AmharaNorth Shoa | C131: =IF(COUNTRY_INFO!C131=0," ",COUNTRY_INFO!C131) -> Siyadebirnawayu | D131: =IF(COUNTRY_INFO!$T$9:$T$1000="MDA1 (IVM+ALB)", COUNTRY_INFO!$T$9:$T$1000, " ") ->  | I131: 0 | M131: 0
A132: =IF(COUNTRY_INFO!A132=0," ",COUNTRY_INFO!A132) -> Ethiopia | B132: =IF(COUNTRY_INFO!B132=0," ",COUNTRY_INFO!B132) -> AmharaNorth Shoa | C132: =IF(COUNTRY_INFO!C132=0," ",COUNTRY_INFO!C132) -> Tarmaber | D132: =IF(COUNTRY_INFO!$T$9:$T$1000="MDA1 (IVM+ALB)", COUNTRY_INFO!$T$9:$T$1000, " ") ->  | I132: 0 | M132: 0
A133: =IF(COUNTRY_INFO!A133=0," ",COUNTRY_INFO!A133) -> Ethiopia | B133: =IF(COUNTRY_INFO!B133=0," ",COUNTRY_INFO!B133) -> AmharaNorth Wello | C133: =IF(COUNTRY_INFO!C133=0," ",COUNTRY_INFO!C133) -> Angot | D133: =IF(COUNTRY_INFO!$T$9:$T$1000="MDA1 (IVM+ALB)", COUNTRY_INFO!$T$9:$T$1000, " ") ->  | I133: 0 | M133: 0
A134: =IF(COUNTRY_INFO!A134=0," ",COUNTRY_INFO!A134) -> Ethiopia | B134: =IF(COUNTRY_INFO!B134=0," ",COUNTRY_INFO!B134) -> AmharaNorth Wello | C134: =IF(COUNTRY_INFO!C134=0," ",COUNTRY_INFO!C134) -> Bugna | D134: =IF(COUNTRY_INFO!$T$9:$T$1000="MDA1 (IVM+ALB)", COUNTRY_INFO!$T$9:$T$1000, " ") ->  | I134: 0 | M134: 0
A135: =IF(COUNTRY_INFO!A135=0," ",COUNTRY_INFO!A135) -> Ethiopia | B135: =IF(COUNTRY_INFO!B135=0," ",COUNTRY_INFO!B135) -> AmharaNorth Wello | C135: =IF(COUNTRY_INFO!C135=0," ",COUNTRY_INFO!C135) -> Dawunt | D135: =IF(COUNTRY_INFO!$T$9:$T$1000="MDA1 (IVM+ALB)", COUNTRY_INFO!$T$9:$T$1000, " ") ->  | I135: 0 | M135: 0
A136: =IF(COUNTRY_INFO!A136=0," ",COUNTRY_INFO!A136) -> Ethiopia | B136: =IF(COUNTRY_INFO!B136=0," ",COUNTRY_INFO!B136) -> AmharaNorth Wello | C136: =IF(COUNTRY_INFO!C136=0," ",COUNTRY_INFO!C136) -> Gazo | D136: =IF(COUNTRY_INFO!$T$9:$T$1000="MDA1 (IVM+ALB)", COUNTRY_INFO!$T$9:$T$1000, " ") ->  | I136: 0 | M136: 0
A137: =IF(COUNTRY_INFO!A137=0," ",COUNTRY_INFO!A137) -> Ethiopia | B137: =IF(COUNTRY_INFO!B137=0," ",COUNTRY_INFO!B137) -> AmharaNorth Wello | C137: =IF(COUNTRY_INFO!C137=0," ",COUNTRY_INFO!C137) -> Gidan | D137: =IF(COUNTRY_INFO!$T$9:$T$1000="MDA1 (IVM+ALB)", COUNTRY_INFO!$T$9:$T$1000, " ") ->  | I137: 0 | M137: 0
A138: =IF(COUNTRY_INFO!A138=0," ",COUNTRY_INFO!A138) -> Ethiopia | B138: =IF(COUNTRY_INFO!B138=0," ",COUNTRY_INFO!B138) -> AmharaNorth Wello | C138: =IF(COUNTRY_INFO!C138=0," ",COUNTRY_INFO!C138) -> Gubalafto | D138: =IF(COUNTRY_INFO!$T$9:$T$1000="MDA1 (IVM+ALB)", COUNTRY_INFO!$T$9:$T$1000, " ") ->  | I138: =SUM(F138:H138) -> 0 | M138: =SUM(J138:L138) -> 0 | O138: =IF(G138<>0, IF(K138/G138*100=0, "-", K138/G138*100), " ") ->  | P138: =IF(H138<>0, IF(L138/H138*100=0, "-", L138/H138*100), " ") ->  | Q138: =IF(I138<>0, IF(M138/I138*100=0, "-", M138/I138*100), " ") -> 
A139: =IF(COUNTRY_INFO!A139=0," ",COUNTRY_INFO!A139) -> Ethiopia | B139: =IF(COUNTRY_INFO!B139=0," ",COUNTRY_INFO!B139) -> AmharaNorth Wello | C139: =IF(COUNTRY_INFO!C139=0," ",COUNTRY_INFO!C139) -> Habru | D139: =IF(COUNTRY_INFO!$T$9:$T$1000="MDA1 (IVM+ALB)", COUNTRY_INFO!$T$9:$T$1000, " ") ->  | I139: 0 | M139: 0
A140: =IF(COUNTRY_INFO!A140=0," ",COUNTRY_INFO!A140) -> Ethiopia | B140: =IF(COUNTRY_INFO!B140=0," ",COUNTRY_INFO!B140) -> AmharaNorth Wello | C140: =IF(COUNTRY_INFO!C140=0," ",COUNTRY_INFO!C140) -> Kobo Town | D140: =IF(COUNTRY_INFO!$T$9:$T$1000="MDA1 (IVM+ALB)", COUNTRY_INFO!$T$9:$T$1000, " ") ->  | I140: 0 | M140: 0
A141: =IF(COUNTRY_INFO!A141=0," ",COUNTRY_INFO!A141) -> Ethiopia | B141: =IF(COUNTRY_INFO!B141=0," ",COUNTRY_INFO!B141) -> AmharaNorth Wello | C141: =IF(COUNTRY_INFO!C141=0," ",COUNTRY_INFO!C141) -> Lalibella Town | D141: =IF(COUNTRY_INFO!$T$9:$T$1000="MDA1 (IVM+ALB)", COUNTRY_INFO!$T$9:$T$1000, " ") ->  | I141: 0 | M141: 0
A142: =IF(COUNTRY_INFO!A142=0," ",COUNTRY_INFO!A142) -> Ethiopia | B142: =IF(COUNTRY_INFO!B142=0," ",COUNTRY_INFO!B142) -> AmharaNorth Wello | C142: =IF(COUNTRY_INFO!C142=0," ",COUNTRY_INFO!C142) -> Lasta | D142: =IF(COUNTRY_INFO!$T$9:$T$1000="MDA1 (IVM+ALB)", COUNTRY_INFO!$T$9:$T$1000, " ") ->  | I142: 0 | M142: 0
A143: =IF(COUNTRY_INFO!A143=0," ",COUNTRY_INFO!A143) -> Ethiopia | B143: =IF(COUNTRY_INFO!B143=0," ",COUNTRY_INFO!B143) -> AmharaNorth Wello | C143: =IF(COUNTRY_INFO!C143=0," ",COUNTRY_INFO!C143) -> Meket | D143: =IF(COUNTRY_INFO!$T$9:$T$1000="MDA1 (IVM+ALB)", COUNTRY_INFO!$T$9:$T$1000, " ") ->  | I143: 0 | M143: 0
A144: =IF(COUNTRY_INFO!A144=0," ",COUNTRY_INFO!A144) -> Ethiopia | B144: =IF(COUNTRY_INFO!B144=0," ",COUNTRY_INFO!B144) -> AmharaNorth Wello | C144: =IF(COUNTRY_INFO!C144=0," ",COUNTRY_INFO!C144) -> Raya Kobo | D144: =IF(COUNTRY_INFO!$T$9:$T$1000="MDA1 (IVM+ALB)", COUNTRY_INFO!$T$9:$T$1000, " ") ->  | I144: 0 | M144: 0
A145: =IF(COUNTRY_INFO!A145=0," ",COUNTRY_INFO!A145) -> Ethiopia | B145: =IF(COUNTRY_INFO!B145=0," ",COUNTRY_INFO!B145) -> AmharaNorth Wello | C145: =IF(COUNTRY_INFO!C145=0," ",COUNTRY_INFO!C145) -> Wadlla | D145: =IF(COUNTRY_INFO!$T$9:$T$1000="MDA1 (IVM+ALB)", COUNTRY_INFO!$T$9:$T$1000, " ") ->  | I145: 0 | M145: 0
A146: =IF(COUNTRY_INFO!A146=0," ",COUNTRY_INFO!A146) -> Ethiopia | B146: =IF(COUNTRY_INFO!B146=0," ",COUNTRY_INFO!B146) -> AmharaNorth Wello | C146: =IF(COUNTRY_INFO!C146=0," ",COUNTRY_INFO!C146) -> Woldia Town | D146: =IF(COUNTRY_INFO!$T$9:$T$1000="MDA1 (IVM+ALB)", COUNTRY_INFO!$T$9:$T$1000, " ") ->  | I146: 0 | M146: 0
A147: =IF(COUNTRY_INFO!A147=0," ",COUNTRY_INFO!A147) -> Ethiopia | B147: =IF(COUNTRY_INFO!B147=0," ",COUNTRY_INFO!B147) -> AmharaOromiya | C147: =IF(COUNTRY_INFO!C147=0," ",COUNTRY_INFO!C147) -> Artuma Fursi | D147: =IF(COUNTRY_INFO!$T$9:$T$1000="MDA1 (IVM+ALB)", COUNTRY_INFO!$T$9:$T$1000, " ") ->  | I147: 0 | M147: 0
A148: =IF(COUNTRY_INFO!A148=0," ",COUNTRY_INFO!A148) -> Ethiopia | B148: =IF(COUNTRY_INFO!B148=0," ",COUNTRY_INFO!B148) -> AmharaOromiya | C148: =IF(COUNTRY_INFO!C148=0," ",COUNTRY_INFO!C148) -> Bati | D148: =IF(COUNTRY_INFO!$T$9:$T$1000="MDA1 (IVM+ALB)", COUNTRY_INFO!$T$9:$T$1000, " ") ->  | I148: 0 | M148: 0
A149: =IF(COUNTRY_INFO!A149=0," ",COUNTRY_INFO!A149) -> Ethiopia | B149: =IF(COUNTRY_INFO!B149=0," ",COUNTRY_INFO!B149) -> AmharaOromiya | C149: =IF(COUNTRY_INFO!C149=0," ",COUNTRY_INFO!C149) -> Bati Town | D149: =IF(COUNTRY_INFO!$T$9:$T$1000="MDA1 (IVM+ALB)", COUNTRY_INFO!$T$9:$T$1000, " ") ->  | I149: 0 | M149: 0
A150: =IF(COUNTRY_INFO!A150=0," ",COUNTRY_INFO!A150) -> Ethiopia | B150: =IF(COUNTRY_INFO!B150=0," ",COUNTRY_INFO!B150) -> AmharaOromiya | C150: =IF(COUNTRY_INFO!C150=0," ",COUNTRY_INFO!C150) -> Dawa chefa | D150: =IF(COUNTRY_INFO!$T$9:$T$1000="MDA1 (IVM+ALB)", COUNTRY_INFO!$T$9:$T$1000, " ") ->  | I150: 0 | M150: 0
A151: =IF(COUNTRY_INFO!A151=0," ",COUNTRY_INFO!A151) -> Ethiopia | B151: =IF(COUNTRY_INFO!B151=0," ",COUNTRY_INFO!B151) -> AmharaOromiya | C151: =IF(COUNTRY_INFO!C151=0," ",COUNTRY_INFO!C151) -> Dawe Harwa | D151: =IF(COUNTRY_INFO!$T$9:$T$1000="MDA1 (IVM+ALB)", COUNTRY_INFO!$T$9:$T$1000, " ") ->  | I151: 0 | M151: 0
A152: =IF(COUNTRY_INFO!A152=0," ",COUNTRY_INFO!A152) -> Ethiopia | B152: =IF(COUNTRY_INFO!B152=0," ",COUNTRY_INFO!B152) -> AmharaOromiya | C152: =IF(COUNTRY_INFO!C152=0," ",COUNTRY_INFO!C152) -> Jille Timuga | D152: =IF(COUNTRY_INFO!$T$9:$T$1000="MDA1 (IVM+ALB)", COUNTRY_INFO!$T$9:$T$1000, " ") ->  | I152: 0 | M152: 0
A153: =IF(COUNTRY_INFO!A153=0," ",COUNTRY_INFO!A153) -> Ethiopia | B153: =IF(COUNTRY_INFO!B153=0," ",COUNTRY_INFO!B153) -> AmharaOromiya | C153: =IF(COUNTRY_INFO!C153=0," ",COUNTRY_INFO!C153) -> Kemissie | D153: =IF(COUNTRY_INFO!$T$9:$T$1000="MDA1 (IVM+ALB)", COUNTRY_INFO!$T$9:$T$1000, " ") ->  | I153: 0 | M153: 0
A154: =IF(COUNTRY_INFO!A154=0," ",COUNTRY_INFO!A154) -> Ethiopia | B154: =IF(COUNTRY_INFO!B154=0," ",COUNTRY_INFO!B154) -> AmharaSouth Gondar | C154: =IF(COUNTRY_INFO!C154=0," ",COUNTRY_INFO!C154) -> Andabet (West Estie) | D154: =IF(COUNTRY_INFO!$T$9:$T$1000="MDA1 (IVM+ALB)", COUNTRY_INFO!$T$9:$T$1000, " ") ->  | I154: 0 | M154: 0
A155: =IF(COUNTRY_INFO!A155=0," ",COUNTRY_INFO!A155) -> Ethiopia | B155: =IF(COUNTRY_INFO!B155=0," ",COUNTRY_INFO!B155) -> AmharaSouth Gondar | C155: =IF(COUNTRY_INFO!C155=0," ",COUNTRY_INFO!C155) -> Debre Tabor Town | D155: =IF(COUNTRY_INFO!$T$9:$T$1000="MDA1 (IVM+ALB)", COUNTRY_INFO!$T$9:$T$1000, " ") ->  | I155: 0 | M155: 0
A156: =IF(COUNTRY_INFO!A156=0," ",COUNTRY_INFO!A156) -> Ethiopia | B156: =IF(COUNTRY_INFO!B156=0," ",COUNTRY_INFO!B156) -> AmharaSouth Gondar | C156: =IF(COUNTRY_INFO!C156=0," ",COUNTRY_INFO!C156) -> Dera | D156: =IF(COUNTRY_INFO!$T$9:$T$1000="MDA1 (IVM+ALB)", COUNTRY_INFO!$T$9:$T$1000, " ") ->  | I156: 0 | M156: 0
A157: =IF(COUNTRY_INFO!A157=0," ",COUNTRY_INFO!A157) -> Ethiopia | B157: =IF(COUNTRY_INFO!B157=0," ",COUNTRY_INFO!B157) -> AmharaSouth Gondar | C157: =IF(COUNTRY_INFO!C157=0," ",COUNTRY_INFO!C157) -> Ebinat | D157: =IF(COUNTRY_INFO!$T$9:$T$1000="MDA1 (IVM+ALB)", COUNTRY_INFO!$T$9:$T$1000, " ") ->  | I157: 0 | M157: 0
A158: =IF(COUNTRY_INFO!A158=0," ",COUNTRY_INFO!A158) -> Ethiopia | B158: =IF(COUNTRY_INFO!B158=0," ",COUNTRY_INFO!B158) -> AmharaSouth Gondar | C158: =IF(COUNTRY_INFO!C158=0," ",COUNTRY_INFO!C158) -> Estie (East Estie) | D158: =IF(COUNTRY_INFO!$T$9:$T$1000="MDA1 (IVM+ALB)", COUNTRY_INFO!$T$9:$T$1000, " ") ->  | I158: 0 | M158: 0
A159: =IF(COUNTRY_INFO!A159=0," ",COUNTRY_INFO!A159) -> Ethiopia | B159: =IF(COUNTRY_INFO!B159=0," ",COUNTRY_INFO!B159) -> AmharaSouth Gondar | C159: =IF(COUNTRY_INFO!C159=0," ",COUNTRY_INFO!C159) -> Farta | D159: =IF(COUNTRY_INFO!$T$9:$T$1000="MDA1 (IVM+ALB)", COUNTRY_INFO!$T$9:$T$1000, " ") ->  | I159: 0 | M159: 0
A160: =IF(COUNTRY_INFO!A160=0," ",COUNTRY_INFO!A160) -> Ethiopia | B160: =IF(COUNTRY_INFO!B160=0," ",COUNTRY_INFO!B160) -> AmharaSouth Gondar | C160: =IF(COUNTRY_INFO!C160=0," ",COUNTRY_INFO!C160) -> Fogera | D160: =IF(COUNTRY_INFO!$T$9:$T$1000="MDA1 (IVM+ALB)", COUNTRY_INFO!$T$9:$T$1000, " ") ->  | I160: 0 | M160: 0
A161: =IF(COUNTRY_INFO!A161=0," ",COUNTRY_INFO!A161) -> Ethiopia | B161: =IF(COUNTRY_INFO!B161=0," ",COUNTRY_INFO!B161) -> AmharaSouth Gondar | C161: =IF(COUNTRY_INFO!C161=0," ",COUNTRY_INFO!C161) -> Gunabegemidir | D161: =IF(COUNTRY_INFO!$T$9:$T$1000="MDA1 (IVM+ALB)", COUNTRY_INFO!$T$9:$T$1000, " ") ->  | I161: 0 | M161: 0
A162: =IF(COUNTRY_INFO!A162=0," ",COUNTRY_INFO!A162) -> Ethiopia | B162: =IF(COUNTRY_INFO!B162=0," ",COUNTRY_INFO!B162) -> AmharaSouth Gondar | C162: =IF(COUNTRY_INFO!C162=0," ",COUNTRY_INFO!C162) -> Lay Gaint | D162: =IF(COUNTRY_INFO!$T$9:$T$1000="MDA1 (IVM+ALB)", COUNTRY_INFO!$T$9:$T$1000, " ") ->  | I162: 0 | M162: 0
A163: =IF(COUNTRY_INFO!A163=0," ",COUNTRY_INFO!A163) -> Ethiopia | B163: =IF(COUNTRY_INFO!B163=0," ",COUNTRY_INFO!B163) -> AmharaSouth Gondar | C163: =IF(COUNTRY_INFO!C163=0," ",COUNTRY_INFO!C163) -> Libo Kemkem | D163: =IF(COUNTRY_INFO!$T$9:$T$1000="MDA1 (IVM+ALB)", COUNTRY_INFO!$T$9:$T$1000, " ") ->  | I163: 0 | M163: 0
A164: =IF(COUNTRY_INFO!A164=0," ",COUNTRY_INFO!A164) -> Ethiopia | B164: =IF(COUNTRY_INFO!B164=0," ",COUNTRY_INFO!B164) -> AmharaSouth Gondar | C164: =IF(COUNTRY_INFO!C164=0," ",COUNTRY_INFO!C164) -> Meketewa | D164: =IF(COUNTRY_INFO!$T$9:$T$1000="MDA1 (IVM+ALB)", COUNTRY_INFO!$T$9:$T$1000, " ") ->  | I164: 0 | M164: 0
A165: =IF(COUNTRY_INFO!A165=0," ",COUNTRY_INFO!A165) -> Ethiopia | B165: =IF(COUNTRY_INFO!B165=0," ",COUNTRY_INFO!B165) -> AmharaSouth Gondar | C165: =IF(COUNTRY_INFO!C165=0," ",COUNTRY_INFO!C165) -> Sediemuja | D165: =IF(COUNTRY_INFO!$T$9:$T$1000="MDA1 (IVM+ALB)", COUNTRY_INFO!$T$9:$T$1000, " ") ->  | I165: 0 | M165: 0
A166: =IF(COUNTRY_INFO!A166=0," ",COUNTRY_INFO!A166) -> Ethiopia | B166: =IF(COUNTRY_INFO!B166=0," ",COUNTRY_INFO!B166) -> AmharaSouth Gondar | C166: =IF(COUNTRY_INFO!C166=0," ",COUNTRY_INFO!C166) -> Simada | D166: =IF(COUNTRY_INFO!$T$9:$T$1000="MDA1 (IVM+ALB)", COUNTRY_INFO!$T$9:$T$1000, " ") -> MDA1 (IVM+ALB) | E166: 15 October | G166: 51607 | H166: 101827 | I166: 153434 | K166: 50597 | L166: 93395 | M166: 143992 | O166: 98.04290116 | P166: 91.7192886 | Q166: 93.84621401
A167: =IF(COUNTRY_INFO!A167=0," ",COUNTRY_INFO!A167) -> Ethiopia | B167: =IF(COUNTRY_INFO!B167=0," ",COUNTRY_INFO!B167) -> AmharaSouth Gondar | C167: =IF(COUNTRY_INFO!C167=0," ",COUNTRY_INFO!C167) -> Tach Gaint | D167: =IF(COUNTRY_INFO!$T$9:$T$1000="MDA1 (IVM+ALB)", COUNTRY_INFO!$T$9:$T$1000, " ") -> MDA1 (IVM+ALB) | E167: 15 October | G167: 34282 | H167: 67641 | I167: 101923 | K167: 33247 | L167: 59105 | M167: 92352 | O167: 96.98092293 | P167: 87.38043494 | Q167: 90.60957782
A168: =IF(COUNTRY_INFO!A168=0," ",COUNTRY_INFO!A168) -> Ethiopia | B168: =IF(COUNTRY_INFO!B168=0," ",COUNTRY_INFO!B168) -> AmharaSouth Gondar | C168: =IF(COUNTRY_INFO!C168=0," ",COUNTRY_INFO!C168) -> Woreta Town | D168: =IF(COUNTRY_INFO!$T$9:$T$1000="MDA1 (IVM+ALB)", COUNTRY_INFO!$T$9:$T$1000, " ") ->  | I168: 0 | M168: 0
A169: =IF(COUNTRY_INFO!A169=0," ",COUNTRY_INFO!A169) -> Ethiopia | B169: =IF(COUNTRY_INFO!B169=0," ",COUNTRY_INFO!B169) -> AmharaSouth Wello | C169: =IF(COUNTRY_INFO!C169=0," ",COUNTRY_INFO!C169) -> Albuko | D169: =IF(COUNTRY_INFO!$T$9:$T$1000="MDA1 (IVM+ALB)", COUNTRY_INFO!$T$9:$T$1000, " ") ->  | I169: 0 | M169: 0
A170: =IF(COUNTRY_INFO!A170=0," ",COUNTRY_INFO!A170) -> Ethiopia | B170: =IF(COUNTRY_INFO!B170=0," ",COUNTRY_INFO!B170) -> AmharaSouth Wello | C170: =IF(COUNTRY_INFO!C170=0," ",COUNTRY_INFO!C170) -> Ambasel | D170: =IF(COUNTRY_INFO!$T$9:$T$1000="MDA1 (IVM+ALB)", COUNTRY_INFO!$T$9:$T$1000, " ") ->  | I170: 0 | M170: 0
A171: =IF(COUNTRY_INFO!A171=0," ",COUNTRY_INFO!A171) -> Ethiopia | B171: =IF(COUNTRY_INFO!B171=0," ",COUNTRY_INFO!B171) -> AmharaSouth Wello | C171: =IF(COUNTRY_INFO!C171=0," ",COUNTRY_INFO!C171) -> Argoba | D171: =IF(COUNTRY_INFO!$T$9:$T$1000="MDA1 (IVM+ALB)", COUNTRY_INFO!$T$9:$T$1000, " ") ->  | I171: 0 | M171: 0
A172: =IF(COUNTRY_INFO!A172=0," ",COUNTRY_INFO!A172) -> Ethiopia | B172: =IF(COUNTRY_INFO!B172=0," ",COUNTRY_INFO!B172) -> AmharaSouth Wello | C172: =IF(COUNTRY_INFO!C172=0," ",COUNTRY_INFO!C172) -> Borena | D172: =IF(COUNTRY_INFO!$T$9:$T$1000="MDA1 (IVM+ALB)", COUNTRY_INFO!$T$9:$T$1000, " ") ->  | I172: 0 | M172: 0
A173: =IF(COUNTRY_INFO!A173=0," ",COUNTRY_INFO!A173) -> Ethiopia | B173: =IF(COUNTRY_INFO!B173=0," ",COUNTRY_INFO!B173) -> AmharaSouth Wello | C173: =IF(COUNTRY_INFO!C173=0," ",COUNTRY_INFO!C173) -> Dalanta | D173: =IF(COUNTRY_INFO!$T$9:$T$1000="MDA1 (IVM+ALB)", COUNTRY_INFO!$T$9:$T$1000, " ") ->  | I173: 0 | M173: 0
A174: =IF(COUNTRY_INFO!A174=0," ",COUNTRY_INFO!A174) -> Ethiopia | B174: =IF(COUNTRY_INFO!B174=0," ",COUNTRY_INFO!B174) -> AmharaSouth Wello | C174: =IF(COUNTRY_INFO!C174=0," ",COUNTRY_INFO!C174) -> Dessie Town | D174: =IF(COUNTRY_INFO!$T$9:$T$1000="MDA1 (IVM+ALB)", COUNTRY_INFO!$T$9:$T$1000, " ") ->  | I174: 0 | M174: 0
A175: =IF(COUNTRY_INFO!A175=0," ",COUNTRY_INFO!A175) -> Ethiopia | B175: =IF(COUNTRY_INFO!B175=0," ",COUNTRY_INFO!B175) -> AmharaSouth Wello | C175: =IF(COUNTRY_INFO!C175=0," ",COUNTRY_INFO!C175) -> Dessie zuria | D175: =IF(COUNTRY_INFO!$T$9:$T$1000="MDA1 (IVM+ALB)", COUNTRY_INFO!$T$9:$T$1000, " ") ->  | I175: 0 | M175: 0
A176: =IF(COUNTRY_INFO!A176=0," ",COUNTRY_INFO!A176) -> Ethiopia | B176: =IF(COUNTRY_INFO!B176=0," ",COUNTRY_INFO!B176) -> AmharaSouth Wello | C176: =IF(COUNTRY_INFO!C176=0," ",COUNTRY_INFO!C176) -> Jama | D176: =IF(COUNTRY_INFO!$T$9:$T$1000="MDA1 (IVM+ALB)", COUNTRY_INFO!$T$9:$T$1000, " ") ->  | I176: 0 | M176: 0
A177: =IF(COUNTRY_INFO!A177=0," ",COUNTRY_INFO!A177) -> Ethiopia | B177: =IF(COUNTRY_INFO!B177=0," ",COUNTRY_INFO!B177) -> AmharaSouth Wello | C177: =IF(COUNTRY_INFO!C177=0," ",COUNTRY_INFO!C177) -> Kallu | D177: =IF(COUNTRY_INFO!$T$9:$T$1000="MDA1 (IVM+ALB)", COUNTRY_INFO!$T$9:$T$1000, " ") ->  | I177: 0 | M177: 0
A178: =IF(COUNTRY_INFO!A178=0," ",COUNTRY_INFO!A178) -> Ethiopia | B178: =IF(COUNTRY_INFO!B178=0," ",COUNTRY_INFO!B178) -> AmharaSouth Wello | C178: =IF(COUNTRY_INFO!C178=0," ",COUNTRY_INFO!C178) -> Kelala | D178: =IF(COUNTRY_INFO!$T$9:$T$1000="MDA1 (IVM+ALB)", COUNTRY_INFO!$T$9:$T$1000, " ") ->  | I178: 0 | M178: 0
A179: =IF(COUNTRY_INFO!A179=0," ",COUNTRY_INFO!A179) -> Ethiopia | B179: =IF(COUNTRY_INFO!B179=0," ",COUNTRY_INFO!B179) -> AmharaSouth Wello | C179: =IF(COUNTRY_INFO!C179=0," ",COUNTRY_INFO!C179) -> Kombolcha | D179: =IF(COUNTRY_INFO!$T$9:$T$1000="MDA1 (IVM+ALB)", COUNTRY_INFO!$T$9:$T$1000, " ") ->  | I179: 0 | M179: 0
A180: =IF(COUNTRY_INFO!A180=0," ",COUNTRY_INFO!A180) -> Ethiopia | B180: =IF(COUNTRY_INFO!B180=0," ",COUNTRY_INFO!B180) -> AmharaSouth Wello | C180: =IF(COUNTRY_INFO!C180=0," ",COUNTRY_INFO!C180) -> Kutaber | D180: =IF(COUNTRY_INFO!$T$9:$T$1000="MDA1 (IVM+ALB)", COUNTRY_INFO!$T$9:$T$1000, " ") ->  | I180: 0 | M180: 0
A181: =IF(COUNTRY_INFO!A181=0," ",COUNTRY_INFO!A181) -> Ethiopia | B181: =IF(COUNTRY_INFO!B181=0," ",COUNTRY_INFO!B181) -> AmharaSouth Wello | C181: =IF(COUNTRY_INFO!C181=0," ",COUNTRY_INFO!C181) -> Lagambo | D181: =IF(COUNTRY_INFO!$T$9:$T$1000="MDA1 (IVM+ALB)", COUNTRY_INFO!$T$9:$T$1000, " ") ->  | I181: 0 | M181: 0
A182: =IF(COUNTRY_INFO!A182=0," ",COUNTRY_INFO!A182) -> Ethiopia | B182: =IF(COUNTRY_INFO!B182=0," ",COUNTRY_INFO!B182) -> AmharaSouth Wello | C182: =IF(COUNTRY_INFO!C182=0," ",COUNTRY_INFO!C182) -> Lege hida | D182: =IF(COUNTRY_INFO!$T$9:$T$1000="MDA1 (IVM+ALB)", COUNTRY_INFO!$T$9:$T$1000, " ") ->  | I182: 0 | M182: 0
A183: =IF(COUNTRY_INFO!A183=0," ",COUNTRY_INFO!A183) -> Ethiopia | B183: =IF(COUNTRY_INFO!B183=0," ",COUNTRY_INFO!B183) -> AmharaSouth Wello | C183: =IF(COUNTRY_INFO!C183=0," ",COUNTRY_INFO!C183) -> Mehal Sainet | D183: =IF(COUNTRY_INFO!$T$9:$T$1000="MDA1 (IVM+ALB)", COUNTRY_INFO!$T$9:$T$1000, " ") ->  | I183: 0 | M183: 0
A184: =IF(COUNTRY_INFO!A184=0," ",COUNTRY_INFO!A184) -> Ethiopia | B184: =IF(COUNTRY_INFO!B184=0," ",COUNTRY_INFO!B184) -> AmharaSouth Wello | C184: =IF(COUNTRY_INFO!C184=0," ",COUNTRY_INFO!C184) -> Mekdela | D184: =IF(COUNTRY_INFO!$T$9:$T$1000="MDA1 (IVM+ALB)", COUNTRY_INFO!$T$9:$T$1000, " ") ->  | I184: 0 | M184: 0
A185: =IF(COUNTRY_INFO!A185=0," ",COUNTRY_INFO!A185) -> Ethiopia | B185: =IF(COUNTRY_INFO!B185=0," ",COUNTRY_INFO!B185) -> AmharaSouth Wello | C185: =IF(COUNTRY_INFO!C185=0," ",COUNTRY_INFO!C185) -> Sainet | D185: =IF(COUNTRY_INFO!$T$9:$T$1000="MDA1 (IVM+ALB)", COUNTRY_INFO!$T$9:$T$1000, " ") ->  | I185: 0 | M185: 0
A186: =IF(COUNTRY_INFO!A186=0," ",COUNTRY_INFO!A186) -> Ethiopia | B186: =IF(COUNTRY_INFO!B186=0," ",COUNTRY_INFO!B186) -> AmharaSouth Wello | C186: =IF(COUNTRY_INFO!C186=0," ",COUNTRY_INFO!C186) -> Tehuledere | D186: =IF(COUNTRY_INFO!$T$9:$T$1000="MDA1 (IVM+ALB)", COUNTRY_INFO!$T$9:$T$1000, " ") ->  | I186: 0 | M186: 0
A187: =IF(COUNTRY_INFO!A187=0," ",COUNTRY_INFO!A187) -> Ethiopia | B187: =IF(COUNTRY_INFO!B187=0," ",COUNTRY_INFO!B187) -> AmharaSouth Wello | C187: =IF(COUNTRY_INFO!C187=0," ",COUNTRY_INFO!C187) -> Tenta | D187: =IF(COUNTRY_INFO!$T$9:$T$1000="MDA1 (IVM+ALB)", COUNTRY_INFO!$T$9:$T$1000, " ") ->  | I187: 0 | M187: 0
A188: =IF(COUNTRY_INFO!A188=0," ",COUNTRY_INFO!A188) -> Ethiopia | B188: =IF(COUNTRY_INFO!B188=0," ",COUNTRY_INFO!B188) -> AmharaSouth Wello | C188: =IF(COUNTRY_INFO!C188=0," ",COUNTRY_INFO!C188) -> Wegdy | D188: =IF(COUNTRY_INFO!$T$9:$T$1000="MDA1 (IVM+ALB)", COUNTRY_INFO!$T$9:$T$1000, " ") ->  | I188: 0 | M188: 0
A189: =IF(COUNTRY_INFO!A189=0," ",COUNTRY_INFO!A189) -> Ethiopia | B189: =IF(COUNTRY_INFO!B189=0," ",COUNTRY_INFO!B189) -> AmharaSouth Wello | C189: =IF(COUNTRY_INFO!C189=0," ",COUNTRY_INFO!C189) -> Wereilu | D189: =IF(COUNTRY_INFO!$T$9:$T$1000="MDA1 (IVM+ALB)", COUNTRY_INFO!$T$9:$T$1000, " ") ->  | I189: 0 | M189: 0
A190: =IF(COUNTRY_INFO!A190=0," ",COUNTRY_INFO!A190) -> Ethiopia | B190: =IF(COUNTRY_INFO!B190=0," ",COUNTRY_INFO!B190) -> AmharaSouth Wello | C190: =IF(COUNTRY_INFO!C190=0," ",COUNTRY_INFO!C190) -> Worebabo | D190: =IF(COUNTRY_INFO!$T$9:$T$1000="MDA1 (IVM+ALB)", COUNTRY_INFO!$T$9:$T$1000, " ") ->  | I190: 0 | M190: 0
A191: =IF(COUNTRY_INFO!A191=0," ",COUNTRY_INFO!A191) -> Ethiopia | B191: =IF(COUNTRY_INFO!B191=0," ",COUNTRY_INFO!B191) -> AmharaWag Hemra | C191: =IF(COUNTRY_INFO!C191=0," ",COUNTRY_INFO!C191) -> Abergele | D191: =IF(COUNTRY_INFO!$T$9:$T$1000="MDA1 (IVM+ALB)", COUNTRY_INFO!$T$9:$T$1000, " ") ->  | I191: 0 | M191: 0
A192: =IF(COUNTRY_INFO!A192=0," ",COUNTRY_INFO!A192) -> Ethiopia | B192: =IF(COUNTRY_INFO!B192=0," ",COUNTRY_INFO!B192) -> AmharaWag Hemra | C192: =IF(COUNTRY_INFO!C192=0," ",COUNTRY_INFO!C192) -> Dehana | D192: =IF(COUNTRY_INFO!$T$9:$T$1000="MDA1 (IVM+ALB)", COUNTRY_INFO!$T$9:$T$1000, " ") ->  | I192: 0 | M192: 0
A193: =IF(COUNTRY_INFO!A193=0," ",COUNTRY_INFO!A193) -> Ethiopia | B193: =IF(COUNTRY_INFO!B193=0," ",COUNTRY_INFO!B193) -> AmharaWag Hemra | C193: =IF(COUNTRY_INFO!C193=0," ",COUNTRY_INFO!C193) -> Gazgibla | D193: =IF(COUNTRY_INFO!$T$9:$T$1000="MDA1 (IVM+ALB)", COUNTRY_INFO!$T$9:$T$1000, " ") ->  | I193: 0 | M193: 0
A194: =IF(COUNTRY_INFO!A194=0," ",COUNTRY_INFO!A194) -> Ethiopia | B194: =IF(COUNTRY_INFO!B194=0," ",COUNTRY_INFO!B194) -> AmharaWag Hemra | C194: =IF(COUNTRY_INFO!C194=0," ",COUNTRY_INFO!C194) -> Sahala Seyemt | D194: =IF(COUNTRY_INFO!$T$9:$T$1000="MDA1 (IVM+ALB)", COUNTRY_INFO!$T$9:$T$1000, " ") ->  | I194: 0 | M194: 0
A195: =IF(COUNTRY_INFO!A195=0," ",COUNTRY_INFO!A195) -> Ethiopia | B195: =IF(COUNTRY_INFO!B195=0," ",COUNTRY_INFO!B195) -> AmharaWag Hemra | C195: =IF(COUNTRY_INFO!C195=0," ",COUNTRY_INFO!C195) -> Sekota town | D195: =IF(COUNTRY_INFO!$T$9:$T$1000="MDA1 (IVM+ALB)", COUNTRY_INFO!$T$9:$T$1000, " ") ->  | I195: 0 | M195: 0
A196: =IF(COUNTRY_INFO!A196=0," ",COUNTRY_INFO!A196) -> Ethiopia | B196: =IF(COUNTRY_INFO!B196=0," ",COUNTRY_INFO!B196) -> AmharaWag Hemra | C196: =IF(COUNTRY_INFO!C196=0," ",COUNTRY_INFO!C196) -> Sekota Zuria | D196: =IF(COUNTRY_INFO!$T$9:$T$1000="MDA1 (IVM+ALB)", COUNTRY_INFO!$T$9:$T$1000, " ") ->  | I196: 0 | M196: 0
A197: =IF(COUNTRY_INFO!A197=0," ",COUNTRY_INFO!A197) -> Ethiopia | B197: =IF(COUNTRY_INFO!B197=0," ",COUNTRY_INFO!B197) -> AmharaWag Hemra | C197: =IF(COUNTRY_INFO!C197=0," ",COUNTRY_INFO!C197) -> Tsagibji | D197: =IF(COUNTRY_INFO!$T$9:$T$1000="MDA1 (IVM+ALB)", COUNTRY_INFO!$T$9:$T$1000, " ") ->  | I197: 0 | M197: 0
A198: =IF(COUNTRY_INFO!A198=0," ",COUNTRY_INFO!A198) -> Ethiopia | B198: =IF(COUNTRY_INFO!B198=0," ",COUNTRY_INFO!B198) -> AmharaWag Hemra | C198: =IF(COUNTRY_INFO!C198=0," ",COUNTRY_INFO!C198) -> Ziquala | D198: =IF(COUNTRY_INFO!$T$9:$T$1000="MDA1 (IVM+ALB)", COUNTRY_INFO!$T$9:$T$1000, " ") ->  | I198: 0 | M198: 0
A199: =IF(COUNTRY_INFO!A199=0," ",COUNTRY_INFO!A199) -> Ethiopia | B199: =IF(COUNTRY_INFO!B199=0," ",COUNTRY_INFO!B199) -> AmharaWest Gojam | C199: =IF(COUNTRY_INFO!C199=0," ",COUNTRY_INFO!C199) -> Bahidar Zuria | D199: =IF(COUNTRY_INFO!$T$9:$T$1000="MDA1 (IVM+ALB)", COUNTRY_INFO!$T$9:$T$1000, " ") ->  | I199: 0 | M199: 0
A200: =IF(COUNTRY_INFO!A200=0," ",COUNTRY_INFO!A200) -> Ethiopia | B200: =IF(COUNTRY_INFO!B200=0," ",COUNTRY_INFO!B200) -> AmharaWest Gojam | C200: =IF(COUNTRY_INFO!C200=0," ",COUNTRY_INFO!C200) -> Bahirdar City | D200: =IF(COUNTRY_INFO!$T$9:$T$1000="MDA1 (IVM+ALB)", COUNTRY_INFO!$T$9:$T$1000, " ") ->  | I200: 0 | M200: 0
A201: =IF(COUNTRY_INFO!A201=0," ",COUNTRY_INFO!A201) -> Ethiopia | B201: =IF(COUNTRY_INFO!B201=0," ",COUNTRY_INFO!B201) -> AmharaWest Gojam | C201: =IF(COUNTRY_INFO!C201=0," ",COUNTRY_INFO!C201) -> Bure Town | D201: =IF(COUNTRY_INFO!$T$9:$T$1000="MDA1 (IVM+ALB)", COUNTRY_INFO!$T$9:$T$1000, " ") ->  | I201: 0 | M201: 0
A202: =IF(COUNTRY_INFO!A202=0," ",COUNTRY_INFO!A202) -> Ethiopia | B202: =IF(COUNTRY_INFO!B202=0," ",COUNTRY_INFO!B202) -> AmharaWest Gojam | C202: =IF(COUNTRY_INFO!C202=0," ",COUNTRY_INFO!C202) -> Bure Zuria | D202: =IF(COUNTRY_INFO!$T$9:$T$1000="MDA1 (IVM+ALB)", COUNTRY_INFO!$T$9:$T$1000, " ") ->  | I202: =SUM(F202:H202) -> 0 | M202: =SUM(J202:L202) -> 0 | O202: =IF(G202<>0, IF(K202/G202*100=0, "-", K202/G202*100), " ") ->  | P202: =IF(H202<>0, IF(L202/H202*100=0, "-", L202/H202*100), " ") ->  | Q202: =IF(I202<>0, IF(M202/I202*100=0, "-", M202/I202*100), " ") -> 
A203: =IF(COUNTRY_INFO!A203=0," ",COUNTRY_INFO!A203) -> Ethiopia | B203: =IF(COUNTRY_INFO!B203=0," ",COUNTRY_INFO!B203) -> AmharaWest Gojam | C203: =IF(COUNTRY_INFO!C203=0," ",COUNTRY_INFO!C203) -> Dega Damot | D203: =IF(COUNTRY_INFO!$T$9:$T$1000="MDA1 (IVM+ALB)", COUNTRY_INFO!$T$9:$T$1000, " ") ->  | I203: 0 | M203: 0
... 703 more rows

Sheet MDA2 (hidden)
A1: MDA 2 - Diethylcarbamazine citrate (DEC) + Albendazole (ALB)
A2: Administrative structure, population requiring PC by age group, population treated by age group and coverage
A4: TOTAL | F4: =SUM(F$9:F$1000) -> 0 | G4: =SUM(G$9:G$1000) -> 0 | H4: 0 | I4: 0 | J4: 0 | K4: 0 | L4: 0 | M4: 0 | N4: =IF(F4<>0, IF(J4/F4*100=0, "-", J4/F4*100), " ") ->  | O4: =IF(G4<>0, IF(K4/G4*100=0, "-", K4/G4*100), " ") ->  | P4: =IF(H4<>0, IF(L4/H4*100=0, "-", L4/H4*100), " ") ->  | Q4: =IF(I4<>0, IF(M4/I4*100=0, "-", M4/I4*100), " ") -> 
D6: PC implemented | E6: Date | F6: Population targeted for MDA 2 | J6: Population treated | N6: Programme coverage (%)
A7: Country | B7: Province/State | C7: District | F7: PreSAC | G7: SAC | H7: Adults | I7: Total | J7: PreSAC | K7: SAC | L7: Adults | M7: Total | N7: PreSAC | O7: SAC | P7: Adults | Q7: Total
A9: =IF(COUNTRY_INFO!A9=0," ",COUNTRY_INFO!A9) -> Ethiopia | B9: =IF(COUNTRY_INFO!B9=0," ",COUNTRY_INFO!B9) -> Addis AbabaAddis Ababa | C9: =IF(COUNTRY_INFO!C9=0," ",COUNTRY_INFO!C9) -> Addis Ketema Subcity | D9: =IF(COUNTRY_INFO!$T$9:$T$1000="MDA2 (DEC+ALB)", COUNTRY_INFO!$T$9:$T$1000, " ") ->  | I9: =SUM(F9:H9) -> 0 | M9: =SUM(J9:L9) -> 0 | N9: =IF(F9<>0, IF(J9/F9*100=0, "-", J9/F9*100), " ") ->  | O9: =IF(G9<>0, IF(K9/G9*100=0, "-", K9/G9*100), " ") ->  | P9: =IF(H9<>0, IF(L9/H9*100=0, "-", L9/H9*100), " ") ->  | Q9: =IF(I9<>0, IF(M9/I9*100=0, "-", M9/I9*100), " ") -> 
A10: =IF(COUNTRY_INFO!A10=0," ",COUNTRY_INFO!A10) -> Ethiopia | B10: =IF(COUNTRY_INFO!B10=0," ",COUNTRY_INFO!B10) -> Addis AbabaAddis Ababa | C10: =IF(COUNTRY_INFO!C10=0," ",COUNTRY_INFO!C10) -> Akaki Kaliti Subcity | D10: =IF(COUNTRY_INFO!$T$9:$T$1000="MDA2 (DEC+ALB)", COUNTRY_INFO!$T$9:$T$1000, " ") ->  | I10: =SUM(F10:H10) -> 0 | M10: =SUM(J10:L10) -> 0 | N10: =IF(F10<>0, IF(J10/F10*100=0, "-", J10/F10*100), " ") ->  | O10: =IF(G10<>0, IF(K10/G10*100=0, "-", K10/G10*100), " ") ->  | P10: =IF(H10<>0, IF(L10/H10*100=0, "-", L10/H10*100), " ") ->  | Q10: =IF(I10<>0, IF(M10/I10*100=0, "-", M10/I10*100), " ") -> 
A11: =IF(COUNTRY_INFO!A11=0," ",COUNTRY_INFO!A11) -> Ethiopia | B11: =IF(COUNTRY_INFO!B11=0," ",COUNTRY_INFO!B11) -> Addis AbabaAddis Ababa | C11: =IF(COUNTRY_INFO!C11=0," ",COUNTRY_INFO!C11) -> Arada Subcity | D11: =IF(COUNTRY_INFO!$T$9:$T$1000="MDA2 (DEC+ALB)", COUNTRY_INFO!$T$9:$T$1000, " ") ->  | I11: 0 | M11: 0
A12: =IF(COUNTRY_INFO!A12=0," ",COUNTRY_INFO!A12) -> Ethiopia | B12: =IF(COUNTRY_INFO!B12=0," ",COUNTRY_INFO!B12) -> Addis AbabaAddis Ababa | C12: =IF(COUNTRY_INFO!C12=0," ",COUNTRY_INFO!C12) -> Bolle Subcity | D12: =IF(COUNTRY_INFO!$T$9:$T$1000="MDA2 (DEC+ALB)", COUNTRY_INFO!$T$9:$T$1000, " ") ->  | I12: 0 | M12: 0
A13: =IF(COUNTRY_INFO!A13=0," ",COUNTRY_INFO!A13) -> Ethiopia | B13: =IF(COUNTRY_INFO!B13=0," ",COUNTRY_INFO!B13) -> Addis AbabaAddis Ababa | C13: =IF(COUNTRY_INFO!C13=0," ",COUNTRY_INFO!C13) -> Gulelie Subcity | D13: =IF(COUNTRY_INFO!$T$9:$T$1000="MDA2 (DEC+ALB)", COUNTRY_INFO!$T$9:$T$1000, " ") ->  | I13: 0 | M13: 0
A14: =IF(COUNTRY_INFO!A14=0," ",COUNTRY_INFO!A14) -> Ethiopia | B14: =IF(COUNTRY_INFO!B14=0," ",COUNTRY_INFO!B14) -> Addis AbabaAddis Ababa | C14: =IF(COUNTRY_INFO!C14=0," ",COUNTRY_INFO!C14) -> Kirkose Subcity | D14: =IF(COUNTRY_INFO!$T$9:$T$1000="MDA2 (DEC+ALB)", COUNTRY_INFO!$T$9:$T$1000, " ") ->  | I14: 0 | M14: 0
A15: =IF(COUNTRY_INFO!A15=0," ",COUNTRY_INFO!A15) -> Ethiopia | B15: =IF(COUNTRY_INFO!B15=0," ",COUNTRY_INFO!B15) -> Addis AbabaAddis Ababa | C15: =IF(COUNTRY_INFO!C15=0," ",COUNTRY_INFO!C15) -> Kolfie Keranio Subcity | D15: =IF(COUNTRY_INFO!$T$9:$T$1000="MDA2 (DEC+ALB)", COUNTRY_INFO!$T$9:$T$1000, " ") ->  | I15: 0 | M15: 0
A16: =IF(COUNTRY_INFO!A16=0," ",COUNTRY_INFO!A16) -> Ethiopia | B16: =IF(COUNTRY_INFO!B16=0," ",COUNTRY_INFO!B16) -> Addis AbabaAddis Ababa | C16: =IF(COUNTRY_INFO!C16=0," ",COUNTRY_INFO!C16) -> Lideta Subcity | D16: =IF(COUNTRY_INFO!$T$9:$T$1000="MDA2 (DEC+ALB)", COUNTRY_INFO!$T$9:$T$1000, " ") ->  | I16: 0 | M16: 0
A17: =IF(COUNTRY_INFO!A17=0," ",COUNTRY_INFO!A17) -> Ethiopia | B17: =IF(COUNTRY_INFO!B17=0," ",COUNTRY_INFO!B17) -> Addis AbabaAddis Ababa | C17: =IF(COUNTRY_INFO!C17=0," ",COUNTRY_INFO!C17) -> Nifase Silk Lafto Subcity | D17: =IF(COUNTRY_INFO!$T$9:$T$1000="MDA2 (DEC+ALB)", COUNTRY_INFO!$T$9:$T$1000, " ") ->  | I17: 0 | M17: 0
A18: =IF(COUNTRY_INFO!A18=0," ",COUNTRY_INFO!A18) -> Ethiopia | B18: =IF(COUNTRY_INFO!B18=0," ",COUNTRY_INFO!B18) -> Addis AbabaAddis Ababa | C18: =IF(COUNTRY_INFO!C18=0," ",COUNTRY_INFO!C18) -> Yeka Subcity | D18: =IF(COUNTRY_INFO!$T$9:$T$1000="MDA2 (DEC+ALB)", COUNTRY_INFO!$T$9:$T$1000, " ") ->  | I18: 0 | M18: 0
A19: =IF(COUNTRY_INFO!A19=0," ",COUNTRY_INFO!A19) -> Ethiopia | B19: =IF(COUNTRY_INFO!B19=0," ",COUNTRY_INFO!B19) -> AfarAwsa | C19: =IF(COUNTRY_INFO!C19=0," ",COUNTRY_INFO!C19) -> Abala | D19: =IF(COUNTRY_INFO!$T$9:$T$1000="MDA2 (DEC+ALB)", COUNTRY_INFO!$T$9:$T$1000, " ") ->  | I19: 0 | M19: 0
A20: =IF(COUNTRY_INFO!A20=0," ",COUNTRY_INFO!A20) -> Ethiopia | B20: =IF(COUNTRY_INFO!B20=0," ",COUNTRY_INFO!B20) -> AfarAwsa | C20: =IF(COUNTRY_INFO!C20=0," ",COUNTRY_INFO!C20) -> Adar | D20: =IF(COUNTRY_INFO!$T$9:$T$1000="MDA2 (DEC+ALB)", COUNTRY_INFO!$T$9:$T$1000, " ") ->  | I20: 0 | M20: 0
A21: =IF(COUNTRY_INFO!A21=0," ",COUNTRY_INFO!A21) -> Ethiopia | B21: =IF(COUNTRY_INFO!B21=0," ",COUNTRY_INFO!B21) -> AfarAwsa | C21: =IF(COUNTRY_INFO!C21=0," ",COUNTRY_INFO!C21) -> Afambo | D21: =IF(COUNTRY_INFO!$T$9:$T$1000="MDA2 (DEC+ALB)", COUNTRY_INFO!$T$9:$T$1000, " ") ->  | I21: 0 | M21: 0
A22: =IF(COUNTRY_INFO!A22=0," ",COUNTRY_INFO!A22) -> Ethiopia | B22: =IF(COUNTRY_INFO!B22=0," ",COUNTRY_INFO!B22) -> AfarAwsa | C22: =IF(COUNTRY_INFO!C22=0," ",COUNTRY_INFO!C22) -> Afdera | D22: =IF(COUNTRY_INFO!$T$9:$T$1000="MDA2 (DEC+ALB)", COUNTRY_INFO!$T$9:$T$1000, " ") ->  | I22: 0 | M22: 0
A23: =IF(COUNTRY_INFO!A23=0," ",COUNTRY_INFO!A23) -> Ethiopia | B23: =IF(COUNTRY_INFO!B23=0," ",COUNTRY_INFO!B23) -> AfarAwsa | C23: =IF(COUNTRY_INFO!C23=0," ",COUNTRY_INFO!C23) -> Amibara | D23: =IF(COUNTRY_INFO!$T$9:$T$1000="MDA2 (DEC+ALB)", COUNTRY_INFO!$T$9:$T$1000, " ") ->  | I23: 0 | M23: 0
A24: =IF(COUNTRY_INFO!A24=0," ",COUNTRY_INFO!A24) -> Ethiopia | B24: =IF(COUNTRY_INFO!B24=0," ",COUNTRY_INFO!B24) -> AfarAwsa | C24: =IF(COUNTRY_INFO!C24=0," ",COUNTRY_INFO!C24) -> Aregoba | D24: =IF(COUNTRY_INFO!$T$9:$T$1000="MDA2 (DEC+ALB)", COUNTRY_INFO!$T$9:$T$1000, " ") ->  | I24: 0 | M24: 0
A25: =IF(COUNTRY_INFO!A25=0," ",COUNTRY_INFO!A25) -> Ethiopia | B25: =IF(COUNTRY_INFO!B25=0," ",COUNTRY_INFO!B25) -> AfarAwsa | C25: =IF(COUNTRY_INFO!C25=0," ",COUNTRY_INFO!C25) -> Awash fentale | D25: =IF(COUNTRY_INFO!$T$9:$T$1000="MDA2 (DEC+ALB)", COUNTRY_INFO!$T$9:$T$1000, " ") ->  | I25: 0 | M25: 0
A26: =IF(COUNTRY_INFO!A26=0," ",COUNTRY_INFO!A26) -> Ethiopia | B26: =IF(COUNTRY_INFO!B26=0," ",COUNTRY_INFO!B26) -> AfarAwsa | C26: =IF(COUNTRY_INFO!C26=0," ",COUNTRY_INFO!C26) -> Awash Town | D26: =IF(COUNTRY_INFO!$T$9:$T$1000="MDA2 (DEC+ALB)", COUNTRY_INFO!$T$9:$T$1000, " ") ->  | I26: 0 | M26: 0
A27: =IF(COUNTRY_INFO!A27=0," ",COUNTRY_INFO!A27) -> Ethiopia | B27: =IF(COUNTRY_INFO!B27=0," ",COUNTRY_INFO!B27) -> AfarAwsa | C27: =IF(COUNTRY_INFO!C27=0," ",COUNTRY_INFO!C27) -> Awra | D27: =IF(COUNTRY_INFO!$T$9:$T$1000="MDA2 (DEC+ALB)", COUNTRY_INFO!$T$9:$T$1000, " ") ->  | I27: 0 | M27: 0
A28: =IF(COUNTRY_INFO!A28=0," ",COUNTRY_INFO!A28) -> Ethiopia | B28: =IF(COUNTRY_INFO!B28=0," ",COUNTRY_INFO!B28) -> AfarAwsa | C28: =IF(COUNTRY_INFO!C28=0," ",COUNTRY_INFO!C28) -> Aysaeta | D28: =IF(COUNTRY_INFO!$T$9:$T$1000="MDA2 (DEC+ALB)", COUNTRY_INFO!$T$9:$T$1000, " ") ->  | I28: 0 | M28: 0
A29: =IF(COUNTRY_INFO!A29=0," ",COUNTRY_INFO!A29) -> Ethiopia | B29: =IF(COUNTRY_INFO!B29=0," ",COUNTRY_INFO!B29) -> AfarAwsa | C29: =IF(COUNTRY_INFO!C29=0," ",COUNTRY_INFO!C29) -> Chifra | D29: =IF(COUNTRY_INFO!$T$9:$T$1000="MDA2 (DEC+ALB)", COUNTRY_INFO!$T$9:$T$1000, " ") ->  | I29: 0 | M29: 0
A30: =IF(COUNTRY_INFO!A30=0," ",COUNTRY_INFO!A30) -> Ethiopia | B30: =IF(COUNTRY_INFO!B30=0," ",COUNTRY_INFO!B30) -> AfarAwsa | C30: =IF(COUNTRY_INFO!C30=0," ",COUNTRY_INFO!C30) -> Dubti | D30: =IF(COUNTRY_INFO!$T$9:$T$1000="MDA2 (DEC+ALB)", COUNTRY_INFO!$T$9:$T$1000, " ") ->  | I30: 0 | M30: 0
A31: =IF(COUNTRY_INFO!A31=0," ",COUNTRY_INFO!A31) -> Ethiopia | B31: =IF(COUNTRY_INFO!B31=0," ",COUNTRY_INFO!B31) -> AfarAwsa | C31: =IF(COUNTRY_INFO!C31=0," ",COUNTRY_INFO!C31) -> Elidar | D31: =IF(COUNTRY_INFO!$T$9:$T$1000="MDA2 (DEC+ALB)", COUNTRY_INFO!$T$9:$T$1000, " ") ->  | I31: 0 | M31: 0
A32: =IF(COUNTRY_INFO!A32=0," ",COUNTRY_INFO!A32) -> Ethiopia | B32: =IF(COUNTRY_INFO!B32=0," ",COUNTRY_INFO!B32) -> AfarAwsa | C32: =IF(COUNTRY_INFO!C32=0," ",COUNTRY_INFO!C32) -> Kori | D32: =IF(COUNTRY_INFO!$T$9:$T$1000="MDA2 (DEC+ALB)", COUNTRY_INFO!$T$9:$T$1000, " ") ->  | I32: 0 | M32: 0
A33: =IF(COUNTRY_INFO!A33=0," ",COUNTRY_INFO!A33) -> Ethiopia | B33: =IF(COUNTRY_INFO!B33=0," ",COUNTRY_INFO!B33) -> AfarAwsa | C33: =IF(COUNTRY_INFO!C33=0," ",COUNTRY_INFO!C33) -> Mile | D33: =IF(COUNTRY_INFO!$T$9:$T$1000="MDA2 (DEC+ALB)", COUNTRY_INFO!$T$9:$T$1000, " ") ->  | I33: 0 | M33: 0
A34: =IF(COUNTRY_INFO!A34=0," ",COUNTRY_INFO!A34) -> Ethiopia | B34: =IF(COUNTRY_INFO!B34=0," ",COUNTRY_INFO!B34) -> AfarAwsa | C34: =IF(COUNTRY_INFO!C34=0," ",COUNTRY_INFO!C34) -> Semra Logya Town | D34: =IF(COUNTRY_INFO!$T$9:$T$1000="MDA2 (DEC+ALB)", COUNTRY_INFO!$T$9:$T$1000, " ") ->  | I34: 0 | M34: 0
A35: =IF(COUNTRY_INFO!A35=0," ",COUNTRY_INFO!A35) -> Ethiopia | B35: =IF(COUNTRY_INFO!B35=0," ",COUNTRY_INFO!B35) -> AfarFanti | C35: =IF(COUNTRY_INFO!C35=0," ",COUNTRY_INFO!C35) -> Bedu | D35: =IF(COUNTRY_INFO!$T$9:$T$1000="MDA2 (DEC+ALB)", COUNTRY_INFO!$T$9:$T$1000, " ") ->  | I35: 0 | M35: 0
A36: =IF(COUNTRY_INFO!A36=0," ",COUNTRY_INFO!A36) -> Ethiopia | B36: =IF(COUNTRY_INFO!B36=0," ",COUNTRY_INFO!B36) -> AfarFanti | C36: =IF(COUNTRY_INFO!C36=0," ",COUNTRY_INFO!C36) -> Berahle | D36: =IF(COUNTRY_INFO!$T$9:$T$1000="MDA2 (DEC+ALB)", COUNTRY_INFO!$T$9:$T$1000, " ") ->  | I36: 0 | M36: 0
A37: =IF(COUNTRY_INFO!A37=0," ",COUNTRY_INFO!A37) -> Ethiopia | B37: =IF(COUNTRY_INFO!B37=0," ",COUNTRY_INFO!B37) -> AfarFanti | C37: =IF(COUNTRY_INFO!C37=0," ",COUNTRY_INFO!C37) -> Buremodaytu | D37: =IF(COUNTRY_INFO!$T$9:$T$1000="MDA2 (DEC+ALB)", COUNTRY_INFO!$T$9:$T$1000, " ") ->  | I37: 0 | M37: 0
A38: =IF(COUNTRY_INFO!A38=0," ",COUNTRY_INFO!A38) -> Ethiopia | B38: =IF(COUNTRY_INFO!B38=0," ",COUNTRY_INFO!B38) -> AfarGabi | C38: =IF(COUNTRY_INFO!C38=0," ",COUNTRY_INFO!C38) -> Dalifage | D38: =IF(COUNTRY_INFO!$T$9:$T$1000="MDA2 (DEC+ALB)", COUNTRY_INFO!$T$9:$T$1000, " ") ->  | I38: 0 | M38: 0
A39: =IF(COUNTRY_INFO!A39=0," ",COUNTRY_INFO!A39) -> Ethiopia | B39: =IF(COUNTRY_INFO!B39=0," ",COUNTRY_INFO!B39) -> AfarGabi | C39: =IF(COUNTRY_INFO!C39=0," ",COUNTRY_INFO!C39) -> Dalul | D39: =IF(COUNTRY_INFO!$T$9:$T$1000="MDA2 (DEC+ALB)", COUNTRY_INFO!$T$9:$T$1000, " ") ->  | I39: 0 | M39: 0
A40: =IF(COUNTRY_INFO!A40=0," ",COUNTRY_INFO!A40) -> Ethiopia | B40: =IF(COUNTRY_INFO!B40=0," ",COUNTRY_INFO!B40) -> AfarGabi | C40: =IF(COUNTRY_INFO!C40=0," ",COUNTRY_INFO!C40) -> Dewe | D40: =IF(COUNTRY_INFO!$T$9:$T$1000="MDA2 (DEC+ALB)", COUNTRY_INFO!$T$9:$T$1000, " ") ->  | I40: 0 | M40: 0
A41: =IF(COUNTRY_INFO!A41=0," ",COUNTRY_INFO!A41) -> Ethiopia | B41: =IF(COUNTRY_INFO!B41=0," ",COUNTRY_INFO!B41) -> AfarGabi | C41: =IF(COUNTRY_INFO!C41=0," ",COUNTRY_INFO!C41) -> Dulech | D41: =IF(COUNTRY_INFO!$T$9:$T$1000="MDA2 (DEC+ALB)", COUNTRY_INFO!$T$9:$T$1000, " ") ->  | I41: 0 | M41: 0
A42: =IF(COUNTRY_INFO!A42=0," ",COUNTRY_INFO!A42) -> Ethiopia | B42: =IF(COUNTRY_INFO!B42=0," ",COUNTRY_INFO!B42) -> AfarHarri | C42: =IF(COUNTRY_INFO!C42=0," ",COUNTRY_INFO!C42) -> Erebti | D42: =IF(COUNTRY_INFO!$T$9:$T$1000="MDA2 (DEC+ALB)", COUNTRY_INFO!$T$9:$T$1000, " ") ->  | I42: 0 | M42: 0
A43: =IF(COUNTRY_INFO!A43=0," ",COUNTRY_INFO!A43) -> Ethiopia | B43: =IF(COUNTRY_INFO!B43=0," ",COUNTRY_INFO!B43) -> AfarHarri | C43: =IF(COUNTRY_INFO!C43=0," ",COUNTRY_INFO!C43) -> Ewa | D43: =IF(COUNTRY_INFO!$T$9:$T$1000="MDA2 (DEC+ALB)", COUNTRY_INFO!$T$9:$T$1000, " ") ->  | I43: 0 | M43: 0
A44: =IF(COUNTRY_INFO!A44=0," ",COUNTRY_INFO!A44) -> Ethiopia | B44: =IF(COUNTRY_INFO!B44=0," ",COUNTRY_INFO!B44) -> AfarHarri | C44: =IF(COUNTRY_INFO!C44=0," ",COUNTRY_INFO!C44) -> Gewane | D44: =IF(COUNTRY_INFO!$T$9:$T$1000="MDA2 (DEC+ALB)", COUNTRY_INFO!$T$9:$T$1000, " ") ->  | I44: 0 | M44: 0
A45: =IF(COUNTRY_INFO!A45=0," ",COUNTRY_INFO!A45) -> Ethiopia | B45: =IF(COUNTRY_INFO!B45=0," ",COUNTRY_INFO!B45) -> AfarHarri | C45: =IF(COUNTRY_INFO!C45=0," ",COUNTRY_INFO!C45) -> Gulina | D45: =IF(COUNTRY_INFO!$T$9:$T$1000="MDA2 (DEC+ALB)", COUNTRY_INFO!$T$9:$T$1000, " ") ->  | I45: 0 | M45: 0
A46: =IF(COUNTRY_INFO!A46=0," ",COUNTRY_INFO!A46) -> Ethiopia | B46: =IF(COUNTRY_INFO!B46=0," ",COUNTRY_INFO!B46) -> AfarHarri | C46: =IF(COUNTRY_INFO!C46=0," ",COUNTRY_INFO!C46) -> Hadaleelila | D46: =IF(COUNTRY_INFO!$T$9:$T$1000="MDA2 (DEC+ALB)", COUNTRY_INFO!$T$9:$T$1000, " ") ->  | I46: 0 | M46: 0
A47: =IF(COUNTRY_INFO!A47=0," ",COUNTRY_INFO!A47) -> Ethiopia | B47: =IF(COUNTRY_INFO!B47=0," ",COUNTRY_INFO!B47) -> AfarHarri | C47: =IF(COUNTRY_INFO!C47=0," ",COUNTRY_INFO!C47) -> Koneba | D47: =IF(COUNTRY_INFO!$T$9:$T$1000="MDA2 (DEC+ALB)", COUNTRY_INFO!$T$9:$T$1000, " ") ->  | I47: 0 | M47: 0
A48: =IF(COUNTRY_INFO!A48=0," ",COUNTRY_INFO!A48) -> Ethiopia | B48: =IF(COUNTRY_INFO!B48=0," ",COUNTRY_INFO!B48) -> AfarKilbat | C48: =IF(COUNTRY_INFO!C48=0," ",COUNTRY_INFO!C48) -> Megalle | D48: =IF(COUNTRY_INFO!$T$9:$T$1000="MDA2 (DEC+ALB)", COUNTRY_INFO!$T$9:$T$1000, " ") ->  | I48: 0 | M48: 0
A49: =IF(COUNTRY_INFO!A49=0," ",COUNTRY_INFO!A49) -> Ethiopia | B49: =IF(COUNTRY_INFO!B49=0," ",COUNTRY_INFO!B49) -> AfarKilbat | C49: =IF(COUNTRY_INFO!C49=0," ",COUNTRY_INFO!C49) -> Samorobigelalu | D49: =IF(COUNTRY_INFO!$T$9:$T$1000="MDA2 (DEC+ALB)", COUNTRY_INFO!$T$9:$T$1000, " ") ->  | I49: 0 | M49: 0
A50: =IF(COUNTRY_INFO!A50=0," ",COUNTRY_INFO!A50) -> Ethiopia | B50: =IF(COUNTRY_INFO!B50=0," ",COUNTRY_INFO!B50) -> AfarKilbat | C50: =IF(COUNTRY_INFO!C50=0," ",COUNTRY_INFO!C50) -> Telalak | D50: =IF(COUNTRY_INFO!$T$9:$T$1000="MDA2 (DEC+ALB)", COUNTRY_INFO!$T$9:$T$1000, " ") ->  | I50: 0 | M50: 0
A51: =IF(COUNTRY_INFO!A51=0," ",COUNTRY_INFO!A51) -> Ethiopia | B51: =IF(COUNTRY_INFO!B51=0," ",COUNTRY_INFO!B51) -> AfarKilbat | C51: =IF(COUNTRY_INFO!C51=0," ",COUNTRY_INFO!C51) -> Teru | D51: =IF(COUNTRY_INFO!$T$9:$T$1000="MDA2 (DEC+ALB)", COUNTRY_INFO!$T$9:$T$1000, " ") ->  | I51: 0 | M51: 0
A52: =IF(COUNTRY_INFO!A52=0," ",COUNTRY_INFO!A52) -> Ethiopia | B52: =IF(COUNTRY_INFO!B52=0," ",COUNTRY_INFO!B52) -> AfarKilbat | C52: =IF(COUNTRY_INFO!C52=0," ",COUNTRY_INFO!C52) -> Yalo | D52: =IF(COUNTRY_INFO!$T$9:$T$1000="MDA2 (DEC+ALB)", COUNTRY_INFO!$T$9:$T$1000, " ") ->  | I52: 0 | M52: 0
A53: =IF(COUNTRY_INFO!A53=0," ",COUNTRY_INFO!A53) -> Ethiopia | B53: =IF(COUNTRY_INFO!B53=0," ",COUNTRY_INFO!B53) -> AmharaAwi | C53: =IF(COUNTRY_INFO!C53=0," ",COUNTRY_INFO!C53) -> Ankesha | D53: =IF(COUNTRY_INFO!$T$9:$T$1000="MDA2 (DEC+ALB)", COUNTRY_INFO!$T$9:$T$1000, " ") ->  | I53: 0 | M53: 0
A54: =IF(COUNTRY_INFO!A54=0," ",COUNTRY_INFO!A54) -> Ethiopia | B54: =IF(COUNTRY_INFO!B54=0," ",COUNTRY_INFO!B54) -> AmharaAwi | C54: =IF(COUNTRY_INFO!C54=0," ",COUNTRY_INFO!C54) -> Ayehu | D54: =IF(COUNTRY_INFO!$T$9:$T$1000="MDA2 (DEC+ALB)", COUNTRY_INFO!$T$9:$T$1000, " ") ->  | I54: 0 | M54: 0
A55: =IF(COUNTRY_INFO!A55=0," ",COUNTRY_INFO!A55) -> Ethiopia | B55: =IF(COUNTRY_INFO!B55=0," ",COUNTRY_INFO!B55) -> AmharaAwi | C55: =IF(COUNTRY_INFO!C55=0," ",COUNTRY_INFO!C55) -> Banja Shikudad | D55: =IF(COUNTRY_INFO!$T$9:$T$1000="MDA2 (DEC+ALB)", COUNTRY_INFO!$T$9:$T$1000, " ") ->  | I55: 0 | M55: 0
A56: =IF(COUNTRY_INFO!A56=0," ",COUNTRY_INFO!A56) -> Ethiopia | B56: =IF(COUNTRY_INFO!B56=0," ",COUNTRY_INFO!B56) -> AmharaAwi | C56: =IF(COUNTRY_INFO!C56=0," ",COUNTRY_INFO!C56) -> Chagni Town | D56: =IF(COUNTRY_INFO!$T$9:$T$1000="MDA2 (DEC+ALB)", COUNTRY_INFO!$T$9:$T$1000, " ") ->  | I56: 0 | M56: 0
A57: =IF(COUNTRY_INFO!A57=0," ",COUNTRY_INFO!A57) -> Ethiopia | B57: =IF(COUNTRY_INFO!B57=0," ",COUNTRY_INFO!B57) -> AmharaAwi | C57: =IF(COUNTRY_INFO!C57=0," ",COUNTRY_INFO!C57) -> Dangila | D57: =IF(COUNTRY_INFO!$T$9:$T$1000="MDA2 (DEC+ALB)", COUNTRY_INFO!$T$9:$T$1000, " ") ->  | I57: 0 | M57: 0
A58: =IF(COUNTRY_INFO!A58=0," ",COUNTRY_INFO!A58) -> Ethiopia | B58: =IF(COUNTRY_INFO!B58=0," ",COUNTRY_INFO!B58) -> AmharaAwi | C58: =IF(COUNTRY_INFO!C58=0," ",COUNTRY_INFO!C58) -> Dangla Town | D58: =IF(COUNTRY_INFO!$T$9:$T$1000="MDA2 (DEC+ALB)", COUNTRY_INFO!$T$9:$T$1000, " ") ->  | I58: 0 | M58: 0
A59: =IF(COUNTRY_INFO!A59=0," ",COUNTRY_INFO!A59) -> Ethiopia | B59: =IF(COUNTRY_INFO!B59=0," ",COUNTRY_INFO!B59) -> AmharaAwi | C59: =IF(COUNTRY_INFO!C59=0," ",COUNTRY_INFO!C59) -> Fagita Lekoma | D59: =IF(COUNTRY_INFO!$T$9:$T$1000="MDA2 (DEC+ALB)", COUNTRY_INFO!$T$9:$T$1000, " ") ->  | I59: 0 | M59: 0
A60: =IF(COUNTRY_INFO!A60=0," ",COUNTRY_INFO!A60) -> Ethiopia | B60: =IF(COUNTRY_INFO!B60=0," ",COUNTRY_INFO!B60) -> AmharaAwi | C60: =IF(COUNTRY_INFO!C60=0," ",COUNTRY_INFO!C60) -> Guagusa Shikudad | D60: =IF(COUNTRY_INFO!$T$9:$T$1000="MDA2 (DEC+ALB)", COUNTRY_INFO!$T$9:$T$1000, " ") ->  | I60: 0 | M60: 0
A61: =IF(COUNTRY_INFO!A61=0," ",COUNTRY_INFO!A61) -> Ethiopia | B61: =IF(COUNTRY_INFO!B61=0," ",COUNTRY_INFO!B61) -> AmharaAwi | C61: =IF(COUNTRY_INFO!C61=0," ",COUNTRY_INFO!C61) -> Guangua | D61: =IF(COUNTRY_INFO!$T$9:$T$1000="MDA2 (DEC+ALB)", COUNTRY_INFO!$T$9:$T$1000, " ") ->  | I61: 0 | M61: 0
A62: =IF(COUNTRY_INFO!A62=0," ",COUNTRY_INFO!A62) -> Ethiopia | B62: =IF(COUNTRY_INFO!B62=0," ",COUNTRY_INFO!B62) -> AmharaAwi | C62: =IF(COUNTRY_INFO!C62=0," ",COUNTRY_INFO!C62) -> Injibara Town | D62: =IF(COUNTRY_INFO!$T$9:$T$1000="MDA2 (DEC+ALB)", COUNTRY_INFO!$T$9:$T$1000, " ") ->  | I62: 0 | M62: 0
A63: =IF(COUNTRY_INFO!A63=0," ",COUNTRY_INFO!A63) -> Ethiopia | B63: =IF(COUNTRY_INFO!B63=0," ",COUNTRY_INFO!B63) -> AmharaAwi | C63: =IF(COUNTRY_INFO!C63=0," ",COUNTRY_INFO!C63) -> Jawi | D63: =IF(COUNTRY_INFO!$T$9:$T$1000="MDA2 (DEC+ALB)", COUNTRY_INFO!$T$9:$T$1000, " ") ->  | I63: 0 | M63: 0
A64: =IF(COUNTRY_INFO!A64=0," ",COUNTRY_INFO!A64) -> Ethiopia | B64: =IF(COUNTRY_INFO!B64=0," ",COUNTRY_INFO!B64) -> AmharaAwi | C64: =IF(COUNTRY_INFO!C64=0," ",COUNTRY_INFO!C64) -> Zigem | D64: =IF(COUNTRY_INFO!$T$9:$T$1000="MDA2 (DEC+ALB)", COUNTRY_INFO!$T$9:$T$1000, " ") ->  | I64: 0 | M64: 0
A65: =IF(COUNTRY_INFO!A65=0," ",COUNTRY_INFO!A65) -> Ethiopia | B65: =IF(COUNTRY_INFO!B65=0," ",COUNTRY_INFO!B65) -> AmharaEast Gojam | C65: =IF(COUNTRY_INFO!C65=0," ",COUNTRY_INFO!C65) -> Aneded | D65: =IF(COUNTRY_INFO!$T$9:$T$1000="MDA2 (DEC+ALB)", COUNTRY_INFO!$T$9:$T$1000, " ") ->  | I65: 0 | M65: 0
A66: =IF(COUNTRY_INFO!A66=0," ",COUNTRY_INFO!A66) -> Ethiopia | B66: =IF(COUNTRY_INFO!B66=0," ",COUNTRY_INFO!B66) -> AmharaEast Gojam | C66: =IF(COUNTRY_INFO!C66=0," ",COUNTRY_INFO!C66) -> Awabel | D66: =IF(COUNTRY_INFO!$T$9:$T$1000="MDA2 (DEC+ALB)", COUNTRY_INFO!$T$9:$T$1000, " ") ->  | I66: 0 | M66: 0
A67: =IF(COUNTRY_INFO!A67=0," ",COUNTRY_INFO!A67) -> Ethiopia | B67: =IF(COUNTRY_INFO!B67=0," ",COUNTRY_INFO!B67) -> AmharaEast Gojam | C67: =IF(COUNTRY_INFO!C67=0," ",COUNTRY_INFO!C67) -> Basoliben | D67: =IF(COUNTRY_INFO!$T$9:$T$1000="MDA2 (DEC+ALB)", COUNTRY_INFO!$T$9:$T$1000, " ") ->  | I67: 0 | M67: 0
A68: =IF(COUNTRY_INFO!A68=0," ",COUNTRY_INFO!A68) -> Ethiopia | B68: =IF(COUNTRY_INFO!B68=0," ",COUNTRY_INFO!B68) -> AmharaEast Gojam | C68: =IF(COUNTRY_INFO!C68=0," ",COUNTRY_INFO!C68) -> Bibugn | D68: =IF(COUNTRY_INFO!$T$9:$T$1000="MDA2 (DEC+ALB)", COUNTRY_INFO!$T$9:$T$1000, " ") ->  | I68: 0 | M68: 0
A69: =IF(COUNTRY_INFO!A69=0," ",COUNTRY_INFO!A69) -> Ethiopia | B69: =IF(COUNTRY_INFO!B69=0," ",COUNTRY_INFO!B69) -> AmharaEast Gojam | C69: =IF(COUNTRY_INFO!C69=0," ",COUNTRY_INFO!C69) -> Debay Tilatgen | D69: =IF(COUNTRY_INFO!$T$9:$T$1000="MDA2 (DEC+ALB)", COUNTRY_INFO!$T$9:$T$1000, " ") ->  | I69: 0 | M69: 0
A70: =IF(COUNTRY_INFO!A70=0," ",COUNTRY_INFO!A70) -> Ethiopia | B70: =IF(COUNTRY_INFO!B70=0," ",COUNTRY_INFO!B70) -> AmharaEast Gojam | C70: =IF(COUNTRY_INFO!C70=0," ",COUNTRY_INFO!C70) -> Debre Elias | D70: =IF(COUNTRY_INFO!$T$9:$T$1000="MDA2 (DEC+ALB)", COUNTRY_INFO!$T$9:$T$1000, " ") ->  | I70: 0 | M70: 0
A71: =IF(COUNTRY_INFO!A71=0," ",COUNTRY_INFO!A71) -> Ethiopia | B71: =IF(COUNTRY_INFO!B71=0," ",COUNTRY_INFO!B71) -> AmharaEast Gojam | C71: =IF(COUNTRY_INFO!C71=0," ",COUNTRY_INFO!C71) -> Debre Markos Town | D71: =IF(COUNTRY_INFO!$T$9:$T$1000="MDA2 (DEC+ALB)", COUNTRY_INFO!$T$9:$T$1000, " ") ->  | I71: 0 | M71: 0
A72: =IF(COUNTRY_INFO!A72=0," ",COUNTRY_INFO!A72) -> Ethiopia | B72: =IF(COUNTRY_INFO!B72=0," ",COUNTRY_INFO!B72) -> AmharaEast Gojam | C72: =IF(COUNTRY_INFO!C72=0," ",COUNTRY_INFO!C72) -> Dejen | D72: =IF(COUNTRY_INFO!$T$9:$T$1000="MDA2 (DEC+ALB)", COUNTRY_INFO!$T$9:$T$1000, " ") ->  | I72: 0 | M72: 0
A73: =IF(COUNTRY_INFO!A73=0," ",COUNTRY_INFO!A73) -> Ethiopia | B73: =IF(COUNTRY_INFO!B73=0," ",COUNTRY_INFO!B73) -> AmharaEast Gojam | C73: =IF(COUNTRY_INFO!C73=0," ",COUNTRY_INFO!C73) -> Enarje Enawuga | D73: =IF(COUNTRY_INFO!$T$9:$T$1000="MDA2 (DEC+ALB)", COUNTRY_INFO!$T$9:$T$1000, " ") ->  | I73: 0 | M73: 0
A74: =IF(COUNTRY_INFO!A74=0," ",COUNTRY_INFO!A74) -> Ethiopia | B74: =IF(COUNTRY_INFO!B74=0," ",COUNTRY_INFO!B74) -> AmharaEast Gojam | C74: =IF(COUNTRY_INFO!C74=0," ",COUNTRY_INFO!C74) -> Enebsie Sarmeder | D74: =IF(COUNTRY_INFO!$T$9:$T$1000="MDA2 (DEC+ALB)", COUNTRY_INFO!$T$9:$T$1000, " ") ->  | I74: =SUM(F74:H74) -> 0 | M74: =SUM(J74:L74) -> 0 | N74: =IF(F74<>0, IF(J74/F74*100=0, "-", J74/F74*100), " ") ->  | O74: =IF(G74<>0, IF(K74/G74*100=0, "-", K74/G74*100), " ") ->  | P74: =IF(H74<>0, IF(L74/H74*100=0, "-", L74/H74*100), " ") ->  | Q74: =IF(I74<>0, IF(M74/I74*100=0, "-", M74/I74*100), " ") -> 
A75: =IF(COUNTRY_INFO!A75=0," ",COUNTRY_INFO!A75) -> Ethiopia | B75: =IF(COUNTRY_INFO!B75=0," ",COUNTRY_INFO!B75) -> AmharaEast Gojam | C75: =IF(COUNTRY_INFO!C75=0," ",COUNTRY_INFO!C75) -> Enemay | D75: =IF(COUNTRY_INFO!$T$9:$T$1000="MDA2 (DEC+ALB)", COUNTRY_INFO!$T$9:$T$1000, " ") ->  | I75: 0 | M75: 0
A76: =IF(COUNTRY_INFO!A76=0," ",COUNTRY_INFO!A76) -> Ethiopia | B76: =IF(COUNTRY_INFO!B76=0," ",COUNTRY_INFO!B76) -> AmharaEast Gojam | C76: =IF(COUNTRY_INFO!C76=0," ",COUNTRY_INFO!C76) -> Gonchasieso enesie | D76: =IF(COUNTRY_INFO!$T$9:$T$1000="MDA2 (DEC+ALB)", COUNTRY_INFO!$T$9:$T$1000, " ") ->  | I76: 0 | M76: 0
A77: =IF(COUNTRY_INFO!A77=0," ",COUNTRY_INFO!A77) -> Ethiopia | B77: =IF(COUNTRY_INFO!B77=0," ",COUNTRY_INFO!B77) -> AmharaEast Gojam | C77: =IF(COUNTRY_INFO!C77=0," ",COUNTRY_INFO!C77) -> Gozamen | D77: =IF(COUNTRY_INFO!$T$9:$T$1000="MDA2 (DEC+ALB)", COUNTRY_INFO!$T$9:$T$1000, " ") ->  | I77: 0 | M77: 0
A78: =IF(COUNTRY_INFO!A78=0," ",COUNTRY_INFO!A78) -> Ethiopia | B78: =IF(COUNTRY_INFO!B78=0," ",COUNTRY_INFO!B78) -> AmharaEast Gojam | C78: =IF(COUNTRY_INFO!C78=0," ",COUNTRY_INFO!C78) -> Hult Eju | D78: =IF(COUNTRY_INFO!$T$9:$T$1000="MDA2 (DEC+ALB)", COUNTRY_INFO!$T$9:$T$1000, " ") ->  | I78: 0 | M78: 0
A79: =IF(COUNTRY_INFO!A79=0," ",COUNTRY_INFO!A79) -> Ethiopia | B79: =IF(COUNTRY_INFO!B79=0," ",COUNTRY_INFO!B79) -> AmharaEast Gojam | C79: =IF(COUNTRY_INFO!C79=0," ",COUNTRY_INFO!C79) -> Machakel | D79: =IF(COUNTRY_INFO!$T$9:$T$1000="MDA2 (DEC+ALB)", COUNTRY_INFO!$T$9:$T$1000, " ") ->  | I79: 0 | M79: 0
A80: =IF(COUNTRY_INFO!A80=0," ",COUNTRY_INFO!A80) -> Ethiopia | B80: =IF(COUNTRY_INFO!B80=0," ",COUNTRY_INFO!B80) -> AmharaEast Gojam | C80: =IF(COUNTRY_INFO!C80=0," ",COUNTRY_INFO!C80) -> Motta town | D80: =IF(COUNTRY_INFO!$T$9:$T$1000="MDA2 (DEC+ALB)", COUNTRY_INFO!$T$9:$T$1000, " ") ->  | I80: 0 | M80: 0
A81: =IF(COUNTRY_INFO!A81=0," ",COUNTRY_INFO!A81) -> Ethiopia | B81: =IF(COUNTRY_INFO!B81=0," ",COUNTRY_INFO!B81) -> AmharaEast Gojam | C81: =IF(COUNTRY_INFO!C81=0," ",COUNTRY_INFO!C81) -> Sedie | D81: =IF(COUNTRY_INFO!$T$9:$T$1000="MDA2 (DEC+ALB)", COUNTRY_INFO!$T$9:$T$1000, " ") ->  | I81: 0 | M81: 0
A82: =IF(COUNTRY_INFO!A82=0," ",COUNTRY_INFO!A82) -> Ethiopia | B82: =IF(COUNTRY_INFO!B82=0," ",COUNTRY_INFO!B82) -> AmharaEast Gojam | C82: =IF(COUNTRY_INFO!C82=0," ",COUNTRY_INFO!C82) -> Shebel berenta | D82: =IF(COUNTRY_INFO!$T$9:$T$1000="MDA2 (DEC+ALB)", COUNTRY_INFO!$T$9:$T$1000, " ") ->  | I82: 0 | M82: 0
A83: =IF(COUNTRY_INFO!A83=0," ",COUNTRY_INFO!A83) -> Ethiopia | B83: =IF(COUNTRY_INFO!B83=0," ",COUNTRY_INFO!B83) -> AmharaEast Gojam | C83: =IF(COUNTRY_INFO!C83=0," ",COUNTRY_INFO!C83) -> Sinan | D83: =IF(COUNTRY_INFO!$T$9:$T$1000="MDA2 (DEC+ALB)", COUNTRY_INFO!$T$9:$T$1000, " ") ->  | I83: 0 | M83: 0
A84: =IF(COUNTRY_INFO!A84=0," ",COUNTRY_INFO!A84) -> Ethiopia | B84: =IF(COUNTRY_INFO!B84=0," ",COUNTRY_INFO!B84) -> AmharaNorth Gondar | C84: =IF(COUNTRY_INFO!C84=0," ",COUNTRY_INFO!C84) -> Adi Arkay | D84: =IF(COUNTRY_INFO!$T$9:$T$1000="MDA2 (DEC+ALB)", COUNTRY_INFO!$T$9:$T$1000, " ") ->  | I84: 0 | M84: 0
A85: =IF(COUNTRY_INFO!A85=0," ",COUNTRY_INFO!A85) -> Ethiopia | B85: =IF(COUNTRY_INFO!B85=0," ",COUNTRY_INFO!B85) -> AmharaNorth Gondar | C85: =IF(COUNTRY_INFO!C85=0," ",COUNTRY_INFO!C85) -> Alefa | D85: =IF(COUNTRY_INFO!$T$9:$T$1000="MDA2 (DEC+ALB)", COUNTRY_INFO!$T$9:$T$1000, " ") ->  | I85: 0 | M85: 0
A86: =IF(COUNTRY_INFO!A86=0," ",COUNTRY_INFO!A86) -> Ethiopia | B86: =IF(COUNTRY_INFO!B86=0," ",COUNTRY_INFO!B86) -> AmharaNorth Gondar | C86: =IF(COUNTRY_INFO!C86=0," ",COUNTRY_INFO!C86) -> Beyeda | D86: =IF(COUNTRY_INFO!$T$9:$T$1000="MDA2 (DEC+ALB)", COUNTRY_INFO!$T$9:$T$1000, " ") ->  | I86: 0 | M86: 0
A87: =IF(COUNTRY_INFO!A87=0," ",COUNTRY_INFO!A87) -> Ethiopia | B87: =IF(COUNTRY_INFO!B87=0," ",COUNTRY_INFO!B87) -> AmharaNorth Gondar | C87: =IF(COUNTRY_INFO!C87=0," ",COUNTRY_INFO!C87) -> Chilga | D87: =IF(COUNTRY_INFO!$T$9:$T$1000="MDA2 (DEC+ALB)", COUNTRY_INFO!$T$9:$T$1000, " ") ->  | I87: 0 | M87: 0
A88: =IF(COUNTRY_INFO!A88=0," ",COUNTRY_INFO!A88) -> Ethiopia | B88: =IF(COUNTRY_INFO!B88=0," ",COUNTRY_INFO!B88) -> AmharaNorth Gondar | C88: =IF(COUNTRY_INFO!C88=0," ",COUNTRY_INFO!C88) -> Dabat | D88: =IF(COUNTRY_INFO!$T$9:$T$1000="MDA2 (DEC+ALB)", COUNTRY_INFO!$T$9:$T$1000, " ") ->  | I88: 0 | M88: 0
A89: =IF(COUNTRY_INFO!A89=0," ",COUNTRY_INFO!A89) -> Ethiopia | B89: =IF(COUNTRY_INFO!B89=0," ",COUNTRY_INFO!B89) -> AmharaNorth Gondar | C89: =IF(COUNTRY_INFO!C89=0," ",COUNTRY_INFO!C89) -> Debark | D89: =IF(COUNTRY_INFO!$T$9:$T$1000="MDA2 (DEC+ALB)", COUNTRY_INFO!$T$9:$T$1000, " ") ->  | I89: 0 | M89: 0
A90: =IF(COUNTRY_INFO!A90=0," ",COUNTRY_INFO!A90) -> Ethiopia | B90: =IF(COUNTRY_INFO!B90=0," ",COUNTRY_INFO!B90) -> AmharaNorth Gondar | C90: =IF(COUNTRY_INFO!C90=0," ",COUNTRY_INFO!C90) -> Debark town | D90: =IF(COUNTRY_INFO!$T$9:$T$1000="MDA2 (DEC+ALB)", COUNTRY_INFO!$T$9:$T$1000, " ") ->  | I90: 0 | M90: 0
A91: =IF(COUNTRY_INFO!A91=0," ",COUNTRY_INFO!A91) -> Ethiopia | B91: =IF(COUNTRY_INFO!B91=0," ",COUNTRY_INFO!B91) -> AmharaNorth Gondar | C91: =IF(COUNTRY_INFO!C91=0," ",COUNTRY_INFO!C91) -> East Belesa | D91: =IF(COUNTRY_INFO!$T$9:$T$1000="MDA2 (DEC+ALB)", COUNTRY_INFO!$T$9:$T$1000, " ") ->  | I91: 0 | M91: 0
A92: =IF(COUNTRY_INFO!A92=0," ",COUNTRY_INFO!A92) -> Ethiopia | B92: =IF(COUNTRY_INFO!B92=0," ",COUNTRY_INFO!B92) -> AmharaNorth Gondar | C92: =IF(COUNTRY_INFO!C92=0," ",COUNTRY_INFO!C92) -> East Dembia | D92: =IF(COUNTRY_INFO!$T$9:$T$1000="MDA2 (DEC+ALB)", COUNTRY_INFO!$T$9:$T$1000, " ") ->  | I92: 0 | M92: 0
A93: =IF(COUNTRY_INFO!A93=0," ",COUNTRY_INFO!A93) -> Ethiopia | B93: =IF(COUNTRY_INFO!B93=0," ",COUNTRY_INFO!B93) -> AmharaNorth Gondar | C93: =IF(COUNTRY_INFO!C93=0," ",COUNTRY_INFO!C93) -> Gendawuha | D93: =IF(COUNTRY_INFO!$T$9:$T$1000="MDA2 (DEC+ALB)", COUNTRY_INFO!$T$9:$T$1000, " ") ->  | I93: 0 | M93: 0
A94: =IF(COUNTRY_INFO!A94=0," ",COUNTRY_INFO!A94) -> Ethiopia | B94: =IF(COUNTRY_INFO!B94=0," ",COUNTRY_INFO!B94) -> AmharaNorth Gondar | C94: =IF(COUNTRY_INFO!C94=0," ",COUNTRY_INFO!C94) -> Gondar town | D94: =IF(COUNTRY_INFO!$T$9:$T$1000="MDA2 (DEC+ALB)", COUNTRY_INFO!$T$9:$T$1000, " ") ->  | I94: 0 | M94: 0
A95: =IF(COUNTRY_INFO!A95=0," ",COUNTRY_INFO!A95) -> Ethiopia | B95: =IF(COUNTRY_INFO!B95=0," ",COUNTRY_INFO!B95) -> AmharaNorth Gondar | C95: =IF(COUNTRY_INFO!C95=0," ",COUNTRY_INFO!C95) -> Gondar Zuriya | D95: =IF(COUNTRY_INFO!$T$9:$T$1000="MDA2 (DEC+ALB)", COUNTRY_INFO!$T$9:$T$1000, " ") ->  | I95: 0 | M95: 0
A96: =IF(COUNTRY_INFO!A96=0," ",COUNTRY_INFO!A96) -> Ethiopia | B96: =IF(COUNTRY_INFO!B96=0," ",COUNTRY_INFO!B96) -> AmharaNorth Gondar | C96: =IF(COUNTRY_INFO!C96=0," ",COUNTRY_INFO!C96) -> Janamora | D96: =IF(COUNTRY_INFO!$T$9:$T$1000="MDA2 (DEC+ALB)", COUNTRY_INFO!$T$9:$T$1000, " ") ->  | I96: 0 | M96: 0
A97: =IF(COUNTRY_INFO!A97=0," ",COUNTRY_INFO!A97) -> Ethiopia | B97: =IF(COUNTRY_INFO!B97=0," ",COUNTRY_INFO!B97) -> AmharaNorth Gondar | C97: =IF(COUNTRY_INFO!C97=0," ",COUNTRY_INFO!C97) -> Kinfazbegela | D97: =IF(COUNTRY_INFO!$T$9:$T$1000="MDA2 (DEC+ALB)", COUNTRY_INFO!$T$9:$T$1000, " ") ->  | I97: 0 | M97: 0
A98: =IF(COUNTRY_INFO!A98=0," ",COUNTRY_INFO!A98) -> Ethiopia | B98: =IF(COUNTRY_INFO!B98=0," ",COUNTRY_INFO!B98) -> AmharaNorth Gondar | C98: =IF(COUNTRY_INFO!C98=0," ",COUNTRY_INFO!C98) -> Lay Armachiho | D98: =IF(COUNTRY_INFO!$T$9:$T$1000="MDA2 (DEC+ALB)", COUNTRY_INFO!$T$9:$T$1000, " ") ->  | I98: 0 | M98: 0
A99: =IF(COUNTRY_INFO!A99=0," ",COUNTRY_INFO!A99) -> Ethiopia | B99: =IF(COUNTRY_INFO!B99=0," ",COUNTRY_INFO!B99) -> AmharaNorth Gondar | C99: =IF(COUNTRY_INFO!C99=0," ",COUNTRY_INFO!C99) -> Metema | D99: =IF(COUNTRY_INFO!$T$9:$T$1000="MDA2 (DEC+ALB)", COUNTRY_INFO!$T$9:$T$1000, " ") ->  | I99: 0 | M99: 0
A100: =IF(COUNTRY_INFO!A100=0," ",COUNTRY_INFO!A100) -> Ethiopia | B100: =IF(COUNTRY_INFO!B100=0," ",COUNTRY_INFO!B100) -> AmharaNorth Gondar | C100: =IF(COUNTRY_INFO!C100=0," ",COUNTRY_INFO!C100) -> Mirab Belesa | D100: =IF(COUNTRY_INFO!$T$9:$T$1000="MDA2 (DEC+ALB)", COUNTRY_INFO!$T$9:$T$1000, " ") ->  | I100: 0 | M100: 0
A101: =IF(COUNTRY_INFO!A101=0," ",COUNTRY_INFO!A101) -> Ethiopia | B101: =IF(COUNTRY_INFO!B101=0," ",COUNTRY_INFO!B101) -> AmharaNorth Gondar | C101: =IF(COUNTRY_INFO!C101=0," ",COUNTRY_INFO!C101) -> Quara | D101: =IF(COUNTRY_INFO!$T$9:$T$1000="MDA2 (DEC+ALB)", COUNTRY_INFO!$T$9:$T$1000, " ") ->  | I101: 0 | M101: 0
A102: =IF(COUNTRY_INFO!A102=0," ",COUNTRY_INFO!A102) -> Ethiopia | B102: =IF(COUNTRY_INFO!B102=0," ",COUNTRY_INFO!B102) -> AmharaNorth Gondar | C102: =IF(COUNTRY_INFO!C102=0," ",COUNTRY_INFO!C102) -> Tach Armachiho | D102: =IF(COUNTRY_INFO!$T$9:$T$1000="MDA2 (DEC+ALB)", COUNTRY_INFO!$T$9:$T$1000, " ") ->  | I102: 0 | M102: 0
A103: =IF(COUNTRY_INFO!A103=0," ",COUNTRY_INFO!A103) -> Ethiopia | B103: =IF(COUNTRY_INFO!B103=0," ",COUNTRY_INFO!B103) -> AmharaNorth Gondar | C103: =IF(COUNTRY_INFO!C103=0," ",COUNTRY_INFO!C103) -> Takusa | D103: =IF(COUNTRY_INFO!$T$9:$T$1000="MDA2 (DEC+ALB)", COUNTRY_INFO!$T$9:$T$1000, " ") ->  | I103: 0 | M103: 0
A104: =IF(COUNTRY_INFO!A104=0," ",COUNTRY_INFO!A104) -> Ethiopia | B104: =IF(COUNTRY_INFO!B104=0," ",COUNTRY_INFO!B104) -> AmharaNorth Gondar | C104: =IF(COUNTRY_INFO!C104=0," ",COUNTRY_INFO!C104) -> Tegedie | D104: =IF(COUNTRY_INFO!$T$9:$T$1000="MDA2 (DEC+ALB)", COUNTRY_INFO!$T$9:$T$1000, " ") ->  | I104: 0 | M104: 0
A105: =IF(COUNTRY_INFO!A105=0," ",COUNTRY_INFO!A105) -> Ethiopia | B105: =IF(COUNTRY_INFO!B105=0," ",COUNTRY_INFO!B105) -> AmharaNorth Gondar | C105: =IF(COUNTRY_INFO!C105=0," ",COUNTRY_INFO!C105) -> Telemt | D105: =IF(COUNTRY_INFO!$T$9:$T$1000="MDA2 (DEC+ALB)", COUNTRY_INFO!$T$9:$T$1000, " ") ->  | I105: 0 | M105: 0
A106: =IF(COUNTRY_INFO!A106=0," ",COUNTRY_INFO!A106) -> Ethiopia | B106: =IF(COUNTRY_INFO!B106=0," ",COUNTRY_INFO!B106) -> AmharaNorth Gondar | C106: =IF(COUNTRY_INFO!C106=0," ",COUNTRY_INFO!C106) -> West Armachoho | D106: =IF(COUNTRY_INFO!$T$9:$T$1000="MDA2 (DEC+ALB)", COUNTRY_INFO!$T$9:$T$1000, " ") ->  | I106: 0 | M106: 0
A107: =IF(COUNTRY_INFO!A107=0," ",COUNTRY_INFO!A107) -> Ethiopia | B107: =IF(COUNTRY_INFO!B107=0," ",COUNTRY_INFO!B107) -> AmharaNorth Gondar | C107: =IF(COUNTRY_INFO!C107=0," ",COUNTRY_INFO!C107) -> West Dembia | D107: =IF(COUNTRY_INFO!$T$9:$T$1000="MDA2 (DEC+ALB)", COUNTRY_INFO!$T$9:$T$1000, " ") ->  | I107: 0 | M107: 0
A108: =IF(COUNTRY_INFO!A108=0," ",COUNTRY_INFO!A108) -> Ethiopia | B108: =IF(COUNTRY_INFO!B108=0," ",COUNTRY_INFO!B108) -> AmharaNorth Gondar | C108: =IF(COUNTRY_INFO!C108=0," ",COUNTRY_INFO!C108) -> Wogera | D108: =IF(COUNTRY_INFO!$T$9:$T$1000="MDA2 (DEC+ALB)", COUNTRY_INFO!$T$9:$T$1000, " ") ->  | I108: 0 | M108: 0
A109: =IF(COUNTRY_INFO!A109=0," ",COUNTRY_INFO!A109) -> Ethiopia | B109: =IF(COUNTRY_INFO!B109=0," ",COUNTRY_INFO!B109) -> AmharaNorth Shoa | C109: =IF(COUNTRY_INFO!C109=0," ",COUNTRY_INFO!C109) -> Angolelna tera | D109: =IF(COUNTRY_INFO!$T$9:$T$1000="MDA2 (DEC+ALB)", COUNTRY_INFO!$T$9:$T$1000, " ") ->  | I109: 0 | M109: 0
A110: =IF(COUNTRY_INFO!A110=0," ",COUNTRY_INFO!A110) -> Ethiopia | B110: =IF(COUNTRY_INFO!B110=0," ",COUNTRY_INFO!B110) -> AmharaNorth Shoa | C110: =IF(COUNTRY_INFO!C110=0," ",COUNTRY_INFO!C110) -> Ankober | D110: =IF(COUNTRY_INFO!$T$9:$T$1000="MDA2 (DEC+ALB)", COUNTRY_INFO!$T$9:$T$1000, " ") ->  | I110: 0 | M110: 0
A111: =IF(COUNTRY_INFO!A111=0," ",COUNTRY_INFO!A111) -> Ethiopia | B111: =IF(COUNTRY_INFO!B111=0," ",COUNTRY_INFO!B111) -> AmharaNorth Shoa | C111: =IF(COUNTRY_INFO!C111=0," ",COUNTRY_INFO!C111) -> Antsokiagemza | D111: =IF(COUNTRY_INFO!$T$9:$T$1000="MDA2 (DEC+ALB)", COUNTRY_INFO!$T$9:$T$1000, " ") ->  | I111: 0 | M111: 0
A112: =IF(COUNTRY_INFO!A112=0," ",COUNTRY_INFO!A112) -> Ethiopia | B112: =IF(COUNTRY_INFO!B112=0," ",COUNTRY_INFO!B112) -> AmharaNorth Shoa | C112: =IF(COUNTRY_INFO!C112=0," ",COUNTRY_INFO!C112) -> Assagirt | D112: =IF(COUNTRY_INFO!$T$9:$T$1000="MDA2 (DEC+ALB)", COUNTRY_INFO!$T$9:$T$1000, " ") ->  | I112: 0 | M112: 0
A113: =IF(COUNTRY_INFO!A113=0," ",COUNTRY_INFO!A113) -> Ethiopia | B113: =IF(COUNTRY_INFO!B113=0," ",COUNTRY_INFO!B113) -> AmharaNorth Shoa | C113: =IF(COUNTRY_INFO!C113=0," ",COUNTRY_INFO!C113) -> Baso Naworana | D113: =IF(COUNTRY_INFO!$T$9:$T$1000="MDA2 (DEC+ALB)", COUNTRY_INFO!$T$9:$T$1000, " ") ->  | I113: 0 | M113: 0
A114: =IF(COUNTRY_INFO!A114=0," ",COUNTRY_INFO!A114) -> Ethiopia | B114: =IF(COUNTRY_INFO!B114=0," ",COUNTRY_INFO!B114) -> AmharaNorth Shoa | C114: =IF(COUNTRY_INFO!C114=0," ",COUNTRY_INFO!C114) -> Berehet | D114: =IF(COUNTRY_INFO!$T$9:$T$1000="MDA2 (DEC+ALB)", COUNTRY_INFO!$T$9:$T$1000, " ") ->  | I114: 0 | M114: 0
A115: =IF(COUNTRY_INFO!A115=0," ",COUNTRY_INFO!A115) -> Ethiopia | B115: =IF(COUNTRY_INFO!B115=0," ",COUNTRY_INFO!B115) -> AmharaNorth Shoa | C115: =IF(COUNTRY_INFO!C115=0," ",COUNTRY_INFO!C115) -> Debirebirhan Town | D115: =IF(COUNTRY_INFO!$T$9:$T$1000="MDA2 (DEC+ALB)", COUNTRY_INFO!$T$9:$T$1000, " ") ->  | I115: 0 | M115: 0
A116: =IF(COUNTRY_INFO!A116=0," ",COUNTRY_INFO!A116) -> Ethiopia | B116: =IF(COUNTRY_INFO!B116=0," ",COUNTRY_INFO!B116) -> AmharaNorth Shoa | C116: =IF(COUNTRY_INFO!C116=0," ",COUNTRY_INFO!C116) -> Efratanagidem | D116: =IF(COUNTRY_INFO!$T$9:$T$1000="MDA2 (DEC+ALB)", COUNTRY_INFO!$T$9:$T$1000, " ") ->  | I116: 0 | M116: 0
A117: =IF(COUNTRY_INFO!A117=0," ",COUNTRY_INFO!A117) -> Ethiopia | B117: =IF(COUNTRY_INFO!B117=0," ",COUNTRY_INFO!B117) -> AmharaNorth Shoa | C117: =IF(COUNTRY_INFO!C117=0," ",COUNTRY_INFO!C117) -> Ensaro | D117: =IF(COUNTRY_INFO!$T$9:$T$1000="MDA2 (DEC+ALB)", COUNTRY_INFO!$T$9:$T$1000, " ") ->  | I117: 0 | M117: 0
A118: =IF(COUNTRY_INFO!A118=0," ",COUNTRY_INFO!A118) -> Ethiopia | B118: =IF(COUNTRY_INFO!B118=0," ",COUNTRY_INFO!B118) -> AmharaNorth Shoa | C118: =IF(COUNTRY_INFO!C118=0," ",COUNTRY_INFO!C118) -> Geshe | D118: =IF(COUNTRY_INFO!$T$9:$T$1000="MDA2 (DEC+ALB)", COUNTRY_INFO!$T$9:$T$1000, " ") ->  | I118: 0 | M118: 0
A119: =IF(COUNTRY_INFO!A119=0," ",COUNTRY_INFO!A119) -> Ethiopia | B119: =IF(COUNTRY_INFO!B119=0," ",COUNTRY_INFO!B119) -> AmharaNorth Shoa | C119: =IF(COUNTRY_INFO!C119=0," ",COUNTRY_INFO!C119) -> Hageremariam | D119: =IF(COUNTRY_INFO!$T$9:$T$1000="MDA2 (DEC+ALB)", COUNTRY_INFO!$T$9:$T$1000, " ") ->  | I119: 0 | M119: 0
A120: =IF(COUNTRY_INFO!A120=0," ",COUNTRY_INFO!A120) -> Ethiopia | B120: =IF(COUNTRY_INFO!B120=0," ",COUNTRY_INFO!B120) -> AmharaNorth Shoa | C120: =IF(COUNTRY_INFO!C120=0," ",COUNTRY_INFO!C120) -> Kewot | D120: =IF(COUNTRY_INFO!$T$9:$T$1000="MDA2 (DEC+ALB)", COUNTRY_INFO!$T$9:$T$1000, " ") ->  | I120: 0 | M120: 0
A121: =IF(COUNTRY_INFO!A121=0," ",COUNTRY_INFO!A121) -> Ethiopia | B121: =IF(COUNTRY_INFO!B121=0," ",COUNTRY_INFO!B121) -> AmharaNorth Shoa | C121: =IF(COUNTRY_INFO!C121=0," ",COUNTRY_INFO!C121) -> Menzgera | D121: =IF(COUNTRY_INFO!$T$9:$T$1000="MDA2 (DEC+ALB)", COUNTRY_INFO!$T$9:$T$1000, " ") ->  | I121: 0 | M121: 0
A122: =IF(COUNTRY_INFO!A122=0," ",COUNTRY_INFO!A122) -> Ethiopia | B122: =IF(COUNTRY_INFO!B122=0," ",COUNTRY_INFO!B122) -> AmharaNorth Shoa | C122: =IF(COUNTRY_INFO!C122=0," ",COUNTRY_INFO!C122) -> Menzkeya | D122: =IF(COUNTRY_INFO!$T$9:$T$1000="MDA2 (DEC+ALB)", COUNTRY_INFO!$T$9:$T$1000, " ") ->  | I122: 0 | M122: 0
A123: =IF(COUNTRY_INFO!A123=0," ",COUNTRY_INFO!A123) -> Ethiopia | B123: =IF(COUNTRY_INFO!B123=0," ",COUNTRY_INFO!B123) -> AmharaNorth Shoa | C123: =IF(COUNTRY_INFO!C123=0," ",COUNTRY_INFO!C123) -> Menzlallo | D123: =IF(COUNTRY_INFO!$T$9:$T$1000="MDA2 (DEC+ALB)", COUNTRY_INFO!$T$9:$T$1000, " ") ->  | I123: 0 | M123: 0
A124: =IF(COUNTRY_INFO!A124=0," ",COUNTRY_INFO!A124) -> Ethiopia | B124: =IF(COUNTRY_INFO!B124=0," ",COUNTRY_INFO!B124) -> AmharaNorth Shoa | C124: =IF(COUNTRY_INFO!C124=0," ",COUNTRY_INFO!C124) -> Menzmamma | D124: =IF(COUNTRY_INFO!$T$9:$T$1000="MDA2 (DEC+ALB)", COUNTRY_INFO!$T$9:$T$1000, " ") ->  | I124: 0 | M124: 0
A125: =IF(COUNTRY_INFO!A125=0," ",COUNTRY_INFO!A125) -> Ethiopia | B125: =IF(COUNTRY_INFO!B125=0," ",COUNTRY_INFO!B125) -> AmharaNorth Shoa | C125: =IF(COUNTRY_INFO!C125=0," ",COUNTRY_INFO!C125) -> Merhabete | D125: =IF(COUNTRY_INFO!$T$9:$T$1000="MDA2 (DEC+ALB)", COUNTRY_INFO!$T$9:$T$1000, " ") ->  | I125: 0 | M125: 0
A126: =IF(COUNTRY_INFO!A126=0," ",COUNTRY_INFO!A126) -> Ethiopia | B126: =IF(COUNTRY_INFO!B126=0," ",COUNTRY_INFO!B126) -> AmharaNorth Shoa | C126: =IF(COUNTRY_INFO!C126=0," ",COUNTRY_INFO!C126) -> Midana Worem | D126: =IF(COUNTRY_INFO!$T$9:$T$1000="MDA2 (DEC+ALB)", COUNTRY_INFO!$T$9:$T$1000, " ") ->  | I126: 0 | M126: 0
A127: =IF(COUNTRY_INFO!A127=0," ",COUNTRY_INFO!A127) -> Ethiopia | B127: =IF(COUNTRY_INFO!B127=0," ",COUNTRY_INFO!B127) -> AmharaNorth Shoa | C127: =IF(COUNTRY_INFO!C127=0," ",COUNTRY_INFO!C127) -> Minjarshenkora | D127: =IF(COUNTRY_INFO!$T$9:$T$1000="MDA2 (DEC+ALB)", COUNTRY_INFO!$T$9:$T$1000, " ") ->  | I127: 0 | M127: 0
A128: =IF(COUNTRY_INFO!A128=0," ",COUNTRY_INFO!A128) -> Ethiopia | B128: =IF(COUNTRY_INFO!B128=0," ",COUNTRY_INFO!B128) -> AmharaNorth Shoa | C128: =IF(COUNTRY_INFO!C128=0," ",COUNTRY_INFO!C128) -> Mojanawodera | D128: =IF(COUNTRY_INFO!$T$9:$T$1000="MDA2 (DEC+ALB)", COUNTRY_INFO!$T$9:$T$1000, " ") ->  | I128: 0 | M128: 0
A129: =IF(COUNTRY_INFO!A129=0," ",COUNTRY_INFO!A129) -> Ethiopia | B129: =IF(COUNTRY_INFO!B129=0," ",COUNTRY_INFO!B129) -> AmharaNorth Shoa | C129: =IF(COUNTRY_INFO!C129=0," ",COUNTRY_INFO!C129) -> Moretnajiru | D129: =IF(COUNTRY_INFO!$T$9:$T$1000="MDA2 (DEC+ALB)", COUNTRY_INFO!$T$9:$T$1000, " ") ->  | I129: 0 | M129: 0
A130: =IF(COUNTRY_INFO!A130=0," ",COUNTRY_INFO!A130) -> Ethiopia | B130: =IF(COUNTRY_INFO!B130=0," ",COUNTRY_INFO!B130) -> AmharaNorth Shoa | C130: =IF(COUNTRY_INFO!C130=0," ",COUNTRY_INFO!C130) -> Shewarobit Town | D130: =IF(COUNTRY_INFO!$T$9:$T$1000="MDA2 (DEC+ALB)", COUNTRY_INFO!$T$9:$T$1000, " ") ->  | I130: 0 | M130: 0
A131: =IF(COUNTRY_INFO!A131=0," ",COUNTRY_INFO!A131) -> Ethiopia | B131: =IF(COUNTRY_INFO!B131=0," ",COUNTRY_INFO!B131) -> AmharaNorth Shoa | C131: =IF(COUNTRY_INFO!C131=0," ",COUNTRY_INFO!C131) -> Siyadebirnawayu | D131: =IF(COUNTRY_INFO!$T$9:$T$1000="MDA2 (DEC+ALB)", COUNTRY_INFO!$T$9:$T$1000, " ") ->  | I131: 0 | M131: 0
A132: =IF(COUNTRY_INFO!A132=0," ",COUNTRY_INFO!A132) -> Ethiopia | B132: =IF(COUNTRY_INFO!B132=0," ",COUNTRY_INFO!B132) -> AmharaNorth Shoa | C132: =IF(COUNTRY_INFO!C132=0," ",COUNTRY_INFO!C132) -> Tarmaber | D132: =IF(COUNTRY_INFO!$T$9:$T$1000="MDA2 (DEC+ALB)", COUNTRY_INFO!$T$9:$T$1000, " ") ->  | I132: 0 | M132: 0
A133: =IF(COUNTRY_INFO!A133=0," ",COUNTRY_INFO!A133) -> Ethiopia | B133: =IF(COUNTRY_INFO!B133=0," ",COUNTRY_INFO!B133) -> AmharaNorth Wello | C133: =IF(COUNTRY_INFO!C133=0," ",COUNTRY_INFO!C133) -> Angot | D133: =IF(COUNTRY_INFO!$T$9:$T$1000="MDA2 (DEC+ALB)", COUNTRY_INFO!$T$9:$T$1000, " ") ->  | I133: 0 | M133: 0
A134: =IF(COUNTRY_INFO!A134=0," ",COUNTRY_INFO!A134) -> Ethiopia | B134: =IF(COUNTRY_INFO!B134=0," ",COUNTRY_INFO!B134) -> AmharaNorth Wello | C134: =IF(COUNTRY_INFO!C134=0," ",COUNTRY_INFO!C134) -> Bugna | D134: =IF(COUNTRY_INFO!$T$9:$T$1000="MDA2 (DEC+ALB)", COUNTRY_INFO!$T$9:$T$1000, " ") ->  | I134: 0 | M134: 0
A135: =IF(COUNTRY_INFO!A135=0," ",COUNTRY_INFO!A135) -> Ethiopia | B135: =IF(COUNTRY_INFO!B135=0," ",COUNTRY_INFO!B135) -> AmharaNorth Wello | C135: =IF(COUNTRY_INFO!C135=0," ",COUNTRY_INFO!C135) -> Dawunt | D135: =IF(COUNTRY_INFO!$T$9:$T$1000="MDA2 (DEC+ALB)", COUNTRY_INFO!$T$9:$T$1000, " ") ->  | I135: 0 | M135: 0
A136: =IF(COUNTRY_INFO!A136=0," ",COUNTRY_INFO!A136) -> Ethiopia | B136: =IF(COUNTRY_INFO!B136=0," ",COUNTRY_INFO!B136) -> AmharaNorth Wello | C136: =IF(COUNTRY_INFO!C136=0," ",COUNTRY_INFO!C136) -> Gazo | D136: =IF(COUNTRY_INFO!$T$9:$T$1000="MDA2 (DEC+ALB)", COUNTRY_INFO!$T$9:$T$1000, " ") ->  | I136: 0 | M136: 0
A137: =IF(COUNTRY_INFO!A137=0," ",COUNTRY_INFO!A137) -> Ethiopia | B137: =IF(COUNTRY_INFO!B137=0," ",COUNTRY_INFO!B137) -> AmharaNorth Wello | C137: =IF(COUNTRY_INFO!C137=0," ",COUNTRY_INFO!C137) -> Gidan | D137: =IF(COUNTRY_INFO!$T$9:$T$1000="MDA2 (DEC+ALB)", COUNTRY_INFO!$T$9:$T$1000, " ") ->  | I137: 0 | M137: 0
A138: =IF(COUNTRY_INFO!A138=0," ",COUNTRY_INFO!A138) -> Ethiopia | B138: =IF(COUNTRY_INFO!B138=0," ",COUNTRY_INFO!B138) -> AmharaNorth Wello | C138: =IF(COUNTRY_INFO!C138=0," ",COUNTRY_INFO!C138) -> Gubalafto | D138: =IF(COUNTRY_INFO!$T$9:$T$1000="MDA2 (DEC+ALB)", COUNTRY_INFO!$T$9:$T$1000, " ") ->  | I138: =SUM(F138:H138) -> 0 | M138: =SUM(J138:L138) -> 0 | N138: =IF(F138<>0, IF(J138/F138*100=0, "-", J138/F138*100), " ") ->  | O138: =IF(G138<>0, IF(K138/G138*100=0, "-", K138/G138*100), " ") ->  | P138: =IF(H138<>0, IF(L138/H138*100=0, "-", L138/H138*100), " ") ->  | Q138: =IF(I138<>0, IF(M138/I138*100=0, "-", M138/I138*100), " ") -> 
A139: =IF(COUNTRY_INFO!A139=0," ",COUNTRY_INFO!A139) -> Ethiopia | B139: =IF(COUNTRY_INFO!B139=0," ",COUNTRY_INFO!B139) -> AmharaNorth Wello | C139: =IF(COUNTRY_INFO!C139=0," ",COUNTRY_INFO!C139) -> Habru | D139: =IF(COUNTRY_INFO!$T$9:$T$1000="MDA2 (DEC+ALB)", COUNTRY_INFO!$T$9:$T$1000, " ") ->  | I139: 0 | M139: 0
A140: =IF(COUNTRY_INFO!A140=0," ",COUNTRY_INFO!A140) -> Ethiopia | B140: =IF(COUNTRY_INFO!B140=0," ",COUNTRY_INFO!B140) -> AmharaNorth Wello | C140: =IF(COUNTRY_INFO!C140=0," ",COUNTRY_INFO!C140) -> Kobo Town | D140: =IF(COUNTRY_INFO!$T$9:$T$1000="MDA2 (DEC+ALB)", COUNTRY_INFO!$T$9:$T$1000, " ") ->  | I140: 0 | M140: 0
A141: =IF(COUNTRY_INFO!A141=0," ",COUNTRY_INFO!A141) -> Ethiopia | B141: =IF(COUNTRY_INFO!B141=0," ",COUNTRY_INFO!B141) -> AmharaNorth Wello | C141: =IF(COUNTRY_INFO!C141=0," ",COUNTRY_INFO!C141) -> Lalibella Town | D141: =IF(COUNTRY_INFO!$T$9:$T$1000="MDA2 (DEC+ALB)", COUNTRY_INFO!$T$9:$T$1000, " ") ->  | I141: 0 | M141: 0
A142: =IF(COUNTRY_INFO!A142=0," ",COUNTRY_INFO!A142) -> Ethiopia | B142: =IF(COUNTRY_INFO!B142=0," ",COUNTRY_INFO!B142) -> AmharaNorth Wello | C142: =IF(COUNTRY_INFO!C142=0," ",COUNTRY_INFO!C142) -> Lasta | D142: =IF(COUNTRY_INFO!$T$9:$T$1000="MDA2 (DEC+ALB)", COUNTRY_INFO!$T$9:$T$1000, " ") ->  | I142: 0 | M142: 0
A143: =IF(COUNTRY_INFO!A143=0," ",COUNTRY_INFO!A143) -> Ethiopia | B143: =IF(COUNTRY_INFO!B143=0," ",COUNTRY_INFO!B143) -> AmharaNorth Wello | C143: =IF(COUNTRY_INFO!C143=0," ",COUNTRY_INFO!C143) -> Meket | D143: =IF(COUNTRY_INFO!$T$9:$T$1000="MDA2 (DEC+ALB)", COUNTRY_INFO!$T$9:$T$1000, " ") ->  | I143: 0 | M143: 0
A144: =IF(COUNTRY_INFO!A144=0," ",COUNTRY_INFO!A144) -> Ethiopia | B144: =IF(COUNTRY_INFO!B144=0," ",COUNTRY_INFO!B144) -> AmharaNorth Wello | C144: =IF(COUNTRY_INFO!C144=0," ",COUNTRY_INFO!C144) -> Raya Kobo | D144: =IF(COUNTRY_INFO!$T$9:$T$1000="MDA2 (DEC+ALB)", COUNTRY_INFO!$T$9:$T$1000, " ") ->  | I144: 0 | M144: 0
A145: =IF(COUNTRY_INFO!A145=0," ",COUNTRY_INFO!A145) -> Ethiopia | B145: =IF(COUNTRY_INFO!B145=0," ",COUNTRY_INFO!B145) -> AmharaNorth Wello | C145: =IF(COUNTRY_INFO!C145=0," ",COUNTRY_INFO!C145) -> Wadlla | D145: =IF(COUNTRY_INFO!$T$9:$T$1000="MDA2 (DEC+ALB)", COUNTRY_INFO!$T$9:$T$1000, " ") ->  | I145: 0 | M145: 0
A146: =IF(COUNTRY_INFO!A146=0," ",COUNTRY_INFO!A146) -> Ethiopia | B146: =IF(COUNTRY_INFO!B146=0," ",COUNTRY_INFO!B146) -> AmharaNorth Wello | C146: =IF(COUNTRY_INFO!C146=0," ",COUNTRY_INFO!C146) -> Woldia Town | D146: =IF(COUNTRY_INFO!$T$9:$T$1000="MDA2 (DEC+ALB)", COUNTRY_INFO!$T$9:$T$1000, " ") ->  | I146: 0 | M146: 0
A147: =IF(COUNTRY_INFO!A147=0," ",COUNTRY_INFO!A147) -> Ethiopia | B147: =IF(COUNTRY_INFO!B147=0," ",COUNTRY_INFO!B147) -> AmharaOromiya | C147: =IF(COUNTRY_INFO!C147=0," ",COUNTRY_INFO!C147) -> Artuma Fursi | D147: =IF(COUNTRY_INFO!$T$9:$T$1000="MDA2 (DEC+ALB)", COUNTRY_INFO!$T$9:$T$1000, " ") ->  | I147: 0 | M147: 0
A148: =IF(COUNTRY_INFO!A148=0," ",COUNTRY_INFO!A148) -> Ethiopia | B148: =IF(COUNTRY_INFO!B148=0," ",COUNTRY_INFO!B148) -> AmharaOromiya | C148: =IF(COUNTRY_INFO!C148=0," ",COUNTRY_INFO!C148) -> Bati | D148: =IF(COUNTRY_INFO!$T$9:$T$1000="MDA2 (DEC+ALB)", COUNTRY_INFO!$T$9:$T$1000, " ") ->  | I148: 0 | M148: 0
A149: =IF(COUNTRY_INFO!A149=0," ",COUNTRY_INFO!A149) -> Ethiopia | B149: =IF(COUNTRY_INFO!B149=0," ",COUNTRY_INFO!B149) -> AmharaOromiya | C149: =IF(COUNTRY_INFO!C149=0," ",COUNTRY_INFO!C149) -> Bati Town | D149: =IF(COUNTRY_INFO!$T$9:$T$1000="MDA2 (DEC+ALB)", COUNTRY_INFO!$T$9:$T$1000, " ") ->  | I149: 0 | M149: 0
A150: =IF(COUNTRY_INFO!A150=0," ",COUNTRY_INFO!A150) -> Ethiopia | B150: =IF(COUNTRY_INFO!B150=0," ",COUNTRY_INFO!B150) -> AmharaOromiya | C150: =IF(COUNTRY_INFO!C150=0," ",COUNTRY_INFO!C150) -> Dawa chefa | D150: =IF(COUNTRY_INFO!$T$9:$T$1000="MDA2 (DEC+ALB)", COUNTRY_INFO!$T$9:$T$1000, " ") ->  | I150: 0 | M150: 0
A151: =IF(COUNTRY_INFO!A151=0," ",COUNTRY_INFO!A151) -> Ethiopia | B151: =IF(COUNTRY_INFO!B151=0," ",COUNTRY_INFO!B151) -> AmharaOromiya | C151: =IF(COUNTRY_INFO!C151=0," ",COUNTRY_INFO!C151) -> Dawe Harwa | D151: =IF(COUNTRY_INFO!$T$9:$T$1000="MDA2 (DEC+ALB)", COUNTRY_INFO!$T$9:$T$1000, " ") ->  | I151: 0 | M151: 0
A152: =IF(COUNTRY_INFO!A152=0," ",COUNTRY_INFO!A152) -> Ethiopia | B152: =IF(COUNTRY_INFO!B152=0," ",COUNTRY_INFO!B152) -> AmharaOromiya | C152: =IF(COUNTRY_INFO!C152=0," ",COUNTRY_INFO!C152) -> Jille Timuga | D152: =IF(COUNTRY_INFO!$T$9:$T$1000="MDA2 (DEC+ALB)", COUNTRY_INFO!$T$9:$T$1000, " ") ->  | I152: 0 | M152: 0
A153: =IF(COUNTRY_INFO!A153=0," ",COUNTRY_INFO!A153) -> Ethiopia | B153: =IF(COUNTRY_INFO!B153=0," ",COUNTRY_INFO!B153) -> AmharaOromiya | C153: =IF(COUNTRY_INFO!C153=0," ",COUNTRY_INFO!C153) -> Kemissie | D153: =IF(COUNTRY_INFO!$T$9:$T$1000="MDA2 (DEC+ALB)", COUNTRY_INFO!$T$9:$T$1000, " ") ->  | I153: 0 | M153: 0
A154: =IF(COUNTRY_INFO!A154=0," ",COUNTRY_INFO!A154) -> Ethiopia | B154: =IF(COUNTRY_INFO!B154=0," ",COUNTRY_INFO!B154) -> AmharaSouth Gondar | C154: =IF(COUNTRY_INFO!C154=0," ",COUNTRY_INFO!C154) -> Andabet (West Estie) | D154: =IF(COUNTRY_INFO!$T$9:$T$1000="MDA2 (DEC+ALB)", COUNTRY_INFO!$T$9:$T$1000, " ") ->  | I154: 0 | M154: 0
A155: =IF(COUNTRY_INFO!A155=0," ",COUNTRY_INFO!A155) -> Ethiopia | B155: =IF(COUNTRY_INFO!B155=0," ",COUNTRY_INFO!B155) -> AmharaSouth Gondar | C155: =IF(COUNTRY_INFO!C155=0," ",COUNTRY_INFO!C155) -> Debre Tabor Town | D155: =IF(COUNTRY_INFO!$T$9:$T$1000="MDA2 (DEC+ALB)", COUNTRY_INFO!$T$9:$T$1000, " ") ->  | I155: 0 | M155: 0
A156: =IF(COUNTRY_INFO!A156=0," ",COUNTRY_INFO!A156) -> Ethiopia | B156: =IF(COUNTRY_INFO!B156=0," ",COUNTRY_INFO!B156) -> AmharaSouth Gondar | C156: =IF(COUNTRY_INFO!C156=0," ",COUNTRY_INFO!C156) -> Dera | D156: =IF(COUNTRY_INFO!$T$9:$T$1000="MDA2 (DEC+ALB)", COUNTRY_INFO!$T$9:$T$1000, " ") ->  | I156: 0 | M156: 0
A157: =IF(COUNTRY_INFO!A157=0," ",COUNTRY_INFO!A157) -> Ethiopia | B157: =IF(COUNTRY_INFO!B157=0," ",COUNTRY_INFO!B157) -> AmharaSouth Gondar | C157: =IF(COUNTRY_INFO!C157=0," ",COUNTRY_INFO!C157) -> Ebinat | D157: =IF(COUNTRY_INFO!$T$9:$T$1000="MDA2 (DEC+ALB)", COUNTRY_INFO!$T$9:$T$1000, " ") ->  | I157: 0 | M157: 0
A158: =IF(COUNTRY_INFO!A158=0," ",COUNTRY_INFO!A158) -> Ethiopia | B158: =IF(COUNTRY_INFO!B158=0," ",COUNTRY_INFO!B158) -> AmharaSouth Gondar | C158: =IF(COUNTRY_INFO!C158=0," ",COUNTRY_INFO!C158) -> Estie (East Estie) | D158: =IF(COUNTRY_INFO!$T$9:$T$1000="MDA2 (DEC+ALB)", COUNTRY_INFO!$T$9:$T$1000, " ") ->  | I158: 0 | M158: 0
A159: =IF(COUNTRY_INFO!A159=0," ",COUNTRY_INFO!A159) -> Ethiopia | B159: =IF(COUNTRY_INFO!B159=0," ",COUNTRY_INFO!B159) -> AmharaSouth Gondar | C159: =IF(COUNTRY_INFO!C159=0," ",COUNTRY_INFO!C159) -> Farta | D159: =IF(COUNTRY_INFO!$T$9:$T$1000="MDA2 (DEC+ALB)", COUNTRY_INFO!$T$9:$T$1000, " ") ->  | I159: 0 | M159: 0
A160: =IF(COUNTRY_INFO!A160=0," ",COUNTRY_INFO!A160) -> Ethiopia | B160: =IF(COUNTRY_INFO!B160=0," ",COUNTRY_INFO!B160) -> AmharaSouth Gondar | C160: =IF(COUNTRY_INFO!C160=0," ",COUNTRY_INFO!C160) -> Fogera | D160: =IF(COUNTRY_INFO!$T$9:$T$1000="MDA2 (DEC+ALB)", COUNTRY_INFO!$T$9:$T$1000, " ") ->  | I160: 0 | M160: 0
A161: =IF(COUNTRY_INFO!A161=0," ",COUNTRY_INFO!A161) -> Ethiopia | B161: =IF(COUNTRY_INFO!B161=0," ",COUNTRY_INFO!B161) -> AmharaSouth Gondar | C161: =IF(COUNTRY_INFO!C161=0," ",COUNTRY_INFO!C161) -> Gunabegemidir | D161: =IF(COUNTRY_INFO!$T$9:$T$1000="MDA2 (DEC+ALB)", COUNTRY_INFO!$T$9:$T$1000, " ") ->  | I161: 0 | M161: 0
A162: =IF(COUNTRY_INFO!A162=0," ",COUNTRY_INFO!A162) -> Ethiopia | B162: =IF(COUNTRY_INFO!B162=0," ",COUNTRY_INFO!B162) -> AmharaSouth Gondar | C162: =IF(COUNTRY_INFO!C162=0," ",COUNTRY_INFO!C162) -> Lay Gaint | D162: =IF(COUNTRY_INFO!$T$9:$T$1000="MDA2 (DEC+ALB)", COUNTRY_INFO!$T$9:$T$1000, " ") ->  | I162: 0 | M162: 0
A163: =IF(COUNTRY_INFO!A163=0," ",COUNTRY_INFO!A163) -> Ethiopia | B163: =IF(COUNTRY_INFO!B163=0," ",COUNTRY_INFO!B163) -> AmharaSouth Gondar | C163: =IF(COUNTRY_INFO!C163=0," ",COUNTRY_INFO!C163) -> Libo Kemkem | D163: =IF(COUNTRY_INFO!$T$9:$T$1000="MDA2 (DEC+ALB)", COUNTRY_INFO!$T$9:$T$1000, " ") ->  | I163: 0 | M163: 0
A164: =IF(COUNTRY_INFO!A164=0," ",COUNTRY_INFO!A164) -> Ethiopia | B164: =IF(COUNTRY_INFO!B164=0," ",COUNTRY_INFO!B164) -> AmharaSouth Gondar | C164: =IF(COUNTRY_INFO!C164=0," ",COUNTRY_INFO!C164) -> Meketewa | D164: =IF(COUNTRY_INFO!$T$9:$T$1000="MDA2 (DEC+ALB)", COUNTRY_INFO!$T$9:$T$1000, " ") ->  | I164: 0 | M164: 0
A165: =IF(COUNTRY_INFO!A165=0," ",COUNTRY_INFO!A165) -> Ethiopia | B165: =IF(COUNTRY_INFO!B165=0," ",COUNTRY_INFO!B165) -> AmharaSouth Gondar | C165: =IF(COUNTRY_INFO!C165=0," ",COUNTRY_INFO!C165) -> Sediemuja | D165: =IF(COUNTRY_INFO!$T$9:$T$1000="MDA2 (DEC+ALB)", COUNTRY_INFO!$T$9:$T$1000, " ") ->  | I165: 0 | M165: 0
A166: =IF(COUNTRY_INFO!A166=0," ",COUNTRY_INFO!A166) -> Ethiopia | B166: =IF(COUNTRY_INFO!B166=0," ",COUNTRY_INFO!B166) -> AmharaSouth Gondar | C166: =IF(COUNTRY_INFO!C166=0," ",COUNTRY_INFO!C166) -> Simada | D166: =IF(COUNTRY_INFO!$T$9:$T$1000="MDA2 (DEC+ALB)", COUNTRY_INFO!$T$9:$T$1000, " ") ->  | I166: 0 | M166: 0
A167: =IF(COUNTRY_INFO!A167=0," ",COUNTRY_INFO!A167) -> Ethiopia | B167: =IF(COUNTRY_INFO!B167=0," ",COUNTRY_INFO!B167) -> AmharaSouth Gondar | C167: =IF(COUNTRY_INFO!C167=0," ",COUNTRY_INFO!C167) -> Tach Gaint | D167: =IF(COUNTRY_INFO!$T$9:$T$1000="MDA2 (DEC+ALB)", COUNTRY_INFO!$T$9:$T$1000, " ") ->  | I167: 0 | M167: 0
A168: =IF(COUNTRY_INFO!A168=0," ",COUNTRY_INFO!A168) -> Ethiopia | B168: =IF(COUNTRY_INFO!B168=0," ",COUNTRY_INFO!B168) -> AmharaSouth Gondar | C168: =IF(COUNTRY_INFO!C168=0," ",COUNTRY_INFO!C168) -> Woreta Town | D168: =IF(COUNTRY_INFO!$T$9:$T$1000="MDA2 (DEC+ALB)", COUNTRY_INFO!$T$9:$T$1000, " ") ->  | I168: 0 | M168: 0
A169: =IF(COUNTRY_INFO!A169=0," ",COUNTRY_INFO!A169) -> Ethiopia | B169: =IF(COUNTRY_INFO!B169=0," ",COUNTRY_INFO!B169) -> AmharaSouth Wello | C169: =IF(COUNTRY_INFO!C169=0," ",COUNTRY_INFO!C169) -> Albuko | D169: =IF(COUNTRY_INFO!$T$9:$T$1000="MDA2 (DEC+ALB)", COUNTRY_INFO!$T$9:$T$1000, " ") ->  | I169: 0 | M169: 0
A170: =IF(COUNTRY_INFO!A170=0," ",COUNTRY_INFO!A170) -> Ethiopia | B170: =IF(COUNTRY_INFO!B170=0," ",COUNTRY_INFO!B170) -> AmharaSouth Wello | C170: =IF(COUNTRY_INFO!C170=0," ",COUNTRY_INFO!C170) -> Ambasel | D170: =IF(COUNTRY_INFO!$T$9:$T$1000="MDA2 (DEC+ALB)", COUNTRY_INFO!$T$9:$T$1000, " ") ->  | I170: 0 | M170: 0
A171: =IF(COUNTRY_INFO!A171=0," ",COUNTRY_INFO!A171) -> Ethiopia | B171: =IF(COUNTRY_INFO!B171=0," ",COUNTRY_INFO!B171) -> AmharaSouth Wello | C171: =IF(COUNTRY_INFO!C171=0," ",COUNTRY_INFO!C171) -> Argoba | D171: =IF(COUNTRY_INFO!$T$9:$T$1000="MDA2 (DEC+ALB)", COUNTRY_INFO!$T$9:$T$1000, " ") ->  | I171: 0 | M171: 0
A172: =IF(COUNTRY_INFO!A172=0," ",COUNTRY_INFO!A172) -> Ethiopia | B172: =IF(COUNTRY_INFO!B172=0," ",COUNTRY_INFO!B172) -> AmharaSouth Wello | C172: =IF(COUNTRY_INFO!C172=0," ",COUNTRY_INFO!C172) -> Borena | D172: =IF(COUNTRY_INFO!$T$9:$T$1000="MDA2 (DEC+ALB)", COUNTRY_INFO!$T$9:$T$1000, " ") ->  | I172: 0 | M172: 0
A173: =IF(COUNTRY_INFO!A173=0," ",COUNTRY_INFO!A173) -> Ethiopia | B173: =IF(COUNTRY_INFO!B173=0," ",COUNTRY_INFO!B173) -> AmharaSouth Wello | C173: =IF(COUNTRY_INFO!C173=0," ",COUNTRY_INFO!C173) -> Dalanta | D173: =IF(COUNTRY_INFO!$T$9:$T$1000="MDA2 (DEC+ALB)", COUNTRY_INFO!$T$9:$T$1000, " ") ->  | I173: 0 | M173: 0
A174: =IF(COUNTRY_INFO!A174=0," ",COUNTRY_INFO!A174) -> Ethiopia | B174: =IF(COUNTRY_INFO!B174=0," ",COUNTRY_INFO!B174) -> AmharaSouth Wello | C174: =IF(COUNTRY_INFO!C174=0," ",COUNTRY_INFO!C174) -> Dessie Town | D174: =IF(COUNTRY_INFO!$T$9:$T$1000="MDA2 (DEC+ALB)", COUNTRY_INFO!$T$9:$T$1000, " ") ->  | I174: 0 | M174: 0
A175: =IF(COUNTRY_INFO!A175=0," ",COUNTRY_INFO!A175) -> Ethiopia | B175: =IF(COUNTRY_INFO!B175=0," ",COUNTRY_INFO!B175) -> AmharaSouth Wello | C175: =IF(COUNTRY_INFO!C175=0," ",COUNTRY_INFO!C175) -> Dessie zuria | D175: =IF(COUNTRY_INFO!$T$9:$T$1000="MDA2 (DEC+ALB)", COUNTRY_INFO!$T$9:$T$1000, " ") ->  | I175: 0 | M175: 0
A176: =IF(COUNTRY_INFO!A176=0," ",COUNTRY_INFO!A176) -> Ethiopia | B176: =IF(COUNTRY_INFO!B176=0," ",COUNTRY_INFO!B176) -> AmharaSouth Wello | C176: =IF(COUNTRY_INFO!C176=0," ",COUNTRY_INFO!C176) -> Jama | D176: =IF(COUNTRY_INFO!$T$9:$T$1000="MDA2 (DEC+ALB)", COUNTRY_INFO!$T$9:$T$1000, " ") ->  | I176: 0 | M176: 0
A177: =IF(COUNTRY_INFO!A177=0," ",COUNTRY_INFO!A177) -> Ethiopia | B177: =IF(COUNTRY_INFO!B177=0," ",COUNTRY_INFO!B177) -> AmharaSouth Wello | C177: =IF(COUNTRY_INFO!C177=0," ",COUNTRY_INFO!C177) -> Kallu | D177: =IF(COUNTRY_INFO!$T$9:$T$1000="MDA2 (DEC+ALB)", COUNTRY_INFO!$T$9:$T$1000, " ") ->  | I177: 0 | M177: 0
A178: =IF(COUNTRY_INFO!A178=0," ",COUNTRY_INFO!A178) -> Ethiopia | B178: =IF(COUNTRY_INFO!B178=0," ",COUNTRY_INFO!B178) -> AmharaSouth Wello | C178: =IF(COUNTRY_INFO!C178=0," ",COUNTRY_INFO!C178) -> Kelala | D178: =IF(COUNTRY_INFO!$T$9:$T$1000="MDA2 (DEC+ALB)", COUNTRY_INFO!$T$9:$T$1000, " ") ->  | I178: 0 | M178: 0
A179: =IF(COUNTRY_INFO!A179=0," ",COUNTRY_INFO!A179) -> Ethiopia | B179: =IF(COUNTRY_INFO!B179=0," ",COUNTRY_INFO!B179) -> AmharaSouth Wello | C179: =IF(COUNTRY_INFO!C179=0," ",COUNTRY_INFO!C179) -> Kombolcha | D179: =IF(COUNTRY_INFO!$T$9:$T$1000="MDA2 (DEC+ALB)", COUNTRY_INFO!$T$9:$T$1000, " ") ->  | I179: 0 | M179: 0
A180: =IF(COUNTRY_INFO!A180=0," ",COUNTRY_INFO!A180) -> Ethiopia | B180: =IF(COUNTRY_INFO!B180=0," ",COUNTRY_INFO!B180) -> AmharaSouth Wello | C180: =IF(COUNTRY_INFO!C180=0," ",COUNTRY_INFO!C180) -> Kutaber | D180: =IF(COUNTRY_INFO!$T$9:$T$1000="MDA2 (DEC+ALB)", COUNTRY_INFO!$T$9:$T$1000, " ") ->  | I180: 0 | M180: 0
A181: =IF(COUNTRY_INFO!A181=0," ",COUNTRY_INFO!A181) -> Ethiopia | B181: =IF(COUNTRY_INFO!B181=0," ",COUNTRY_INFO!B181) -> AmharaSouth Wello | C181: =IF(COUNTRY_INFO!C181=0," ",COUNTRY_INFO!C181) -> Lagambo | D181: =IF(COUNTRY_INFO!$T$9:$T$1000="MDA2 (DEC+ALB)", COUNTRY_INFO!$T$9:$T$1000, " ") ->  | I181: 0 | M181: 0
A182: =IF(COUNTRY_INFO!A182=0," ",COUNTRY_INFO!A182) -> Ethiopia | B182: =IF(COUNTRY_INFO!B182=0," ",COUNTRY_INFO!B182) -> AmharaSouth Wello | C182: =IF(COUNTRY_INFO!C182=0," ",COUNTRY_INFO!C182) -> Lege hida | D182: =IF(COUNTRY_INFO!$T$9:$T$1000="MDA2 (DEC+ALB)", COUNTRY_INFO!$T$9:$T$1000, " ") ->  | I182: 0 | M182: 0
A183: =IF(COUNTRY_INFO!A183=0," ",COUNTRY_INFO!A183) -> Ethiopia | B183: =IF(COUNTRY_INFO!B183=0," ",COUNTRY_INFO!B183) -> AmharaSouth Wello | C183: =IF(COUNTRY_INFO!C183=0," ",COUNTRY_INFO!C183) -> Mehal Sainet | D183: =IF(COUNTRY_INFO!$T$9:$T$1000="MDA2 (DEC+ALB)", COUNTRY_INFO!$T$9:$T$1000, " ") ->  | I183: 0 | M183: 0
A184: =IF(COUNTRY_INFO!A184=0," ",COUNTRY_INFO!A184) -> Ethiopia | B184: =IF(COUNTRY_INFO!B184=0," ",COUNTRY_INFO!B184) -> AmharaSouth Wello | C184: =IF(COUNTRY_INFO!C184=0," ",COUNTRY_INFO!C184) -> Mekdela | D184: =IF(COUNTRY_INFO!$T$9:$T$1000="MDA2 (DEC+ALB)", COUNTRY_INFO!$T$9:$T$1000, " ") ->  | I184: 0 | M184: 0
A185: =IF(COUNTRY_INFO!A185=0," ",COUNTRY_INFO!A185) -> Ethiopia | B185: =IF(COUNTRY_INFO!B185=0," ",COUNTRY_INFO!B185) -> AmharaSouth Wello | C185: =IF(COUNTRY_INFO!C185=0," ",COUNTRY_INFO!C185) -> Sainet | D185: =IF(COUNTRY_INFO!$T$9:$T$1000="MDA2 (DEC+ALB)", COUNTRY_INFO!$T$9:$T$1000, " ") ->  | I185: 0 | M185: 0
A186: =IF(COUNTRY_INFO!A186=0," ",COUNTRY_INFO!A186) -> Ethiopia | B186: =IF(COUNTRY_INFO!B186=0," ",COUNTRY_INFO!B186) -> AmharaSouth Wello | C186: =IF(COUNTRY_INFO!C186=0," ",COUNTRY_INFO!C186) -> Tehuledere | D186: =IF(COUNTRY_INFO!$T$9:$T$1000="MDA2 (DEC+ALB)", COUNTRY_INFO!$T$9:$T$1000, " ") ->  | I186: 0 | M186: 0
A187: =IF(COUNTRY_INFO!A187=0," ",COUNTRY_INFO!A187) -> Ethiopia | B187: =IF(COUNTRY_INFO!B187=0," ",COUNTRY_INFO!B187) -> AmharaSouth Wello | C187: =IF(COUNTRY_INFO!C187=0," ",COUNTRY_INFO!C187) -> Tenta | D187: =IF(COUNTRY_INFO!$T$9:$T$1000="MDA2 (DEC+ALB)", COUNTRY_INFO!$T$9:$T$1000, " ") ->  | I187: 0 | M187: 0
A188: =IF(COUNTRY_INFO!A188=0," ",COUNTRY_INFO!A188) -> Ethiopia | B188: =IF(COUNTRY_INFO!B188=0," ",COUNTRY_INFO!B188) -> AmharaSouth Wello | C188: =IF(COUNTRY_INFO!C188=0," ",COUNTRY_INFO!C188) -> Wegdy | D188: =IF(COUNTRY_INFO!$T$9:$T$1000="MDA2 (DEC+ALB)", COUNTRY_INFO!$T$9:$T$1000, " ") ->  | I188: 0 | M188: 0
A189: =IF(COUNTRY_INFO!A189=0," ",COUNTRY_INFO!A189) -> Ethiopia | B189: =IF(COUNTRY_INFO!B189=0," ",COUNTRY_INFO!B189) -> AmharaSouth Wello | C189: =IF(COUNTRY_INFO!C189=0," ",COUNTRY_INFO!C189) -> Wereilu | D189: =IF(COUNTRY_INFO!$T$9:$T$1000="MDA2 (DEC+ALB)", COUNTRY_INFO!$T$9:$T$1000, " ") ->  | I189: 0 | M189: 0
A190: =IF(COUNTRY_INFO!A190=0," ",COUNTRY_INFO!A190) -> Ethiopia | B190: =IF(COUNTRY_INFO!B190=0," ",COUNTRY_INFO!B190) -> AmharaSouth Wello | C190: =IF(COUNTRY_INFO!C190=0," ",COUNTRY_INFO!C190) -> Worebabo | D190: =IF(COUNTRY_INFO!$T$9:$T$1000="MDA2 (DEC+ALB)", COUNTRY_INFO!$T$9:$T$1000, " ") ->  | I190: 0 | M190: 0
A191: =IF(COUNTRY_INFO!A191=0," ",COUNTRY_INFO!A191) -> Ethiopia | B191: =IF(COUNTRY_INFO!B191=0," ",COUNTRY_INFO!B191) -> AmharaWag Hemra | C191: =IF(COUNTRY_INFO!C191=0," ",COUNTRY_INFO!C191) -> Abergele | D191: =IF(COUNTRY_INFO!$T$9:$T$1000="MDA2 (DEC+ALB)", COUNTRY_INFO!$T$9:$T$1000, " ") ->  | I191: 0 | M191: 0
A192: =IF(COUNTRY_INFO!A192=0," ",COUNTRY_INFO!A192) -> Ethiopia | B192: =IF(COUNTRY_INFO!B192=0," ",COUNTRY_INFO!B192) -> AmharaWag Hemra | C192: =IF(COUNTRY_INFO!C192=0," ",COUNTRY_INFO!C192) -> Dehana | D192: =IF(COUNTRY_INFO!$T$9:$T$1000="MDA2 (DEC+ALB)", COUNTRY_INFO!$T$9:$T$1000, " ") ->  | I192: 0 | M192: 0
A193: =IF(COUNTRY_INFO!A193=0," ",COUNTRY_INFO!A193) -> Ethiopia | B193: =IF(COUNTRY_INFO!B193=0," ",COUNTRY_INFO!B193) -> AmharaWag Hemra | C193: =IF(COUNTRY_INFO!C193=0," ",COUNTRY_INFO!C193) -> Gazgibla | D193: =IF(COUNTRY_INFO!$T$9:$T$1000="MDA2 (DEC+ALB)", COUNTRY_INFO!$T$9:$T$1000, " ") ->  | I193: 0 | M193: 0
A194: =IF(COUNTRY_INFO!A194=0," ",COUNTRY_INFO!A194) -> Ethiopia | B194: =IF(COUNTRY_INFO!B194=0," ",COUNTRY_INFO!B194) -> AmharaWag Hemra | C194: =IF(COUNTRY_INFO!C194=0," ",COUNTRY_INFO!C194) -> Sahala Seyemt | D194: =IF(COUNTRY_INFO!$T$9:$T$1000="MDA2 (DEC+ALB)", COUNTRY_INFO!$T$9:$T$1000, " ") ->  | I194: 0 | M194: 0
A195: =IF(COUNTRY_INFO!A195=0," ",COUNTRY_INFO!A195) -> Ethiopia | B195: =IF(COUNTRY_INFO!B195=0," ",COUNTRY_INFO!B195) -> AmharaWag Hemra | C195: =IF(COUNTRY_INFO!C195=0," ",COUNTRY_INFO!C195) -> Sekota town | D195: =IF(COUNTRY_INFO!$T$9:$T$1000="MDA2 (DEC+ALB)", COUNTRY_INFO!$T$9:$T$1000, " ") ->  | I195: 0 | M195: 0
A196: =IF(COUNTRY_INFO!A196=0," ",COUNTRY_INFO!A196) -> Ethiopia | B196: =IF(COUNTRY_INFO!B196=0," ",COUNTRY_INFO!B196) -> AmharaWag Hemra | C196: =IF(COUNTRY_INFO!C196=0," ",COUNTRY_INFO!C196) -> Sekota Zuria | D196: =IF(COUNTRY_INFO!$T$9:$T$1000="MDA2 (DEC+ALB)", COUNTRY_INFO!$T$9:$T$1000, " ") ->  | I196: 0 | M196: 0
A197: =IF(COUNTRY_INFO!A197=0," ",COUNTRY_INFO!A197) -> Ethiopia | B197: =IF(COUNTRY_INFO!B197=0," ",COUNTRY_INFO!B197) -> AmharaWag Hemra | C197: =IF(COUNTRY_INFO!C197=0," ",COUNTRY_INFO!C197) -> Tsagibji | D197: =IF(COUNTRY_INFO!$T$9:$T$1000="MDA2 (DEC+ALB)", COUNTRY_INFO!$T$9:$T$1000, " ") ->  | I197: 0 | M197: 0
A198: =IF(COUNTRY_INFO!A198=0," ",COUNTRY_INFO!A198) -> Ethiopia | B198: =IF(COUNTRY_INFO!B198=0," ",COUNTRY_INFO!B198) -> AmharaWag Hemra | C198: =IF(COUNTRY_INFO!C198=0," ",COUNTRY_INFO!C198) -> Ziquala | D198: =IF(COUNTRY_INFO!$T$9:$T$1000="MDA2 (DEC+ALB)", COUNTRY_INFO!$T$9:$T$1000, " ") ->  | I198: 0 | M198: 0
A199: =IF(COUNTRY_INFO!A199=0," ",COUNTRY_INFO!A199) -> Ethiopia | B199: =IF(COUNTRY_INFO!B199=0," ",COUNTRY_INFO!B199) -> AmharaWest Gojam | C199: =IF(COUNTRY_INFO!C199=0," ",COUNTRY_INFO!C199) -> Bahidar Zuria | D199: =IF(COUNTRY_INFO!$T$9:$T$1000="MDA2 (DEC+ALB)", COUNTRY_INFO!$T$9:$T$1000, " ") ->  | I199: 0 | M199: 0
A200: =IF(COUNTRY_INFO!A200=0," ",COUNTRY_INFO!A200) -> Ethiopia | B200: =IF(COUNTRY_INFO!B200=0," ",COUNTRY_INFO!B200) -> AmharaWest Gojam | C200: =IF(COUNTRY_INFO!C200=0," ",COUNTRY_INFO!C200) -> Bahirdar City | D200: =IF(COUNTRY_INFO!$T$9:$T$1000="MDA2 (DEC+ALB)", COUNTRY_INFO!$T$9:$T$1000, " ") ->  | I200: 0 | M200: 0
A201: =IF(COUNTRY_INFO!A201=0," ",COUNTRY_INFO!A201) -> Ethiopia | B201: =IF(COUNTRY_INFO!B201=0," ",COUNTRY_INFO!B201) -> AmharaWest Gojam | C201: =IF(COUNTRY_INFO!C201=0," ",COUNTRY_INFO!C201) -> Bure Town | D201: =IF(COUNTRY_INFO!$T$9:$T$1000="MDA2 (DEC+ALB)", COUNTRY_INFO!$T$9:$T$1000, " ") ->  | I201: 0 | M201: 0
A202: =IF(COUNTRY_INFO!A202=0," ",COUNTRY_INFO!A202) -> Ethiopia | B202: =IF(COUNTRY_INFO!B202=0," ",COUNTRY_INFO!B202) -> AmharaWest Gojam | C202: =IF(COUNTRY_INFO!C202=0," ",COUNTRY_INFO!C202) -> Bure Zuria | D202: =IF(COUNTRY_INFO!$T$9:$T$1000="MDA2 (DEC+ALB)", COUNTRY_INFO!$T$9:$T$1000, " ") ->  | I202: =SUM(F202:H202) -> 0 | M202: =SUM(J202:L202) -> 0 | N202: =IF(F202<>0, IF(J202/F202*100=0, "-", J202/F202*100), " ") ->  | O202: =IF(G202<>0, IF(K202/G202*100=0, "-", K202/G202*100), " ") ->  | P202: =IF(H202<>0, IF(L202/H202*100=0, "-", L202/H202*100), " ") ->  | Q202: =IF(I202<>0, IF(M202/I202*100=0, "-", M202/I202*100), " ") -> 
A203: =IF(COUNTRY_INFO!A203=0," ",COUNTRY_INFO!A203) -> Ethiopia | B203: =IF(COUNTRY_INFO!B203=0," ",COUNTRY_INFO!B203) -> AmharaWest Gojam | C203: =IF(COUNTRY_INFO!C203=0," ",COUNTRY_INFO!C203) -> Dega Damot | D203: =IF(COUNTRY_INFO!$T$9:$T$1000="MDA2 (DEC+ALB)", COUNTRY_INFO!$T$9:$T$1000, " ") ->  | I203: 0 | M203: 0
... 703 more rows

Sheet MDA3
A1: MDA 3 - Ivermectin (IVM)
A2: Administrative structure, population requiring PC by age group, population treated by age group and coverage
A4: TOTAL | F4: =SUM(F$9:F$1000) -> 5343184 | G4: 9498991 | H4: 14842175 | I4: 4056872 | J4: 7216326 | K4: 11273198 | L4: 4421903 | M4: 7861145 | N4: 12283048 | O4: 5045348 | P4: 8973605 | Q4: 14018953 | R4: =IF(F4<>0, IF(O4/F4*100=0, "-", O4/F4*100), " ") -> 94.42587042 | S4: =IF(G4<>0, IF(P4/G4*100=0, "-", P4/G4*100), " ") -> 94.46903361 | T4: =IF(H4<>0, IF(Q4/H4*100=0, "-", Q4/H4*100), " ") -> 94.45349486
D6: PC implemented | E6: Date | F6: Population targeted for MDA 3 | I6: Population treated - 1st round | L6: Population treated - 2nd round | O6: Population treated | R6: Programme coverage (%)
A7: Country | B7: Province/State | C7: District | F7: SAC | G7: Adults | H7: Total | I7: SAC | J7: Adults | K7: Total | L7: SAC | M7: Adults | N7: Total | O7: SAC | P7: Adults | Q7: Total | R7: SAC | S7: Adults | T7: Total
A9: =IF(COUNTRY_INFO!A9=0," ",COUNTRY_INFO!A9) -> Ethiopia | B9: =IF(COUNTRY_INFO!B9=0," ",COUNTRY_INFO!B9) -> Addis AbabaAddis Ababa | C9: =IF(COUNTRY_INFO!C9=0," ",COUNTRY_INFO!C9) -> Addis Ketema Subcity | D9: =IF(COUNTRY_INFO!$T$9:$T$1000="MDA3 (IVM)", COUNTRY_INFO!$T$9:$T$1000, " ") ->  | H9: =SUM(F9:G9) -> 0 | K9: =SUM(I9:J9) -> 0 | N9: =SUM(L9:M9) -> 0 | O9: =MAX(I9,L9) -> 0 | P9: =MAX(J9,M9) -> 0 | Q9: =SUM(O9:P9) -> 0 | R9: =IF(F9<>0, IF(MAX(I9,L9)/F9*100=0, "-", MAX(I9,L9)/F9*100), " ") ->  | S9: =IF(G9<>0, IF(MAX(J9,M9)/G9*100=0, "-", MAX(J9,M9)/G9*100), " ") ->  | T9: =IF(H9<>0, IF((MAX(I9,L9)+MAX(J9,M9))/H9*100=0, "-",(MAX(I9,L9)+MAX(J9,M9))/H9*100), " ") -> 
A10: =IF(COUNTRY_INFO!A10=0," ",COUNTRY_INFO!A10) -> Ethiopia | B10: =IF(COUNTRY_INFO!B10=0," ",COUNTRY_INFO!B10) -> Addis AbabaAddis Ababa | C10: =IF(COUNTRY_INFO!C10=0," ",COUNTRY_INFO!C10) -> Akaki Kaliti Subcity | D10: =IF(COUNTRY_INFO!$T$9:$T$1000="MDA3 (IVM)", COUNTRY_INFO!$T$9:$T$1000, " ") ->  | H10: =SUM(F10:G10) -> 0 | K10: =SUM(I10:J10) -> 0 | N10: =SUM(L10:M10) -> 0 | O10: =MAX(I10,L10) -> 0 | P10: =MAX(J10,M10) -> 0 | Q10: =SUM(O10:P10) -> 0 | R10: =IF(F10<>0, IF(MAX(I10,L10)/F10*100=0, "-", MAX(I10,L10)/F10*100), " ") ->  | S10: =IF(G10<>0, IF(MAX(J10,M10)/G10*100=0, "-", MAX(J10,M10)/G10*100), " ") ->  | T10: =IF(H10<>0, IF((MAX(I10,L10)+MAX(J10,M10))/H10*100=0, "-",(MAX(I10,L10)+MAX(J10,M10))/H10*100), " ") -> 
A11: =IF(COUNTRY_INFO!A11=0," ",COUNTRY_INFO!A11) -> Ethiopia | B11: =IF(COUNTRY_INFO!B11=0," ",COUNTRY_INFO!B11) -> Addis AbabaAddis Ababa | C11: =IF(COUNTRY_INFO!C11=0," ",COUNTRY_INFO!C11) -> Arada Subcity | D11: =IF(COUNTRY_INFO!$T$9:$T$1000="MDA3 (IVM)", COUNTRY_INFO!$T$9:$T$1000, " ") ->  | H11: 0 | K11: 0 | N11: 0 | O11: 0 | P11: 0 | Q11: 0
A12: =IF(COUNTRY_INFO!A12=0," ",COUNTRY_INFO!A12) -> Ethiopia | B12: =IF(COUNTRY_INFO!B12=0," ",COUNTRY_INFO!B12) -> Addis AbabaAddis Ababa | C12: =IF(COUNTRY_INFO!C12=0," ",COUNTRY_INFO!C12) -> Bolle Subcity | D12: =IF(COUNTRY_INFO!$T$9:$T$1000="MDA3 (IVM)", COUNTRY_INFO!$T$9:$T$1000, " ") ->  | H12: 0 | K12: 0 | N12: 0 | O12: 0 | P12: 0 | Q12: 0
A13: =IF(COUNTRY_INFO!A13=0," ",COUNTRY_INFO!A13) -> Ethiopia | B13: =IF(COUNTRY_INFO!B13=0," ",COUNTRY_INFO!B13) -> Addis AbabaAddis Ababa | C13: =IF(COUNTRY_INFO!C13=0," ",COUNTRY_INFO!C13) -> Gulelie Subcity | D13: =IF(COUNTRY_INFO!$T$9:$T$1000="MDA3 (IVM)", COUNTRY_INFO!$T$9:$T$1000, " ") ->  | H13: 0 | K13: 0 | N13: 0 | O13: 0 | P13: 0 | Q13: 0
A14: =IF(COUNTRY_INFO!A14=0," ",COUNTRY_INFO!A14) -> Ethiopia | B14: =IF(COUNTRY_INFO!B14=0," ",COUNTRY_INFO!B14) -> Addis AbabaAddis Ababa | C14: =IF(COUNTRY_INFO!C14=0," ",COUNTRY_INFO!C14) -> Kirkose Subcity | D14: =IF(COUNTRY_INFO!$T$9:$T$1000="MDA3 (IVM)", COUNTRY_INFO!$T$9:$T$1000, " ") ->  | H14: 0 | K14: 0 | N14: 0 | O14: 0 | P14: 0 | Q14: 0
A15: =IF(COUNTRY_INFO!A15=0," ",COUNTRY_INFO!A15) -> Ethiopia | B15: =IF(COUNTRY_INFO!B15=0," ",COUNTRY_INFO!B15) -> Addis AbabaAddis Ababa | C15: =IF(COUNTRY_INFO!C15=0," ",COUNTRY_INFO!C15) -> Kolfie Keranio Subcity | D15: =IF(COUNTRY_INFO!$T$9:$T$1000="MDA3 (IVM)", COUNTRY_INFO!$T$9:$T$1000, " ") ->  | H15: 0 | K15: 0 | N15: 0 | O15: 0 | P15: 0 | Q15: 0
A16: =IF(COUNTRY_INFO!A16=0," ",COUNTRY_INFO!A16) -> Ethiopia | B16: =IF(COUNTRY_INFO!B16=0," ",COUNTRY_INFO!B16) -> Addis AbabaAddis Ababa | C16: =IF(COUNTRY_INFO!C16=0," ",COUNTRY_INFO!C16) -> Lideta Subcity | D16: =IF(COUNTRY_INFO!$T$9:$T$1000="MDA3 (IVM)", COUNTRY_INFO!$T$9:$T$1000, " ") ->  | H16: 0 | K16: 0 | N16: 0 | O16: 0 | P16: 0 | Q16: 0
A17: =IF(COUNTRY_INFO!A17=0," ",COUNTRY_INFO!A17) -> Ethiopia | B17: =IF(COUNTRY_INFO!B17=0," ",COUNTRY_INFO!B17) -> Addis AbabaAddis Ababa | C17: =IF(COUNTRY_INFO!C17=0," ",COUNTRY_INFO!C17) -> Nifase Silk Lafto Subcity | D17: =IF(COUNTRY_INFO!$T$9:$T$1000="MDA3 (IVM)", COUNTRY_INFO!$T$9:$T$1000, " ") ->  | H17: 0 | K17: 0 | N17: 0 | O17: 0 | P17: 0 | Q17: 0
A18: =IF(COUNTRY_INFO!A18=0," ",COUNTRY_INFO!A18) -> Ethiopia | B18: =IF(COUNTRY_INFO!B18=0," ",COUNTRY_INFO!B18) -> Addis AbabaAddis Ababa | C18: =IF(COUNTRY_INFO!C18=0," ",COUNTRY_INFO!C18) -> Yeka Subcity | D18: =IF(COUNTRY_INFO!$T$9:$T$1000="MDA3 (IVM)", COUNTRY_INFO!$T$9:$T$1000, " ") ->  | H18: 0 | K18: 0 | N18: 0 | O18: 0 | P18: 0 | Q18: 0
A19: =IF(COUNTRY_INFO!A19=0," ",COUNTRY_INFO!A19) -> Ethiopia | B19: =IF(COUNTRY_INFO!B19=0," ",COUNTRY_INFO!B19) -> AfarAwsa | C19: =IF(COUNTRY_INFO!C19=0," ",COUNTRY_INFO!C19) -> Abala | D19: =IF(COUNTRY_INFO!$T$9:$T$1000="MDA3 (IVM)", COUNTRY_INFO!$T$9:$T$1000, " ") ->  | H19: 0 | K19: 0 | N19: 0 | O19: 0 | P19: 0 | Q19: 0
A20: =IF(COUNTRY_INFO!A20=0," ",COUNTRY_INFO!A20) -> Ethiopia | B20: =IF(COUNTRY_INFO!B20=0," ",COUNTRY_INFO!B20) -> AfarAwsa | C20: =IF(COUNTRY_INFO!C20=0," ",COUNTRY_INFO!C20) -> Adar | D20: =IF(COUNTRY_INFO!$T$9:$T$1000="MDA3 (IVM)", COUNTRY_INFO!$T$9:$T$1000, " ") ->  | H20: 0 | K20: 0 | N20: 0 | O20: 0 | P20: 0 | Q20: 0
A21: =IF(COUNTRY_INFO!A21=0," ",COUNTRY_INFO!A21) -> Ethiopia | B21: =IF(COUNTRY_INFO!B21=0," ",COUNTRY_INFO!B21) -> AfarAwsa | C21: =IF(COUNTRY_INFO!C21=0," ",COUNTRY_INFO!C21) -> Afambo | D21: =IF(COUNTRY_INFO!$T$9:$T$1000="MDA3 (IVM)", COUNTRY_INFO!$T$9:$T$1000, " ") ->  | H21: 0 | K21: 0 | N21: 0 | O21: 0 | P21: 0 | Q21: 0
A22: =IF(COUNTRY_INFO!A22=0," ",COUNTRY_INFO!A22) -> Ethiopia | B22: =IF(COUNTRY_INFO!B22=0," ",COUNTRY_INFO!B22) -> AfarAwsa | C22: =IF(COUNTRY_INFO!C22=0," ",COUNTRY_INFO!C22) -> Afdera | D22: =IF(COUNTRY_INFO!$T$9:$T$1000="MDA3 (IVM)", COUNTRY_INFO!$T$9:$T$1000, " ") ->  | H22: 0 | K22: 0 | N22: 0 | O22: 0 | P22: 0 | Q22: 0
A23: =IF(COUNTRY_INFO!A23=0," ",COUNTRY_INFO!A23) -> Ethiopia | B23: =IF(COUNTRY_INFO!B23=0," ",COUNTRY_INFO!B23) -> AfarAwsa | C23: =IF(COUNTRY_INFO!C23=0," ",COUNTRY_INFO!C23) -> Amibara | D23: =IF(COUNTRY_INFO!$T$9:$T$1000="MDA3 (IVM)", COUNTRY_INFO!$T$9:$T$1000, " ") ->  | H23: 0 | K23: 0 | N23: 0 | O23: 0 | P23: 0 | Q23: 0
A24: =IF(COUNTRY_INFO!A24=0," ",COUNTRY_INFO!A24) -> Ethiopia | B24: =IF(COUNTRY_INFO!B24=0," ",COUNTRY_INFO!B24) -> AfarAwsa | C24: =IF(COUNTRY_INFO!C24=0," ",COUNTRY_INFO!C24) -> Aregoba | D24: =IF(COUNTRY_INFO!$T$9:$T$1000="MDA3 (IVM)", COUNTRY_INFO!$T$9:$T$1000, " ") ->  | H24: 0 | K24: 0 | N24: 0 | O24: 0 | P24: 0 | Q24: 0
A25: =IF(COUNTRY_INFO!A25=0," ",COUNTRY_INFO!A25) -> Ethiopia | B25: =IF(COUNTRY_INFO!B25=0," ",COUNTRY_INFO!B25) -> AfarAwsa | C25: =IF(COUNTRY_INFO!C25=0," ",COUNTRY_INFO!C25) -> Awash fentale | D25: =IF(COUNTRY_INFO!$T$9:$T$1000="MDA3 (IVM)", COUNTRY_INFO!$T$9:$T$1000, " ") ->  | H25: 0 | K25: 0 | N25: 0 | O25: 0 | P25: 0 | Q25: 0
A26: =IF(COUNTRY_INFO!A26=0," ",COUNTRY_INFO!A26) -> Ethiopia | B26: =IF(COUNTRY_INFO!B26=0," ",COUNTRY_INFO!B26) -> AfarAwsa | C26: =IF(COUNTRY_INFO!C26=0," ",COUNTRY_INFO!C26) -> Awash Town | D26: =IF(COUNTRY_INFO!$T$9:$T$1000="MDA3 (IVM)", COUNTRY_INFO!$T$9:$T$1000, " ") ->  | H26: 0 | K26: 0 | N26: 0 | O26: 0 | P26: 0 | Q26: 0
A27: =IF(COUNTRY_INFO!A27=0," ",COUNTRY_INFO!A27) -> Ethiopia | B27: =IF(COUNTRY_INFO!B27=0," ",COUNTRY_INFO!B27) -> AfarAwsa | C27: =IF(COUNTRY_INFO!C27=0," ",COUNTRY_INFO!C27) -> Awra | D27: =IF(COUNTRY_INFO!$T$9:$T$1000="MDA3 (IVM)", COUNTRY_INFO!$T$9:$T$1000, " ") ->  | H27: 0 | K27: 0 | N27: 0 | O27: 0 | P27: 0 | Q27: 0
A28: =IF(COUNTRY_INFO!A28=0," ",COUNTRY_INFO!A28) -> Ethiopia | B28: =IF(COUNTRY_INFO!B28=0," ",COUNTRY_INFO!B28) -> AfarAwsa | C28: =IF(COUNTRY_INFO!C28=0," ",COUNTRY_INFO!C28) -> Aysaeta | D28: =IF(COUNTRY_INFO!$T$9:$T$1000="MDA3 (IVM)", COUNTRY_INFO!$T$9:$T$1000, " ") ->  | H28: 0 | K28: 0 | N28: 0 | O28: 0 | P28: 0 | Q28: 0
A29: =IF(COUNTRY_INFO!A29=0," ",COUNTRY_INFO!A29) -> Ethiopia | B29: =IF(COUNTRY_INFO!B29=0," ",COUNTRY_INFO!B29) -> AfarAwsa | C29: =IF(COUNTRY_INFO!C29=0," ",COUNTRY_INFO!C29) -> Chifra | D29: =IF(COUNTRY_INFO!$T$9:$T$1000="MDA3 (IVM)", COUNTRY_INFO!$T$9:$T$1000, " ") ->  | H29: 0 | K29: 0 | N29: 0 | O29: 0 | P29: 0 | Q29: 0
A30: =IF(COUNTRY_INFO!A30=0," ",COUNTRY_INFO!A30) -> Ethiopia | B30: =IF(COUNTRY_INFO!B30=0," ",COUNTRY_INFO!B30) -> AfarAwsa | C30: =IF(COUNTRY_INFO!C30=0," ",COUNTRY_INFO!C30) -> Dubti | D30: =IF(COUNTRY_INFO!$T$9:$T$1000="MDA3 (IVM)", COUNTRY_INFO!$T$9:$T$1000, " ") ->  | H30: 0 | K30: 0 | N30: 0 | O30: 0 | P30: 0 | Q30: 0
A31: =IF(COUNTRY_INFO!A31=0," ",COUNTRY_INFO!A31) -> Ethiopia | B31: =IF(COUNTRY_INFO!B31=0," ",COUNTRY_INFO!B31) -> AfarAwsa | C31: =IF(COUNTRY_INFO!C31=0," ",COUNTRY_INFO!C31) -> Elidar | D31: =IF(COUNTRY_INFO!$T$9:$T$1000="MDA3 (IVM)", COUNTRY_INFO!$T$9:$T$1000, " ") ->  | H31: 0 | K31: 0 | N31: 0 | O31: 0 | P31: 0 | Q31: 0
A32: =IF(COUNTRY_INFO!A32=0," ",COUNTRY_INFO!A32) -> Ethiopia | B32: =IF(COUNTRY_INFO!B32=0," ",COUNTRY_INFO!B32) -> AfarAwsa | C32: =IF(COUNTRY_INFO!C32=0," ",COUNTRY_INFO!C32) -> Kori | D32: =IF(COUNTRY_INFO!$T$9:$T$1000="MDA3 (IVM)", COUNTRY_INFO!$T$9:$T$1000, " ") ->  | H32: 0 | K32: 0 | N32: 0 | O32: 0 | P32: 0 | Q32: 0
A33: =IF(COUNTRY_INFO!A33=0," ",COUNTRY_INFO!A33) -> Ethiopia | B33: =IF(COUNTRY_INFO!B33=0," ",COUNTRY_INFO!B33) -> AfarAwsa | C33: =IF(COUNTRY_INFO!C33=0," ",COUNTRY_INFO!C33) -> Mile | D33: =IF(COUNTRY_INFO!$T$9:$T$1000="MDA3 (IVM)", COUNTRY_INFO!$T$9:$T$1000, " ") ->  | H33: 0 | K33: 0 | N33: 0 | O33: 0 | P33: 0 | Q33: 0
A34: =IF(COUNTRY_INFO!A34=0," ",COUNTRY_INFO!A34) -> Ethiopia | B34: =IF(COUNTRY_INFO!B34=0," ",COUNTRY_INFO!B34) -> AfarAwsa | C34: =IF(COUNTRY_INFO!C34=0," ",COUNTRY_INFO!C34) -> Semra Logya Town | D34: =IF(COUNTRY_INFO!$T$9:$T$1000="MDA3 (IVM)", COUNTRY_INFO!$T$9:$T$1000, " ") ->  | H34: 0 | K34: 0 | N34: 0 | O34: 0 | P34: 0 | Q34: 0
A35: =IF(COUNTRY_INFO!A35=0," ",COUNTRY_INFO!A35) -> Ethiopia | B35: =IF(COUNTRY_INFO!B35=0," ",COUNTRY_INFO!B35) -> AfarFanti | C35: =IF(COUNTRY_INFO!C35=0," ",COUNTRY_INFO!C35) -> Bedu | D35: =IF(COUNTRY_INFO!$T$9:$T$1000="MDA3 (IVM)", COUNTRY_INFO!$T$9:$T$1000, " ") ->  | H35: 0 | K35: 0 | N35: 0 | O35: 0 | P35: 0 | Q35: 0
A36: =IF(COUNTRY_INFO!A36=0," ",COUNTRY_INFO!A36) -> Ethiopia | B36: =IF(COUNTRY_INFO!B36=0," ",COUNTRY_INFO!B36) -> AfarFanti | C36: =IF(COUNTRY_INFO!C36=0," ",COUNTRY_INFO!C36) -> Berahle | D36: =IF(COUNTRY_INFO!$T$9:$T$1000="MDA3 (IVM)", COUNTRY_INFO!$T$9:$T$1000, " ") ->  | H36: 0 | K36: 0 | N36: 0 | O36: 0 | P36: 0 | Q36: 0
A37: =IF(COUNTRY_INFO!A37=0," ",COUNTRY_INFO!A37) -> Ethiopia | B37: =IF(COUNTRY_INFO!B37=0," ",COUNTRY_INFO!B37) -> AfarFanti | C37: =IF(COUNTRY_INFO!C37=0," ",COUNTRY_INFO!C37) -> Buremodaytu | D37: =IF(COUNTRY_INFO!$T$9:$T$1000="MDA3 (IVM)", COUNTRY_INFO!$T$9:$T$1000, " ") ->  | H37: 0 | K37: 0 | N37: 0 | O37: 0 | P37: 0 | Q37: 0
A38: =IF(COUNTRY_INFO!A38=0," ",COUNTRY_INFO!A38) -> Ethiopia | B38: =IF(COUNTRY_INFO!B38=0," ",COUNTRY_INFO!B38) -> AfarGabi | C38: =IF(COUNTRY_INFO!C38=0," ",COUNTRY_INFO!C38) -> Dalifage | D38: =IF(COUNTRY_INFO!$T$9:$T$1000="MDA3 (IVM)", COUNTRY_INFO!$T$9:$T$1000, " ") ->  | H38: 0 | K38: 0 | N38: 0 | O38: 0 | P38: 0 | Q38: 0
A39: =IF(COUNTRY_INFO!A39=0," ",COUNTRY_INFO!A39) -> Ethiopia | B39: =IF(COUNTRY_INFO!B39=0," ",COUNTRY_INFO!B39) -> AfarGabi | C39: =IF(COUNTRY_INFO!C39=0," ",COUNTRY_INFO!C39) -> Dalul | D39: =IF(COUNTRY_INFO!$T$9:$T$1000="MDA3 (IVM)", COUNTRY_INFO!$T$9:$T$1000, " ") ->  | H39: 0 | K39: 0 | N39: 0 | O39: 0 | P39: 0 | Q39: 0
A40: =IF(COUNTRY_INFO!A40=0," ",COUNTRY_INFO!A40) -> Ethiopia | B40: =IF(COUNTRY_INFO!B40=0," ",COUNTRY_INFO!B40) -> AfarGabi | C40: =IF(COUNTRY_INFO!C40=0," ",COUNTRY_INFO!C40) -> Dewe | D40: =IF(COUNTRY_INFO!$T$9:$T$1000="MDA3 (IVM)", COUNTRY_INFO!$T$9:$T$1000, " ") ->  | H40: 0 | K40: 0 | N40: 0 | O40: 0 | P40: 0 | Q40: 0
A41: =IF(COUNTRY_INFO!A41=0," ",COUNTRY_INFO!A41) -> Ethiopia | B41: =IF(COUNTRY_INFO!B41=0," ",COUNTRY_INFO!B41) -> AfarGabi | C41: =IF(COUNTRY_INFO!C41=0," ",COUNTRY_INFO!C41) -> Dulech | D41: =IF(COUNTRY_INFO!$T$9:$T$1000="MDA3 (IVM)", COUNTRY_INFO!$T$9:$T$1000, " ") ->  | H41: 0 | K41: 0 | N41: 0 | O41: 0 | P41: 0 | Q41: 0
A42: =IF(COUNTRY_INFO!A42=0," ",COUNTRY_INFO!A42) -> Ethiopia | B42: =IF(COUNTRY_INFO!B42=0," ",COUNTRY_INFO!B42) -> AfarHarri | C42: =IF(COUNTRY_INFO!C42=0," ",COUNTRY_INFO!C42) -> Erebti | D42: =IF(COUNTRY_INFO!$T$9:$T$1000="MDA3 (IVM)", COUNTRY_INFO!$T$9:$T$1000, " ") ->  | H42: 0 | K42: 0 | N42: 0 | O42: 0 | P42: 0 | Q42: 0
A43: =IF(COUNTRY_INFO!A43=0," ",COUNTRY_INFO!A43) -> Ethiopia | B43: =IF(COUNTRY_INFO!B43=0," ",COUNTRY_INFO!B43) -> AfarHarri | C43: =IF(COUNTRY_INFO!C43=0," ",COUNTRY_INFO!C43) -> Ewa | D43: =IF(COUNTRY_INFO!$T$9:$T$1000="MDA3 (IVM)", COUNTRY_INFO!$T$9:$T$1000, " ") ->  | H43: 0 | K43: 0 | N43: 0 | O43: 0 | P43: 0 | Q43: 0
A44: =IF(COUNTRY_INFO!A44=0," ",COUNTRY_INFO!A44) -> Ethiopia | B44: =IF(COUNTRY_INFO!B44=0," ",COUNTRY_INFO!B44) -> AfarHarri | C44: =IF(COUNTRY_INFO!C44=0," ",COUNTRY_INFO!C44) -> Gewane | D44: =IF(COUNTRY_INFO!$T$9:$T$1000="MDA3 (IVM)", COUNTRY_INFO!$T$9:$T$1000, " ") ->  | H44: 0 | K44: 0 | N44: 0 | O44: 0 | P44: 0 | Q44: 0
A45: =IF(COUNTRY_INFO!A45=0," ",COUNTRY_INFO!A45) -> Ethiopia | B45: =IF(COUNTRY_INFO!B45=0," ",COUNTRY_INFO!B45) -> AfarHarri | C45: =IF(COUNTRY_INFO!C45=0," ",COUNTRY_INFO!C45) -> Gulina | D45: =IF(COUNTRY_INFO!$T$9:$T$1000="MDA3 (IVM)", COUNTRY_INFO!$T$9:$T$1000, " ") ->  | H45: 0 | K45: 0 | N45: 0 | O45: 0 | P45: 0 | Q45: 0
A46: =IF(COUNTRY_INFO!A46=0," ",COUNTRY_INFO!A46) -> Ethiopia | B46: =IF(COUNTRY_INFO!B46=0," ",COUNTRY_INFO!B46) -> AfarHarri | C46: =IF(COUNTRY_INFO!C46=0," ",COUNTRY_INFO!C46) -> Hadaleelila | D46: =IF(COUNTRY_INFO!$T$9:$T$1000="MDA3 (IVM)", COUNTRY_INFO!$T$9:$T$1000, " ") ->  | H46: 0 | K46: 0 | N46: 0 | O46: 0 | P46: 0 | Q46: 0
